Workbook

Sheet Kastare
A1: Kod | B1: Namn | C1: Klubb | D1: Klass
A2: 1163 | B2: Tobias Vikström | C2: Växjö Hsk | D2: 4 | F2: Klass 1 | G2: =COUNTIF(D$2:D$1000,1) -> 15
A3: 1039 | B3: Bela Bodi | C3: Växjö Hsk | D3: 3 | F3: Klass 2 | G3: =COUNTIF(D$2:D$1000,2) -> 20
A4: 1026 | B4: Bengt Andersson | C4: Växjö Hsk | D4: 2 | F4: Klass 3 | G4: =COUNTIF(D$2:D$1000,3) -> 40
A5: 1183 | B5: Bertil Westergren | C5: Växjö Hsk | D5: 4 | F5: Klass 4 | G5: =COUNTIF(D$2:D$1000,4) -> 150
A6: 1018 | B6: Dan Hallstan | C6: Växjö Hsk | D6: 2 | F6: Minior | G6: =COUNTIF(D$2:D$1000,"m") -> 21
A7: 1056 | B7: Günther Iraschko | C7: Växjö Hsk | D7: 3
A8: 1007 | B8: Hathaichonlanne Phaengphui | C8: Växjö Hsk | D8: 1
A9: 1022 | B9: Kerstin Svensson | C9: Växjö Hsk | D9: 3
A10: 1042 | B10: Maire Johansson | C10: Växjö Hsk | D10: 2
A11: 1182 | B11: Maj-Britt Jarl | C11: Växjö Hsk | D11: 4
A12: 1001 | B12: Sandor Bodi | C12: Växjö Hsk | D12: 1
A13: 1002 | B13: Sandra Widlund | C13: Växjö Hsk | D13: 2
A14: 1058 | B14: Solveig Axelsson | C14: Växjö Hsk | D14: 4
A15: 1051 | B15: Thomas Dahl | C15: Växjö Hsk | D15: 3
A16: 1084 | B16: Tomas Lindedal | C16: Växjö Hsk | D16: 4
A17: 1010 | B17: Yamonlada Damnoenngam | C17: Växjö Hsk | D17: 1
A18: 1175 | B18: Albin Rydell | C18: VärendsMIN | D18: m
A19: 1177 | B19: Alex Rydell | C19: VärendsMIN | D19: m
A20: 1176 | B20: Elvin Rydell | C20: VärendsMIN | D20: m
A21: 1068 | B21: Anders Karlsson | C21: Värends Hsk | D21: 4
A22: 1122 | B22: Christer Brincner | C22: Värends Hsk | D22: 3
A23: 1072 | B23: Clara Larsson | C23: Värends Hsk | D23: 3
A24: 1079 | B24: Karin Gullbrand | C24: Värends Hsk | D24: 4
A25: 1012 | B25: Lasse Brincner | C25: Värends Hsk | D25: 2
A26: 1166 | B26: Martin Antic | C26: Värends Hsk | D26: 4
A27: 1114 | B27: Sandra Rydell | C27: Värends Hsk | D27: 4
A28: 1081 | B28: Thomas Marklund | C28: Värends Hsk | D28: 4
A29: 1139 | B29: Tommy Svensson | C29: Värends Hsk | D29: 4
A30: 1101 | B30: Ulrika Rydell | C30: Värends Hsk | D30: 4
A31: 1197 | B31: Björn Enström | C31: Viby HSK | D31: 4
A32: 1209 | B32: Mimmi Dahlman | C32: Viby HSK | D32: 4
A33: 1207 | B33: Rebecka Fresk | C33: Viby HSK | D33: 4
A34: 1208 | B34: Annelie Thörnqvist | C34: Vaxö Skola | D34: 4
A35: 1202 | B35: Linda Ewertzh | C35: Vaxö Skola | D35: 4
A36: 1199 | B36: Patrik Håkansson | C36: Vaxö Skola | D36: 4
A37: 1091 | B37: Andreas Gundersen | C37: Vaxholm Hsk | D37: 4
A38: 1033 | B38: Björn Gabrielsson | C38: Vaxholm Hsk | D38: 3
A39: 1126 | B39: Björn Hansson | C39: Vaxholm Hsk | D39: 4
A40: 1020 | B40: Björn Landberg | C40: Vaxholm Hsk | D40: 3
A41: 1153 | B41: Charlotte Jacobsson | C41: Vaxholm Hsk | D41: 4
A42: 1186 | B42: Christoffer Lindh | C42: Vaxholm Hsk | D42: 4
A43: 1127 | B43: Daniel Becker | C43: Vaxholm Hsk | D43: 4
A44: 1059 | B44: Erik Smiding | C44: Vaxholm Hsk | D44: 4
A45: 1102 | B45: Göran Örjebo | C45: Vaxholm Hsk | D45: 4
A46: 1113 | B46: Heidi Bühlmann | C46: Vaxholm Hsk | D46: 4
A47: 1130 | B47: Jimmy Carlsson | C47: Vaxholm Hsk | D47: 4
A48: 1119 | B48: Johan Ullgren | C48: Vaxholm Hsk | D48: 4
A49: 1029 | B49: Kristian Jältsäter | C49: Vaxholm Hsk | D49: 3
A50: 1090 | B50: Lotta Sundin | C50: Vaxholm Hsk | D50: 4
A51: 1106 | B51: Matthias Zetterlund | C51: Vaxholm Hsk | D51: 4
A52: 1181 | B52: Melker Gundersen | C52: Vaxholm Hsk | D52: m
A53: 1095 | B53: Mikael Klaving | C53: Vaxholm Hsk | D53: 4
A54: 1138 | B54: Pia Brovold | C54: Vaxholm Hsk | D54: 4
A55: 1189 | B55: Sabina Rydberg | C55: Vaxholm Hsk | D55: 4
A56: 1137 | B56: Thomas Diedrichs | C56: Vaxholm Hsk | D56: 4
A57: 1117 | B57: Victor Bengtsson | C57: Vaxholm Hsk | D57: 4
A58: 1180 | B58: Victor Fernandez | C58: Vaxholm Hsk | D58: m
A59: 1179 | B59: William Fernandez | C59: Vaxholm Hsk | D59: m
A60: 1191 | B60: Alice Jältsäter | C60: Vaxholm | D60: m
A61: 1174 | B61: Ebba Strömberg | C61: Vaxholm | D61: m
A62: 1203 | B62: Isabelle Åkesson | C62: Vaxholm | D62: 4
A63: 1195 | B63: Johanna Jacobsson | C63: Vaxholm | D63: 4
A64: 1196 | B64: Karen Jältsäter | C64: Vaxholm | D64: 4
A65: 1193 | B65: Majken Strömberg | C65: Vaxholm | D65: m
A66: 1206 | B66: Nils Brovold | C66: Vaxholm | D66: 4
A67: 1192 | B67: Sofia H | C67: Vaxholm | D67: m
A68: 1142 | B68: Peter Skörd | C68: Täby | D68: 4
A69: 1099 | B69: Anders Bergqvist | C69: Tingsryd Hsc | D69: 4
A70: 1155 | B70: Anne-Marie Larsson | C70: Tingsryd Hsc | D70: 4
A71: 1164 | B71: Christina Holmberg | C71: Tingsryd Hsc | D71: 4
A72: 1069 | B72: Gunnar Lundbeck | C72: Tingsryd Hsc | D72: 4
A73: 1077 | B73: Hasse Johansson | C73: Tingsryd Hsc | D73: 3
A74: 1040 | B74: Janne Johansson | C74: Tingsryd Hsc | D74: 3
A75: 1025 | B75: Johan Johansson | C75: Tingsryd Hsc | D75: 2
A76: 1073 | B76: Laila Johansson | C76: Tingsryd Hsc | D76: 4
A77: 1011 | B77: Lennart Karlsson | C77: Tingsryd Hsc | D77: 2
A78: 1036 | B78: Lisbeth Nygaard-Karlsson | C78: Tingsryd Hsc | D78: 2
A79: 1161 | B79: Robert Johansson | C79: Tingsryd Hsc | D79: 4
A80: 1141 | B80: Roland Sjöstrand | C80: Tingsryd Hsc | D80: 4
A81: 1064 | B81: Åke Bergqvist | C81: Tingsryd Hsc | D81: 3
A82: 1078 | B82: Billy Klarström | C82: Team Småland | D82: 4
A83: 1053 | B83: Jonas Klarström | C83: Team Småland | D83: 4
A84: 1038 | B84: Maria Andersson | C84: Team Småland | D84: 3
A85: 1158 | B85: Mikael Sellén | C85: Team Småland | D85: 4
A86: 1123 | B86: Mats Svensson | C86: Stadslaget | D86: 4
A87: 1149 | B87: Niclas Nyberg | C87: Stadslaget | D87: 4
A88: 1121 | B88: Tomas Röhl | C88: Stadslaget | D88: 4
A89: 1152 | B89: Åse Larsson | C89: Stadslaget | D89: 4
A90: 1118 | B90: Birgit Brown | C90: Sollentuna | D90: 4
A91: 1109 | B91: Scott Brown | C91: Sollentuna | D91: 4
A92: 1074 | B92: Anton Alexandersson | C92: Sibbamåla | D92: 3
A93: 1041 | B93: Carina Gneupel | C93: Sibbamåla | D93: 2
A94: 1075 | B94: Julius Gneupel | C94: Sibbamåla | D94: 4
A95: 1120 | B95: Linnea Gneupel | C95: Sibbamåla | D95: 4
A96: 1083 | B96: Magnus Israelsson | C96: Sibbamåla | D96: 3
A97: 1017 | B97: Matthias Gneupel | C97: Sibbamåla | D97: 1
A98: 1112 | B98: Mikael Grönskog | C98: Sibbamåla | D98: 4
A99: 1035 | B99: Sebastian Israelsson | C99: Sibbamåla | D99: 2
A100: 1009 | B100: Tobias Gneupel | C100: Sibbamåla | D100: 1
A101: 1151 | B101: Alexander Bergström | C101: PBHSPC | D101: 4
A102: 1148 | B102: Carl Sternås | C102: PBHSPC | D102: 4
A103: 1157 | B103: Pontus Karlsson | C103: PBHSPC | D103: 4
A104: 1154 | B104: Pontus Strandell | C104: PBHSPC | D104: 4
A105: 1140 | B105: Sonlard Berglund | C105: PBHSPC | D105: 4
A106: 1168 | B106: Fredrik Nilsson | C106: Linköping Hsk | D106: 4
A107: 1173 | B107: Christer Blomgren | C107: Lanternan | D107: 3
A108: 1085 | B108: Arne Blihd | C108: Lanternan | D108: 4
A109: 1027 | B109: Berndt Pettersson | C109: Lanternan | D109: 2
A110: 1124 | B110: Eva Åkesson | C110: Lanternan | D110: 4
A111: 1050 | B111: Gilbert Pettersson | C111: Lanternan | D111: 3
A112: 1034 | B112: Ingegerd Pettersson | C112: Lanternan | D112: 3
A113: 1410 | B113: Evelina Olsson | C113: Dynapac Hsc
A114: 1093 | B114: Irene Pettersson | C114: Lanternan | D114: 4
A115: 1063 | B115: Jan Petersson | C115: Lanternan | D115: 3
A116: 1135 | B116: Kent Svensson | C116: Lanternan | D116: 4
A117: 1096 | B117: Kjell Åkesson | C117: Lanternan | D117: 4
A118: 1031 | B118: Lars-Erik Ottosson | C118: Lanternan | D118: 3
A119: 1080 | B119: Lisbeth Blihd | C119: Lanternan | D119: 4
A120: 1111 | B120: Roland Andreasson | C120: Lanternan | D120: 4
A121: 1023 | B121: Ronny Lundberg | C121: Lanternan | D121: 2
A122: 1136 | B122: Susanne Simonsson | C122: Lanternan | D122: 4
A123: 1067 | B123: Alf Svensson | C123: Korpen Åseda | D123: 3
A124: 1185 | B124: Bo Trulsson | C124: Korpen Åseda | D124: 4
A125: 1184 | B125: Börje Carlsson | C125: Korpen Åseda | D125: 4
A126: 1024 | B126: Dan Madayang | C126: Korpen Åseda | D126: 2
A127: 1082 | B127: Emil Rehn | C127: Korpen Åseda | D127: 4
A128: 1131 | B128: Erik Isaksson | C128: Korpen Åseda | D128: 4
A129: 1065 | B129: Gebriela Kostantinos | C129: Korpen Åseda | D129: 2
A130: 1004 | B130: Gert Karlsson | C130: Korpen Åseda | D130: 1
A131: 1116 | B131: Joakim Strand | C131: Korpen Åseda | D131: 4
A132: 1003 | B132: Matz Karlsson | C132: Korpen Åseda | D132: 1
A133: 1013 | B133: Tomas Lindahl | C133: Korpen Åseda | D133: 1
A134: 1048 | B134: Bo Petersson | C134: Korpen Nybro | D134: 2
A135: 1028 | B135: Göran Olofsson | C135: Korpen Nybro | D135: 2
A136: 1129 | B136: Kjell Rydh | C136: Korpen Nybro | D136: 4
A137: 1110 | B137: Nisse Hansson | C137: Korpen Nybro | D137: 4
A138: 1162 | B138: Risato Maljanovski | C138: Korpen Nybro | D138: 4
A139: 1019 | B139: Stefan Olofsson | C139: Korpen Nybro | D139: 3
A140: 1100 | B140: Sune Olsson | C140: Korpen Nybro | D140: 3
A141: 1169 | B141: Sune Andersson | C141: Jämjö Hsk | D141: 4
A142: 1054 | B142: Astrid Martinez | C142: Jämjö Hsk | D142: 4
A143: 1061 | B143: Bernt Olsson | C143: Jämjö Hsk | D143: 3
A144: 1055 | B144: Daniel Mårtensson | C144: Jämjö Hsk | D144: 3
A145: 1057 | B145: Ewa Malmqvist | C145: Jämjö Hsk | D145: 2
A146: 1032 | B146: Göran Mårtensson | C146: Jämjö Hsk | D146: 3
A147: 1103 | B147: Hanna Karlberg | C147: Jämjö Hsk | D147: 4
A148: 1046 | B148: Hernan Hernandez | C148: Jämjö Hsk | D148: 3
A149: 1062 | B149: Inge Skoglöv | C149: Jämjö Hsk | D149: 3
A150: 1108 | B150: Keyri Hernandez | C150: Jämjö Hsk | D150: 4
A151: 1060 | B151: Lars Johannesson | C151: Jämjö Hsk | D151: 4
A152: 1097 | B152: Marcus Karlsson | C152: Jämjö Hsk | D152: 3
A153: 1086 | B153: Marianne Karlsson | C153: Jämjö Hsk | D153: 4
A154: 1030 | B154: Mathias Karlberg | C154: Jämjö Hsk | D154: 3
A155: 1070 | B155: Mats Mårtensson | C155: Jämjö Hsk | D155: 3
A156: 1178 | B156: Saga Karlberg | C156: Jämjö Hsk | D156: m
A157: 1144 | B157: Saga Karlberg | C157: Jämjö Hsk | D157: m
A158: 1115 | B158: Anders Johansson | C158: Dynapac Hsc | D158: 4
A159: 1014 | B159: Anitha Fabbeke | C159: Dynapac Hsc | D159: 1
A160: 1037 | B160: Bengt Fabbeke | C160: Dynapac Hsc | D160: 3
A161: 1167 | B161: Dennis Bern | C161: Dynapac Hsc | D161: 4
A162: 1045 | B162: Elin Olsson | C162: Dynapac Hsc | D162: 3
A163: 1047 | B163: Louise Tollstam | C163: Dynapac Hsc | D163: 3
A164: 1092 | B164: Lukas Bern | C164: Dynapac Hsc | D164: 3
A165: 1044 | B165: Mattias Olsson | C165: Dynapac Hsc | D165: 2
A166: 1105 | B166: Morgan Athle | C166: Dynapac Hsc | D166: 4
A167: 1021 | B167: Olle Ottosson | C167: Dynapac Hsc | D167: 1
A168: 1104 | B168: Per-Olof Johansson | C168: Dynapac Hsc | D168: 4
A169: 1134 | B169: Peter Edlund | C169: Dynapac Hsc | D169: 3
A170: 1008 | B170: Peter Olsson | C170: Dynapac Hsc | D170: 1
A171: 1052 | B171: Roy Dahlén | C171: Dynapac Hsc | D171: 2
A172: 1150 | B172: Salli Fransson | C172: Dynapac Hsc | D172: 4
A173: 1172 | B173: Stefan Tollstam | C173: Dynapac Hsc | D173: 3
A174: 1125 | B174: Danny Borgström | C174: Carlskrona Hsc | D174: 4
A175: 1005 | B175: Ingvar Eriksson | C175: Carlskrona Hsc | D175: 1
A176: 1016 | B176: Joel Sundahl | C176: Carlskrona Hsc | D176: 1
A177: 1000 | B177: Kent Sundahl | C177: Carlskrona Hsc | D177: 1
A178: 1071 | B178: Leif Sundahl | C178: Carlskrona Hsc | D178: 3
A179: 1006 | B179: Leo Andersson | C179: Carlskrona Hsc | D179: 1
A180: 1128 | B180: Mona Andersson | C180: Carlskrona Hsc | D180: 4
A181: 1015 | B181: Natalie Sundahl | C181: Carlskrona Hsc | D181: 2
A182: 1107 | B182: Tony Borgström | C182: Carlskrona Hsc | D182: 4
A183: 1156 | B183: Anders Möller | C183: Balders HSK | D183: 4
A184: 1145 | B184: Christoffer Lovén | C184: Balders HSK | D184: 4
A185: 1201 | B185: Fredrik Sandelius | C185: Balders HSK | D185: 3
A186: 1049 | B186: Henrik Fresk | C186: Balders HSK | D186: 4
A187: 1098 | B187: Janne Pettersson | C187: Balders Hsk | D187: 4
A188: 1165 | B188: Jarita Fredriksson Väre | C188: Balders Hsk | D188: 4
A189: 1170 | B189: Jean Fredriksson Väre | C189: Balders Hsk | D189: 4
A190: 1160 | B190: Johanna Hagerman | C190: Balders HSK | D190: 4
A191: 1133 | B191: Jonas Bergqvist | C191: Balders HSK | D191: 4
A192: 1076 | B192: Jonny Åberg | C192: Balders HSK | D192: 4
A193: 1089 | B193: Lars Eriksson | C193: Balders HSK | D193: 4
A194: 1146 | B194: Magnus Hagerman | C194: Balders HSK | D194: 4
A195: 1143 | B195: Malin Löwberg | C195: Balders Hsk | D195: 4
A196: 1171 | B196: Malira Eriksson | C196: Balders HSK | D196: 4
A197: 1066 | B197: Martin Anjou | C197: Balders HSK | D197: 4
A198: 1190 | B198: Martin Smeds | C198: Balders HSK | D198: 4
A199: 1087 | B199: Olle Lovén | C199: Balders HSK | D199: m
A200: 1194 | B200: Pascal Letter | C200: Balders HSK | D200: 3
... 255 more rows

Sheet Lag
A1: Kod | B1: Lag
A2: 100 | B2: Dynapac Hsc 1
A3: 101 | B3: Korpen Åseda 1
A4: 102 | B4: Carlskrona Hsc 1
A5: 103 | B5: Växjö Hsk 1
A6: 104 | B6: Sibbamåla if 1
A7: 105 | B7: Växjö Hsk 2
A8: 106 | B8: Tingsryd Hsc 1
A9: 107 | B9: Dynapac Hsc 2
A10: 108 | B10: Jämjö Hsk 2
A11: 109 | B11: Vaxholm Hsk 1
A12: 110 | B12: Sibbamåla if 2
A13: 111 | B13: Lanternan 1
A14: 112 | B14: Värends Hsk 1
A15: 113 | B15: Vaxholm Hsk 2
A16: 114 | B16: Korpen Nybro 1
A17: 115 | B17: Balders Hsk 1
A18: 116 | B18: Carlskrona Hsc 2
A19: 117 | B19: Lanternan 2
A20: 118 | B20: Jämjö Hsk 1
A21: 119 | B21: Växjö Hsk 3
A22: 120 | B22: Tingsryd Hsc 2
A23: 121 | B23: Balders Hsk 2
A24: 122 | B24: Stadslaget
A25: 123 | B25: Balders Hsk 3
A26: 124 | B26: Team Småland
A27: 125 | B27: Teachers Pets
A28: 126 | B28: PBHSPC
A29: 127 | B29: Jämjö Hsk 3
A30: 128 | B30: Lanternan 3
A31: 129 | B31: Korpen Åseda 2
A32: 130 | B32: JINK
A33: 131 | B33: Athleterna
A34: 132 | B34: Vaxö Skola
A35: 133 | B35: Viby HSK 1
A36: 134 | B36: Balders Hsk 4
A37: 135 | B37: Balders Hsk 5
A38: 136 | B38: Värends Hsk 2
A39: 137 | B39: Belfrage Bygg
A40: 138 | B40: Vaxholm Hsk 3
A41: 139 | B41: Dynapac Hsc 3
A42: 140 | B42: Sketnabäck
A43: 141 | B43: Lanternan 4
A44: 142 | B44: Lanternan 5
A45: 143 | B45: Sibbamålas Damer
A46: 144 | B46: Sibbamåla if 3
A47: 145 | B47: Inge Mårtensson
A48: 146 | B48: Korpen Åseda 3
A49: 147 | B49: Viby Hsk 2
A50: 148 | B50: Söders Hsk 1
A51: 149 | B51: Söders Ladies
A52: 150 | B52: Köping hkf 1
A53: 151 | B53: Söders Hsk 2
A54: 152 | B54: Sibbamåla if 4
A55: 153 | B55: Korpen Nybro 2
A56: 154 | B56: Wezet Hsk 1
A57: 155 | B57: Dynapac Södra
A58: 156 | B58: Lyckeby Hkf

Sheet Sortering
A1: Datum för
A2: uppdatering
A3: 2025-05-10
A5: Tabeller som
A6: skall
A7: uppdateras
A8: Sverigeranking
A9: Miniorranking
A10: Lagranking
A11: Bonusjakten | B11: x
A12: Klass 1
A13: Klass 2
A14: Klass 3
A15: Klass 4
A16: Årets uppkomling | B16: x

Sheet Bonusjakten
B1: Svenska Hästskokastarförbundets Bonusjakten
B2: =Sverigeranking!$B$2 -> Säsong 2025 / 2026 | C2: 2025-05-10 | G2: =COUNT(G4:G309) -> 83 | H2: =COUNT(H4:H309) -> 0 | I2: 0 | J2: 0 | K2: 0 | L2: 0 | M2: 0 | N2: 0 | O2: 0 | P2: 0 | Q2: 0 | R2: 0 | S2: 0 | T2: 0 | U2: =COUNT(U4:U309) -> 0 | V2: 0 | W2: 0 | X2: 0 | Y2: 0 | Z2: 0 | AA2: 0 | AB2: =COUNT(AB4:AB309) -> 0 | AY2: AY | AZ2: AZ | BA2: BA | BB2: BB | BC2: BC | BD2: BD | BE2: BE | BF2: BF | BG2: BG | BH2: BH | BI2: BI | BJ2: BJ | BK2: BK | BL2: BL | BM2: BM | BN2: BN | BO2: BO | BP2: BP | BQ2: BQ | BR2: BR | BS2: BS | BT2: BT
A3: Plac. | B3: Kastare | C3: Klubb | D3: Totalpoäng | G3: ='Tingsryd Open'!$B$1 -> Tingsryd Open | H3: ='Jämjö Open'!$B$1 -> Jämjö Open | I3: ='Björkenäs Open'!$B$1 -> Björkenäs Open | J3: ='SM ute Lö'!$B$1 -> SM ute Lö | K3: ='SM ute Sö'!$B$1 -> SM ute Sö | L3: ='Roslagen Open'!$B$1 -> Roslagen Open | M3: ='Roslagen Open 2'!$B$1 -> Roslagen Open 2 | N3: ='Dynapac Open'!$B$1 -> Dynapac Open | O3: ='SmålandsDM ute'!$B$1 -> Smålands-DM ute | P3: ='BlekingeDM ute'!$B$1 -> BlekingeDM ute | Q3: ='SvealandsDM ute'!$B$1 -> SvealandsDM ute | R3: ='Ljungby Open'!$B$1 -> Ljungby Open | S3: ='Viby Open'!$B$1 -> Viby Open | T3: ='Växjö Open'!$B$1 -> Växjö Open | U3: =Höstskon!$B$1 -> Höstskon | V3: ='Carlskrona Cup'!$B$1 -> Carlskrona Cup | W3: ='Sibbamåla Open'!$B$1 -> Sibbamåla Open | X3: ='Vaxholm Indoor'!$B$1 -> Vaxholm Indoor | Y3: ='BlekingeDM inne'!$B$1 -> Inne-DM Blekinge | Z3: ='Svealands-DM inne'!$B$1 -> Svealands-DM inne | AA3: =Värendspokalen!$B$1 -> Värendspokalen | AB3: ='SM inne'!$B$1 -> Inomhus-SM | AC3: Kod | AK3: 50 | AL3: 45 | AM3: 40 | AN3: 35 | AO3: 30 | AP3: 25 | AQ3: 20 | AR3: 15 | AS3: 10 | AT3: 5 | AU3: 0 | AY3: ='Jämjö Open'!$B$1 -> Jämjö Open | AZ3: ='Viby Open'!$B$1 -> Viby Open | BA3: ='Björkenäs Open'!$B$1 -> Björkenäs Open | BB3: ='SM ute Lö'!$B$1 -> SM ute Lö | BC3: ='SM ute Sö'!$B$1 -> SM ute Sö | BD3: ='Roslagen Open'!$B$1 -> Roslagen Open | BE3: ='Roslagen Open 2'!$B$1 -> Roslagen Open 2 | BF3: ='Dynapac Open'!$B$1 -> Dynapac Open | BG3: ='SmålandsDM ute'!$B$1 -> Smålands-DM ute | BH3: ='BlekingeDM ute'!$B$1 -> BlekingeDM ute | BI3: ='SvealandsDM ute'!$B$1 -> SvealandsDM ute | BJ3: ='Ljungby Open'!$B$1 -> Ljungby Open | BK3: =Höstskon!$B$1 -> Höstskon | BL3: ='Carlskrona Cup'!$B$1 -> Carlskrona Cup | BM3: ='Sibbamåla Open'!$B$1 -> Sibbamåla Open | BN3: ='Vaxholm Indoor'!$B$1 -> Vaxholm Indoor | BO3: ='SM inne'!$B$1 -> Inomhus-SM | BP3: ='Växjö Open'!$B$1 -> Växjö Open | BQ3: ='BlekingeDM inne'!$B$1 -> Inne-DM Blekinge | BR3: ='Svealands-DM inne'!$B$1 -> Svealands-DM inne | BS3: =Värendspokalen!$B$1 -> Värendspokalen | BT3: ='Tingsryd Open'!$B$1 -> Tingsryd Open
A4: 1 | B4: Kent Sundahl | C4: Carlskrona Hsc | D4: =IF(AX4="",SUM(G4:AA4),SUM(G4:AA4)-AX4) -> 20 | G4: =IF(BT4=1,"x",SUMIF('Tingsryd Open'!$X$4:$X$400,$AC4,'Tingsryd Open'!$S$4:$S$400)) -> 20 | H4: =IF(AY4=1,"x",SUMIF('Jämjö Open'!$X$4:$X$400,$AC4,'Jämjö Open'!$S$4:$S$400)) -> x | I4: =IF(BA4=1,"x",SUMIF('Björkenäs Open'!$X$4:$X$400,$AC4,'Björkenäs Open'!$S$4:$S$400)) -> x | J4: =IF(BB4=1,"x",SUMIF('SM ute Lö'!$X$4:$X$400,$AC4,'SM ute Lö'!$S$4:$S$400)) -> x | K4: =IF(BC4=1,"x",SUMIF('SM ute Sö'!$X$4:$X$401,$AC4,'SM ute Sö'!$S$4:$S$401)) -> x | L4: =IF(BD4=1,"x",SUMIF('Roslagen Open'!$X$4:$X$400,$AC4,'Roslagen Open'!$S$4:$S$400)) -> x | M4: =IF(BE4=1,"x",SUMIF('Roslagen Open 2'!$X$4:$X$400,$AC4,'Roslagen Open 2'!$S$4:$S$400)) -> x | N4: =IF(BF4=1,"x",SUMIF('Dynapac Open'!$X$4:$X$400,$AC4,'Dynapac Open'!$S$4:$S$400)) -> x | O4: =IF(BG4=1,"x",SUMIF('SmålandsDM ute'!$X$4:$X$400,$AC4,'SmålandsDM ute'!$S$4:$S$400)) -> x | P4: =IF(BH4=1,"x",SUMIF('BlekingeDM ute'!$X$4:$X$400,$AC4,'BlekingeDM ute'!$S$4:$S$400)) -> x | Q4: =IF(BI4=1,"x",SUMIF('SvealandsDM ute'!$X$4:$X$400,$AC4,'SvealandsDM ute'!$S$4:$S$400)) -> x | R4: =IF(BJ4=1,"x",SUMIF('Ljungby Open'!$X$4:$X$406,$AC4,'Ljungby Open'!$S$4:$S$406)) -> x | S4: =IF(AZ4=1,"x",SUMIF('Viby Open'!$X$4:$X$400,$AC4,'Viby Open'!$S$4:$S$400)) -> x | T4: =IF(BP4=1,"x",SUMIF('Växjö Open'!$X$4:$X$400,$AC4,'Växjö Open'!$S$4:$S$400)) -> x | U4: =IF(BK4=1,"x",SUMIF(Höstskon!$X$4:$X$400,$AC4,Höstskon!$S$4:$S$400)) -> x | V4: =IF(BL4=1,"x",SUMIF('Carlskrona Cup'!$X$4:$X$400,$AC4,'Carlskrona Cup'!$S$4:$S$400)) -> x | W4: =IF(BM4=1,"x",SUMIF('Sibbamåla Open'!$X$4:$X$400,$AC4,'Sibbamåla Open'!$S$4:$S$400)) -> x | X4: =IF(BN4=1,"x",SUMIF('Vaxholm Indoor'!$X$4:$X$400,$AC4,'Vaxholm Indoor'!$S$4:$S$400)) -> x | Y4: =IF(BQ4=1,"x",SUMIF('BlekingeDM inne'!$X$4:$X$400,$AC4,'BlekingeDM inne'!$S$4:$S$400)) -> x | Z4: =IF(BR4=1,"x",SUMIF('Svealands-DM inne'!$X$4:$X$400,$AC4,'Svealands-DM inne'!$S$4:$S$400)) -> x | AA4: =IF(BS4=1,"x",SUMIF(Värendspokalen!$X$4:$X$400,$AC4,Värendspokalen!$S$4:$S$400)) -> x | AB4: =IF(BO4=1,"x",SUMIF('SM inne'!$X$4:$X$400,$AC4,'SM inne'!$S$4:$S$400)) -> x | AC4: =IF(B4="","",SUMIF(Kastare!B$2:B$2999,B4,Kastare!A$2:A$2999)) -> 1000 | AE4: =IF(B4="",0,1) -> 1 | AK4: =COUNTIF($G4:$AA4,50) -> 0 | AL4: =COUNTIF($G4:$AA4,45) -> 0 | AM4: =COUNTIF($G4:$AA4,40) -> 0 | AN4: =COUNTIF($G4:$AA4,35) -> 0 | AO4: =COUNTIF($G4:$AA4,30) -> 0 | AP4: =COUNTIF($G4:$AA4,25) -> 0 | AQ4: =COUNTIF($G4:$AA4,20) -> 1 | AR4: =COUNTIF($G4:$AA4,15) -> 0 | AS4: =COUNTIF($G4:$AA4,10) -> 0 | AT4: =COUNTIF($G4:$AA4,5) -> 0 | AU4: =COUNTIF($G4:$AA4,0) -> 0 | AV4: =SUM(AK4:AU4) -> 1 | AW4: =SUM(AK4:AT4) -> 1 | AX4: =IF(AW4>12,SUM(AW4-12)*(AT$3),"") ->  | AY4: =SUMIF('Jämjö Open'!$A$502:$A$1000,$AC4,'Jämjö Open'!$AA$502:$AA$1000) -> 1 | AZ4: =SUMIF('Viby Open'!$A$502:$A$1000,$AC4,'Viby Open'!$AA$502:$AA$1000) -> 1 | BA4: =SUMIF('Björkenäs Open'!$A$502:$A$1000,$AC4,'Björkenäs Open'!$AA$502:$AA$1000) -> 1 | BB4: =SUMIF('SM ute Lö'!$A$502:$A$1000,$AC4,'SM ute Lö'!$AA$502:$AA$1000) -> 1 | BC4: =SUMIF('SM ute Sö'!$A$503:$A$1000,$AC4,'SM ute Sö'!$AA$503:$AA$1000) -> 1 | BD4: =SUMIF('Roslagen Open'!$A$502:$A$1000,$AC4,'Roslagen Open'!$AA$502:$AA$1000) -> 1 | BE4: =SUMIF('Roslagen Open 2'!$A$502:$A$1000,$AC4,'Roslagen Open 2'!$AA$502:$AA$1000) -> 1 | BF4: =SUMIF('Dynapac Open'!$A$502:$A$1000,$AC4,'Dynapac Open'!$AA$502:$AA$1000) -> 1 | BG4: =SUMIF('SmålandsDM ute'!$A$502:$A$1000,$AC4,'SmålandsDM ute'!$AA$502:$AA$1000) -> 1 | BH4: =SUMIF('BlekingeDM ute'!$A$502:$A$1000,$AC4,'BlekingeDM ute'!$AA$502:$AA$1000) -> 1 | BI4: =SUMIF('SvealandsDM ute'!$A$502:$A$1000,$AC4,'SvealandsDM ute'!$AA$502:$AA$1000) -> 1 | BJ4: =SUMIF('Ljungby Open'!$A$502:$A$1000,$AC4,'Ljungby Open'!$AA$502:$AA$1000) -> 1 | BK4: =SUMIF(Höstskon!$A$502:$A$1000,$AC4,Höstskon!$AA$502:$AA$1000) -> 1 | BL4: =SUMIF('Carlskrona Cup'!$A$502:$A$1000,$AC4,'Carlskrona Cup'!$AA$502:$AA$1000) -> 1 | BM4: =SUMIF('Sibbamåla Open'!$A$502:$A$1000,$AC4,'Sibbamåla Open'!$AA$502:$AA$1000) -> 1 | BN4: =SUMIF('Vaxholm Indoor'!$A$502:$A$1000,$AC4,'Vaxholm Indoor'!$AA$502:$AA$1000) -> 1 | BO4: =SUMIF('SM inne'!$A$502:$A$1000,$AC4,'SM inne'!$AA$502:$AA$1000) -> 1 | BP4: =SUMIF('Växjö Open'!$A$502:$A$1000,$AC4,'Växjö Open'!$AA$502:$AA$1000) -> 1 | BQ4: =SUMIF('BlekingeDM inne'!$A$502:$A$1000,$AC4,'BlekingeDM inne'!$AA$502:$AA$1000) -> 1 | BR4: =SUMIF('Svealands-DM inne'!$A$502:$A$1000,$AC4,'Svealands-DM inne'!$AA$502:$AA$1000) -> 1 | BS4: =SUMIF(Värendspokalen!$A$502:$A$1000,$AC4,Värendspokalen!$AA$502:$AA$1000) -> 1 | BT4: =SUMIF('Tingsryd Open'!$A$502:$A$1000,$AC4,'Tingsryd Open'!$AA$502:$AA$1000) -> 3
A5: =IF(D5<D4,ROW(2:2),A4) -> 1 | B5: Maire Johansson | C5: Växjö Hsk | D5: 20 | G5: =IF(BT5=1,"x",SUMIF('Tingsryd Open'!$X$4:$X$400,$AC5,'Tingsryd Open'!$S$4:$S$400)) -> 20 | H5: =IF(AY5=1,"x",SUMIF('Jämjö Open'!$X$4:$X$400,$AC5,'Jämjö Open'!$S$4:$S$400)) -> x | I5: =IF(BA5=1,"x",SUMIF('Björkenäs Open'!$X$4:$X$400,$AC5,'Björkenäs Open'!$S$4:$S$400)) -> x | J5: =IF(BB5=1,"x",SUMIF('SM ute Lö'!$X$4:$X$400,$AC5,'SM ute Lö'!$S$4:$S$400)) -> x | K5: =IF(BC5=1,"x",SUMIF('SM ute Sö'!$X$4:$X$401,$AC5,'SM ute Sö'!$S$4:$S$401)) -> x | L5: =IF(BD5=1,"x",SUMIF('Roslagen Open'!$X$4:$X$400,$AC5,'Roslagen Open'!$S$4:$S$400)) -> x | M5: =IF(BE5=1,"x",SUMIF('Roslagen Open 2'!$X$4:$X$400,$AC5,'Roslagen Open 2'!$S$4:$S$400)) -> x | N5: =IF(BF5=1,"x",SUMIF('Dynapac Open'!$X$4:$X$400,$AC5,'Dynapac Open'!$S$4:$S$400)) -> x | O5: =IF(BG5=1,"x",SUMIF('SmålandsDM ute'!$X$4:$X$400,$AC5,'SmålandsDM ute'!$S$4:$S$400)) -> x | P5: =IF(BH5=1,"x",SUMIF('BlekingeDM ute'!$X$4:$X$400,$AC5,'BlekingeDM ute'!$S$4:$S$400)) -> x | Q5: =IF(BI5=1,"x",SUMIF('SvealandsDM ute'!$X$4:$X$400,$AC5,'SvealandsDM ute'!$S$4:$S$400)) -> x | R5: =IF(BJ5=1,"x",SUMIF('Ljungby Open'!$X$4:$X$406,$AC5,'Ljungby Open'!$S$4:$S$406)) -> x | S5: =IF(AZ5=1,"x",SUMIF('Viby Open'!$X$4:$X$400,$AC5,'Viby Open'!$S$4:$S$400)) -> x | T5: =IF(BP5=1,"x",SUMIF('Växjö Open'!$X$4:$X$400,$AC5,'Växjö Open'!$S$4:$S$400)) -> x | U5: =IF(BK5=1,"x",SUMIF(Höstskon!$X$4:$X$400,$AC5,Höstskon!$S$4:$S$400)) -> x | V5: =IF(BL5=1,"x",SUMIF('Carlskrona Cup'!$X$4:$X$400,$AC5,'Carlskrona Cup'!$S$4:$S$400)) -> x | W5: =IF(BM5=1,"x",SUMIF('Sibbamåla Open'!$X$4:$X$400,$AC5,'Sibbamåla Open'!$S$4:$S$400)) -> x | X5: =IF(BN5=1,"x",SUMIF('Vaxholm Indoor'!$X$4:$X$400,$AC5,'Vaxholm Indoor'!$S$4:$S$400)) -> x | Y5: =IF(BQ5=1,"x",SUMIF('BlekingeDM inne'!$X$4:$X$400,$AC5,'BlekingeDM inne'!$S$4:$S$400)) -> x | Z5: =IF(BR5=1,"x",SUMIF('Svealands-DM inne'!$X$4:$X$400,$AC5,'Svealands-DM inne'!$S$4:$S$400)) -> x | AA5: =IF(BS5=1,"x",SUMIF(Värendspokalen!$X$4:$X$400,$AC5,Värendspokalen!$S$4:$S$400)) -> x | AB5: =IF(BO5=1,"x",SUMIF('SM inne'!$X$4:$X$400,$AC5,'SM inne'!$S$4:$S$400)) -> x | AC5: =IF(B5="","",SUMIF(Kastare!B$2:B$2999,B5,Kastare!A$2:A$2999)) -> 1042 | AE5: 1 | AK5: 0 | AL5: 0 | AM5: 0 | AN5: 0 | AO5: 0 | AP5: 0 | AQ5: 1 | AR5: 0 | AS5: 0 | AT5: 0 | AU5: 0 | AV5: 1 | AW5: 1 | AX5: =IF(AW5>12,SUM(AW5-12)*(AT$3),"") ->  | AY5: =SUMIF('Jämjö Open'!$A$502:$A$1000,$AC5,'Jämjö Open'!$AA$502:$AA$1000) -> 1 | AZ5: =SUMIF('Viby Open'!$A$502:$A$1000,$AC5,'Viby Open'!$AA$502:$AA$1000) -> 1 | BA5: =SUMIF('Björkenäs Open'!$A$502:$A$1000,$AC5,'Björkenäs Open'!$AA$502:$AA$1000) -> 1 | BB5: =SUMIF('SM ute Lö'!$A$502:$A$1000,$AC5,'SM ute Lö'!$AA$502:$AA$1000) -> 1 | BC5: =SUMIF('SM ute Sö'!$A$503:$A$1000,$AC5,'SM ute Sö'!$AA$503:$AA$1000) -> 1 | BD5: =SUMIF('Roslagen Open'!$A$502:$A$1000,$AC5,'Roslagen Open'!$AA$502:$AA$1000) -> 1 | BE5: =SUMIF('Roslagen Open 2'!$A$502:$A$1000,$AC5,'Roslagen Open 2'!$AA$502:$AA$1000) -> 1 | BF5: =SUMIF('Dynapac Open'!$A$502:$A$1000,$AC5,'Dynapac Open'!$AA$502:$AA$1000) -> 1 | BG5: =SUMIF('SmålandsDM ute'!$A$502:$A$1000,$AC5,'SmålandsDM ute'!$AA$502:$AA$1000) -> 1 | BH5: =SUMIF('BlekingeDM ute'!$A$502:$A$1000,$AC5,'BlekingeDM ute'!$AA$502:$AA$1000) -> 1 | BI5: =SUMIF('SvealandsDM ute'!$A$502:$A$1000,$AC5,'SvealandsDM ute'!$AA$502:$AA$1000) -> 1 | BJ5: =SUMIF('Ljungby Open'!$A$502:$A$1000,$AC5,'Ljungby Open'!$AA$502:$AA$1000) -> 1 | BK5: =SUMIF(Höstskon!$A$502:$A$1000,$AC5,Höstskon!$AA$502:$AA$1000) -> 1 | BL5: =SUMIF('Carlskrona Cup'!$A$502:$A$1000,$AC5,'Carlskrona Cup'!$AA$502:$AA$1000) -> 1 | BM5: =SUMIF('Sibbamåla Open'!$A$502:$A$1000,$AC5,'Sibbamåla Open'!$AA$502:$AA$1000) -> 1 | BN5: =SUMIF('Vaxholm Indoor'!$A$502:$A$1000,$AC5,'Vaxholm Indoor'!$AA$502:$AA$1000) -> 1 | BO5: =SUMIF('SM inne'!$A$502:$A$1000,$AC5,'SM inne'!$AA$502:$AA$1000) -> 1 | BP5: =SUMIF('Växjö Open'!$A$502:$A$1000,$AC5,'Växjö Open'!$AA$502:$AA$1000) -> 1 | BQ5: =SUMIF('BlekingeDM inne'!$A$502:$A$1000,$AC5,'BlekingeDM inne'!$AA$502:$AA$1000) -> 1 | BR5: =SUMIF('Svealands-DM inne'!$A$502:$A$1000,$AC5,'Svealands-DM inne'!$AA$502:$AA$1000) -> 1 | BS5: =SUMIF(Värendspokalen!$A$502:$A$1000,$AC5,Värendspokalen!$AA$502:$AA$1000) -> 1 | BT5: =SUMIF('Tingsryd Open'!$A$502:$A$1000,$AC5,'Tingsryd Open'!$AA$502:$AA$1000) -> 3
A6: =IF(D6<D5,ROW(3:3),A5) -> 1 | B6: Ove Klasson | C6: Tingsryd Hsc | D6: 20 | G6: =IF(BT6=1,"x",SUMIF('Tingsryd Open'!$X$4:$X$400,$AC6,'Tingsryd Open'!$S$4:$S$400)) -> 20 | H6: =IF(AY6=1,"x",SUMIF('Jämjö Open'!$X$4:$X$400,$AC6,'Jämjö Open'!$S$4:$S$400)) -> x | I6: =IF(BA6=1,"x",SUMIF('Björkenäs Open'!$X$4:$X$400,$AC6,'Björkenäs Open'!$S$4:$S$400)) -> x | J6: =IF(BB6=1,"x",SUMIF('SM ute Lö'!$X$4:$X$400,$AC6,'SM ute Lö'!$S$4:$S$400)) -> x | K6: =IF(BC6=1,"x",SUMIF('SM ute Sö'!$X$4:$X$401,$AC6,'SM ute Sö'!$S$4:$S$401)) -> x | L6: =IF(BD6=1,"x",SUMIF('Roslagen Open'!$X$4:$X$400,$AC6,'Roslagen Open'!$S$4:$S$400)) -> x | M6: =IF(BE6=1,"x",SUMIF('Roslagen Open 2'!$X$4:$X$400,$AC6,'Roslagen Open 2'!$S$4:$S$400)) -> x | N6: =IF(BF6=1,"x",SUMIF('Dynapac Open'!$X$4:$X$400,$AC6,'Dynapac Open'!$S$4:$S$400)) -> x | O6: =IF(BG6=1,"x",SUMIF('SmålandsDM ute'!$X$4:$X$400,$AC6,'SmålandsDM ute'!$S$4:$S$400)) -> x | P6: =IF(BH6=1,"x",SUMIF('BlekingeDM ute'!$X$4:$X$400,$AC6,'BlekingeDM ute'!$S$4:$S$400)) -> x | Q6: =IF(BI6=1,"x",SUMIF('SvealandsDM ute'!$X$4:$X$400,$AC6,'SvealandsDM ute'!$S$4:$S$400)) -> x | R6: =IF(BJ6=1,"x",SUMIF('Ljungby Open'!$X$4:$X$406,$AC6,'Ljungby Open'!$S$4:$S$406)) -> x | S6: =IF(AZ6=1,"x",SUMIF('Viby Open'!$X$4:$X$400,$AC6,'Viby Open'!$S$4:$S$400)) -> x | T6: =IF(BP6=1,"x",SUMIF('Växjö Open'!$X$4:$X$400,$AC6,'Växjö Open'!$S$4:$S$400)) -> x | U6: =IF(BK6=1,"x",SUMIF(Höstskon!$X$4:$X$400,$AC6,Höstskon!$S$4:$S$400)) -> x | V6: =IF(BL6=1,"x",SUMIF('Carlskrona Cup'!$X$4:$X$400,$AC6,'Carlskrona Cup'!$S$4:$S$400)) -> x | W6: =IF(BM6=1,"x",SUMIF('Sibbamåla Open'!$X$4:$X$400,$AC6,'Sibbamåla Open'!$S$4:$S$400)) -> x | X6: =IF(BN6=1,"x",SUMIF('Vaxholm Indoor'!$X$4:$X$400,$AC6,'Vaxholm Indoor'!$S$4:$S$400)) -> x | Y6: =IF(BQ6=1,"x",SUMIF('BlekingeDM inne'!$X$4:$X$400,$AC6,'BlekingeDM inne'!$S$4:$S$400)) -> x | Z6: =IF(BR6=1,"x",SUMIF('Svealands-DM inne'!$X$4:$X$400,$AC6,'Svealands-DM inne'!$S$4:$S$400)) -> x | AA6: =IF(BS6=1,"x",SUMIF(Värendspokalen!$X$4:$X$400,$AC6,Värendspokalen!$S$4:$S$400)) -> x | AB6: =IF(BO6=1,"x",SUMIF('SM inne'!$X$4:$X$400,$AC6,'SM inne'!$S$4:$S$400)) -> x | AC6: =IF(B6="","",SUMIF(Kastare!B$2:B$2999,B6,Kastare!A$2:A$2999)) -> 1263 | AE6: 1 | AK6: 0 | AL6: 0 | AM6: 0 | AN6: 0 | AO6: 0 | AP6: 0 | AQ6: 1 | AR6: 0 | AS6: 0 | AT6: 0 | AU6: 0 | AV6: 1 | AW6: 1 | AX6: =IF(AW6>12,SUM(AW6-12)*(AT$3),"") ->  | AY6: =SUMIF('Jämjö Open'!$A$502:$A$1000,$AC6,'Jämjö Open'!$AA$502:$AA$1000) -> 1 | AZ6: =SUMIF('Viby Open'!$A$502:$A$1000,$AC6,'Viby Open'!$AA$502:$AA$1000) -> 1 | BA6: =SUMIF('Björkenäs Open'!$A$502:$A$1000,$AC6,'Björkenäs Open'!$AA$502:$AA$1000) -> 1 | BB6: =SUMIF('SM ute Lö'!$A$502:$A$1000,$AC6,'SM ute Lö'!$AA$502:$AA$1000) -> 1 | BC6: =SUMIF('SM ute Sö'!$A$503:$A$1000,$AC6,'SM ute Sö'!$AA$503:$AA$1000) -> 1 | BD6: =SUMIF('Roslagen Open'!$A$502:$A$1000,$AC6,'Roslagen Open'!$AA$502:$AA$1000) -> 1 | BE6: =SUMIF('Roslagen Open 2'!$A$502:$A$1000,$AC6,'Roslagen Open 2'!$AA$502:$AA$1000) -> 1 | BF6: =SUMIF('Dynapac Open'!$A$502:$A$1000,$AC6,'Dynapac Open'!$AA$502:$AA$1000) -> 1 | BG6: =SUMIF('SmålandsDM ute'!$A$502:$A$1000,$AC6,'SmålandsDM ute'!$AA$502:$AA$1000) -> 1 | BH6: =SUMIF('BlekingeDM ute'!$A$502:$A$1000,$AC6,'BlekingeDM ute'!$AA$502:$AA$1000) -> 1 | BI6: =SUMIF('SvealandsDM ute'!$A$502:$A$1000,$AC6,'SvealandsDM ute'!$AA$502:$AA$1000) -> 1 | BJ6: =SUMIF('Ljungby Open'!$A$502:$A$1000,$AC6,'Ljungby Open'!$AA$502:$AA$1000) -> 1 | BK6: =SUMIF(Höstskon!$A$502:$A$1000,$AC6,Höstskon!$AA$502:$AA$1000) -> 1 | BL6: =SUMIF('Carlskrona Cup'!$A$502:$A$1000,$AC6,'Carlskrona Cup'!$AA$502:$AA$1000) -> 1 | BM6: =SUMIF('Sibbamåla Open'!$A$502:$A$1000,$AC6,'Sibbamåla Open'!$AA$502:$AA$1000) -> 1 | BN6: =SUMIF('Vaxholm Indoor'!$A$502:$A$1000,$AC6,'Vaxholm Indoor'!$AA$502:$AA$1000) -> 1 | BO6: =SUMIF('SM inne'!$A$502:$A$1000,$AC6,'SM inne'!$AA$502:$AA$1000) -> 1 | BP6: =SUMIF('Växjö Open'!$A$502:$A$1000,$AC6,'Växjö Open'!$AA$502:$AA$1000) -> 1 | BQ6: =SUMIF('BlekingeDM inne'!$A$502:$A$1000,$AC6,'BlekingeDM inne'!$AA$502:$AA$1000) -> 1 | BR6: =SUMIF('Svealands-DM inne'!$A$502:$A$1000,$AC6,'Svealands-DM inne'!$AA$502:$AA$1000) -> 1 | BS6: =SUMIF(Värendspokalen!$A$502:$A$1000,$AC6,Värendspokalen!$AA$502:$AA$1000) -> 1 | BT6: =SUMIF('Tingsryd Open'!$A$502:$A$1000,$AC6,'Tingsryd Open'!$AA$502:$AA$1000) -> 3
A7: 4 | B7: Sandor Bodi | C7: Växjö Hsk | D7: 10 | G7: =IF(BT7=1,"x",SUMIF('Tingsryd Open'!$X$4:$X$400,$AC7,'Tingsryd Open'!$S$4:$S$400)) -> 10 | H7: =IF(AY7=1,"x",SUMIF('Jämjö Open'!$X$4:$X$400,$AC7,'Jämjö Open'!$S$4:$S$400)) -> x | I7: =IF(BA7=1,"x",SUMIF('Björkenäs Open'!$X$4:$X$400,$AC7,'Björkenäs Open'!$S$4:$S$400)) -> x | J7: =IF(BB7=1,"x",SUMIF('SM ute Lö'!$X$4:$X$400,$AC7,'SM ute Lö'!$S$4:$S$400)) -> x | K7: =IF(BC7=1,"x",SUMIF('SM ute Sö'!$X$4:$X$401,$AC7,'SM ute Sö'!$S$4:$S$401)) -> x | L7: =IF(BD7=1,"x",SUMIF('Roslagen Open'!$X$4:$X$400,$AC7,'Roslagen Open'!$S$4:$S$400)) -> x | M7: =IF(BE7=1,"x",SUMIF('Roslagen Open 2'!$X$4:$X$400,$AC7,'Roslagen Open 2'!$S$4:$S$400)) -> x | N7: =IF(BF7=1,"x",SUMIF('Dynapac Open'!$X$4:$X$400,$AC7,'Dynapac Open'!$S$4:$S$400)) -> x | O7: =IF(BG7=1,"x",SUMIF('SmålandsDM ute'!$X$4:$X$400,$AC7,'SmålandsDM ute'!$S$4:$S$400)) -> x | P7: =IF(BH7=1,"x",SUMIF('BlekingeDM ute'!$X$4:$X$400,$AC7,'BlekingeDM ute'!$S$4:$S$400)) -> x | Q7: =IF(BI7=1,"x",SUMIF('SvealandsDM ute'!$X$4:$X$400,$AC7,'SvealandsDM ute'!$S$4:$S$400)) -> x | R7: =IF(BJ7=1,"x",SUMIF('Ljungby Open'!$X$4:$X$406,$AC7,'Ljungby Open'!$S$4:$S$406)) -> x | S7: =IF(AZ7=1,"x",SUMIF('Viby Open'!$X$4:$X$400,$AC7,'Viby Open'!$S$4:$S$400)) -> x | T7: =IF(BP7=1,"x",SUMIF('Växjö Open'!$X$4:$X$400,$AC7,'Växjö Open'!$S$4:$S$400)) -> x | U7: =IF(BK7=1,"x",SUMIF(Höstskon!$X$4:$X$400,$AC7,Höstskon!$S$4:$S$400)) -> x | V7: =IF(BL7=1,"x",SUMIF('Carlskrona Cup'!$X$4:$X$400,$AC7,'Carlskrona Cup'!$S$4:$S$400)) -> x | W7: =IF(BM7=1,"x",SUMIF('Sibbamåla Open'!$X$4:$X$400,$AC7,'Sibbamåla Open'!$S$4:$S$400)) -> x | X7: =IF(BN7=1,"x",SUMIF('Vaxholm Indoor'!$X$4:$X$400,$AC7,'Vaxholm Indoor'!$S$4:$S$400)) -> x | Y7: =IF(BQ7=1,"x",SUMIF('BlekingeDM inne'!$X$4:$X$400,$AC7,'BlekingeDM inne'!$S$4:$S$400)) -> x | Z7: =IF(BR7=1,"x",SUMIF('Svealands-DM inne'!$X$4:$X$400,$AC7,'Svealands-DM inne'!$S$4:$S$400)) -> x | AA7: =IF(BS7=1,"x",SUMIF(Värendspokalen!$X$4:$X$400,$AC7,Värendspokalen!$S$4:$S$400)) -> x | AB7: =IF(BO7=1,"x",SUMIF('SM inne'!$X$4:$X$400,$AC7,'SM inne'!$S$4:$S$400)) -> x | AC7: =IF(B7="","",SUMIF(Kastare!B$2:B$2999,B7,Kastare!A$2:A$2999)) -> 1001 | AE7: 1 | AK7: 0 | AL7: 0 | AM7: 0 | AN7: 0 | AO7: 0 | AP7: 0 | AQ7: 0 | AR7: 0 | AS7: 1 | AT7: 0 | AU7: 0 | AV7: 1 | AW7: 1 | AY7: =SUMIF('Jämjö Open'!$A$502:$A$1000,$AC7,'Jämjö Open'!$AA$502:$AA$1000) -> 1 | AZ7: =SUMIF('Viby Open'!$A$502:$A$1000,$AC7,'Viby Open'!$AA$502:$AA$1000) -> 1 | BA7: =SUMIF('Björkenäs Open'!$A$502:$A$1000,$AC7,'Björkenäs Open'!$AA$502:$AA$1000) -> 1 | BB7: =SUMIF('SM ute Lö'!$A$502:$A$1000,$AC7,'SM ute Lö'!$AA$502:$AA$1000) -> 1 | BC7: =SUMIF('SM ute Sö'!$A$503:$A$1000,$AC7,'SM ute Sö'!$AA$503:$AA$1000) -> 1 | BD7: =SUMIF('Roslagen Open'!$A$502:$A$1000,$AC7,'Roslagen Open'!$AA$502:$AA$1000) -> 1 | BE7: =SUMIF('Roslagen Open 2'!$A$502:$A$1000,$AC7,'Roslagen Open 2'!$AA$502:$AA$1000) -> 1 | BF7: =SUMIF('Dynapac Open'!$A$502:$A$1000,$AC7,'Dynapac Open'!$AA$502:$AA$1000) -> 1 | BG7: =SUMIF('SmålandsDM ute'!$A$502:$A$1000,$AC7,'SmålandsDM ute'!$AA$502:$AA$1000) -> 1 | BH7: =SUMIF('BlekingeDM ute'!$A$502:$A$1000,$AC7,'BlekingeDM ute'!$AA$502:$AA$1000) -> 1 | BI7: =SUMIF('SvealandsDM ute'!$A$502:$A$1000,$AC7,'SvealandsDM ute'!$AA$502:$AA$1000) -> 1 | BJ7: =SUMIF('Ljungby Open'!$A$502:$A$1000,$AC7,'Ljungby Open'!$AA$502:$AA$1000) -> 1 | BK7: =SUMIF(Höstskon!$A$502:$A$1000,$AC7,Höstskon!$AA$502:$AA$1000) -> 1 | BL7: =SUMIF('Carlskrona Cup'!$A$502:$A$1000,$AC7,'Carlskrona Cup'!$AA$502:$AA$1000) -> 1 | BM7: =SUMIF('Sibbamåla Open'!$A$502:$A$1000,$AC7,'Sibbamåla Open'!$AA$502:$AA$1000) -> 1 | BN7: =SUMIF('Vaxholm Indoor'!$A$502:$A$1000,$AC7,'Vaxholm Indoor'!$AA$502:$AA$1000) -> 1 | BO7: =SUMIF('SM inne'!$A$502:$A$1000,$AC7,'SM inne'!$AA$502:$AA$1000) -> 1 | BP7: =SUMIF('Växjö Open'!$A$502:$A$1000,$AC7,'Växjö Open'!$AA$502:$AA$1000) -> 1 | BQ7: =SUMIF('BlekingeDM inne'!$A$502:$A$1000,$AC7,'BlekingeDM inne'!$AA$502:$AA$1000) -> 1 | BR7: =SUMIF('Svealands-DM inne'!$A$502:$A$1000,$AC7,'Svealands-DM inne'!$AA$502:$AA$1000) -> 1 | BS7: =SUMIF(Värendspokalen!$A$502:$A$1000,$AC7,Värendspokalen!$AA$502:$AA$1000) -> 1 | BT7: =SUMIF('Tingsryd Open'!$A$502:$A$1000,$AC7,'Tingsryd Open'!$AA$502:$AA$1000) -> 3
A8: 4 | B8: Jean Fredriksson Väre | C8: Balders Hsk | D8: 10 | G8: =IF(BT8=1,"x",SUMIF('Tingsryd Open'!$X$4:$X$400,$AC8,'Tingsryd Open'!$S$4:$S$400)) -> 10 | H8: =IF(AY8=1,"x",SUMIF('Jämjö Open'!$X$4:$X$400,$AC8,'Jämjö Open'!$S$4:$S$400)) -> x | I8: =IF(BA8=1,"x",SUMIF('Björkenäs Open'!$X$4:$X$400,$AC8,'Björkenäs Open'!$S$4:$S$400)) -> x | J8: =IF(BB8=1,"x",SUMIF('SM ute Lö'!$X$4:$X$400,$AC8,'SM ute Lö'!$S$4:$S$400)) -> x | K8: =IF(BC8=1,"x",SUMIF('SM ute Sö'!$X$4:$X$401,$AC8,'SM ute Sö'!$S$4:$S$401)) -> x | L8: =IF(BD8=1,"x",SUMIF('Roslagen Open'!$X$4:$X$400,$AC8,'Roslagen Open'!$S$4:$S$400)) -> x | M8: =IF(BE8=1,"x",SUMIF('Roslagen Open 2'!$X$4:$X$400,$AC8,'Roslagen Open 2'!$S$4:$S$400)) -> x | N8: =IF(BF8=1,"x",SUMIF('Dynapac Open'!$X$4:$X$400,$AC8,'Dynapac Open'!$S$4:$S$400)) -> x | O8: =IF(BG8=1,"x",SUMIF('SmålandsDM ute'!$X$4:$X$400,$AC8,'SmålandsDM ute'!$S$4:$S$400)) -> x | P8: =IF(BH8=1,"x",SUMIF('BlekingeDM ute'!$X$4:$X$400,$AC8,'BlekingeDM ute'!$S$4:$S$400)) -> x | Q8: =IF(BI8=1,"x",SUMIF('SvealandsDM ute'!$X$4:$X$400,$AC8,'SvealandsDM ute'!$S$4:$S$400)) -> x | R8: =IF(BJ8=1,"x",SUMIF('Ljungby Open'!$X$4:$X$406,$AC8,'Ljungby Open'!$S$4:$S$406)) -> x | S8: =IF(AZ8=1,"x",SUMIF('Viby Open'!$X$4:$X$400,$AC8,'Viby Open'!$S$4:$S$400)) -> x | T8: =IF(BP8=1,"x",SUMIF('Växjö Open'!$X$4:$X$400,$AC8,'Växjö Open'!$S$4:$S$400)) -> x | U8: =IF(BK8=1,"x",SUMIF(Höstskon!$X$4:$X$400,$AC8,Höstskon!$S$4:$S$400)) -> x | V8: =IF(BL8=1,"x",SUMIF('Carlskrona Cup'!$X$4:$X$400,$AC8,'Carlskrona Cup'!$S$4:$S$400)) -> x | W8: =IF(BM8=1,"x",SUMIF('Sibbamåla Open'!$X$4:$X$400,$AC8,'Sibbamåla Open'!$S$4:$S$400)) -> x | X8: =IF(BN8=1,"x",SUMIF('Vaxholm Indoor'!$X$4:$X$400,$AC8,'Vaxholm Indoor'!$S$4:$S$400)) -> x | Y8: =IF(BQ8=1,"x",SUMIF('BlekingeDM inne'!$X$4:$X$400,$AC8,'BlekingeDM inne'!$S$4:$S$400)) -> x | Z8: =IF(BR8=1,"x",SUMIF('Svealands-DM inne'!$X$4:$X$400,$AC8,'Svealands-DM inne'!$S$4:$S$400)) -> x | AA8: =IF(BS8=1,"x",SUMIF(Värendspokalen!$X$4:$X$400,$AC8,Värendspokalen!$S$4:$S$400)) -> x | AB8: =IF(BO8=1,"x",SUMIF('SM inne'!$X$4:$X$400,$AC8,'SM inne'!$S$4:$S$400)) -> x | AC8: =IF(B8="","",SUMIF(Kastare!B$2:B$2999,B8,Kastare!A$2:A$2999)) -> 1170 | AE8: 1 | AK8: 0 | AL8: 0 | AM8: 0 | AN8: 0 | AO8: 0 | AP8: 0 | AQ8: 0 | AR8: 0 | AS8: 1 | AT8: 0 | AU8: 0 | AV8: 1 | AW8: 1 | AY8: =SUMIF('Jämjö Open'!$A$502:$A$1000,$AC8,'Jämjö Open'!$AA$502:$AA$1000) -> 1 | AZ8: =SUMIF('Viby Open'!$A$502:$A$1000,$AC8,'Viby Open'!$AA$502:$AA$1000) -> 1 | BA8: =SUMIF('Björkenäs Open'!$A$502:$A$1000,$AC8,'Björkenäs Open'!$AA$502:$AA$1000) -> 1 | BB8: =SUMIF('SM ute Lö'!$A$502:$A$1000,$AC8,'SM ute Lö'!$AA$502:$AA$1000) -> 1 | BC8: =SUMIF('SM ute Sö'!$A$503:$A$1000,$AC8,'SM ute Sö'!$AA$503:$AA$1000) -> 1 | BD8: =SUMIF('Roslagen Open'!$A$502:$A$1000,$AC8,'Roslagen Open'!$AA$502:$AA$1000) -> 1 | BE8: =SUMIF('Roslagen Open 2'!$A$502:$A$1000,$AC8,'Roslagen Open 2'!$AA$502:$AA$1000) -> 1 | BF8: =SUMIF('Dynapac Open'!$A$502:$A$1000,$AC8,'Dynapac Open'!$AA$502:$AA$1000) -> 1 | BG8: =SUMIF('SmålandsDM ute'!$A$502:$A$1000,$AC8,'SmålandsDM ute'!$AA$502:$AA$1000) -> 1 | BH8: =SUMIF('BlekingeDM ute'!$A$502:$A$1000,$AC8,'BlekingeDM ute'!$AA$502:$AA$1000) -> 1 | BI8: =SUMIF('SvealandsDM ute'!$A$502:$A$1000,$AC8,'SvealandsDM ute'!$AA$502:$AA$1000) -> 1 | BJ8: =SUMIF('Ljungby Open'!$A$502:$A$1000,$AC8,'Ljungby Open'!$AA$502:$AA$1000) -> 1 | BK8: =SUMIF(Höstskon!$A$502:$A$1000,$AC8,Höstskon!$AA$502:$AA$1000) -> 1 | BL8: =SUMIF('Carlskrona Cup'!$A$502:$A$1000,$AC8,'Carlskrona Cup'!$AA$502:$AA$1000) -> 1 | BM8: =SUMIF('Sibbamåla Open'!$A$502:$A$1000,$AC8,'Sibbamåla Open'!$AA$502:$AA$1000) -> 1 | BN8: =SUMIF('Vaxholm Indoor'!$A$502:$A$1000,$AC8,'Vaxholm Indoor'!$AA$502:$AA$1000) -> 1 | BO8: =SUMIF('SM inne'!$A$502:$A$1000,$AC8,'SM inne'!$AA$502:$AA$1000) -> 1 | BP8: =SUMIF('Växjö Open'!$A$502:$A$1000,$AC8,'Växjö Open'!$AA$502:$AA$1000) -> 1 | BQ8: =SUMIF('BlekingeDM inne'!$A$502:$A$1000,$AC8,'BlekingeDM inne'!$AA$502:$AA$1000) -> 1 | BR8: =SUMIF('Svealands-DM inne'!$A$502:$A$1000,$AC8,'Svealands-DM inne'!$AA$502:$AA$1000) -> 1 | BS8: =SUMIF(Värendspokalen!$A$502:$A$1000,$AC8,Värendspokalen!$AA$502:$AA$1000) -> 1 | BT8: =SUMIF('Tingsryd Open'!$A$502:$A$1000,$AC8,'Tingsryd Open'!$AA$502:$AA$1000) -> 3
A9: 4 | B9: Leo Andersson | C9: Carlskrona Hsc | D9: 10 | G9: =IF(BT9=1,"x",SUMIF('Tingsryd Open'!$X$4:$X$400,$AC9,'Tingsryd Open'!$S$4:$S$400)) -> 10 | H9: =IF(AY9=1,"x",SUMIF('Jämjö Open'!$X$4:$X$400,$AC9,'Jämjö Open'!$S$4:$S$400)) -> x | I9: =IF(BA9=1,"x",SUMIF('Björkenäs Open'!$X$4:$X$400,$AC9,'Björkenäs Open'!$S$4:$S$400)) -> x | J9: =IF(BB9=1,"x",SUMIF('SM ute Lö'!$X$4:$X$400,$AC9,'SM ute Lö'!$S$4:$S$400)) -> x | K9: =IF(BC9=1,"x",SUMIF('SM ute Sö'!$X$4:$X$401,$AC9,'SM ute Sö'!$S$4:$S$401)) -> x | L9: =IF(BD9=1,"x",SUMIF('Roslagen Open'!$X$4:$X$400,$AC9,'Roslagen Open'!$S$4:$S$400)) -> x | M9: =IF(BE9=1,"x",SUMIF('Roslagen Open 2'!$X$4:$X$400,$AC9,'Roslagen Open 2'!$S$4:$S$400)) -> x | N9: =IF(BF9=1,"x",SUMIF('Dynapac Open'!$X$4:$X$400,$AC9,'Dynapac Open'!$S$4:$S$400)) -> x | O9: =IF(BG9=1,"x",SUMIF('SmålandsDM ute'!$X$4:$X$400,$AC9,'SmålandsDM ute'!$S$4:$S$400)) -> x | P9: =IF(BH9=1,"x",SUMIF('BlekingeDM ute'!$X$4:$X$400,$AC9,'BlekingeDM ute'!$S$4:$S$400)) -> x | Q9: =IF(BI9=1,"x",SUMIF('SvealandsDM ute'!$X$4:$X$400,$AC9,'SvealandsDM ute'!$S$4:$S$400)) -> x | R9: =IF(BJ9=1,"x",SUMIF('Ljungby Open'!$X$4:$X$406,$AC9,'Ljungby Open'!$S$4:$S$406)) -> x | S9: =IF(AZ9=1,"x",SUMIF('Viby Open'!$X$4:$X$400,$AC9,'Viby Open'!$S$4:$S$400)) -> x | T9: =IF(BP9=1,"x",SUMIF('Växjö Open'!$X$4:$X$400,$AC9,'Växjö Open'!$S$4:$S$400)) -> x | U9: =IF(BK9=1,"x",SUMIF(Höstskon!$X$4:$X$400,$AC9,Höstskon!$S$4:$S$400)) -> x | V9: =IF(BL9=1,"x",SUMIF('Carlskrona Cup'!$X$4:$X$400,$AC9,'Carlskrona Cup'!$S$4:$S$400)) -> x | W9: =IF(BM9=1,"x",SUMIF('Sibbamåla Open'!$X$4:$X$400,$AC9,'Sibbamåla Open'!$S$4:$S$400)) -> x | X9: =IF(BN9=1,"x",SUMIF('Vaxholm Indoor'!$X$4:$X$400,$AC9,'Vaxholm Indoor'!$S$4:$S$400)) -> x | Y9: =IF(BQ9=1,"x",SUMIF('BlekingeDM inne'!$X$4:$X$400,$AC9,'BlekingeDM inne'!$S$4:$S$400)) -> x | Z9: =IF(BR9=1,"x",SUMIF('Svealands-DM inne'!$X$4:$X$400,$AC9,'Svealands-DM inne'!$S$4:$S$400)) -> x | AA9: =IF(BS9=1,"x",SUMIF(Värendspokalen!$X$4:$X$400,$AC9,Värendspokalen!$S$4:$S$400)) -> x | AB9: =IF(BO9=1,"x",SUMIF('SM inne'!$X$4:$X$400,$AC9,'SM inne'!$S$4:$S$400)) -> x | AC9: =IF(B9="","",SUMIF(Kastare!B$2:B$2999,B9,Kastare!A$2:A$2999)) -> 1006 | AE9: 1 | AK9: 0 | AL9: 0 | AM9: 0 | AN9: 0 | AO9: 0 | AP9: 0 | AQ9: 0 | AR9: 0 | AS9: 1 | AT9: 0 | AU9: 0 | AV9: 1 | AW9: 1 | AX9: =IF(AW9>12,SUM(AW9-12)*(AT$3),"") ->  | AY9: =SUMIF('Jämjö Open'!$A$502:$A$1000,$AC9,'Jämjö Open'!$AA$502:$AA$1000) -> 1 | AZ9: =SUMIF('Viby Open'!$A$502:$A$1000,$AC9,'Viby Open'!$AA$502:$AA$1000) -> 1 | BA9: =SUMIF('Björkenäs Open'!$A$502:$A$1000,$AC9,'Björkenäs Open'!$AA$502:$AA$1000) -> 1 | BB9: =SUMIF('SM ute Lö'!$A$502:$A$1000,$AC9,'SM ute Lö'!$AA$502:$AA$1000) -> 1 | BC9: =SUMIF('SM ute Sö'!$A$503:$A$1000,$AC9,'SM ute Sö'!$AA$503:$AA$1000) -> 1 | BD9: =SUMIF('Roslagen Open'!$A$502:$A$1000,$AC9,'Roslagen Open'!$AA$502:$AA$1000) -> 1 | BE9: =SUMIF('Roslagen Open 2'!$A$502:$A$1000,$AC9,'Roslagen Open 2'!$AA$502:$AA$1000) -> 1 | BF9: =SUMIF('Dynapac Open'!$A$502:$A$1000,$AC9,'Dynapac Open'!$AA$502:$AA$1000) -> 1 | BG9: =SUMIF('SmålandsDM ute'!$A$502:$A$1000,$AC9,'SmålandsDM ute'!$AA$502:$AA$1000) -> 1 | BH9: =SUMIF('BlekingeDM ute'!$A$502:$A$1000,$AC9,'BlekingeDM ute'!$AA$502:$AA$1000) -> 1 | BI9: =SUMIF('SvealandsDM ute'!$A$502:$A$1000,$AC9,'SvealandsDM ute'!$AA$502:$AA$1000) -> 1 | BJ9: =SUMIF('Ljungby Open'!$A$502:$A$1000,$AC9,'Ljungby Open'!$AA$502:$AA$1000) -> 1 | BK9: =SUMIF(Höstskon!$A$502:$A$1000,$AC9,Höstskon!$AA$502:$AA$1000) -> 1 | BL9: =SUMIF('Carlskrona Cup'!$A$502:$A$1000,$AC9,'Carlskrona Cup'!$AA$502:$AA$1000) -> 1 | BM9: =SUMIF('Sibbamåla Open'!$A$502:$A$1000,$AC9,'Sibbamåla Open'!$AA$502:$AA$1000) -> 1 | BN9: =SUMIF('Vaxholm Indoor'!$A$502:$A$1000,$AC9,'Vaxholm Indoor'!$AA$502:$AA$1000) -> 1 | BO9: =SUMIF('SM inne'!$A$502:$A$1000,$AC9,'SM inne'!$AA$502:$AA$1000) -> 1 | BP9: =SUMIF('Växjö Open'!$A$502:$A$1000,$AC9,'Växjö Open'!$AA$502:$AA$1000) -> 1 | BQ9: =SUMIF('BlekingeDM inne'!$A$502:$A$1000,$AC9,'BlekingeDM inne'!$AA$502:$AA$1000) -> 1 | BR9: =SUMIF('Svealands-DM inne'!$A$502:$A$1000,$AC9,'Svealands-DM inne'!$AA$502:$AA$1000) -> 1 | BS9: =SUMIF(Värendspokalen!$A$502:$A$1000,$AC9,Värendspokalen!$AA$502:$AA$1000) -> 1 | BT9: =SUMIF('Tingsryd Open'!$A$502:$A$1000,$AC9,'Tingsryd Open'!$AA$502:$AA$1000) -> 3
A10: 4 | B10: Marcus Peterson | C10: Balders HSK | D10: 10 | G10: =IF(BT10=1,"x",SUMIF('Tingsryd Open'!$X$4:$X$400,$AC10,'Tingsryd Open'!$S$4:$S$400)) -> 10 | H10: =IF(AY10=1,"x",SUMIF('Jämjö Open'!$X$4:$X$400,$AC10,'Jämjö Open'!$S$4:$S$400)) -> x | I10: =IF(BA10=1,"x",SUMIF('Björkenäs Open'!$X$4:$X$400,$AC10,'Björkenäs Open'!$S$4:$S$400)) -> x | J10: =IF(BB10=1,"x",SUMIF('SM ute Lö'!$X$4:$X$400,$AC10,'SM ute Lö'!$S$4:$S$400)) -> x | K10: =IF(BC10=1,"x",SUMIF('SM ute Sö'!$X$4:$X$401,$AC10,'SM ute Sö'!$S$4:$S$401)) -> x | L10: =IF(BD10=1,"x",SUMIF('Roslagen Open'!$X$4:$X$400,$AC10,'Roslagen Open'!$S$4:$S$400)) -> x | M10: =IF(BE10=1,"x",SUMIF('Roslagen Open 2'!$X$4:$X$400,$AC10,'Roslagen Open 2'!$S$4:$S$400)) -> x | N10: =IF(BF10=1,"x",SUMIF('Dynapac Open'!$X$4:$X$400,$AC10,'Dynapac Open'!$S$4:$S$400)) -> x | O10: =IF(BG10=1,"x",SUMIF('SmålandsDM ute'!$X$4:$X$400,$AC10,'SmålandsDM ute'!$S$4:$S$400)) -> x | P10: =IF(BH10=1,"x",SUMIF('BlekingeDM ute'!$X$4:$X$400,$AC10,'BlekingeDM ute'!$S$4:$S$400)) -> x | Q10: =IF(BI10=1,"x",SUMIF('SvealandsDM ute'!$X$4:$X$400,$AC10,'SvealandsDM ute'!$S$4:$S$400)) -> x | R10: =IF(BJ10=1,"x",SUMIF('Ljungby Open'!$X$4:$X$406,$AC10,'Ljungby Open'!$S$4:$S$406)) -> x | S10: =IF(AZ10=1,"x",SUMIF('Viby Open'!$X$4:$X$400,$AC10,'Viby Open'!$S$4:$S$400)) -> x | T10: =IF(BP10=1,"x",SUMIF('Växjö Open'!$X$4:$X$400,$AC10,'Växjö Open'!$S$4:$S$400)) -> x | U10: =IF(BK10=1,"x",SUMIF(Höstskon!$X$4:$X$400,$AC10,Höstskon!$S$4:$S$400)) -> x | V10: =IF(BL10=1,"x",SUMIF('Carlskrona Cup'!$X$4:$X$400,$AC10,'Carlskrona Cup'!$S$4:$S$400)) -> x | W10: =IF(BM10=1,"x",SUMIF('Sibbamåla Open'!$X$4:$X$400,$AC10,'Sibbamåla Open'!$S$4:$S$400)) -> x | X10: =IF(BN10=1,"x",SUMIF('Vaxholm Indoor'!$X$4:$X$400,$AC10,'Vaxholm Indoor'!$S$4:$S$400)) -> x | Y10: =IF(BQ10=1,"x",SUMIF('BlekingeDM inne'!$X$4:$X$400,$AC10,'BlekingeDM inne'!$S$4:$S$400)) -> x | Z10: =IF(BR10=1,"x",SUMIF('Svealands-DM inne'!$X$4:$X$400,$AC10,'Svealands-DM inne'!$S$4:$S$400)) -> x | AA10: =IF(BS10=1,"x",SUMIF(Värendspokalen!$X$4:$X$400,$AC10,Värendspokalen!$S$4:$S$400)) -> x | AB10: =IF(BO10=1,"x",SUMIF('SM inne'!$X$4:$X$400,$AC10,'SM inne'!$S$4:$S$400)) -> x | AC10: =IF(B10="","",SUMIF(Kastare!B$2:B$2999,B10,Kastare!A$2:A$2999)) -> 1380 | AE10: 1 | AK10: 0 | AL10: 0 | AM10: 0 | AN10: 0 | AO10: 0 | AP10: 0 | AQ10: 0 | AR10: 0 | AS10: 1 | AT10: 0 | AU10: 0 | AV10: 1 | AW10: 1 | AY10: =SUMIF('Jämjö Open'!$A$502:$A$1000,$AC10,'Jämjö Open'!$AA$502:$AA$1000) -> 1 | AZ10: =SUMIF('Viby Open'!$A$502:$A$1000,$AC10,'Viby Open'!$AA$502:$AA$1000) -> 1 | BA10: =SUMIF('Björkenäs Open'!$A$502:$A$1000,$AC10,'Björkenäs Open'!$AA$502:$AA$1000) -> 1 | BB10: =SUMIF('SM ute Lö'!$A$502:$A$1000,$AC10,'SM ute Lö'!$AA$502:$AA$1000) -> 1 | BC10: =SUMIF('SM ute Sö'!$A$503:$A$1000,$AC10,'SM ute Sö'!$AA$503:$AA$1000) -> 1 | BD10: =SUMIF('Roslagen Open'!$A$502:$A$1000,$AC10,'Roslagen Open'!$AA$502:$AA$1000) -> 1 | BE10: =SUMIF('Roslagen Open 2'!$A$502:$A$1000,$AC10,'Roslagen Open 2'!$AA$502:$AA$1000) -> 1 | BF10: =SUMIF('Dynapac Open'!$A$502:$A$1000,$AC10,'Dynapac Open'!$AA$502:$AA$1000) -> 1 | BG10: =SUMIF('SmålandsDM ute'!$A$502:$A$1000,$AC10,'SmålandsDM ute'!$AA$502:$AA$1000) -> 1 | BH10: =SUMIF('BlekingeDM ute'!$A$502:$A$1000,$AC10,'BlekingeDM ute'!$AA$502:$AA$1000) -> 1 | BI10: =SUMIF('SvealandsDM ute'!$A$502:$A$1000,$AC10,'SvealandsDM ute'!$AA$502:$AA$1000) -> 1 | BJ10: =SUMIF('Ljungby Open'!$A$502:$A$1000,$AC10,'Ljungby Open'!$AA$502:$AA$1000) -> 1 | BK10: =SUMIF(Höstskon!$A$502:$A$1000,$AC10,Höstskon!$AA$502:$AA$1000) -> 1 | BL10: =SUMIF('Carlskrona Cup'!$A$502:$A$1000,$AC10,'Carlskrona Cup'!$AA$502:$AA$1000) -> 1 | BM10: =SUMIF('Sibbamåla Open'!$A$502:$A$1000,$AC10,'Sibbamåla Open'!$AA$502:$AA$1000) -> 1 | BN10: =SUMIF('Vaxholm Indoor'!$A$502:$A$1000,$AC10,'Vaxholm Indoor'!$AA$502:$AA$1000) -> 1 | BO10: =SUMIF('SM inne'!$A$502:$A$1000,$AC10,'SM inne'!$AA$502:$AA$1000) -> 1 | BP10: =SUMIF('Växjö Open'!$A$502:$A$1000,$AC10,'Växjö Open'!$AA$502:$AA$1000) -> 1 | BQ10: =SUMIF('BlekingeDM inne'!$A$502:$A$1000,$AC10,'BlekingeDM inne'!$AA$502:$AA$1000) -> 1 | BR10: =SUMIF('Svealands-DM inne'!$A$502:$A$1000,$AC10,'Svealands-DM inne'!$AA$502:$AA$1000) -> 1 | BS10: =SUMIF(Värendspokalen!$A$502:$A$1000,$AC10,Värendspokalen!$AA$502:$AA$1000) -> 1 | BT10: =SUMIF('Tingsryd Open'!$A$502:$A$1000,$AC10,'Tingsryd Open'!$AA$502:$AA$1000) -> 3
A11: 4 | B11: Berndt Pettersson | C11: Lanternan | D11: 10 | G11: =IF(BT11=1,"x",SUMIF('Tingsryd Open'!$X$4:$X$400,$AC11,'Tingsryd Open'!$S$4:$S$400)) -> 10 | H11: =IF(AY11=1,"x",SUMIF('Jämjö Open'!$X$4:$X$400,$AC11,'Jämjö Open'!$S$4:$S$400)) -> x | I11: =IF(BA11=1,"x",SUMIF('Björkenäs Open'!$X$4:$X$400,$AC11,'Björkenäs Open'!$S$4:$S$400)) -> x | J11: =IF(BB11=1,"x",SUMIF('SM ute Lö'!$X$4:$X$400,$AC11,'SM ute Lö'!$S$4:$S$400)) -> x | K11: =IF(BC11=1,"x",SUMIF('SM ute Sö'!$X$4:$X$401,$AC11,'SM ute Sö'!$S$4:$S$401)) -> x | L11: =IF(BD11=1,"x",SUMIF('Roslagen Open'!$X$4:$X$400,$AC11,'Roslagen Open'!$S$4:$S$400)) -> x | M11: =IF(BE11=1,"x",SUMIF('Roslagen Open 2'!$X$4:$X$400,$AC11,'Roslagen Open 2'!$S$4:$S$400)) -> x | N11: =IF(BF11=1,"x",SUMIF('Dynapac Open'!$X$4:$X$400,$AC11,'Dynapac Open'!$S$4:$S$400)) -> x | O11: =IF(BG11=1,"x",SUMIF('SmålandsDM ute'!$X$4:$X$400,$AC11,'SmålandsDM ute'!$S$4:$S$400)) -> x | P11: =IF(BH11=1,"x",SUMIF('BlekingeDM ute'!$X$4:$X$400,$AC11,'BlekingeDM ute'!$S$4:$S$400)) -> x | Q11: =IF(BI11=1,"x",SUMIF('SvealandsDM ute'!$X$4:$X$400,$AC11,'SvealandsDM ute'!$S$4:$S$400)) -> x | R11: =IF(BJ11=1,"x",SUMIF('Ljungby Open'!$X$4:$X$406,$AC11,'Ljungby Open'!$S$4:$S$406)) -> x | S11: =IF(AZ11=1,"x",SUMIF('Viby Open'!$X$4:$X$400,$AC11,'Viby Open'!$S$4:$S$400)) -> x | T11: =IF(BP11=1,"x",SUMIF('Växjö Open'!$X$4:$X$400,$AC11,'Växjö Open'!$S$4:$S$400)) -> x | U11: =IF(BK11=1,"x",SUMIF(Höstskon!$X$4:$X$400,$AC11,Höstskon!$S$4:$S$400)) -> x | V11: =IF(BL11=1,"x",SUMIF('Carlskrona Cup'!$X$4:$X$400,$AC11,'Carlskrona Cup'!$S$4:$S$400)) -> x | W11: =IF(BM11=1,"x",SUMIF('Sibbamåla Open'!$X$4:$X$400,$AC11,'Sibbamåla Open'!$S$4:$S$400)) -> x | X11: =IF(BN11=1,"x",SUMIF('Vaxholm Indoor'!$X$4:$X$400,$AC11,'Vaxholm Indoor'!$S$4:$S$400)) -> x | Y11: =IF(BQ11=1,"x",SUMIF('BlekingeDM inne'!$X$4:$X$400,$AC11,'BlekingeDM inne'!$S$4:$S$400)) -> x | Z11: =IF(BR11=1,"x",SUMIF('Svealands-DM inne'!$X$4:$X$400,$AC11,'Svealands-DM inne'!$S$4:$S$400)) -> x | AA11: =IF(BS11=1,"x",SUMIF(Värendspokalen!$X$4:$X$400,$AC11,Värendspokalen!$S$4:$S$400)) -> x | AB11: =IF(BO11=1,"x",SUMIF('SM inne'!$X$4:$X$400,$AC11,'SM inne'!$S$4:$S$400)) -> x | AC11: =IF(B11="","",SUMIF(Kastare!B$2:B$2999,B11,Kastare!A$2:A$2999)) -> 1027 | AE11: 1 | AK11: 0 | AL11: 0 | AM11: 0 | AN11: 0 | AO11: 0 | AP11: 0 | AQ11: 0 | AR11: 0 | AS11: 1 | AT11: 0 | AU11: 0 | AV11: 1 | AW11: 1 | AY11: =SUMIF('Jämjö Open'!$A$502:$A$1000,$AC11,'Jämjö Open'!$AA$502:$AA$1000) -> 1 | AZ11: =SUMIF('Viby Open'!$A$502:$A$1000,$AC11,'Viby Open'!$AA$502:$AA$1000) -> 1 | BA11: =SUMIF('Björkenäs Open'!$A$502:$A$1000,$AC11,'Björkenäs Open'!$AA$502:$AA$1000) -> 1 | BB11: =SUMIF('SM ute Lö'!$A$502:$A$1000,$AC11,'SM ute Lö'!$AA$502:$AA$1000) -> 1 | BC11: =SUMIF('SM ute Sö'!$A$503:$A$1000,$AC11,'SM ute Sö'!$AA$503:$AA$1000) -> 1 | BD11: =SUMIF('Roslagen Open'!$A$502:$A$1000,$AC11,'Roslagen Open'!$AA$502:$AA$1000) -> 1 | BE11: =SUMIF('Roslagen Open 2'!$A$502:$A$1000,$AC11,'Roslagen Open 2'!$AA$502:$AA$1000) -> 1 | BF11: =SUMIF('Dynapac Open'!$A$502:$A$1000,$AC11,'Dynapac Open'!$AA$502:$AA$1000) -> 1 | BG11: =SUMIF('SmålandsDM ute'!$A$502:$A$1000,$AC11,'SmålandsDM ute'!$AA$502:$AA$1000) -> 1 | BH11: =SUMIF('BlekingeDM ute'!$A$502:$A$1000,$AC11,'BlekingeDM ute'!$AA$502:$AA$1000) -> 1 | BI11: =SUMIF('SvealandsDM ute'!$A$502:$A$1000,$AC11,'SvealandsDM ute'!$AA$502:$AA$1000) -> 1 | BJ11: =SUMIF('Ljungby Open'!$A$502:$A$1000,$AC11,'Ljungby Open'!$AA$502:$AA$1000) -> 1 | BK11: =SUMIF(Höstskon!$A$502:$A$1000,$AC11,Höstskon!$AA$502:$AA$1000) -> 1 | BL11: =SUMIF('Carlskrona Cup'!$A$502:$A$1000,$AC11,'Carlskrona Cup'!$AA$502:$AA$1000) -> 1 | BM11: =SUMIF('Sibbamåla Open'!$A$502:$A$1000,$AC11,'Sibbamåla Open'!$AA$502:$AA$1000) -> 1 | BN11: =SUMIF('Vaxholm Indoor'!$A$502:$A$1000,$AC11,'Vaxholm Indoor'!$AA$502:$AA$1000) -> 1 | BO11: =SUMIF('SM inne'!$A$502:$A$1000,$AC11,'SM inne'!$AA$502:$AA$1000) -> 1 | BP11: =SUMIF('Växjö Open'!$A$502:$A$1000,$AC11,'Växjö Open'!$AA$502:$AA$1000) -> 1 | BQ11: =SUMIF('BlekingeDM inne'!$A$502:$A$1000,$AC11,'BlekingeDM inne'!$AA$502:$AA$1000) -> 1 | BR11: =SUMIF('Svealands-DM inne'!$A$502:$A$1000,$AC11,'Svealands-DM inne'!$AA$502:$AA$1000) -> 1 | BS11: =SUMIF(Värendspokalen!$A$502:$A$1000,$AC11,Värendspokalen!$AA$502:$AA$1000) -> 1 | BT11: =SUMIF('Tingsryd Open'!$A$502:$A$1000,$AC11,'Tingsryd Open'!$AA$502:$AA$1000) -> 3
A12: 4 | B12: Roy Dahlén | C12: Dynapac Hsc | D12: 10 | G12: =IF(BT12=1,"x",SUMIF('Tingsryd Open'!$X$4:$X$400,$AC12,'Tingsryd Open'!$S$4:$S$400)) -> 10 | H12: =IF(AY12=1,"x",SUMIF('Jämjö Open'!$X$4:$X$400,$AC12,'Jämjö Open'!$S$4:$S$400)) -> x | I12: =IF(BA12=1,"x",SUMIF('Björkenäs Open'!$X$4:$X$400,$AC12,'Björkenäs Open'!$S$4:$S$400)) -> x | J12: =IF(BB12=1,"x",SUMIF('SM ute Lö'!$X$4:$X$400,$AC12,'SM ute Lö'!$S$4:$S$400)) -> x | K12: =IF(BC12=1,"x",SUMIF('SM ute Sö'!$X$4:$X$401,$AC12,'SM ute Sö'!$S$4:$S$401)) -> x | L12: =IF(BD12=1,"x",SUMIF('Roslagen Open'!$X$4:$X$400,$AC12,'Roslagen Open'!$S$4:$S$400)) -> x | M12: =IF(BE12=1,"x",SUMIF('Roslagen Open 2'!$X$4:$X$400,$AC12,'Roslagen Open 2'!$S$4:$S$400)) -> x | N12: =IF(BF12=1,"x",SUMIF('Dynapac Open'!$X$4:$X$400,$AC12,'Dynapac Open'!$S$4:$S$400)) -> x | O12: =IF(BG12=1,"x",SUMIF('SmålandsDM ute'!$X$4:$X$400,$AC12,'SmålandsDM ute'!$S$4:$S$400)) -> x | P12: =IF(BH12=1,"x",SUMIF('BlekingeDM ute'!$X$4:$X$400,$AC12,'BlekingeDM ute'!$S$4:$S$400)) -> x | Q12: =IF(BI12=1,"x",SUMIF('SvealandsDM ute'!$X$4:$X$400,$AC12,'SvealandsDM ute'!$S$4:$S$400)) -> x | R12: =IF(BJ12=1,"x",SUMIF('Ljungby Open'!$X$4:$X$406,$AC12,'Ljungby Open'!$S$4:$S$406)) -> x | S12: =IF(AZ12=1,"x",SUMIF('Viby Open'!$X$4:$X$400,$AC12,'Viby Open'!$S$4:$S$400)) -> x | T12: =IF(BP12=1,"x",SUMIF('Växjö Open'!$X$4:$X$400,$AC12,'Växjö Open'!$S$4:$S$400)) -> x | U12: =IF(BK12=1,"x",SUMIF(Höstskon!$X$4:$X$400,$AC12,Höstskon!$S$4:$S$400)) -> x | V12: =IF(BL12=1,"x",SUMIF('Carlskrona Cup'!$X$4:$X$400,$AC12,'Carlskrona Cup'!$S$4:$S$400)) -> x | W12: =IF(BM12=1,"x",SUMIF('Sibbamåla Open'!$X$4:$X$400,$AC12,'Sibbamåla Open'!$S$4:$S$400)) -> x | X12: =IF(BN12=1,"x",SUMIF('Vaxholm Indoor'!$X$4:$X$400,$AC12,'Vaxholm Indoor'!$S$4:$S$400)) -> x | Y12: =IF(BQ12=1,"x",SUMIF('BlekingeDM inne'!$X$4:$X$400,$AC12,'BlekingeDM inne'!$S$4:$S$400)) -> x | Z12: =IF(BR12=1,"x",SUMIF('Svealands-DM inne'!$X$4:$X$400,$AC12,'Svealands-DM inne'!$S$4:$S$400)) -> x | AA12: =IF(BS12=1,"x",SUMIF(Värendspokalen!$X$4:$X$400,$AC12,Värendspokalen!$S$4:$S$400)) -> x | AB12: =IF(BO12=1,"x",SUMIF('SM inne'!$X$4:$X$400,$AC12,'SM inne'!$S$4:$S$400)) -> x | AC12: =IF(B12="","",SUMIF(Kastare!B$2:B$2999,B12,Kastare!A$2:A$2999)) -> 1052 | AE12: 1 | AK12: 0 | AL12: 0 | AM12: 0 | AN12: 0 | AO12: 0 | AP12: 0 | AQ12: 0 | AR12: 0 | AS12: 1 | AT12: 0 | AU12: 0 | AV12: 1 | AW12: 1 | AY12: =SUMIF('Jämjö Open'!$A$502:$A$1000,$AC12,'Jämjö Open'!$AA$502:$AA$1000) -> 1 | AZ12: =SUMIF('Viby Open'!$A$502:$A$1000,$AC12,'Viby Open'!$AA$502:$AA$1000) -> 1 | BA12: =SUMIF('Björkenäs Open'!$A$502:$A$1000,$AC12,'Björkenäs Open'!$AA$502:$AA$1000) -> 1 | BB12: =SUMIF('SM ute Lö'!$A$502:$A$1000,$AC12,'SM ute Lö'!$AA$502:$AA$1000) -> 1 | BC12: =SUMIF('SM ute Sö'!$A$503:$A$1000,$AC12,'SM ute Sö'!$AA$503:$AA$1000) -> 1 | BD12: =SUMIF('Roslagen Open'!$A$502:$A$1000,$AC12,'Roslagen Open'!$AA$502:$AA$1000) -> 1 | BE12: =SUMIF('Roslagen Open 2'!$A$502:$A$1000,$AC12,'Roslagen Open 2'!$AA$502:$AA$1000) -> 1 | BF12: =SUMIF('Dynapac Open'!$A$502:$A$1000,$AC12,'Dynapac Open'!$AA$502:$AA$1000) -> 1 | BG12: =SUMIF('SmålandsDM ute'!$A$502:$A$1000,$AC12,'SmålandsDM ute'!$AA$502:$AA$1000) -> 1 | BH12: =SUMIF('BlekingeDM ute'!$A$502:$A$1000,$AC12,'BlekingeDM ute'!$AA$502:$AA$1000) -> 1 | BI12: =SUMIF('SvealandsDM ute'!$A$502:$A$1000,$AC12,'SvealandsDM ute'!$AA$502:$AA$1000) -> 1 | BJ12: =SUMIF('Ljungby Open'!$A$502:$A$1000,$AC12,'Ljungby Open'!$AA$502:$AA$1000) -> 1 | BK12: =SUMIF(Höstskon!$A$502:$A$1000,$AC12,Höstskon!$AA$502:$AA$1000) -> 1 | BL12: =SUMIF('Carlskrona Cup'!$A$502:$A$1000,$AC12,'Carlskrona Cup'!$AA$502:$AA$1000) -> 1 | BM12: =SUMIF('Sibbamåla Open'!$A$502:$A$1000,$AC12,'Sibbamåla Open'!$AA$502:$AA$1000) -> 1 | BN12: =SUMIF('Vaxholm Indoor'!$A$502:$A$1000,$AC12,'Vaxholm Indoor'!$AA$502:$AA$1000) -> 1 | BO12: =SUMIF('SM inne'!$A$502:$A$1000,$AC12,'SM inne'!$AA$502:$AA$1000) -> 1 | BP12: =SUMIF('Växjö Open'!$A$502:$A$1000,$AC12,'Växjö Open'!$AA$502:$AA$1000) -> 1 | BQ12: =SUMIF('BlekingeDM inne'!$A$502:$A$1000,$AC12,'BlekingeDM inne'!$AA$502:$AA$1000) -> 1 | BR12: =SUMIF('Svealands-DM inne'!$A$502:$A$1000,$AC12,'Svealands-DM inne'!$AA$502:$AA$1000) -> 1 | BS12: =SUMIF(Värendspokalen!$A$502:$A$1000,$AC12,Värendspokalen!$AA$502:$AA$1000) -> 1 | BT12: =SUMIF('Tingsryd Open'!$A$502:$A$1000,$AC12,'Tingsryd Open'!$AA$502:$AA$1000) -> 3
A13: 4 | B13: Emma Anjou | C13: Balders HSK | D13: 10 | G13: =IF(BT13=1,"x",SUMIF('Tingsryd Open'!$X$4:$X$400,$AC13,'Tingsryd Open'!$S$4:$S$400)) -> 10 | H13: =IF(AY13=1,"x",SUMIF('Jämjö Open'!$X$4:$X$400,$AC13,'Jämjö Open'!$S$4:$S$400)) -> x | I13: =IF(BA13=1,"x",SUMIF('Björkenäs Open'!$X$4:$X$400,$AC13,'Björkenäs Open'!$S$4:$S$400)) -> x | J13: =IF(BB13=1,"x",SUMIF('SM ute Lö'!$X$4:$X$400,$AC13,'SM ute Lö'!$S$4:$S$400)) -> x | K13: =IF(BC13=1,"x",SUMIF('SM ute Sö'!$X$4:$X$401,$AC13,'SM ute Sö'!$S$4:$S$401)) -> x | L13: =IF(BD13=1,"x",SUMIF('Roslagen Open'!$X$4:$X$400,$AC13,'Roslagen Open'!$S$4:$S$400)) -> x | M13: =IF(BE13=1,"x",SUMIF('Roslagen Open 2'!$X$4:$X$400,$AC13,'Roslagen Open 2'!$S$4:$S$400)) -> x | N13: =IF(BF13=1,"x",SUMIF('Dynapac Open'!$X$4:$X$400,$AC13,'Dynapac Open'!$S$4:$S$400)) -> x | O13: =IF(BG13=1,"x",SUMIF('SmålandsDM ute'!$X$4:$X$400,$AC13,'SmålandsDM ute'!$S$4:$S$400)) -> x | P13: =IF(BH13=1,"x",SUMIF('BlekingeDM ute'!$X$4:$X$400,$AC13,'BlekingeDM ute'!$S$4:$S$400)) -> x | Q13: =IF(BI13=1,"x",SUMIF('SvealandsDM ute'!$X$4:$X$400,$AC13,'SvealandsDM ute'!$S$4:$S$400)) -> x | R13: =IF(BJ13=1,"x",SUMIF('Ljungby Open'!$X$4:$X$406,$AC13,'Ljungby Open'!$S$4:$S$406)) -> x | S13: =IF(AZ13=1,"x",SUMIF('Viby Open'!$X$4:$X$400,$AC13,'Viby Open'!$S$4:$S$400)) -> x | T13: =IF(BP13=1,"x",SUMIF('Växjö Open'!$X$4:$X$400,$AC13,'Växjö Open'!$S$4:$S$400)) -> x | U13: =IF(BK13=1,"x",SUMIF(Höstskon!$X$4:$X$400,$AC13,Höstskon!$S$4:$S$400)) -> x | V13: =IF(BL13=1,"x",SUMIF('Carlskrona Cup'!$X$4:$X$400,$AC13,'Carlskrona Cup'!$S$4:$S$400)) -> x | W13: =IF(BM13=1,"x",SUMIF('Sibbamåla Open'!$X$4:$X$400,$AC13,'Sibbamåla Open'!$S$4:$S$400)) -> x | X13: =IF(BN13=1,"x",SUMIF('Vaxholm Indoor'!$X$4:$X$400,$AC13,'Vaxholm Indoor'!$S$4:$S$400)) -> x | Y13: =IF(BQ13=1,"x",SUMIF('BlekingeDM inne'!$X$4:$X$400,$AC13,'BlekingeDM inne'!$S$4:$S$400)) -> x | Z13: =IF(BR13=1,"x",SUMIF('Svealands-DM inne'!$X$4:$X$400,$AC13,'Svealands-DM inne'!$S$4:$S$400)) -> x | AA13: =IF(BS13=1,"x",SUMIF(Värendspokalen!$X$4:$X$400,$AC13,Värendspokalen!$S$4:$S$400)) -> x | AB13: =IF(BO13=1,"x",SUMIF('SM inne'!$X$4:$X$400,$AC13,'SM inne'!$S$4:$S$400)) -> x | AC13: =IF(B13="","",SUMIF(Kastare!B$2:B$2999,B13,Kastare!A$2:A$2999)) -> 1363 | AE13: 1 | AK13: 0 | AL13: 0 | AM13: 0 | AN13: 0 | AO13: 0 | AP13: 0 | AQ13: 0 | AR13: 0 | AS13: 1 | AT13: 0 | AU13: 0 | AV13: 1 | AW13: 1 | AY13: =SUMIF('Jämjö Open'!$A$502:$A$1000,$AC13,'Jämjö Open'!$AA$502:$AA$1000) -> 1 | AZ13: =SUMIF('Viby Open'!$A$502:$A$1000,$AC13,'Viby Open'!$AA$502:$AA$1000) -> 1 | BA13: =SUMIF('Björkenäs Open'!$A$502:$A$1000,$AC13,'Björkenäs Open'!$AA$502:$AA$1000) -> 1 | BB13: =SUMIF('SM ute Lö'!$A$502:$A$1000,$AC13,'SM ute Lö'!$AA$502:$AA$1000) -> 1 | BC13: =SUMIF('SM ute Sö'!$A$503:$A$1000,$AC13,'SM ute Sö'!$AA$503:$AA$1000) -> 1 | BD13: =SUMIF('Roslagen Open'!$A$502:$A$1000,$AC13,'Roslagen Open'!$AA$502:$AA$1000) -> 1 | BE13: =SUMIF('Roslagen Open 2'!$A$502:$A$1000,$AC13,'Roslagen Open 2'!$AA$502:$AA$1000) -> 1 | BF13: =SUMIF('Dynapac Open'!$A$502:$A$1000,$AC13,'Dynapac Open'!$AA$502:$AA$1000) -> 1 | BG13: =SUMIF('SmålandsDM ute'!$A$502:$A$1000,$AC13,'SmålandsDM ute'!$AA$502:$AA$1000) -> 1 | BH13: =SUMIF('BlekingeDM ute'!$A$502:$A$1000,$AC13,'BlekingeDM ute'!$AA$502:$AA$1000) -> 1 | BI13: =SUMIF('SvealandsDM ute'!$A$502:$A$1000,$AC13,'SvealandsDM ute'!$AA$502:$AA$1000) -> 1 | BJ13: =SUMIF('Ljungby Open'!$A$502:$A$1000,$AC13,'Ljungby Open'!$AA$502:$AA$1000) -> 1 | BK13: =SUMIF(Höstskon!$A$502:$A$1000,$AC13,Höstskon!$AA$502:$AA$1000) -> 1 | BL13: =SUMIF('Carlskrona Cup'!$A$502:$A$1000,$AC13,'Carlskrona Cup'!$AA$502:$AA$1000) -> 1 | BM13: =SUMIF('Sibbamåla Open'!$A$502:$A$1000,$AC13,'Sibbamåla Open'!$AA$502:$AA$1000) -> 1 | BN13: =SUMIF('Vaxholm Indoor'!$A$502:$A$1000,$AC13,'Vaxholm Indoor'!$AA$502:$AA$1000) -> 1 | BO13: =SUMIF('SM inne'!$A$502:$A$1000,$AC13,'SM inne'!$AA$502:$AA$1000) -> 1 | BP13: =SUMIF('Växjö Open'!$A$502:$A$1000,$AC13,'Växjö Open'!$AA$502:$AA$1000) -> 1 | BQ13: =SUMIF('BlekingeDM inne'!$A$502:$A$1000,$AC13,'BlekingeDM inne'!$AA$502:$AA$1000) -> 1 | BR13: =SUMIF('Svealands-DM inne'!$A$502:$A$1000,$AC13,'Svealands-DM inne'!$AA$502:$AA$1000) -> 1 | BS13: =SUMIF(Värendspokalen!$A$502:$A$1000,$AC13,Värendspokalen!$AA$502:$AA$1000) -> 1 | BT13: =SUMIF('Tingsryd Open'!$A$502:$A$1000,$AC13,'Tingsryd Open'!$AA$502:$AA$1000) -> 3
A14: 4 | B14: Mattias Olsson | C14: Dynapac Hsc | D14: 10 | G14: =IF(BT14=1,"x",SUMIF('Tingsryd Open'!$X$4:$X$400,$AC14,'Tingsryd Open'!$S$4:$S$400)) -> 10 | H14: =IF(AY14=1,"x",SUMIF('Jämjö Open'!$X$4:$X$400,$AC14,'Jämjö Open'!$S$4:$S$400)) -> x | I14: =IF(BA14=1,"x",SUMIF('Björkenäs Open'!$X$4:$X$400,$AC14,'Björkenäs Open'!$S$4:$S$400)) -> x | J14: =IF(BB14=1,"x",SUMIF('SM ute Lö'!$X$4:$X$400,$AC14,'SM ute Lö'!$S$4:$S$400)) -> x | K14: =IF(BC14=1,"x",SUMIF('SM ute Sö'!$X$4:$X$401,$AC14,'SM ute Sö'!$S$4:$S$401)) -> x | L14: =IF(BD14=1,"x",SUMIF('Roslagen Open'!$X$4:$X$400,$AC14,'Roslagen Open'!$S$4:$S$400)) -> x | M14: =IF(BE14=1,"x",SUMIF('Roslagen Open 2'!$X$4:$X$400,$AC14,'Roslagen Open 2'!$S$4:$S$400)) -> x | N14: =IF(BF14=1,"x",SUMIF('Dynapac Open'!$X$4:$X$400,$AC14,'Dynapac Open'!$S$4:$S$400)) -> x | O14: =IF(BG14=1,"x",SUMIF('SmålandsDM ute'!$X$4:$X$400,$AC14,'SmålandsDM ute'!$S$4:$S$400)) -> x | P14: =IF(BH14=1,"x",SUMIF('BlekingeDM ute'!$X$4:$X$400,$AC14,'BlekingeDM ute'!$S$4:$S$400)) -> x | Q14: =IF(BI14=1,"x",SUMIF('SvealandsDM ute'!$X$4:$X$400,$AC14,'SvealandsDM ute'!$S$4:$S$400)) -> x | R14: =IF(BJ14=1,"x",SUMIF('Ljungby Open'!$X$4:$X$406,$AC14,'Ljungby Open'!$S$4:$S$406)) -> x | S14: =IF(AZ14=1,"x",SUMIF('Viby Open'!$X$4:$X$400,$AC14,'Viby Open'!$S$4:$S$400)) -> x | T14: =IF(BP14=1,"x",SUMIF('Växjö Open'!$X$4:$X$400,$AC14,'Växjö Open'!$S$4:$S$400)) -> x | U14: =IF(BK14=1,"x",SUMIF(Höstskon!$X$4:$X$400,$AC14,Höstskon!$S$4:$S$400)) -> x | V14: =IF(BL14=1,"x",SUMIF('Carlskrona Cup'!$X$4:$X$400,$AC14,'Carlskrona Cup'!$S$4:$S$400)) -> x | W14: =IF(BM14=1,"x",SUMIF('Sibbamåla Open'!$X$4:$X$400,$AC14,'Sibbamåla Open'!$S$4:$S$400)) -> x | X14: =IF(BN14=1,"x",SUMIF('Vaxholm Indoor'!$X$4:$X$400,$AC14,'Vaxholm Indoor'!$S$4:$S$400)) -> x | Y14: =IF(BQ14=1,"x",SUMIF('BlekingeDM inne'!$X$4:$X$400,$AC14,'BlekingeDM inne'!$S$4:$S$400)) -> x | Z14: =IF(BR14=1,"x",SUMIF('Svealands-DM inne'!$X$4:$X$400,$AC14,'Svealands-DM inne'!$S$4:$S$400)) -> x | AA14: =IF(BS14=1,"x",SUMIF(Värendspokalen!$X$4:$X$400,$AC14,Värendspokalen!$S$4:$S$400)) -> x | AB14: =IF(BO14=1,"x",SUMIF('SM inne'!$X$4:$X$400,$AC14,'SM inne'!$S$4:$S$400)) -> x | AC14: =IF(B14="","",SUMIF(Kastare!B$2:B$2999,B14,Kastare!A$2:A$2999)) -> 1044 | AE14: 1 | AK14: 0 | AL14: 0 | AM14: 0 | AN14: 0 | AO14: 0 | AP14: 0 | AQ14: 0 | AR14: 0 | AS14: 1 | AT14: 0 | AU14: 0 | AV14: 1 | AW14: 1 | AY14: =SUMIF('Jämjö Open'!$A$502:$A$1000,$AC14,'Jämjö Open'!$AA$502:$AA$1000) -> 1 | AZ14: =SUMIF('Viby Open'!$A$502:$A$1000,$AC14,'Viby Open'!$AA$502:$AA$1000) -> 1 | BA14: =SUMIF('Björkenäs Open'!$A$502:$A$1000,$AC14,'Björkenäs Open'!$AA$502:$AA$1000) -> 1 | BB14: =SUMIF('SM ute Lö'!$A$502:$A$1000,$AC14,'SM ute Lö'!$AA$502:$AA$1000) -> 1 | BC14: =SUMIF('SM ute Sö'!$A$503:$A$1000,$AC14,'SM ute Sö'!$AA$503:$AA$1000) -> 1 | BD14: =SUMIF('Roslagen Open'!$A$502:$A$1000,$AC14,'Roslagen Open'!$AA$502:$AA$1000) -> 1 | BE14: =SUMIF('Roslagen Open 2'!$A$502:$A$1000,$AC14,'Roslagen Open 2'!$AA$502:$AA$1000) -> 1 | BF14: =SUMIF('Dynapac Open'!$A$502:$A$1000,$AC14,'Dynapac Open'!$AA$502:$AA$1000) -> 1 | BG14: =SUMIF('SmålandsDM ute'!$A$502:$A$1000,$AC14,'SmålandsDM ute'!$AA$502:$AA$1000) -> 1 | BH14: =SUMIF('BlekingeDM ute'!$A$502:$A$1000,$AC14,'BlekingeDM ute'!$AA$502:$AA$1000) -> 1 | BI14: =SUMIF('SvealandsDM ute'!$A$502:$A$1000,$AC14,'SvealandsDM ute'!$AA$502:$AA$1000) -> 1 | BJ14: =SUMIF('Ljungby Open'!$A$502:$A$1000,$AC14,'Ljungby Open'!$AA$502:$AA$1000) -> 1 | BK14: =SUMIF(Höstskon!$A$502:$A$1000,$AC14,Höstskon!$AA$502:$AA$1000) -> 1 | BL14: =SUMIF('Carlskrona Cup'!$A$502:$A$1000,$AC14,'Carlskrona Cup'!$AA$502:$AA$1000) -> 1 | BM14: =SUMIF('Sibbamåla Open'!$A$502:$A$1000,$AC14,'Sibbamåla Open'!$AA$502:$AA$1000) -> 1 | BN14: =SUMIF('Vaxholm Indoor'!$A$502:$A$1000,$AC14,'Vaxholm Indoor'!$AA$502:$AA$1000) -> 1 | BO14: =SUMIF('SM inne'!$A$502:$A$1000,$AC14,'SM inne'!$AA$502:$AA$1000) -> 1 | BP14: =SUMIF('Växjö Open'!$A$502:$A$1000,$AC14,'Växjö Open'!$AA$502:$AA$1000) -> 1 | BQ14: =SUMIF('BlekingeDM inne'!$A$502:$A$1000,$AC14,'BlekingeDM inne'!$AA$502:$AA$1000) -> 1 | BR14: =SUMIF('Svealands-DM inne'!$A$502:$A$1000,$AC14,'Svealands-DM inne'!$AA$502:$AA$1000) -> 1 | BS14: =SUMIF(Värendspokalen!$A$502:$A$1000,$AC14,Värendspokalen!$AA$502:$AA$1000) -> 1 | BT14: =SUMIF('Tingsryd Open'!$A$502:$A$1000,$AC14,'Tingsryd Open'!$AA$502:$AA$1000) -> 3
A15: 4 | B15: Lasse Brincner | C15: Värends Hsk | D15: 10 | G15: =IF(BT15=1,"x",SUMIF('Tingsryd Open'!$X$4:$X$400,$AC15,'Tingsryd Open'!$S$4:$S$400)) -> 10 | H15: =IF(AY15=1,"x",SUMIF('Jämjö Open'!$X$4:$X$400,$AC15,'Jämjö Open'!$S$4:$S$400)) -> x | I15: =IF(BA15=1,"x",SUMIF('Björkenäs Open'!$X$4:$X$400,$AC15,'Björkenäs Open'!$S$4:$S$400)) -> x | J15: =IF(BB15=1,"x",SUMIF('SM ute Lö'!$X$4:$X$400,$AC15,'SM ute Lö'!$S$4:$S$400)) -> x | K15: =IF(BC15=1,"x",SUMIF('SM ute Sö'!$X$4:$X$401,$AC15,'SM ute Sö'!$S$4:$S$401)) -> x | L15: =IF(BD15=1,"x",SUMIF('Roslagen Open'!$X$4:$X$400,$AC15,'Roslagen Open'!$S$4:$S$400)) -> x | M15: =IF(BE15=1,"x",SUMIF('Roslagen Open 2'!$X$4:$X$400,$AC15,'Roslagen Open 2'!$S$4:$S$400)) -> x | N15: =IF(BF15=1,"x",SUMIF('Dynapac Open'!$X$4:$X$400,$AC15,'Dynapac Open'!$S$4:$S$400)) -> x | O15: =IF(BG15=1,"x",SUMIF('SmålandsDM ute'!$X$4:$X$400,$AC15,'SmålandsDM ute'!$S$4:$S$400)) -> x | P15: =IF(BH15=1,"x",SUMIF('BlekingeDM ute'!$X$4:$X$400,$AC15,'BlekingeDM ute'!$S$4:$S$400)) -> x | Q15: =IF(BI15=1,"x",SUMIF('SvealandsDM ute'!$X$4:$X$400,$AC15,'SvealandsDM ute'!$S$4:$S$400)) -> x | R15: =IF(BJ15=1,"x",SUMIF('Ljungby Open'!$X$4:$X$406,$AC15,'Ljungby Open'!$S$4:$S$406)) -> x | S15: =IF(AZ15=1,"x",SUMIF('Viby Open'!$X$4:$X$400,$AC15,'Viby Open'!$S$4:$S$400)) -> x | T15: =IF(BP15=1,"x",SUMIF('Växjö Open'!$X$4:$X$400,$AC15,'Växjö Open'!$S$4:$S$400)) -> x | U15: =IF(BK15=1,"x",SUMIF(Höstskon!$X$4:$X$400,$AC15,Höstskon!$S$4:$S$400)) -> x | V15: =IF(BL15=1,"x",SUMIF('Carlskrona Cup'!$X$4:$X$400,$AC15,'Carlskrona Cup'!$S$4:$S$400)) -> x | W15: =IF(BM15=1,"x",SUMIF('Sibbamåla Open'!$X$4:$X$400,$AC15,'Sibbamåla Open'!$S$4:$S$400)) -> x | X15: =IF(BN15=1,"x",SUMIF('Vaxholm Indoor'!$X$4:$X$400,$AC15,'Vaxholm Indoor'!$S$4:$S$400)) -> x | Y15: =IF(BQ15=1,"x",SUMIF('BlekingeDM inne'!$X$4:$X$400,$AC15,'BlekingeDM inne'!$S$4:$S$400)) -> x | Z15: =IF(BR15=1,"x",SUMIF('Svealands-DM inne'!$X$4:$X$400,$AC15,'Svealands-DM inne'!$S$4:$S$400)) -> x | AA15: =IF(BS15=1,"x",SUMIF(Värendspokalen!$X$4:$X$400,$AC15,Värendspokalen!$S$4:$S$400)) -> x | AB15: =IF(BO15=1,"x",SUMIF('SM inne'!$X$4:$X$400,$AC15,'SM inne'!$S$4:$S$400)) -> x | AC15: =IF(B15="","",SUMIF(Kastare!B$2:B$2999,B15,Kastare!A$2:A$2999)) -> 1012 | AE15: 1 | AK15: 0 | AL15: 0 | AM15: 0 | AN15: 0 | AO15: 0 | AP15: 0 | AQ15: 0 | AR15: 0 | AS15: 1 | AT15: 0 | AU15: 0 | AV15: 1 | AW15: 1 | AY15: =SUMIF('Jämjö Open'!$A$502:$A$1000,$AC15,'Jämjö Open'!$AA$502:$AA$1000) -> 1 | AZ15: =SUMIF('Viby Open'!$A$502:$A$1000,$AC15,'Viby Open'!$AA$502:$AA$1000) -> 1 | BA15: =SUMIF('Björkenäs Open'!$A$502:$A$1000,$AC15,'Björkenäs Open'!$AA$502:$AA$1000) -> 1 | BB15: =SUMIF('SM ute Lö'!$A$502:$A$1000,$AC15,'SM ute Lö'!$AA$502:$AA$1000) -> 1 | BC15: =SUMIF('SM ute Sö'!$A$503:$A$1000,$AC15,'SM ute Sö'!$AA$503:$AA$1000) -> 1 | BD15: =SUMIF('Roslagen Open'!$A$502:$A$1000,$AC15,'Roslagen Open'!$AA$502:$AA$1000) -> 1 | BE15: =SUMIF('Roslagen Open 2'!$A$502:$A$1000,$AC15,'Roslagen Open 2'!$AA$502:$AA$1000) -> 1 | BF15: =SUMIF('Dynapac Open'!$A$502:$A$1000,$AC15,'Dynapac Open'!$AA$502:$AA$1000) -> 1 | BG15: =SUMIF('SmålandsDM ute'!$A$502:$A$1000,$AC15,'SmålandsDM ute'!$AA$502:$AA$1000) -> 1 | BH15: =SUMIF('BlekingeDM ute'!$A$502:$A$1000,$AC15,'BlekingeDM ute'!$AA$502:$AA$1000) -> 1 | BI15: =SUMIF('SvealandsDM ute'!$A$502:$A$1000,$AC15,'SvealandsDM ute'!$AA$502:$AA$1000) -> 1 | BJ15: =SUMIF('Ljungby Open'!$A$502:$A$1000,$AC15,'Ljungby Open'!$AA$502:$AA$1000) -> 1 | BK15: =SUMIF(Höstskon!$A$502:$A$1000,$AC15,Höstskon!$AA$502:$AA$1000) -> 1 | BL15: =SUMIF('Carlskrona Cup'!$A$502:$A$1000,$AC15,'Carlskrona Cup'!$AA$502:$AA$1000) -> 1 | BM15: =SUMIF('Sibbamåla Open'!$A$502:$A$1000,$AC15,'Sibbamåla Open'!$AA$502:$AA$1000) -> 1 | BN15: =SUMIF('Vaxholm Indoor'!$A$502:$A$1000,$AC15,'Vaxholm Indoor'!$AA$502:$AA$1000) -> 1 | BO15: =SUMIF('SM inne'!$A$502:$A$1000,$AC15,'SM inne'!$AA$502:$AA$1000) -> 1 | BP15: =SUMIF('Växjö Open'!$A$502:$A$1000,$AC15,'Växjö Open'!$AA$502:$AA$1000) -> 1 | BQ15: =SUMIF('BlekingeDM inne'!$A$502:$A$1000,$AC15,'BlekingeDM inne'!$AA$502:$AA$1000) -> 1 | BR15: =SUMIF('Svealands-DM inne'!$A$502:$A$1000,$AC15,'Svealands-DM inne'!$AA$502:$AA$1000) -> 1 | BS15: =SUMIF(Värendspokalen!$A$502:$A$1000,$AC15,Värendspokalen!$AA$502:$AA$1000) -> 1 | BT15: =SUMIF('Tingsryd Open'!$A$502:$A$1000,$AC15,'Tingsryd Open'!$AA$502:$AA$1000) -> 3
A16: 4 | B16: Carina Gneupel | C16: Sibbamåla | D16: 10 | G16: =IF(BT16=1,"x",SUMIF('Tingsryd Open'!$X$4:$X$400,$AC16,'Tingsryd Open'!$S$4:$S$400)) -> 10 | H16: =IF(AY16=1,"x",SUMIF('Jämjö Open'!$X$4:$X$400,$AC16,'Jämjö Open'!$S$4:$S$400)) -> x | I16: =IF(BA16=1,"x",SUMIF('Björkenäs Open'!$X$4:$X$400,$AC16,'Björkenäs Open'!$S$4:$S$400)) -> x | J16: =IF(BB16=1,"x",SUMIF('SM ute Lö'!$X$4:$X$400,$AC16,'SM ute Lö'!$S$4:$S$400)) -> x | K16: =IF(BC16=1,"x",SUMIF('SM ute Sö'!$X$4:$X$401,$AC16,'SM ute Sö'!$S$4:$S$401)) -> x | L16: =IF(BD16=1,"x",SUMIF('Roslagen Open'!$X$4:$X$400,$AC16,'Roslagen Open'!$S$4:$S$400)) -> x | M16: =IF(BE16=1,"x",SUMIF('Roslagen Open 2'!$X$4:$X$400,$AC16,'Roslagen Open 2'!$S$4:$S$400)) -> x | N16: =IF(BF16=1,"x",SUMIF('Dynapac Open'!$X$4:$X$400,$AC16,'Dynapac Open'!$S$4:$S$400)) -> x | O16: =IF(BG16=1,"x",SUMIF('SmålandsDM ute'!$X$4:$X$400,$AC16,'SmålandsDM ute'!$S$4:$S$400)) -> x | P16: =IF(BH16=1,"x",SUMIF('BlekingeDM ute'!$X$4:$X$400,$AC16,'BlekingeDM ute'!$S$4:$S$400)) -> x | Q16: =IF(BI16=1,"x",SUMIF('SvealandsDM ute'!$X$4:$X$400,$AC16,'SvealandsDM ute'!$S$4:$S$400)) -> x | R16: =IF(BJ16=1,"x",SUMIF('Ljungby Open'!$X$4:$X$406,$AC16,'Ljungby Open'!$S$4:$S$406)) -> x | S16: =IF(AZ16=1,"x",SUMIF('Viby Open'!$X$4:$X$400,$AC16,'Viby Open'!$S$4:$S$400)) -> x | T16: =IF(BP16=1,"x",SUMIF('Växjö Open'!$X$4:$X$400,$AC16,'Växjö Open'!$S$4:$S$400)) -> x | U16: =IF(BK16=1,"x",SUMIF(Höstskon!$X$4:$X$400,$AC16,Höstskon!$S$4:$S$400)) -> x | V16: =IF(BL16=1,"x",SUMIF('Carlskrona Cup'!$X$4:$X$400,$AC16,'Carlskrona Cup'!$S$4:$S$400)) -> x | W16: =IF(BM16=1,"x",SUMIF('Sibbamåla Open'!$X$4:$X$400,$AC16,'Sibbamåla Open'!$S$4:$S$400)) -> x | X16: =IF(BN16=1,"x",SUMIF('Vaxholm Indoor'!$X$4:$X$400,$AC16,'Vaxholm Indoor'!$S$4:$S$400)) -> x | Y16: =IF(BQ16=1,"x",SUMIF('BlekingeDM inne'!$X$4:$X$400,$AC16,'BlekingeDM inne'!$S$4:$S$400)) -> x | Z16: =IF(BR16=1,"x",SUMIF('Svealands-DM inne'!$X$4:$X$400,$AC16,'Svealands-DM inne'!$S$4:$S$400)) -> x | AA16: =IF(BS16=1,"x",SUMIF(Värendspokalen!$X$4:$X$400,$AC16,Värendspokalen!$S$4:$S$400)) -> x | AB16: =IF(BO16=1,"x",SUMIF('SM inne'!$X$4:$X$400,$AC16,'SM inne'!$S$4:$S$400)) -> x | AC16: =IF(B16="","",SUMIF(Kastare!B$2:B$2999,B16,Kastare!A$2:A$2999)) -> 1041 | AE16: 1 | AK16: 0 | AL16: 0 | AM16: 0 | AN16: 0 | AO16: 0 | AP16: 0 | AQ16: 0 | AR16: 0 | AS16: 1 | AT16: 0 | AU16: 0 | AV16: 1 | AW16: 1 | AY16: =SUMIF('Jämjö Open'!$A$502:$A$1000,$AC16,'Jämjö Open'!$AA$502:$AA$1000) -> 1 | AZ16: =SUMIF('Viby Open'!$A$502:$A$1000,$AC16,'Viby Open'!$AA$502:$AA$1000) -> 1 | BA16: =SUMIF('Björkenäs Open'!$A$502:$A$1000,$AC16,'Björkenäs Open'!$AA$502:$AA$1000) -> 1 | BB16: =SUMIF('SM ute Lö'!$A$502:$A$1000,$AC16,'SM ute Lö'!$AA$502:$AA$1000) -> 1 | BC16: =SUMIF('SM ute Sö'!$A$503:$A$1000,$AC16,'SM ute Sö'!$AA$503:$AA$1000) -> 1 | BD16: =SUMIF('Roslagen Open'!$A$502:$A$1000,$AC16,'Roslagen Open'!$AA$502:$AA$1000) -> 1 | BE16: =SUMIF('Roslagen Open 2'!$A$502:$A$1000,$AC16,'Roslagen Open 2'!$AA$502:$AA$1000) -> 1 | BF16: =SUMIF('Dynapac Open'!$A$502:$A$1000,$AC16,'Dynapac Open'!$AA$502:$AA$1000) -> 1 | BG16: =SUMIF('SmålandsDM ute'!$A$502:$A$1000,$AC16,'SmålandsDM ute'!$AA$502:$AA$1000) -> 1 | BH16: =SUMIF('BlekingeDM ute'!$A$502:$A$1000,$AC16,'BlekingeDM ute'!$AA$502:$AA$1000) -> 1 | BI16: =SUMIF('SvealandsDM ute'!$A$502:$A$1000,$AC16,'SvealandsDM ute'!$AA$502:$AA$1000) -> 1 | BJ16: =SUMIF('Ljungby Open'!$A$502:$A$1000,$AC16,'Ljungby Open'!$AA$502:$AA$1000) -> 1 | BK16: =SUMIF(Höstskon!$A$502:$A$1000,$AC16,Höstskon!$AA$502:$AA$1000) -> 1 | BL16: =SUMIF('Carlskrona Cup'!$A$502:$A$1000,$AC16,'Carlskrona Cup'!$AA$502:$AA$1000) -> 1 | BM16: =SUMIF('Sibbamåla Open'!$A$502:$A$1000,$AC16,'Sibbamåla Open'!$AA$502:$AA$1000) -> 1 | BN16: =SUMIF('Vaxholm Indoor'!$A$502:$A$1000,$AC16,'Vaxholm Indoor'!$AA$502:$AA$1000) -> 1 | BO16: =SUMIF('SM inne'!$A$502:$A$1000,$AC16,'SM inne'!$AA$502:$AA$1000) -> 1 | BP16: =SUMIF('Växjö Open'!$A$502:$A$1000,$AC16,'Växjö Open'!$AA$502:$AA$1000) -> 1 | BQ16: =SUMIF('BlekingeDM inne'!$A$502:$A$1000,$AC16,'BlekingeDM inne'!$AA$502:$AA$1000) -> 1 | BR16: =SUMIF('Svealands-DM inne'!$A$502:$A$1000,$AC16,'Svealands-DM inne'!$AA$502:$AA$1000) -> 1 | BS16: =SUMIF(Värendspokalen!$A$502:$A$1000,$AC16,Värendspokalen!$AA$502:$AA$1000) -> 1 | BT16: =SUMIF('Tingsryd Open'!$A$502:$A$1000,$AC16,'Tingsryd Open'!$AA$502:$AA$1000) -> 3
A17: 4 | B17: Jonny Åberg | C17: Balders HSK | D17: 10 | G17: =IF(BT17=1,"x",SUMIF('Tingsryd Open'!$X$4:$X$400,$AC17,'Tingsryd Open'!$S$4:$S$400)) -> 10 | H17: =IF(AY17=1,"x",SUMIF('Jämjö Open'!$X$4:$X$400,$AC17,'Jämjö Open'!$S$4:$S$400)) -> x | I17: =IF(BA17=1,"x",SUMIF('Björkenäs Open'!$X$4:$X$400,$AC17,'Björkenäs Open'!$S$4:$S$400)) -> x | J17: =IF(BB17=1,"x",SUMIF('SM ute Lö'!$X$4:$X$400,$AC17,'SM ute Lö'!$S$4:$S$400)) -> x | K17: =IF(BC17=1,"x",SUMIF('SM ute Sö'!$X$4:$X$401,$AC17,'SM ute Sö'!$S$4:$S$401)) -> x | L17: =IF(BD17=1,"x",SUMIF('Roslagen Open'!$X$4:$X$400,$AC17,'Roslagen Open'!$S$4:$S$400)) -> x | M17: =IF(BE17=1,"x",SUMIF('Roslagen Open 2'!$X$4:$X$400,$AC17,'Roslagen Open 2'!$S$4:$S$400)) -> x | N17: =IF(BF17=1,"x",SUMIF('Dynapac Open'!$X$4:$X$400,$AC17,'Dynapac Open'!$S$4:$S$400)) -> x | O17: =IF(BG17=1,"x",SUMIF('SmålandsDM ute'!$X$4:$X$400,$AC17,'SmålandsDM ute'!$S$4:$S$400)) -> x | P17: =IF(BH17=1,"x",SUMIF('BlekingeDM ute'!$X$4:$X$400,$AC17,'BlekingeDM ute'!$S$4:$S$400)) -> x | Q17: =IF(BI17=1,"x",SUMIF('SvealandsDM ute'!$X$4:$X$400,$AC17,'SvealandsDM ute'!$S$4:$S$400)) -> x | R17: =IF(BJ17=1,"x",SUMIF('Ljungby Open'!$X$4:$X$406,$AC17,'Ljungby Open'!$S$4:$S$406)) -> x | S17: =IF(AZ17=1,"x",SUMIF('Viby Open'!$X$4:$X$400,$AC17,'Viby Open'!$S$4:$S$400)) -> x | T17: =IF(BP17=1,"x",SUMIF('Växjö Open'!$X$4:$X$400,$AC17,'Växjö Open'!$S$4:$S$400)) -> x | U17: =IF(BK17=1,"x",SUMIF(Höstskon!$X$4:$X$400,$AC17,Höstskon!$S$4:$S$400)) -> x | V17: =IF(BL17=1,"x",SUMIF('Carlskrona Cup'!$X$4:$X$400,$AC17,'Carlskrona Cup'!$S$4:$S$400)) -> x | W17: =IF(BM17=1,"x",SUMIF('Sibbamåla Open'!$X$4:$X$400,$AC17,'Sibbamåla Open'!$S$4:$S$400)) -> x | X17: =IF(BN17=1,"x",SUMIF('Vaxholm Indoor'!$X$4:$X$400,$AC17,'Vaxholm Indoor'!$S$4:$S$400)) -> x | Y17: =IF(BQ17=1,"x",SUMIF('BlekingeDM inne'!$X$4:$X$400,$AC17,'BlekingeDM inne'!$S$4:$S$400)) -> x | Z17: =IF(BR17=1,"x",SUMIF('Svealands-DM inne'!$X$4:$X$400,$AC17,'Svealands-DM inne'!$S$4:$S$400)) -> x | AA17: =IF(BS17=1,"x",SUMIF(Värendspokalen!$X$4:$X$400,$AC17,Värendspokalen!$S$4:$S$400)) -> x | AB17: =IF(BO17=1,"x",SUMIF('SM inne'!$X$4:$X$400,$AC17,'SM inne'!$S$4:$S$400)) -> x | AC17: =IF(B17="","",SUMIF(Kastare!B$2:B$2999,B17,Kastare!A$2:A$2999)) -> 1076 | AE17: 1 | AK17: 0 | AL17: 0 | AM17: 0 | AN17: 0 | AO17: 0 | AP17: 0 | AQ17: 0 | AR17: 0 | AS17: 1 | AT17: 0 | AU17: 0 | AV17: 1 | AW17: 1 | AY17: =SUMIF('Jämjö Open'!$A$502:$A$1000,$AC17,'Jämjö Open'!$AA$502:$AA$1000) -> 1 | AZ17: =SUMIF('Viby Open'!$A$502:$A$1000,$AC17,'Viby Open'!$AA$502:$AA$1000) -> 1 | BA17: =SUMIF('Björkenäs Open'!$A$502:$A$1000,$AC17,'Björkenäs Open'!$AA$502:$AA$1000) -> 1 | BB17: =SUMIF('SM ute Lö'!$A$502:$A$1000,$AC17,'SM ute Lö'!$AA$502:$AA$1000) -> 1 | BC17: =SUMIF('SM ute Sö'!$A$503:$A$1000,$AC17,'SM ute Sö'!$AA$503:$AA$1000) -> 1 | BD17: =SUMIF('Roslagen Open'!$A$502:$A$1000,$AC17,'Roslagen Open'!$AA$502:$AA$1000) -> 1 | BE17: =SUMIF('Roslagen Open 2'!$A$502:$A$1000,$AC17,'Roslagen Open 2'!$AA$502:$AA$1000) -> 1 | BF17: =SUMIF('Dynapac Open'!$A$502:$A$1000,$AC17,'Dynapac Open'!$AA$502:$AA$1000) -> 1 | BG17: =SUMIF('SmålandsDM ute'!$A$502:$A$1000,$AC17,'SmålandsDM ute'!$AA$502:$AA$1000) -> 1 | BH17: =SUMIF('BlekingeDM ute'!$A$502:$A$1000,$AC17,'BlekingeDM ute'!$AA$502:$AA$1000) -> 1 | BI17: =SUMIF('SvealandsDM ute'!$A$502:$A$1000,$AC17,'SvealandsDM ute'!$AA$502:$AA$1000) -> 1 | BJ17: =SUMIF('Ljungby Open'!$A$502:$A$1000,$AC17,'Ljungby Open'!$AA$502:$AA$1000) -> 1 | BK17: =SUMIF(Höstskon!$A$502:$A$1000,$AC17,Höstskon!$AA$502:$AA$1000) -> 1 | BL17: =SUMIF('Carlskrona Cup'!$A$502:$A$1000,$AC17,'Carlskrona Cup'!$AA$502:$AA$1000) -> 1 | BM17: =SUMIF('Sibbamåla Open'!$A$502:$A$1000,$AC17,'Sibbamåla Open'!$AA$502:$AA$1000) -> 1 | BN17: =SUMIF('Vaxholm Indoor'!$A$502:$A$1000,$AC17,'Vaxholm Indoor'!$AA$502:$AA$1000) -> 1 | BO17: =SUMIF('SM inne'!$A$502:$A$1000,$AC17,'SM inne'!$AA$502:$AA$1000) -> 1 | BP17: =SUMIF('Växjö Open'!$A$502:$A$1000,$AC17,'Växjö Open'!$AA$502:$AA$1000) -> 1 | BQ17: =SUMIF('BlekingeDM inne'!$A$502:$A$1000,$AC17,'BlekingeDM inne'!$AA$502:$AA$1000) -> 1 | BR17: =SUMIF('Svealands-DM inne'!$A$502:$A$1000,$AC17,'Svealands-DM inne'!$AA$502:$AA$1000) -> 1 | BS17: =SUMIF(Värendspokalen!$A$502:$A$1000,$AC17,Värendspokalen!$AA$502:$AA$1000) -> 1 | BT17: =SUMIF('Tingsryd Open'!$A$502:$A$1000,$AC17,'Tingsryd Open'!$AA$502:$AA$1000) -> 3
A18: 4 | B18: Matthias Gneupel | C18: Sibbamåla | D18: 10 | G18: =IF(BT18=1,"x",SUMIF('Tingsryd Open'!$X$4:$X$400,$AC18,'Tingsryd Open'!$S$4:$S$400)) -> 10 | H18: =IF(AY18=1,"x",SUMIF('Jämjö Open'!$X$4:$X$400,$AC18,'Jämjö Open'!$S$4:$S$400)) -> x | I18: =IF(BA18=1,"x",SUMIF('Björkenäs Open'!$X$4:$X$400,$AC18,'Björkenäs Open'!$S$4:$S$400)) -> x | J18: =IF(BB18=1,"x",SUMIF('SM ute Lö'!$X$4:$X$400,$AC18,'SM ute Lö'!$S$4:$S$400)) -> x | K18: =IF(BC18=1,"x",SUMIF('SM ute Sö'!$X$4:$X$401,$AC18,'SM ute Sö'!$S$4:$S$401)) -> x | L18: =IF(BD18=1,"x",SUMIF('Roslagen Open'!$X$4:$X$400,$AC18,'Roslagen Open'!$S$4:$S$400)) -> x | M18: =IF(BE18=1,"x",SUMIF('Roslagen Open 2'!$X$4:$X$400,$AC18,'Roslagen Open 2'!$S$4:$S$400)) -> x | N18: =IF(BF18=1,"x",SUMIF('Dynapac Open'!$X$4:$X$400,$AC18,'Dynapac Open'!$S$4:$S$400)) -> x | O18: =IF(BG18=1,"x",SUMIF('SmålandsDM ute'!$X$4:$X$400,$AC18,'SmålandsDM ute'!$S$4:$S$400)) -> x | P18: =IF(BH18=1,"x",SUMIF('BlekingeDM ute'!$X$4:$X$400,$AC18,'BlekingeDM ute'!$S$4:$S$400)) -> x | Q18: =IF(BI18=1,"x",SUMIF('SvealandsDM ute'!$X$4:$X$400,$AC18,'SvealandsDM ute'!$S$4:$S$400)) -> x | R18: =IF(BJ18=1,"x",SUMIF('Ljungby Open'!$X$4:$X$406,$AC18,'Ljungby Open'!$S$4:$S$406)) -> x | S18: =IF(AZ18=1,"x",SUMIF('Viby Open'!$X$4:$X$400,$AC18,'Viby Open'!$S$4:$S$400)) -> x | T18: =IF(BP18=1,"x",SUMIF('Växjö Open'!$X$4:$X$400,$AC18,'Växjö Open'!$S$4:$S$400)) -> x | U18: =IF(BK18=1,"x",SUMIF(Höstskon!$X$4:$X$400,$AC18,Höstskon!$S$4:$S$400)) -> x | V18: =IF(BL18=1,"x",SUMIF('Carlskrona Cup'!$X$4:$X$400,$AC18,'Carlskrona Cup'!$S$4:$S$400)) -> x | W18: =IF(BM18=1,"x",SUMIF('Sibbamåla Open'!$X$4:$X$400,$AC18,'Sibbamåla Open'!$S$4:$S$400)) -> x | X18: =IF(BN18=1,"x",SUMIF('Vaxholm Indoor'!$X$4:$X$400,$AC18,'Vaxholm Indoor'!$S$4:$S$400)) -> x | Y18: =IF(BQ18=1,"x",SUMIF('BlekingeDM inne'!$X$4:$X$400,$AC18,'BlekingeDM inne'!$S$4:$S$400)) -> x | Z18: =IF(BR18=1,"x",SUMIF('Svealands-DM inne'!$X$4:$X$400,$AC18,'Svealands-DM inne'!$S$4:$S$400)) -> x | AA18: =IF(BS18=1,"x",SUMIF(Värendspokalen!$X$4:$X$400,$AC18,Värendspokalen!$S$4:$S$400)) -> x | AB18: =IF(BO18=1,"x",SUMIF('SM inne'!$X$4:$X$400,$AC18,'SM inne'!$S$4:$S$400)) -> x | AC18: =IF(B18="","",SUMIF(Kastare!B$2:B$2999,B18,Kastare!A$2:A$2999)) -> 1017 | AE18: 1 | AK18: 0 | AL18: 0 | AM18: 0 | AN18: 0 | AO18: 0 | AP18: 0 | AQ18: 0 | AR18: 0 | AS18: 1 | AT18: 0 | AU18: 0 | AV18: 1 | AW18: 1 | AY18: =SUMIF('Jämjö Open'!$A$502:$A$1000,$AC18,'Jämjö Open'!$AA$502:$AA$1000) -> 1 | AZ18: =SUMIF('Viby Open'!$A$502:$A$1000,$AC18,'Viby Open'!$AA$502:$AA$1000) -> 1 | BA18: =SUMIF('Björkenäs Open'!$A$502:$A$1000,$AC18,'Björkenäs Open'!$AA$502:$AA$1000) -> 1 | BB18: =SUMIF('SM ute Lö'!$A$502:$A$1000,$AC18,'SM ute Lö'!$AA$502:$AA$1000) -> 1 | BC18: =SUMIF('SM ute Sö'!$A$503:$A$1000,$AC18,'SM ute Sö'!$AA$503:$AA$1000) -> 1 | BD18: =SUMIF('Roslagen Open'!$A$502:$A$1000,$AC18,'Roslagen Open'!$AA$502:$AA$1000) -> 1 | BE18: =SUMIF('Roslagen Open 2'!$A$502:$A$1000,$AC18,'Roslagen Open 2'!$AA$502:$AA$1000) -> 1 | BF18: =SUMIF('Dynapac Open'!$A$502:$A$1000,$AC18,'Dynapac Open'!$AA$502:$AA$1000) -> 1 | BG18: =SUMIF('SmålandsDM ute'!$A$502:$A$1000,$AC18,'SmålandsDM ute'!$AA$502:$AA$1000) -> 1 | BH18: =SUMIF('BlekingeDM ute'!$A$502:$A$1000,$AC18,'BlekingeDM ute'!$AA$502:$AA$1000) -> 1 | BI18: =SUMIF('SvealandsDM ute'!$A$502:$A$1000,$AC18,'SvealandsDM ute'!$AA$502:$AA$1000) -> 1 | BJ18: =SUMIF('Ljungby Open'!$A$502:$A$1000,$AC18,'Ljungby Open'!$AA$502:$AA$1000) -> 1 | BK18: =SUMIF(Höstskon!$A$502:$A$1000,$AC18,Höstskon!$AA$502:$AA$1000) -> 1 | BL18: =SUMIF('Carlskrona Cup'!$A$502:$A$1000,$AC18,'Carlskrona Cup'!$AA$502:$AA$1000) -> 1 | BM18: =SUMIF('Sibbamåla Open'!$A$502:$A$1000,$AC18,'Sibbamåla Open'!$AA$502:$AA$1000) -> 1 | BN18: =SUMIF('Vaxholm Indoor'!$A$502:$A$1000,$AC18,'Vaxholm Indoor'!$AA$502:$AA$1000) -> 1 | BO18: =SUMIF('SM inne'!$A$502:$A$1000,$AC18,'SM inne'!$AA$502:$AA$1000) -> 1 | BP18: =SUMIF('Växjö Open'!$A$502:$A$1000,$AC18,'Växjö Open'!$AA$502:$AA$1000) -> 1 | BQ18: =SUMIF('BlekingeDM inne'!$A$502:$A$1000,$AC18,'BlekingeDM inne'!$AA$502:$AA$1000) -> 1 | BR18: =SUMIF('Svealands-DM inne'!$A$502:$A$1000,$AC18,'Svealands-DM inne'!$AA$502:$AA$1000) -> 1 | BS18: =SUMIF(Värendspokalen!$A$502:$A$1000,$AC18,Värendspokalen!$AA$502:$AA$1000) -> 1 | BT18: =SUMIF('Tingsryd Open'!$A$502:$A$1000,$AC18,'Tingsryd Open'!$AA$502:$AA$1000) -> 3
A19: 4 | B19: Kennart Axelsson | C19: Wezet Hsk | D19: 10 | G19: =IF(BT19=1,"x",SUMIF('Tingsryd Open'!$X$4:$X$400,$AC19,'Tingsryd Open'!$S$4:$S$400)) -> 10 | H19: =IF(AY19=1,"x",SUMIF('Jämjö Open'!$X$4:$X$400,$AC19,'Jämjö Open'!$S$4:$S$400)) -> x | I19: =IF(BA19=1,"x",SUMIF('Björkenäs Open'!$X$4:$X$400,$AC19,'Björkenäs Open'!$S$4:$S$400)) -> x | J19: =IF(BB19=1,"x",SUMIF('SM ute Lö'!$X$4:$X$400,$AC19,'SM ute Lö'!$S$4:$S$400)) -> x | K19: =IF(BC19=1,"x",SUMIF('SM ute Sö'!$X$4:$X$401,$AC19,'SM ute Sö'!$S$4:$S$401)) -> x | L19: =IF(BD19=1,"x",SUMIF('Roslagen Open'!$X$4:$X$400,$AC19,'Roslagen Open'!$S$4:$S$400)) -> x | M19: =IF(BE19=1,"x",SUMIF('Roslagen Open 2'!$X$4:$X$400,$AC19,'Roslagen Open 2'!$S$4:$S$400)) -> x | N19: =IF(BF19=1,"x",SUMIF('Dynapac Open'!$X$4:$X$400,$AC19,'Dynapac Open'!$S$4:$S$400)) -> x | O19: =IF(BG19=1,"x",SUMIF('SmålandsDM ute'!$X$4:$X$400,$AC19,'SmålandsDM ute'!$S$4:$S$400)) -> x | P19: =IF(BH19=1,"x",SUMIF('BlekingeDM ute'!$X$4:$X$400,$AC19,'BlekingeDM ute'!$S$4:$S$400)) -> x | Q19: =IF(BI19=1,"x",SUMIF('SvealandsDM ute'!$X$4:$X$400,$AC19,'SvealandsDM ute'!$S$4:$S$400)) -> x | R19: =IF(BJ19=1,"x",SUMIF('Ljungby Open'!$X$4:$X$406,$AC19,'Ljungby Open'!$S$4:$S$406)) -> x | S19: =IF(AZ19=1,"x",SUMIF('Viby Open'!$X$4:$X$400,$AC19,'Viby Open'!$S$4:$S$400)) -> x | T19: =IF(BP19=1,"x",SUMIF('Växjö Open'!$X$4:$X$400,$AC19,'Växjö Open'!$S$4:$S$400)) -> x | U19: =IF(BK19=1,"x",SUMIF(Höstskon!$X$4:$X$400,$AC19,Höstskon!$S$4:$S$400)) -> x | V19: =IF(BL19=1,"x",SUMIF('Carlskrona Cup'!$X$4:$X$400,$AC19,'Carlskrona Cup'!$S$4:$S$400)) -> x | W19: =IF(BM19=1,"x",SUMIF('Sibbamåla Open'!$X$4:$X$400,$AC19,'Sibbamåla Open'!$S$4:$S$400)) -> x | X19: =IF(BN19=1,"x",SUMIF('Vaxholm Indoor'!$X$4:$X$400,$AC19,'Vaxholm Indoor'!$S$4:$S$400)) -> x | Y19: =IF(BQ19=1,"x",SUMIF('BlekingeDM inne'!$X$4:$X$400,$AC19,'BlekingeDM inne'!$S$4:$S$400)) -> x | Z19: =IF(BR19=1,"x",SUMIF('Svealands-DM inne'!$X$4:$X$400,$AC19,'Svealands-DM inne'!$S$4:$S$400)) -> x | AA19: =IF(BS19=1,"x",SUMIF(Värendspokalen!$X$4:$X$400,$AC19,Värendspokalen!$S$4:$S$400)) -> x | AB19: =IF(BO19=1,"x",SUMIF('SM inne'!$X$4:$X$400,$AC19,'SM inne'!$S$4:$S$400)) -> x | AC19: =IF(B19="","",SUMIF(Kastare!B$2:B$2999,B19,Kastare!A$2:A$2999)) -> 1406 | AE19: 1 | AK19: 0 | AL19: 0 | AM19: 0 | AN19: 0 | AO19: 0 | AP19: 0 | AQ19: 0 | AR19: 0 | AS19: 1 | AT19: 0 | AU19: 0 | AV19: 1 | AW19: 1 | AY19: =SUMIF('Jämjö Open'!$A$502:$A$1000,$AC19,'Jämjö Open'!$AA$502:$AA$1000) -> 1 | AZ19: =SUMIF('Viby Open'!$A$502:$A$1000,$AC19,'Viby Open'!$AA$502:$AA$1000) -> 1 | BA19: =SUMIF('Björkenäs Open'!$A$502:$A$1000,$AC19,'Björkenäs Open'!$AA$502:$AA$1000) -> 1 | BB19: =SUMIF('SM ute Lö'!$A$502:$A$1000,$AC19,'SM ute Lö'!$AA$502:$AA$1000) -> 1 | BC19: =SUMIF('SM ute Sö'!$A$503:$A$1000,$AC19,'SM ute Sö'!$AA$503:$AA$1000) -> 1 | BD19: =SUMIF('Roslagen Open'!$A$502:$A$1000,$AC19,'Roslagen Open'!$AA$502:$AA$1000) -> 1 | BE19: =SUMIF('Roslagen Open 2'!$A$502:$A$1000,$AC19,'Roslagen Open 2'!$AA$502:$AA$1000) -> 1 | BF19: =SUMIF('Dynapac Open'!$A$502:$A$1000,$AC19,'Dynapac Open'!$AA$502:$AA$1000) -> 1 | BG19: =SUMIF('SmålandsDM ute'!$A$502:$A$1000,$AC19,'SmålandsDM ute'!$AA$502:$AA$1000) -> 1 | BH19: =SUMIF('BlekingeDM ute'!$A$502:$A$1000,$AC19,'BlekingeDM ute'!$AA$502:$AA$1000) -> 1 | BI19: =SUMIF('SvealandsDM ute'!$A$502:$A$1000,$AC19,'SvealandsDM ute'!$AA$502:$AA$1000) -> 1 | BJ19: =SUMIF('Ljungby Open'!$A$502:$A$1000,$AC19,'Ljungby Open'!$AA$502:$AA$1000) -> 1 | BK19: =SUMIF(Höstskon!$A$502:$A$1000,$AC19,Höstskon!$AA$502:$AA$1000) -> 1 | BL19: =SUMIF('Carlskrona Cup'!$A$502:$A$1000,$AC19,'Carlskrona Cup'!$AA$502:$AA$1000) -> 1 | BM19: =SUMIF('Sibbamåla Open'!$A$502:$A$1000,$AC19,'Sibbamåla Open'!$AA$502:$AA$1000) -> 1 | BN19: =SUMIF('Vaxholm Indoor'!$A$502:$A$1000,$AC19,'Vaxholm Indoor'!$AA$502:$AA$1000) -> 1 | BO19: =SUMIF('SM inne'!$A$502:$A$1000,$AC19,'SM inne'!$AA$502:$AA$1000) -> 1 | BP19: =SUMIF('Växjö Open'!$A$502:$A$1000,$AC19,'Växjö Open'!$AA$502:$AA$1000) -> 1 | BQ19: =SUMIF('BlekingeDM inne'!$A$502:$A$1000,$AC19,'BlekingeDM inne'!$AA$502:$AA$1000) -> 1 | BR19: =SUMIF('Svealands-DM inne'!$A$502:$A$1000,$AC19,'Svealands-DM inne'!$AA$502:$AA$1000) -> 1 | BS19: =SUMIF(Värendspokalen!$A$502:$A$1000,$AC19,Värendspokalen!$AA$502:$AA$1000) -> 1 | BT19: =SUMIF('Tingsryd Open'!$A$502:$A$1000,$AC19,'Tingsryd Open'!$AA$502:$AA$1000) -> 3
A20: 17 | B20: Malira Eriksson | C20: Balders HSK | D20: 5 | G20: =IF(BT20=1,"x",SUMIF('Tingsryd Open'!$X$4:$X$400,$AC20,'Tingsryd Open'!$S$4:$S$400)) -> 5 | H20: =IF(AY20=1,"x",SUMIF('Jämjö Open'!$X$4:$X$400,$AC20,'Jämjö Open'!$S$4:$S$400)) -> x | I20: =IF(BA20=1,"x",SUMIF('Björkenäs Open'!$X$4:$X$400,$AC20,'Björkenäs Open'!$S$4:$S$400)) -> x | J20: =IF(BB20=1,"x",SUMIF('SM ute Lö'!$X$4:$X$400,$AC20,'SM ute Lö'!$S$4:$S$400)) -> x | K20: =IF(BC20=1,"x",SUMIF('SM ute Sö'!$X$4:$X$401,$AC20,'SM ute Sö'!$S$4:$S$401)) -> x | L20: =IF(BD20=1,"x",SUMIF('Roslagen Open'!$X$4:$X$400,$AC20,'Roslagen Open'!$S$4:$S$400)) -> x | M20: =IF(BE20=1,"x",SUMIF('Roslagen Open 2'!$X$4:$X$400,$AC20,'Roslagen Open 2'!$S$4:$S$400)) -> x | N20: =IF(BF20=1,"x",SUMIF('Dynapac Open'!$X$4:$X$400,$AC20,'Dynapac Open'!$S$4:$S$400)) -> x | O20: =IF(BG20=1,"x",SUMIF('SmålandsDM ute'!$X$4:$X$400,$AC20,'SmålandsDM ute'!$S$4:$S$400)) -> x | P20: =IF(BH20=1,"x",SUMIF('BlekingeDM ute'!$X$4:$X$400,$AC20,'BlekingeDM ute'!$S$4:$S$400)) -> x | Q20: =IF(BI20=1,"x",SUMIF('SvealandsDM ute'!$X$4:$X$400,$AC20,'SvealandsDM ute'!$S$4:$S$400)) -> x | R20: =IF(BJ20=1,"x",SUMIF('Ljungby Open'!$X$4:$X$406,$AC20,'Ljungby Open'!$S$4:$S$406)) -> x | S20: =IF(AZ20=1,"x",SUMIF('Viby Open'!$X$4:$X$400,$AC20,'Viby Open'!$S$4:$S$400)) -> x | T20: =IF(BP20=1,"x",SUMIF('Växjö Open'!$X$4:$X$400,$AC20,'Växjö Open'!$S$4:$S$400)) -> x | U20: =IF(BK20=1,"x",SUMIF(Höstskon!$X$4:$X$400,$AC20,Höstskon!$S$4:$S$400)) -> x | V20: =IF(BL20=1,"x",SUMIF('Carlskrona Cup'!$X$4:$X$400,$AC20,'Carlskrona Cup'!$S$4:$S$400)) -> x | W20: =IF(BM20=1,"x",SUMIF('Sibbamåla Open'!$X$4:$X$400,$AC20,'Sibbamåla Open'!$S$4:$S$400)) -> x | X20: =IF(BN20=1,"x",SUMIF('Vaxholm Indoor'!$X$4:$X$400,$AC20,'Vaxholm Indoor'!$S$4:$S$400)) -> x | Y20: =IF(BQ20=1,"x",SUMIF('BlekingeDM inne'!$X$4:$X$400,$AC20,'BlekingeDM inne'!$S$4:$S$400)) -> x | Z20: =IF(BR20=1,"x",SUMIF('Svealands-DM inne'!$X$4:$X$400,$AC20,'Svealands-DM inne'!$S$4:$S$400)) -> x | AA20: =IF(BS20=1,"x",SUMIF(Värendspokalen!$X$4:$X$400,$AC20,Värendspokalen!$S$4:$S$400)) -> x | AB20: =IF(BO20=1,"x",SUMIF('SM inne'!$X$4:$X$400,$AC20,'SM inne'!$S$4:$S$400)) -> x | AC20: =IF(B20="","",SUMIF(Kastare!B$2:B$2999,B20,Kastare!A$2:A$2999)) -> 1171 | AE20: 1 | AK20: 0 | AL20: 0 | AM20: 0 | AN20: 0 | AO20: 0 | AP20: 0 | AQ20: 0 | AR20: 0 | AS20: 0 | AT20: 1 | AU20: 0 | AV20: 1 | AW20: 1 | AY20: =SUMIF('Jämjö Open'!$A$502:$A$1000,$AC20,'Jämjö Open'!$AA$502:$AA$1000) -> 1 | AZ20: =SUMIF('Viby Open'!$A$502:$A$1000,$AC20,'Viby Open'!$AA$502:$AA$1000) -> 1 | BA20: =SUMIF('Björkenäs Open'!$A$502:$A$1000,$AC20,'Björkenäs Open'!$AA$502:$AA$1000) -> 1 | BB20: =SUMIF('SM ute Lö'!$A$502:$A$1000,$AC20,'SM ute Lö'!$AA$502:$AA$1000) -> 1 | BC20: =SUMIF('SM ute Sö'!$A$503:$A$1000,$AC20,'SM ute Sö'!$AA$503:$AA$1000) -> 1 | BD20: =SUMIF('Roslagen Open'!$A$502:$A$1000,$AC20,'Roslagen Open'!$AA$502:$AA$1000) -> 1 | BE20: =SUMIF('Roslagen Open 2'!$A$502:$A$1000,$AC20,'Roslagen Open 2'!$AA$502:$AA$1000) -> 1 | BF20: =SUMIF('Dynapac Open'!$A$502:$A$1000,$AC20,'Dynapac Open'!$AA$502:$AA$1000) -> 1 | BG20: =SUMIF('SmålandsDM ute'!$A$502:$A$1000,$AC20,'SmålandsDM ute'!$AA$502:$AA$1000) -> 1 | BH20: =SUMIF('BlekingeDM ute'!$A$502:$A$1000,$AC20,'BlekingeDM ute'!$AA$502:$AA$1000) -> 1 | BI20: =SUMIF('SvealandsDM ute'!$A$502:$A$1000,$AC20,'SvealandsDM ute'!$AA$502:$AA$1000) -> 1 | BJ20: =SUMIF('Ljungby Open'!$A$502:$A$1000,$AC20,'Ljungby Open'!$AA$502:$AA$1000) -> 1 | BK20: =SUMIF(Höstskon!$A$502:$A$1000,$AC20,Höstskon!$AA$502:$AA$1000) -> 1 | BL20: =SUMIF('Carlskrona Cup'!$A$502:$A$1000,$AC20,'Carlskrona Cup'!$AA$502:$AA$1000) -> 1 | BM20: =SUMIF('Sibbamåla Open'!$A$502:$A$1000,$AC20,'Sibbamåla Open'!$AA$502:$AA$1000) -> 1 | BN20: =SUMIF('Vaxholm Indoor'!$A$502:$A$1000,$AC20,'Vaxholm Indoor'!$AA$502:$AA$1000) -> 1 | BO20: =SUMIF('SM inne'!$A$502:$A$1000,$AC20,'SM inne'!$AA$502:$AA$1000) -> 1 | BP20: =SUMIF('Växjö Open'!$A$502:$A$1000,$AC20,'Växjö Open'!$AA$502:$AA$1000) -> 1 | BQ20: =SUMIF('BlekingeDM inne'!$A$502:$A$1000,$AC20,'BlekingeDM inne'!$AA$502:$AA$1000) -> 1 | BR20: =SUMIF('Svealands-DM inne'!$A$502:$A$1000,$AC20,'Svealands-DM inne'!$AA$502:$AA$1000) -> 1 | BS20: =SUMIF(Värendspokalen!$A$502:$A$1000,$AC20,Värendspokalen!$AA$502:$AA$1000) -> 1 | BT20: =SUMIF('Tingsryd Open'!$A$502:$A$1000,$AC20,'Tingsryd Open'!$AA$502:$AA$1000) -> 3
A21: 17 | B21: Ronny Lundberg | C21: Lanternan | D21: 5 | G21: =IF(BT21=1,"x",SUMIF('Tingsryd Open'!$X$4:$X$400,$AC21,'Tingsryd Open'!$S$4:$S$400)) -> 5 | H21: =IF(AY21=1,"x",SUMIF('Jämjö Open'!$X$4:$X$400,$AC21,'Jämjö Open'!$S$4:$S$400)) -> x | I21: =IF(BA21=1,"x",SUMIF('Björkenäs Open'!$X$4:$X$400,$AC21,'Björkenäs Open'!$S$4:$S$400)) -> x | J21: =IF(BB21=1,"x",SUMIF('SM ute Lö'!$X$4:$X$400,$AC21,'SM ute Lö'!$S$4:$S$400)) -> x | K21: =IF(BC21=1,"x",SUMIF('SM ute Sö'!$X$4:$X$401,$AC21,'SM ute Sö'!$S$4:$S$401)) -> x | L21: =IF(BD21=1,"x",SUMIF('Roslagen Open'!$X$4:$X$400,$AC21,'Roslagen Open'!$S$4:$S$400)) -> x | M21: =IF(BE21=1,"x",SUMIF('Roslagen Open 2'!$X$4:$X$400,$AC21,'Roslagen Open 2'!$S$4:$S$400)) -> x | N21: =IF(BF21=1,"x",SUMIF('Dynapac Open'!$X$4:$X$400,$AC21,'Dynapac Open'!$S$4:$S$400)) -> x | O21: =IF(BG21=1,"x",SUMIF('SmålandsDM ute'!$X$4:$X$400,$AC21,'SmålandsDM ute'!$S$4:$S$400)) -> x | P21: =IF(BH21=1,"x",SUMIF('BlekingeDM ute'!$X$4:$X$400,$AC21,'BlekingeDM ute'!$S$4:$S$400)) -> x | Q21: =IF(BI21=1,"x",SUMIF('SvealandsDM ute'!$X$4:$X$400,$AC21,'SvealandsDM ute'!$S$4:$S$400)) -> x | R21: =IF(BJ21=1,"x",SUMIF('Ljungby Open'!$X$4:$X$406,$AC21,'Ljungby Open'!$S$4:$S$406)) -> x | S21: =IF(AZ21=1,"x",SUMIF('Viby Open'!$X$4:$X$400,$AC21,'Viby Open'!$S$4:$S$400)) -> x | T21: =IF(BP21=1,"x",SUMIF('Växjö Open'!$X$4:$X$400,$AC21,'Växjö Open'!$S$4:$S$400)) -> x | U21: =IF(BK21=1,"x",SUMIF(Höstskon!$X$4:$X$400,$AC21,Höstskon!$S$4:$S$400)) -> x | V21: =IF(BL21=1,"x",SUMIF('Carlskrona Cup'!$X$4:$X$400,$AC21,'Carlskrona Cup'!$S$4:$S$400)) -> x | W21: =IF(BM21=1,"x",SUMIF('Sibbamåla Open'!$X$4:$X$400,$AC21,'Sibbamåla Open'!$S$4:$S$400)) -> x | X21: =IF(BN21=1,"x",SUMIF('Vaxholm Indoor'!$X$4:$X$400,$AC21,'Vaxholm Indoor'!$S$4:$S$400)) -> x | Y21: =IF(BQ21=1,"x",SUMIF('BlekingeDM inne'!$X$4:$X$400,$AC21,'BlekingeDM inne'!$S$4:$S$400)) -> x | Z21: =IF(BR21=1,"x",SUMIF('Svealands-DM inne'!$X$4:$X$400,$AC21,'Svealands-DM inne'!$S$4:$S$400)) -> x | AA21: =IF(BS21=1,"x",SUMIF(Värendspokalen!$X$4:$X$400,$AC21,Värendspokalen!$S$4:$S$400)) -> x | AB21: =IF(BO21=1,"x",SUMIF('SM inne'!$X$4:$X$400,$AC21,'SM inne'!$S$4:$S$400)) -> x | AC21: =IF(B21="","",SUMIF(Kastare!B$2:B$2999,B21,Kastare!A$2:A$2999)) -> 1023 | AE21: 1 | AK21: 0 | AL21: 0 | AM21: 0 | AN21: 0 | AO21: 0 | AP21: 0 | AQ21: 0 | AR21: 0 | AS21: 0 | AT21: 1 | AU21: 0 | AV21: 1 | AW21: 1 | AY21: =SUMIF('Jämjö Open'!$A$502:$A$1000,$AC21,'Jämjö Open'!$AA$502:$AA$1000) -> 1 | AZ21: =SUMIF('Viby Open'!$A$502:$A$1000,$AC21,'Viby Open'!$AA$502:$AA$1000) -> 1 | BA21: =SUMIF('Björkenäs Open'!$A$502:$A$1000,$AC21,'Björkenäs Open'!$AA$502:$AA$1000) -> 1 | BB21: =SUMIF('SM ute Lö'!$A$502:$A$1000,$AC21,'SM ute Lö'!$AA$502:$AA$1000) -> 1 | BC21: =SUMIF('SM ute Sö'!$A$503:$A$1000,$AC21,'SM ute Sö'!$AA$503:$AA$1000) -> 1 | BD21: =SUMIF('Roslagen Open'!$A$502:$A$1000,$AC21,'Roslagen Open'!$AA$502:$AA$1000) -> 1 | BE21: =SUMIF('Roslagen Open 2'!$A$502:$A$1000,$AC21,'Roslagen Open 2'!$AA$502:$AA$1000) -> 1 | BF21: =SUMIF('Dynapac Open'!$A$502:$A$1000,$AC21,'Dynapac Open'!$AA$502:$AA$1000) -> 1 | BG21: =SUMIF('SmålandsDM ute'!$A$502:$A$1000,$AC21,'SmålandsDM ute'!$AA$502:$AA$1000) -> 1 | BH21: =SUMIF('BlekingeDM ute'!$A$502:$A$1000,$AC21,'BlekingeDM ute'!$AA$502:$AA$1000) -> 1 | BI21: =SUMIF('SvealandsDM ute'!$A$502:$A$1000,$AC21,'SvealandsDM ute'!$AA$502:$AA$1000) -> 1 | BJ21: =SUMIF('Ljungby Open'!$A$502:$A$1000,$AC21,'Ljungby Open'!$AA$502:$AA$1000) -> 1 | BK21: =SUMIF(Höstskon!$A$502:$A$1000,$AC21,Höstskon!$AA$502:$AA$1000) -> 1 | BL21: =SUMIF('Carlskrona Cup'!$A$502:$A$1000,$AC21,'Carlskrona Cup'!$AA$502:$AA$1000) -> 1 | BM21: =SUMIF('Sibbamåla Open'!$A$502:$A$1000,$AC21,'Sibbamåla Open'!$AA$502:$AA$1000) -> 1 | BN21: =SUMIF('Vaxholm Indoor'!$A$502:$A$1000,$AC21,'Vaxholm Indoor'!$AA$502:$AA$1000) -> 1 | BO21: =SUMIF('SM inne'!$A$502:$A$1000,$AC21,'SM inne'!$AA$502:$AA$1000) -> 1 | BP21: =SUMIF('Växjö Open'!$A$502:$A$1000,$AC21,'Växjö Open'!$AA$502:$AA$1000) -> 1 | BQ21: =SUMIF('BlekingeDM inne'!$A$502:$A$1000,$AC21,'BlekingeDM inne'!$AA$502:$AA$1000) -> 1 | BR21: =SUMIF('Svealands-DM inne'!$A$502:$A$1000,$AC21,'Svealands-DM inne'!$AA$502:$AA$1000) -> 1 | BS21: =SUMIF(Värendspokalen!$A$502:$A$1000,$AC21,Värendspokalen!$AA$502:$AA$1000) -> 1 | BT21: =SUMIF('Tingsryd Open'!$A$502:$A$1000,$AC21,'Tingsryd Open'!$AA$502:$AA$1000) -> 3
A22: 17 | B22: Roger Eriksson | C22: Balders HSK | D22: 5 | G22: =IF(BT22=1,"x",SUMIF('Tingsryd Open'!$X$4:$X$400,$AC22,'Tingsryd Open'!$S$4:$S$400)) -> 5 | H22: =IF(AY22=1,"x",SUMIF('Jämjö Open'!$X$4:$X$400,$AC22,'Jämjö Open'!$S$4:$S$400)) -> x | I22: =IF(BA22=1,"x",SUMIF('Björkenäs Open'!$X$4:$X$400,$AC22,'Björkenäs Open'!$S$4:$S$400)) -> x | J22: =IF(BB22=1,"x",SUMIF('SM ute Lö'!$X$4:$X$400,$AC22,'SM ute Lö'!$S$4:$S$400)) -> x | K22: =IF(BC22=1,"x",SUMIF('SM ute Sö'!$X$4:$X$401,$AC22,'SM ute Sö'!$S$4:$S$401)) -> x | L22: =IF(BD22=1,"x",SUMIF('Roslagen Open'!$X$4:$X$400,$AC22,'Roslagen Open'!$S$4:$S$400)) -> x | M22: =IF(BE22=1,"x",SUMIF('Roslagen Open 2'!$X$4:$X$400,$AC22,'Roslagen Open 2'!$S$4:$S$400)) -> x | N22: =IF(BF22=1,"x",SUMIF('Dynapac Open'!$X$4:$X$400,$AC22,'Dynapac Open'!$S$4:$S$400)) -> x | O22: =IF(BG22=1,"x",SUMIF('SmålandsDM ute'!$X$4:$X$400,$AC22,'SmålandsDM ute'!$S$4:$S$400)) -> x | P22: =IF(BH22=1,"x",SUMIF('BlekingeDM ute'!$X$4:$X$400,$AC22,'BlekingeDM ute'!$S$4:$S$400)) -> x | Q22: =IF(BI22=1,"x",SUMIF('SvealandsDM ute'!$X$4:$X$400,$AC22,'SvealandsDM ute'!$S$4:$S$400)) -> x | R22: =IF(BJ22=1,"x",SUMIF('Ljungby Open'!$X$4:$X$406,$AC22,'Ljungby Open'!$S$4:$S$406)) -> x | S22: =IF(AZ22=1,"x",SUMIF('Viby Open'!$X$4:$X$400,$AC22,'Viby Open'!$S$4:$S$400)) -> x | T22: =IF(BP22=1,"x",SUMIF('Växjö Open'!$X$4:$X$400,$AC22,'Växjö Open'!$S$4:$S$400)) -> x | U22: =IF(BK22=1,"x",SUMIF(Höstskon!$X$4:$X$400,$AC22,Höstskon!$S$4:$S$400)) -> x | V22: =IF(BL22=1,"x",SUMIF('Carlskrona Cup'!$X$4:$X$400,$AC22,'Carlskrona Cup'!$S$4:$S$400)) -> x | W22: =IF(BM22=1,"x",SUMIF('Sibbamåla Open'!$X$4:$X$400,$AC22,'Sibbamåla Open'!$S$4:$S$400)) -> x | X22: =IF(BN22=1,"x",SUMIF('Vaxholm Indoor'!$X$4:$X$400,$AC22,'Vaxholm Indoor'!$S$4:$S$400)) -> x | Y22: =IF(BQ22=1,"x",SUMIF('BlekingeDM inne'!$X$4:$X$400,$AC22,'BlekingeDM inne'!$S$4:$S$400)) -> x | Z22: =IF(BR22=1,"x",SUMIF('Svealands-DM inne'!$X$4:$X$400,$AC22,'Svealands-DM inne'!$S$4:$S$400)) -> x | AA22: =IF(BS22=1,"x",SUMIF(Värendspokalen!$X$4:$X$400,$AC22,Värendspokalen!$S$4:$S$400)) -> x | AB22: =IF(BO22=1,"x",SUMIF('SM inne'!$X$4:$X$400,$AC22,'SM inne'!$S$4:$S$400)) -> x | AC22: =IF(B22="","",SUMIF(Kastare!B$2:B$2999,B22,Kastare!A$2:A$2999)) -> 1132 | AE22: 1 | AK22: 0 | AL22: 0 | AM22: 0 | AN22: 0 | AO22: 0 | AP22: 0 | AQ22: 0 | AR22: 0 | AS22: 0 | AT22: 1 | AU22: 0 | AV22: 1 | AW22: 1 | AY22: =SUMIF('Jämjö Open'!$A$502:$A$1000,$AC22,'Jämjö Open'!$AA$502:$AA$1000) -> 1 | AZ22: =SUMIF('Viby Open'!$A$502:$A$1000,$AC22,'Viby Open'!$AA$502:$AA$1000) -> 1 | BA22: =SUMIF('Björkenäs Open'!$A$502:$A$1000,$AC22,'Björkenäs Open'!$AA$502:$AA$1000) -> 1 | BB22: =SUMIF('SM ute Lö'!$A$502:$A$1000,$AC22,'SM ute Lö'!$AA$502:$AA$1000) -> 1 | BC22: =SUMIF('SM ute Sö'!$A$503:$A$1000,$AC22,'SM ute Sö'!$AA$503:$AA$1000) -> 1 | BD22: =SUMIF('Roslagen Open'!$A$502:$A$1000,$AC22,'Roslagen Open'!$AA$502:$AA$1000) -> 1 | BE22: =SUMIF('Roslagen Open 2'!$A$502:$A$1000,$AC22,'Roslagen Open 2'!$AA$502:$AA$1000) -> 1 | BF22: =SUMIF('Dynapac Open'!$A$502:$A$1000,$AC22,'Dynapac Open'!$AA$502:$AA$1000) -> 1 | BG22: =SUMIF('SmålandsDM ute'!$A$502:$A$1000,$AC22,'SmålandsDM ute'!$AA$502:$AA$1000) -> 1 | BH22: =SUMIF('BlekingeDM ute'!$A$502:$A$1000,$AC22,'BlekingeDM ute'!$AA$502:$AA$1000) -> 1 | BI22: =SUMIF('SvealandsDM ute'!$A$502:$A$1000,$AC22,'SvealandsDM ute'!$AA$502:$AA$1000) -> 1 | BJ22: =SUMIF('Ljungby Open'!$A$502:$A$1000,$AC22,'Ljungby Open'!$AA$502:$AA$1000) -> 1 | BK22: =SUMIF(Höstskon!$A$502:$A$1000,$AC22,Höstskon!$AA$502:$AA$1000) -> 1 | BL22: =SUMIF('Carlskrona Cup'!$A$502:$A$1000,$AC22,'Carlskrona Cup'!$AA$502:$AA$1000) -> 1 | BM22: =SUMIF('Sibbamåla Open'!$A$502:$A$1000,$AC22,'Sibbamåla Open'!$AA$502:$AA$1000) -> 1 | BN22: =SUMIF('Vaxholm Indoor'!$A$502:$A$1000,$AC22,'Vaxholm Indoor'!$AA$502:$AA$1000) -> 1 | BO22: =SUMIF('SM inne'!$A$502:$A$1000,$AC22,'SM inne'!$AA$502:$AA$1000) -> 1 | BP22: =SUMIF('Växjö Open'!$A$502:$A$1000,$AC22,'Växjö Open'!$AA$502:$AA$1000) -> 1 | BQ22: =SUMIF('BlekingeDM inne'!$A$502:$A$1000,$AC22,'BlekingeDM inne'!$AA$502:$AA$1000) -> 1 | BR22: =SUMIF('Svealands-DM inne'!$A$502:$A$1000,$AC22,'Svealands-DM inne'!$AA$502:$AA$1000) -> 1 | BS22: =SUMIF(Värendspokalen!$A$502:$A$1000,$AC22,Värendspokalen!$AA$502:$AA$1000) -> 1 | BT22: =SUMIF('Tingsryd Open'!$A$502:$A$1000,$AC22,'Tingsryd Open'!$AA$502:$AA$1000) -> 3
A23: 17 | B23: Magnus Härdling | C23: Vaxholm | D23: 5 | G23: =IF(BT23=1,"x",SUMIF('Tingsryd Open'!$X$4:$X$400,$AC23,'Tingsryd Open'!$S$4:$S$400)) -> 5 | H23: =IF(AY23=1,"x",SUMIF('Jämjö Open'!$X$4:$X$400,$AC23,'Jämjö Open'!$S$4:$S$400)) -> x | I23: =IF(BA23=1,"x",SUMIF('Björkenäs Open'!$X$4:$X$400,$AC23,'Björkenäs Open'!$S$4:$S$400)) -> x | J23: =IF(BB23=1,"x",SUMIF('SM ute Lö'!$X$4:$X$400,$AC23,'SM ute Lö'!$S$4:$S$400)) -> x | K23: =IF(BC23=1,"x",SUMIF('SM ute Sö'!$X$4:$X$401,$AC23,'SM ute Sö'!$S$4:$S$401)) -> x | L23: =IF(BD23=1,"x",SUMIF('Roslagen Open'!$X$4:$X$400,$AC23,'Roslagen Open'!$S$4:$S$400)) -> x | M23: =IF(BE23=1,"x",SUMIF('Roslagen Open 2'!$X$4:$X$400,$AC23,'Roslagen Open 2'!$S$4:$S$400)) -> x | N23: =IF(BF23=1,"x",SUMIF('Dynapac Open'!$X$4:$X$400,$AC23,'Dynapac Open'!$S$4:$S$400)) -> x | O23: =IF(BG23=1,"x",SUMIF('SmålandsDM ute'!$X$4:$X$400,$AC23,'SmålandsDM ute'!$S$4:$S$400)) -> x | P23: =IF(BH23=1,"x",SUMIF('BlekingeDM ute'!$X$4:$X$400,$AC23,'BlekingeDM ute'!$S$4:$S$400)) -> x | Q23: =IF(BI23=1,"x",SUMIF('SvealandsDM ute'!$X$4:$X$400,$AC23,'SvealandsDM ute'!$S$4:$S$400)) -> x | R23: =IF(BJ23=1,"x",SUMIF('Ljungby Open'!$X$4:$X$406,$AC23,'Ljungby Open'!$S$4:$S$406)) -> x | S23: =IF(AZ23=1,"x",SUMIF('Viby Open'!$X$4:$X$400,$AC23,'Viby Open'!$S$4:$S$400)) -> x | T23: =IF(BP23=1,"x",SUMIF('Växjö Open'!$X$4:$X$400,$AC23,'Växjö Open'!$S$4:$S$400)) -> x | U23: =IF(BK23=1,"x",SUMIF(Höstskon!$X$4:$X$400,$AC23,Höstskon!$S$4:$S$400)) -> x | V23: =IF(BL23=1,"x",SUMIF('Carlskrona Cup'!$X$4:$X$400,$AC23,'Carlskrona Cup'!$S$4:$S$400)) -> x | W23: =IF(BM23=1,"x",SUMIF('Sibbamåla Open'!$X$4:$X$400,$AC23,'Sibbamåla Open'!$S$4:$S$400)) -> x | X23: =IF(BN23=1,"x",SUMIF('Vaxholm Indoor'!$X$4:$X$400,$AC23,'Vaxholm Indoor'!$S$4:$S$400)) -> x | Y23: =IF(BQ23=1,"x",SUMIF('BlekingeDM inne'!$X$4:$X$400,$AC23,'BlekingeDM inne'!$S$4:$S$400)) -> x | Z23: =IF(BR23=1,"x",SUMIF('Svealands-DM inne'!$X$4:$X$400,$AC23,'Svealands-DM inne'!$S$4:$S$400)) -> x | AA23: =IF(BS23=1,"x",SUMIF(Värendspokalen!$X$4:$X$400,$AC23,Värendspokalen!$S$4:$S$400)) -> x | AB23: =IF(BO23=1,"x",SUMIF('SM inne'!$X$4:$X$400,$AC23,'SM inne'!$S$4:$S$400)) -> x | AC23: =IF(B23="","",SUMIF(Kastare!B$2:B$2999,B23,Kastare!A$2:A$2999)) -> 1273 | AE23: 1 | AK23: 0 | AL23: 0 | AM23: 0 | AN23: 0 | AO23: 0 | AP23: 0 | AQ23: 0 | AR23: 0 | AS23: 0 | AT23: 1 | AU23: 0 | AV23: 1 | AW23: 1 | AY23: =SUMIF('Jämjö Open'!$A$502:$A$1000,$AC23,'Jämjö Open'!$AA$502:$AA$1000) -> 1 | AZ23: =SUMIF('Viby Open'!$A$502:$A$1000,$AC23,'Viby Open'!$AA$502:$AA$1000) -> 1 | BA23: =SUMIF('Björkenäs Open'!$A$502:$A$1000,$AC23,'Björkenäs Open'!$AA$502:$AA$1000) -> 1 | BB23: =SUMIF('SM ute Lö'!$A$502:$A$1000,$AC23,'SM ute Lö'!$AA$502:$AA$1000) -> 1 | BC23: =SUMIF('SM ute Sö'!$A$503:$A$1000,$AC23,'SM ute Sö'!$AA$503:$AA$1000) -> 1 | BD23: =SUMIF('Roslagen Open'!$A$502:$A$1000,$AC23,'Roslagen Open'!$AA$502:$AA$1000) -> 1 | BE23: =SUMIF('Roslagen Open 2'!$A$502:$A$1000,$AC23,'Roslagen Open 2'!$AA$502:$AA$1000) -> 1 | BF23: =SUMIF('Dynapac Open'!$A$502:$A$1000,$AC23,'Dynapac Open'!$AA$502:$AA$1000) -> 1 | BG23: =SUMIF('SmålandsDM ute'!$A$502:$A$1000,$AC23,'SmålandsDM ute'!$AA$502:$AA$1000) -> 1 | BH23: =SUMIF('BlekingeDM ute'!$A$502:$A$1000,$AC23,'BlekingeDM ute'!$AA$502:$AA$1000) -> 1 | BI23: =SUMIF('SvealandsDM ute'!$A$502:$A$1000,$AC23,'SvealandsDM ute'!$AA$502:$AA$1000) -> 1 | BJ23: =SUMIF('Ljungby Open'!$A$502:$A$1000,$AC23,'Ljungby Open'!$AA$502:$AA$1000) -> 1 | BK23: =SUMIF(Höstskon!$A$502:$A$1000,$AC23,Höstskon!$AA$502:$AA$1000) -> 1 | BL23: =SUMIF('Carlskrona Cup'!$A$502:$A$1000,$AC23,'Carlskrona Cup'!$AA$502:$AA$1000) -> 1 | BM23: =SUMIF('Sibbamåla Open'!$A$502:$A$1000,$AC23,'Sibbamåla Open'!$AA$502:$AA$1000) -> 1 | BN23: =SUMIF('Vaxholm Indoor'!$A$502:$A$1000,$AC23,'Vaxholm Indoor'!$AA$502:$AA$1000) -> 1 | BO23: =SUMIF('SM inne'!$A$502:$A$1000,$AC23,'SM inne'!$AA$502:$AA$1000) -> 1 | BP23: =SUMIF('Växjö Open'!$A$502:$A$1000,$AC23,'Växjö Open'!$AA$502:$AA$1000) -> 1 | BQ23: =SUMIF('BlekingeDM inne'!$A$502:$A$1000,$AC23,'BlekingeDM inne'!$AA$502:$AA$1000) -> 1 | BR23: =SUMIF('Svealands-DM inne'!$A$502:$A$1000,$AC23,'Svealands-DM inne'!$AA$502:$AA$1000) -> 1 | BS23: =SUMIF(Värendspokalen!$A$502:$A$1000,$AC23,Värendspokalen!$AA$502:$AA$1000) -> 1 | BT23: =SUMIF('Tingsryd Open'!$A$502:$A$1000,$AC23,'Tingsryd Open'!$AA$502:$AA$1000) -> 3
A24: 17 | B24: Hasse Johansson | C24: Tingsryd Hsc | D24: 5 | G24: =IF(BT24=1,"x",SUMIF('Tingsryd Open'!$X$4:$X$400,$AC24,'Tingsryd Open'!$S$4:$S$400)) -> 5 | H24: =IF(AY24=1,"x",SUMIF('Jämjö Open'!$X$4:$X$400,$AC24,'Jämjö Open'!$S$4:$S$400)) -> x | I24: =IF(BA24=1,"x",SUMIF('Björkenäs Open'!$X$4:$X$400,$AC24,'Björkenäs Open'!$S$4:$S$400)) -> x | J24: =IF(BB24=1,"x",SUMIF('SM ute Lö'!$X$4:$X$400,$AC24,'SM ute Lö'!$S$4:$S$400)) -> x | K24: =IF(BC24=1,"x",SUMIF('SM ute Sö'!$X$4:$X$401,$AC24,'SM ute Sö'!$S$4:$S$401)) -> x | L24: =IF(BD24=1,"x",SUMIF('Roslagen Open'!$X$4:$X$400,$AC24,'Roslagen Open'!$S$4:$S$400)) -> x | M24: =IF(BE24=1,"x",SUMIF('Roslagen Open 2'!$X$4:$X$400,$AC24,'Roslagen Open 2'!$S$4:$S$400)) -> x | N24: =IF(BF24=1,"x",SUMIF('Dynapac Open'!$X$4:$X$400,$AC24,'Dynapac Open'!$S$4:$S$400)) -> x | O24: =IF(BG24=1,"x",SUMIF('SmålandsDM ute'!$X$4:$X$400,$AC24,'SmålandsDM ute'!$S$4:$S$400)) -> x | P24: =IF(BH24=1,"x",SUMIF('BlekingeDM ute'!$X$4:$X$400,$AC24,'BlekingeDM ute'!$S$4:$S$400)) -> x | Q24: =IF(BI24=1,"x",SUMIF('SvealandsDM ute'!$X$4:$X$400,$AC24,'SvealandsDM ute'!$S$4:$S$400)) -> x | R24: =IF(BJ24=1,"x",SUMIF('Ljungby Open'!$X$4:$X$406,$AC24,'Ljungby Open'!$S$4:$S$406)) -> x | S24: =IF(AZ24=1,"x",SUMIF('Viby Open'!$X$4:$X$400,$AC24,'Viby Open'!$S$4:$S$400)) -> x | T24: =IF(BP24=1,"x",SUMIF('Växjö Open'!$X$4:$X$400,$AC24,'Växjö Open'!$S$4:$S$400)) -> x | U24: =IF(BK24=1,"x",SUMIF(Höstskon!$X$4:$X$400,$AC24,Höstskon!$S$4:$S$400)) -> x | V24: =IF(BL24=1,"x",SUMIF('Carlskrona Cup'!$X$4:$X$400,$AC24,'Carlskrona Cup'!$S$4:$S$400)) -> x | W24: =IF(BM24=1,"x",SUMIF('Sibbamåla Open'!$X$4:$X$400,$AC24,'Sibbamåla Open'!$S$4:$S$400)) -> x | X24: =IF(BN24=1,"x",SUMIF('Vaxholm Indoor'!$X$4:$X$400,$AC24,'Vaxholm Indoor'!$S$4:$S$400)) -> x | Y24: =IF(BQ24=1,"x",SUMIF('BlekingeDM inne'!$X$4:$X$400,$AC24,'BlekingeDM inne'!$S$4:$S$400)) -> x | Z24: =IF(BR24=1,"x",SUMIF('Svealands-DM inne'!$X$4:$X$400,$AC24,'Svealands-DM inne'!$S$4:$S$400)) -> x | AA24: =IF(BS24=1,"x",SUMIF(Värendspokalen!$X$4:$X$400,$AC24,Värendspokalen!$S$4:$S$400)) -> x | AB24: =IF(BO24=1,"x",SUMIF('SM inne'!$X$4:$X$400,$AC24,'SM inne'!$S$4:$S$400)) -> x | AC24: =IF(B24="","",SUMIF(Kastare!B$2:B$2999,B24,Kastare!A$2:A$2999)) -> 1077 | AE24: 1 | AK24: 0 | AL24: 0 | AM24: 0 | AN24: 0 | AO24: 0 | AP24: 0 | AQ24: 0 | AR24: 0 | AS24: 0 | AT24: 1 | AU24: 0 | AV24: 1 | AW24: 1 | AY24: =SUMIF('Jämjö Open'!$A$502:$A$1000,$AC24,'Jämjö Open'!$AA$502:$AA$1000) -> 1 | AZ24: =SUMIF('Viby Open'!$A$502:$A$1000,$AC24,'Viby Open'!$AA$502:$AA$1000) -> 1 | BA24: =SUMIF('Björkenäs Open'!$A$502:$A$1000,$AC24,'Björkenäs Open'!$AA$502:$AA$1000) -> 1 | BB24: =SUMIF('SM ute Lö'!$A$502:$A$1000,$AC24,'SM ute Lö'!$AA$502:$AA$1000) -> 1 | BC24: =SUMIF('SM ute Sö'!$A$503:$A$1000,$AC24,'SM ute Sö'!$AA$503:$AA$1000) -> 1 | BD24: =SUMIF('Roslagen Open'!$A$502:$A$1000,$AC24,'Roslagen Open'!$AA$502:$AA$1000) -> 1 | BE24: =SUMIF('Roslagen Open 2'!$A$502:$A$1000,$AC24,'Roslagen Open 2'!$AA$502:$AA$1000) -> 1 | BF24: =SUMIF('Dynapac Open'!$A$502:$A$1000,$AC24,'Dynapac Open'!$AA$502:$AA$1000) -> 1 | BG24: =SUMIF('SmålandsDM ute'!$A$502:$A$1000,$AC24,'SmålandsDM ute'!$AA$502:$AA$1000) -> 1 | BH24: =SUMIF('BlekingeDM ute'!$A$502:$A$1000,$AC24,'BlekingeDM ute'!$AA$502:$AA$1000) -> 1 | BI24: =SUMIF('SvealandsDM ute'!$A$502:$A$1000,$AC24,'SvealandsDM ute'!$AA$502:$AA$1000) -> 1 | BJ24: =SUMIF('Ljungby Open'!$A$502:$A$1000,$AC24,'Ljungby Open'!$AA$502:$AA$1000) -> 1 | BK24: =SUMIF(Höstskon!$A$502:$A$1000,$AC24,Höstskon!$AA$502:$AA$1000) -> 1 | BL24: =SUMIF('Carlskrona Cup'!$A$502:$A$1000,$AC24,'Carlskrona Cup'!$AA$502:$AA$1000) -> 1 | BM24: =SUMIF('Sibbamåla Open'!$A$502:$A$1000,$AC24,'Sibbamåla Open'!$AA$502:$AA$1000) -> 1 | BN24: =SUMIF('Vaxholm Indoor'!$A$502:$A$1000,$AC24,'Vaxholm Indoor'!$AA$502:$AA$1000) -> 1 | BO24: =SUMIF('SM inne'!$A$502:$A$1000,$AC24,'SM inne'!$AA$502:$AA$1000) -> 1 | BP24: =SUMIF('Växjö Open'!$A$502:$A$1000,$AC24,'Växjö Open'!$AA$502:$AA$1000) -> 1 | BQ24: =SUMIF('BlekingeDM inne'!$A$502:$A$1000,$AC24,'BlekingeDM inne'!$AA$502:$AA$1000) -> 1 | BR24: =SUMIF('Svealands-DM inne'!$A$502:$A$1000,$AC24,'Svealands-DM inne'!$AA$502:$AA$1000) -> 1 | BS24: =SUMIF(Värendspokalen!$A$502:$A$1000,$AC24,Värendspokalen!$AA$502:$AA$1000) -> 1 | BT24: =SUMIF('Tingsryd Open'!$A$502:$A$1000,$AC24,'Tingsryd Open'!$AA$502:$AA$1000) -> 3
A25: 17 | B25: Palle Schjölin | C25: Tingsryd Hsc | D25: 5 | G25: =IF(BT25=1,"x",SUMIF('Tingsryd Open'!$X$4:$X$400,$AC25,'Tingsryd Open'!$S$4:$S$400)) -> 5 | H25: =IF(AY25=1,"x",SUMIF('Jämjö Open'!$X$4:$X$400,$AC25,'Jämjö Open'!$S$4:$S$400)) -> x | I25: =IF(BA25=1,"x",SUMIF('Björkenäs Open'!$X$4:$X$400,$AC25,'Björkenäs Open'!$S$4:$S$400)) -> x | J25: =IF(BB25=1,"x",SUMIF('SM ute Lö'!$X$4:$X$400,$AC25,'SM ute Lö'!$S$4:$S$400)) -> x | K25: =IF(BC25=1,"x",SUMIF('SM ute Sö'!$X$4:$X$401,$AC25,'SM ute Sö'!$S$4:$S$401)) -> x | L25: =IF(BD25=1,"x",SUMIF('Roslagen Open'!$X$4:$X$400,$AC25,'Roslagen Open'!$S$4:$S$400)) -> x | M25: =IF(BE25=1,"x",SUMIF('Roslagen Open 2'!$X$4:$X$400,$AC25,'Roslagen Open 2'!$S$4:$S$400)) -> x | N25: =IF(BF25=1,"x",SUMIF('Dynapac Open'!$X$4:$X$400,$AC25,'Dynapac Open'!$S$4:$S$400)) -> x | O25: =IF(BG25=1,"x",SUMIF('SmålandsDM ute'!$X$4:$X$400,$AC25,'SmålandsDM ute'!$S$4:$S$400)) -> x | P25: =IF(BH25=1,"x",SUMIF('BlekingeDM ute'!$X$4:$X$400,$AC25,'BlekingeDM ute'!$S$4:$S$400)) -> x | Q25: =IF(BI25=1,"x",SUMIF('SvealandsDM ute'!$X$4:$X$400,$AC25,'SvealandsDM ute'!$S$4:$S$400)) -> x | R25: =IF(BJ25=1,"x",SUMIF('Ljungby Open'!$X$4:$X$406,$AC25,'Ljungby Open'!$S$4:$S$406)) -> x | S25: =IF(AZ25=1,"x",SUMIF('Viby Open'!$X$4:$X$400,$AC25,'Viby Open'!$S$4:$S$400)) -> x | T25: =IF(BP25=1,"x",SUMIF('Växjö Open'!$X$4:$X$400,$AC25,'Växjö Open'!$S$4:$S$400)) -> x | U25: =IF(BK25=1,"x",SUMIF(Höstskon!$X$4:$X$400,$AC25,Höstskon!$S$4:$S$400)) -> x | V25: =IF(BL25=1,"x",SUMIF('Carlskrona Cup'!$X$4:$X$400,$AC25,'Carlskrona Cup'!$S$4:$S$400)) -> x | W25: =IF(BM25=1,"x",SUMIF('Sibbamåla Open'!$X$4:$X$400,$AC25,'Sibbamåla Open'!$S$4:$S$400)) -> x | X25: =IF(BN25=1,"x",SUMIF('Vaxholm Indoor'!$X$4:$X$400,$AC25,'Vaxholm Indoor'!$S$4:$S$400)) -> x | Y25: =IF(BQ25=1,"x",SUMIF('BlekingeDM inne'!$X$4:$X$400,$AC25,'BlekingeDM inne'!$S$4:$S$400)) -> x | Z25: =IF(BR25=1,"x",SUMIF('Svealands-DM inne'!$X$4:$X$400,$AC25,'Svealands-DM inne'!$S$4:$S$400)) -> x | AA25: =IF(BS25=1,"x",SUMIF(Värendspokalen!$X$4:$X$400,$AC25,Värendspokalen!$S$4:$S$400)) -> x | AB25: =IF(BO25=1,"x",SUMIF('SM inne'!$X$4:$X$400,$AC25,'SM inne'!$S$4:$S$400)) -> x | AC25: =IF(B25="","",SUMIF(Kastare!B$2:B$2999,B25,Kastare!A$2:A$2999)) -> 1309 | AE25: 1 | AK25: 0 | AL25: 0 | AM25: 0 | AN25: 0 | AO25: 0 | AP25: 0 | AQ25: 0 | AR25: 0 | AS25: 0 | AT25: 1 | AU25: 0 | AV25: 1 | AW25: 1 | AY25: =SUMIF('Jämjö Open'!$A$502:$A$1000,$AC25,'Jämjö Open'!$AA$502:$AA$1000) -> 1 | AZ25: =SUMIF('Viby Open'!$A$502:$A$1000,$AC25,'Viby Open'!$AA$502:$AA$1000) -> 1 | BA25: =SUMIF('Björkenäs Open'!$A$502:$A$1000,$AC25,'Björkenäs Open'!$AA$502:$AA$1000) -> 1 | BB25: =SUMIF('SM ute Lö'!$A$502:$A$1000,$AC25,'SM ute Lö'!$AA$502:$AA$1000) -> 1 | BC25: =SUMIF('SM ute Sö'!$A$503:$A$1000,$AC25,'SM ute Sö'!$AA$503:$AA$1000) -> 1 | BD25: =SUMIF('Roslagen Open'!$A$502:$A$1000,$AC25,'Roslagen Open'!$AA$502:$AA$1000) -> 1 | BE25: =SUMIF('Roslagen Open 2'!$A$502:$A$1000,$AC25,'Roslagen Open 2'!$AA$502:$AA$1000) -> 1 | BF25: =SUMIF('Dynapac Open'!$A$502:$A$1000,$AC25,'Dynapac Open'!$AA$502:$AA$1000) -> 1 | BG25: =SUMIF('SmålandsDM ute'!$A$502:$A$1000,$AC25,'SmålandsDM ute'!$AA$502:$AA$1000) -> 1 | BH25: =SUMIF('BlekingeDM ute'!$A$502:$A$1000,$AC25,'BlekingeDM ute'!$AA$502:$AA$1000) -> 1 | BI25: =SUMIF('SvealandsDM ute'!$A$502:$A$1000,$AC25,'SvealandsDM ute'!$AA$502:$AA$1000) -> 1 | BJ25: =SUMIF('Ljungby Open'!$A$502:$A$1000,$AC25,'Ljungby Open'!$AA$502:$AA$1000) -> 1 | BK25: =SUMIF(Höstskon!$A$502:$A$1000,$AC25,Höstskon!$AA$502:$AA$1000) -> 1 | BL25: =SUMIF('Carlskrona Cup'!$A$502:$A$1000,$AC25,'Carlskrona Cup'!$AA$502:$AA$1000) -> 1 | BM25: =SUMIF('Sibbamåla Open'!$A$502:$A$1000,$AC25,'Sibbamåla Open'!$AA$502:$AA$1000) -> 1 | BN25: =SUMIF('Vaxholm Indoor'!$A$502:$A$1000,$AC25,'Vaxholm Indoor'!$AA$502:$AA$1000) -> 1 | BO25: =SUMIF('SM inne'!$A$502:$A$1000,$AC25,'SM inne'!$AA$502:$AA$1000) -> 1 | BP25: =SUMIF('Växjö Open'!$A$502:$A$1000,$AC25,'Växjö Open'!$AA$502:$AA$1000) -> 1 | BQ25: =SUMIF('BlekingeDM inne'!$A$502:$A$1000,$AC25,'BlekingeDM inne'!$AA$502:$AA$1000) -> 1 | BR25: =SUMIF('Svealands-DM inne'!$A$502:$A$1000,$AC25,'Svealands-DM inne'!$AA$502:$AA$1000) -> 1 | BS25: =SUMIF(Värendspokalen!$A$502:$A$1000,$AC25,Värendspokalen!$AA$502:$AA$1000) -> 1 | BT25: =SUMIF('Tingsryd Open'!$A$502:$A$1000,$AC25,'Tingsryd Open'!$AA$502:$AA$1000) -> 3
A26: 17 | B26: Torbjörn Liljegren | C26: Dynapac Hsc | D26: 5 | G26: =IF(BT26=1,"x",SUMIF('Tingsryd Open'!$X$4:$X$400,$AC26,'Tingsryd Open'!$S$4:$S$400)) -> 5 | H26: =IF(AY26=1,"x",SUMIF('Jämjö Open'!$X$4:$X$400,$AC26,'Jämjö Open'!$S$4:$S$400)) -> x | I26: =IF(BA26=1,"x",SUMIF('Björkenäs Open'!$X$4:$X$400,$AC26,'Björkenäs Open'!$S$4:$S$400)) -> x | J26: =IF(BB26=1,"x",SUMIF('SM ute Lö'!$X$4:$X$400,$AC26,'SM ute Lö'!$S$4:$S$400)) -> x | K26: =IF(BC26=1,"x",SUMIF('SM ute Sö'!$X$4:$X$401,$AC26,'SM ute Sö'!$S$4:$S$401)) -> x | L26: =IF(BD26=1,"x",SUMIF('Roslagen Open'!$X$4:$X$400,$AC26,'Roslagen Open'!$S$4:$S$400)) -> x | M26: =IF(BE26=1,"x",SUMIF('Roslagen Open 2'!$X$4:$X$400,$AC26,'Roslagen Open 2'!$S$4:$S$400)) -> x | N26: =IF(BF26=1,"x",SUMIF('Dynapac Open'!$X$4:$X$400,$AC26,'Dynapac Open'!$S$4:$S$400)) -> x | O26: =IF(BG26=1,"x",SUMIF('SmålandsDM ute'!$X$4:$X$400,$AC26,'SmålandsDM ute'!$S$4:$S$400)) -> x | P26: =IF(BH26=1,"x",SUMIF('BlekingeDM ute'!$X$4:$X$400,$AC26,'BlekingeDM ute'!$S$4:$S$400)) -> x | Q26: =IF(BI26=1,"x",SUMIF('SvealandsDM ute'!$X$4:$X$400,$AC26,'SvealandsDM ute'!$S$4:$S$400)) -> x | R26: =IF(BJ26=1,"x",SUMIF('Ljungby Open'!$X$4:$X$406,$AC26,'Ljungby Open'!$S$4:$S$406)) -> x | S26: =IF(AZ26=1,"x",SUMIF('Viby Open'!$X$4:$X$400,$AC26,'Viby Open'!$S$4:$S$400)) -> x | T26: =IF(BP26=1,"x",SUMIF('Växjö Open'!$X$4:$X$400,$AC26,'Växjö Open'!$S$4:$S$400)) -> x | U26: =IF(BK26=1,"x",SUMIF(Höstskon!$X$4:$X$400,$AC26,Höstskon!$S$4:$S$400)) -> x | V26: =IF(BL26=1,"x",SUMIF('Carlskrona Cup'!$X$4:$X$400,$AC26,'Carlskrona Cup'!$S$4:$S$400)) -> x | W26: =IF(BM26=1,"x",SUMIF('Sibbamåla Open'!$X$4:$X$400,$AC26,'Sibbamåla Open'!$S$4:$S$400)) -> x | X26: =IF(BN26=1,"x",SUMIF('Vaxholm Indoor'!$X$4:$X$400,$AC26,'Vaxholm Indoor'!$S$4:$S$400)) -> x | Y26: =IF(BQ26=1,"x",SUMIF('BlekingeDM inne'!$X$4:$X$400,$AC26,'BlekingeDM inne'!$S$4:$S$400)) -> x | Z26: =IF(BR26=1,"x",SUMIF('Svealands-DM inne'!$X$4:$X$400,$AC26,'Svealands-DM inne'!$S$4:$S$400)) -> x | AA26: =IF(BS26=1,"x",SUMIF(Värendspokalen!$X$4:$X$400,$AC26,Värendspokalen!$S$4:$S$400)) -> x | AB26: =IF(BO26=1,"x",SUMIF('SM inne'!$X$4:$X$400,$AC26,'SM inne'!$S$4:$S$400)) -> x | AC26: =IF(B26="","",SUMIF(Kastare!B$2:B$2999,B26,Kastare!A$2:A$2999)) -> 1430 | AE26: 1 | AK26: 0 | AL26: 0 | AM26: 0 | AN26: 0 | AO26: 0 | AP26: 0 | AQ26: 0 | AR26: 0 | AS26: 0 | AT26: 1 | AU26: 0 | AV26: 1 | AW26: 1 | AY26: =SUMIF('Jämjö Open'!$A$502:$A$1000,$AC26,'Jämjö Open'!$AA$502:$AA$1000) -> 1 | AZ26: =SUMIF('Viby Open'!$A$502:$A$1000,$AC26,'Viby Open'!$AA$502:$AA$1000) -> 1 | BA26: =SUMIF('Björkenäs Open'!$A$502:$A$1000,$AC26,'Björkenäs Open'!$AA$502:$AA$1000) -> 1 | BB26: =SUMIF('SM ute Lö'!$A$502:$A$1000,$AC26,'SM ute Lö'!$AA$502:$AA$1000) -> 1 | BC26: =SUMIF('SM ute Sö'!$A$503:$A$1000,$AC26,'SM ute Sö'!$AA$503:$AA$1000) -> 1 | BD26: =SUMIF('Roslagen Open'!$A$502:$A$1000,$AC26,'Roslagen Open'!$AA$502:$AA$1000) -> 1 | BE26: =SUMIF('Roslagen Open 2'!$A$502:$A$1000,$AC26,'Roslagen Open 2'!$AA$502:$AA$1000) -> 1 | BF26: =SUMIF('Dynapac Open'!$A$502:$A$1000,$AC26,'Dynapac Open'!$AA$502:$AA$1000) -> 1 | BG26: =SUMIF('SmålandsDM ute'!$A$502:$A$1000,$AC26,'SmålandsDM ute'!$AA$502:$AA$1000) -> 1 | BH26: =SUMIF('BlekingeDM ute'!$A$502:$A$1000,$AC26,'BlekingeDM ute'!$AA$502:$AA$1000) -> 1 | BI26: =SUMIF('SvealandsDM ute'!$A$502:$A$1000,$AC26,'SvealandsDM ute'!$AA$502:$AA$1000) -> 1 | BJ26: =SUMIF('Ljungby Open'!$A$502:$A$1000,$AC26,'Ljungby Open'!$AA$502:$AA$1000) -> 1 | BK26: =SUMIF(Höstskon!$A$502:$A$1000,$AC26,Höstskon!$AA$502:$AA$1000) -> 1 | BL26: =SUMIF('Carlskrona Cup'!$A$502:$A$1000,$AC26,'Carlskrona Cup'!$AA$502:$AA$1000) -> 1 | BM26: =SUMIF('Sibbamåla Open'!$A$502:$A$1000,$AC26,'Sibbamåla Open'!$AA$502:$AA$1000) -> 1 | BN26: =SUMIF('Vaxholm Indoor'!$A$502:$A$1000,$AC26,'Vaxholm Indoor'!$AA$502:$AA$1000) -> 1 | BO26: =SUMIF('SM inne'!$A$502:$A$1000,$AC26,'SM inne'!$AA$502:$AA$1000) -> 1 | BP26: =SUMIF('Växjö Open'!$A$502:$A$1000,$AC26,'Växjö Open'!$AA$502:$AA$1000) -> 1 | BQ26: =SUMIF('BlekingeDM inne'!$A$502:$A$1000,$AC26,'BlekingeDM inne'!$AA$502:$AA$1000) -> 1 | BR26: =SUMIF('Svealands-DM inne'!$A$502:$A$1000,$AC26,'Svealands-DM inne'!$AA$502:$AA$1000) -> 1 | BS26: =SUMIF(Värendspokalen!$A$502:$A$1000,$AC26,Värendspokalen!$AA$502:$AA$1000) -> 1 | BT26: =SUMIF('Tingsryd Open'!$A$502:$A$1000,$AC26,'Tingsryd Open'!$AA$502:$AA$1000) -> 3
A27: 17 | B27: Arne Blihd | C27: Lanternan | D27: 5 | G27: =IF(BT27=1,"x",SUMIF('Tingsryd Open'!$X$4:$X$400,$AC27,'Tingsryd Open'!$S$4:$S$400)) -> 5 | H27: =IF(AY27=1,"x",SUMIF('Jämjö Open'!$X$4:$X$400,$AC27,'Jämjö Open'!$S$4:$S$400)) -> x | I27: =IF(BA27=1,"x",SUMIF('Björkenäs Open'!$X$4:$X$400,$AC27,'Björkenäs Open'!$S$4:$S$400)) -> x | J27: =IF(BB27=1,"x",SUMIF('SM ute Lö'!$X$4:$X$400,$AC27,'SM ute Lö'!$S$4:$S$400)) -> x | K27: =IF(BC27=1,"x",SUMIF('SM ute Sö'!$X$4:$X$401,$AC27,'SM ute Sö'!$S$4:$S$401)) -> x | L27: =IF(BD27=1,"x",SUMIF('Roslagen Open'!$X$4:$X$400,$AC27,'Roslagen Open'!$S$4:$S$400)) -> x | M27: =IF(BE27=1,"x",SUMIF('Roslagen Open 2'!$X$4:$X$400,$AC27,'Roslagen Open 2'!$S$4:$S$400)) -> x | N27: =IF(BF27=1,"x",SUMIF('Dynapac Open'!$X$4:$X$400,$AC27,'Dynapac Open'!$S$4:$S$400)) -> x | O27: =IF(BG27=1,"x",SUMIF('SmålandsDM ute'!$X$4:$X$400,$AC27,'SmålandsDM ute'!$S$4:$S$400)) -> x | P27: =IF(BH27=1,"x",SUMIF('BlekingeDM ute'!$X$4:$X$400,$AC27,'BlekingeDM ute'!$S$4:$S$400)) -> x | Q27: =IF(BI27=1,"x",SUMIF('SvealandsDM ute'!$X$4:$X$400,$AC27,'SvealandsDM ute'!$S$4:$S$400)) -> x | R27: =IF(BJ27=1,"x",SUMIF('Ljungby Open'!$X$4:$X$406,$AC27,'Ljungby Open'!$S$4:$S$406)) -> x | S27: =IF(AZ27=1,"x",SUMIF('Viby Open'!$X$4:$X$400,$AC27,'Viby Open'!$S$4:$S$400)) -> x | T27: =IF(BP27=1,"x",SUMIF('Växjö Open'!$X$4:$X$400,$AC27,'Växjö Open'!$S$4:$S$400)) -> x | U27: =IF(BK27=1,"x",SUMIF(Höstskon!$X$4:$X$400,$AC27,Höstskon!$S$4:$S$400)) -> x | V27: =IF(BL27=1,"x",SUMIF('Carlskrona Cup'!$X$4:$X$400,$AC27,'Carlskrona Cup'!$S$4:$S$400)) -> x | W27: =IF(BM27=1,"x",SUMIF('Sibbamåla Open'!$X$4:$X$400,$AC27,'Sibbamåla Open'!$S$4:$S$400)) -> x | X27: =IF(BN27=1,"x",SUMIF('Vaxholm Indoor'!$X$4:$X$400,$AC27,'Vaxholm Indoor'!$S$4:$S$400)) -> x | Y27: =IF(BQ27=1,"x",SUMIF('BlekingeDM inne'!$X$4:$X$400,$AC27,'BlekingeDM inne'!$S$4:$S$400)) -> x | Z27: =IF(BR27=1,"x",SUMIF('Svealands-DM inne'!$X$4:$X$400,$AC27,'Svealands-DM inne'!$S$4:$S$400)) -> x | AA27: =IF(BS27=1,"x",SUMIF(Värendspokalen!$X$4:$X$400,$AC27,Värendspokalen!$S$4:$S$400)) -> x | AB27: =IF(BO27=1,"x",SUMIF('SM inne'!$X$4:$X$400,$AC27,'SM inne'!$S$4:$S$400)) -> x | AC27: =IF(B27="","",SUMIF(Kastare!B$2:B$2999,B27,Kastare!A$2:A$2999)) -> 1085 | AE27: 1 | AK27: 0 | AL27: 0 | AM27: 0 | AN27: 0 | AO27: 0 | AP27: 0 | AQ27: 0 | AR27: 0 | AS27: 0 | AT27: 1 | AU27: 0 | AV27: 1 | AW27: 1 | AY27: =SUMIF('Jämjö Open'!$A$502:$A$1000,$AC27,'Jämjö Open'!$AA$502:$AA$1000) -> 1 | AZ27: =SUMIF('Viby Open'!$A$502:$A$1000,$AC27,'Viby Open'!$AA$502:$AA$1000) -> 1 | BA27: =SUMIF('Björkenäs Open'!$A$502:$A$1000,$AC27,'Björkenäs Open'!$AA$502:$AA$1000) -> 1 | BB27: =SUMIF('SM ute Lö'!$A$502:$A$1000,$AC27,'SM ute Lö'!$AA$502:$AA$1000) -> 1 | BC27: =SUMIF('SM ute Sö'!$A$503:$A$1000,$AC27,'SM ute Sö'!$AA$503:$AA$1000) -> 1 | BD27: =SUMIF('Roslagen Open'!$A$502:$A$1000,$AC27,'Roslagen Open'!$AA$502:$AA$1000) -> 1 | BE27: =SUMIF('Roslagen Open 2'!$A$502:$A$1000,$AC27,'Roslagen Open 2'!$AA$502:$AA$1000) -> 1 | BF27: =SUMIF('Dynapac Open'!$A$502:$A$1000,$AC27,'Dynapac Open'!$AA$502:$AA$1000) -> 1 | BG27: =SUMIF('SmålandsDM ute'!$A$502:$A$1000,$AC27,'SmålandsDM ute'!$AA$502:$AA$1000) -> 1 | BH27: =SUMIF('BlekingeDM ute'!$A$502:$A$1000,$AC27,'BlekingeDM ute'!$AA$502:$AA$1000) -> 1 | BI27: =SUMIF('SvealandsDM ute'!$A$502:$A$1000,$AC27,'SvealandsDM ute'!$AA$502:$AA$1000) -> 1 | BJ27: =SUMIF('Ljungby Open'!$A$502:$A$1000,$AC27,'Ljungby Open'!$AA$502:$AA$1000) -> 1 | BK27: =SUMIF(Höstskon!$A$502:$A$1000,$AC27,Höstskon!$AA$502:$AA$1000) -> 1 | BL27: =SUMIF('Carlskrona Cup'!$A$502:$A$1000,$AC27,'Carlskrona Cup'!$AA$502:$AA$1000) -> 1 | BM27: =SUMIF('Sibbamåla Open'!$A$502:$A$1000,$AC27,'Sibbamåla Open'!$AA$502:$AA$1000) -> 1 | BN27: =SUMIF('Vaxholm Indoor'!$A$502:$A$1000,$AC27,'Vaxholm Indoor'!$AA$502:$AA$1000) -> 1 | BO27: =SUMIF('SM inne'!$A$502:$A$1000,$AC27,'SM inne'!$AA$502:$AA$1000) -> 1 | BP27: =SUMIF('Växjö Open'!$A$502:$A$1000,$AC27,'Växjö Open'!$AA$502:$AA$1000) -> 1 | BQ27: =SUMIF('BlekingeDM inne'!$A$502:$A$1000,$AC27,'BlekingeDM inne'!$AA$502:$AA$1000) -> 1 | BR27: =SUMIF('Svealands-DM inne'!$A$502:$A$1000,$AC27,'Svealands-DM inne'!$AA$502:$AA$1000) -> 1 | BS27: =SUMIF(Värendspokalen!$A$502:$A$1000,$AC27,Värendspokalen!$AA$502:$AA$1000) -> 1 | BT27: =SUMIF('Tingsryd Open'!$A$502:$A$1000,$AC27,'Tingsryd Open'!$AA$502:$AA$1000) -> 3
A28: 17 | B28: Jim Malmberg | C28: Lyckeby hkf | D28: 5 | G28: =IF(BT28=1,"x",SUMIF('Tingsryd Open'!$X$4:$X$400,$AC28,'Tingsryd Open'!$S$4:$S$400)) -> 5 | H28: =IF(AY28=1,"x",SUMIF('Jämjö Open'!$X$4:$X$400,$AC28,'Jämjö Open'!$S$4:$S$400)) -> x | I28: =IF(BA28=1,"x",SUMIF('Björkenäs Open'!$X$4:$X$400,$AC28,'Björkenäs Open'!$S$4:$S$400)) -> x | J28: =IF(BB28=1,"x",SUMIF('SM ute Lö'!$X$4:$X$400,$AC28,'SM ute Lö'!$S$4:$S$400)) -> x | K28: =IF(BC28=1,"x",SUMIF('SM ute Sö'!$X$4:$X$401,$AC28,'SM ute Sö'!$S$4:$S$401)) -> x | L28: =IF(BD28=1,"x",SUMIF('Roslagen Open'!$X$4:$X$400,$AC28,'Roslagen Open'!$S$4:$S$400)) -> x | M28: =IF(BE28=1,"x",SUMIF('Roslagen Open 2'!$X$4:$X$400,$AC28,'Roslagen Open 2'!$S$4:$S$400)) -> x | N28: =IF(BF28=1,"x",SUMIF('Dynapac Open'!$X$4:$X$400,$AC28,'Dynapac Open'!$S$4:$S$400)) -> x | O28: =IF(BG28=1,"x",SUMIF('SmålandsDM ute'!$X$4:$X$400,$AC28,'SmålandsDM ute'!$S$4:$S$400)) -> x | P28: =IF(BH28=1,"x",SUMIF('BlekingeDM ute'!$X$4:$X$400,$AC28,'BlekingeDM ute'!$S$4:$S$400)) -> x | Q28: =IF(BI28=1,"x",SUMIF('SvealandsDM ute'!$X$4:$X$400,$AC28,'SvealandsDM ute'!$S$4:$S$400)) -> x | R28: =IF(BJ28=1,"x",SUMIF('Ljungby Open'!$X$4:$X$406,$AC28,'Ljungby Open'!$S$4:$S$406)) -> x | S28: =IF(AZ28=1,"x",SUMIF('Viby Open'!$X$4:$X$400,$AC28,'Viby Open'!$S$4:$S$400)) -> x | T28: =IF(BP28=1,"x",SUMIF('Växjö Open'!$X$4:$X$400,$AC28,'Växjö Open'!$S$4:$S$400)) -> x | U28: =IF(BK28=1,"x",SUMIF(Höstskon!$X$4:$X$400,$AC28,Höstskon!$S$4:$S$400)) -> x | V28: =IF(BL28=1,"x",SUMIF('Carlskrona Cup'!$X$4:$X$400,$AC28,'Carlskrona Cup'!$S$4:$S$400)) -> x | W28: =IF(BM28=1,"x",SUMIF('Sibbamåla Open'!$X$4:$X$400,$AC28,'Sibbamåla Open'!$S$4:$S$400)) -> x | X28: =IF(BN28=1,"x",SUMIF('Vaxholm Indoor'!$X$4:$X$400,$AC28,'Vaxholm Indoor'!$S$4:$S$400)) -> x | Y28: =IF(BQ28=1,"x",SUMIF('BlekingeDM inne'!$X$4:$X$400,$AC28,'BlekingeDM inne'!$S$4:$S$400)) -> x | Z28: =IF(BR28=1,"x",SUMIF('Svealands-DM inne'!$X$4:$X$400,$AC28,'Svealands-DM inne'!$S$4:$S$400)) -> x | AA28: =IF(BS28=1,"x",SUMIF(Värendspokalen!$X$4:$X$400,$AC28,Värendspokalen!$S$4:$S$400)) -> x | AB28: =IF(BO28=1,"x",SUMIF('SM inne'!$X$4:$X$400,$AC28,'SM inne'!$S$4:$S$400)) -> x | AC28: =IF(B28="","",SUMIF(Kastare!B$2:B$2999,B28,Kastare!A$2:A$2999)) -> 1450 | AE28: 1 | AK28: 0 | AL28: 0 | AM28: 0 | AN28: 0 | AO28: 0 | AP28: 0 | AQ28: 0 | AR28: 0 | AS28: 0 | AT28: 1 | AU28: 0 | AV28: 1 | AW28: 1 | AY28: =SUMIF('Jämjö Open'!$A$502:$A$1000,$AC28,'Jämjö Open'!$AA$502:$AA$1000) -> 1 | AZ28: =SUMIF('Viby Open'!$A$502:$A$1000,$AC28,'Viby Open'!$AA$502:$AA$1000) -> 1 | BA28: =SUMIF('Björkenäs Open'!$A$502:$A$1000,$AC28,'Björkenäs Open'!$AA$502:$AA$1000) -> 1 | BB28: =SUMIF('SM ute Lö'!$A$502:$A$1000,$AC28,'SM ute Lö'!$AA$502:$AA$1000) -> 1 | BC28: =SUMIF('SM ute Sö'!$A$503:$A$1000,$AC28,'SM ute Sö'!$AA$503:$AA$1000) -> 1 | BD28: =SUMIF('Roslagen Open'!$A$502:$A$1000,$AC28,'Roslagen Open'!$AA$502:$AA$1000) -> 1 | BE28: =SUMIF('Roslagen Open 2'!$A$502:$A$1000,$AC28,'Roslagen Open 2'!$AA$502:$AA$1000) -> 1 | BF28: =SUMIF('Dynapac Open'!$A$502:$A$1000,$AC28,'Dynapac Open'!$AA$502:$AA$1000) -> 1 | BG28: =SUMIF('SmålandsDM ute'!$A$502:$A$1000,$AC28,'SmålandsDM ute'!$AA$502:$AA$1000) -> 1 | BH28: =SUMIF('BlekingeDM ute'!$A$502:$A$1000,$AC28,'BlekingeDM ute'!$AA$502:$AA$1000) -> 1 | BI28: =SUMIF('SvealandsDM ute'!$A$502:$A$1000,$AC28,'SvealandsDM ute'!$AA$502:$AA$1000) -> 1 | BJ28: =SUMIF('Ljungby Open'!$A$502:$A$1000,$AC28,'Ljungby Open'!$AA$502:$AA$1000) -> 1 | BK28: =SUMIF(Höstskon!$A$502:$A$1000,$AC28,Höstskon!$AA$502:$AA$1000) -> 1 | BL28: =SUMIF('Carlskrona Cup'!$A$502:$A$1000,$AC28,'Carlskrona Cup'!$AA$502:$AA$1000) -> 1 | BM28: =SUMIF('Sibbamåla Open'!$A$502:$A$1000,$AC28,'Sibbamåla Open'!$AA$502:$AA$1000) -> 1 | BN28: =SUMIF('Vaxholm Indoor'!$A$502:$A$1000,$AC28,'Vaxholm Indoor'!$AA$502:$AA$1000) -> 1 | BO28: =SUMIF('SM inne'!$A$502:$A$1000,$AC28,'SM inne'!$AA$502:$AA$1000) -> 1 | BP28: =SUMIF('Växjö Open'!$A$502:$A$1000,$AC28,'Växjö Open'!$AA$502:$AA$1000) -> 1 | BQ28: =SUMIF('BlekingeDM inne'!$A$502:$A$1000,$AC28,'BlekingeDM inne'!$AA$502:$AA$1000) -> 1 | BR28: =SUMIF('Svealands-DM inne'!$A$502:$A$1000,$AC28,'Svealands-DM inne'!$AA$502:$AA$1000) -> 1 | BS28: =SUMIF(Värendspokalen!$A$502:$A$1000,$AC28,Värendspokalen!$AA$502:$AA$1000) -> 1 | BT28: =SUMIF('Tingsryd Open'!$A$502:$A$1000,$AC28,'Tingsryd Open'!$AA$502:$AA$1000) -> 3
A29: 17 | B29: Mikael Nyh | C29: Tingsryd Hsc | D29: 5 | G29: =IF(BT29=1,"x",SUMIF('Tingsryd Open'!$X$4:$X$400,$AC29,'Tingsryd Open'!$S$4:$S$400)) -> 5 | H29: =IF(AY29=1,"x",SUMIF('Jämjö Open'!$X$4:$X$400,$AC29,'Jämjö Open'!$S$4:$S$400)) -> x | I29: =IF(BA29=1,"x",SUMIF('Björkenäs Open'!$X$4:$X$400,$AC29,'Björkenäs Open'!$S$4:$S$400)) -> x | J29: =IF(BB29=1,"x",SUMIF('SM ute Lö'!$X$4:$X$400,$AC29,'SM ute Lö'!$S$4:$S$400)) -> x | K29: =IF(BC29=1,"x",SUMIF('SM ute Sö'!$X$4:$X$401,$AC29,'SM ute Sö'!$S$4:$S$401)) -> x | L29: =IF(BD29=1,"x",SUMIF('Roslagen Open'!$X$4:$X$400,$AC29,'Roslagen Open'!$S$4:$S$400)) -> x | M29: =IF(BE29=1,"x",SUMIF('Roslagen Open 2'!$X$4:$X$400,$AC29,'Roslagen Open 2'!$S$4:$S$400)) -> x | N29: =IF(BF29=1,"x",SUMIF('Dynapac Open'!$X$4:$X$400,$AC29,'Dynapac Open'!$S$4:$S$400)) -> x | O29: =IF(BG29=1,"x",SUMIF('SmålandsDM ute'!$X$4:$X$400,$AC29,'SmålandsDM ute'!$S$4:$S$400)) -> x | P29: =IF(BH29=1,"x",SUMIF('BlekingeDM ute'!$X$4:$X$400,$AC29,'BlekingeDM ute'!$S$4:$S$400)) -> x | Q29: =IF(BI29=1,"x",SUMIF('SvealandsDM ute'!$X$4:$X$400,$AC29,'SvealandsDM ute'!$S$4:$S$400)) -> x | R29: =IF(BJ29=1,"x",SUMIF('Ljungby Open'!$X$4:$X$406,$AC29,'Ljungby Open'!$S$4:$S$406)) -> x | S29: =IF(AZ29=1,"x",SUMIF('Viby Open'!$X$4:$X$400,$AC29,'Viby Open'!$S$4:$S$400)) -> x | T29: =IF(BP29=1,"x",SUMIF('Växjö Open'!$X$4:$X$400,$AC29,'Växjö Open'!$S$4:$S$400)) -> x | U29: =IF(BK29=1,"x",SUMIF(Höstskon!$X$4:$X$400,$AC29,Höstskon!$S$4:$S$400)) -> x | V29: =IF(BL29=1,"x",SUMIF('Carlskrona Cup'!$X$4:$X$400,$AC29,'Carlskrona Cup'!$S$4:$S$400)) -> x | W29: =IF(BM29=1,"x",SUMIF('Sibbamåla Open'!$X$4:$X$400,$AC29,'Sibbamåla Open'!$S$4:$S$400)) -> x | X29: =IF(BN29=1,"x",SUMIF('Vaxholm Indoor'!$X$4:$X$400,$AC29,'Vaxholm Indoor'!$S$4:$S$400)) -> x | Y29: =IF(BQ29=1,"x",SUMIF('BlekingeDM inne'!$X$4:$X$400,$AC29,'BlekingeDM inne'!$S$4:$S$400)) -> x | Z29: =IF(BR29=1,"x",SUMIF('Svealands-DM inne'!$X$4:$X$400,$AC29,'Svealands-DM inne'!$S$4:$S$400)) -> x | AA29: =IF(BS29=1,"x",SUMIF(Värendspokalen!$X$4:$X$400,$AC29,Värendspokalen!$S$4:$S$400)) -> x | AB29: =IF(BO29=1,"x",SUMIF('SM inne'!$X$4:$X$400,$AC29,'SM inne'!$S$4:$S$400)) -> x | AC29: =IF(B29="","",SUMIF(Kastare!B$2:B$2999,B29,Kastare!A$2:A$2999)) -> 1451 | AE29: 1 | AK29: 0 | AL29: 0 | AM29: 0 | AN29: 0 | AO29: 0 | AP29: 0 | AQ29: 0 | AR29: 0 | AS29: 0 | AT29: 1 | AU29: 0 | AV29: 1 | AW29: 1 | AY29: =SUMIF('Jämjö Open'!$A$502:$A$1000,$AC29,'Jämjö Open'!$AA$502:$AA$1000) -> 1 | AZ29: =SUMIF('Viby Open'!$A$502:$A$1000,$AC29,'Viby Open'!$AA$502:$AA$1000) -> 1 | BA29: =SUMIF('Björkenäs Open'!$A$502:$A$1000,$AC29,'Björkenäs Open'!$AA$502:$AA$1000) -> 1 | BB29: =SUMIF('SM ute Lö'!$A$502:$A$1000,$AC29,'SM ute Lö'!$AA$502:$AA$1000) -> 1 | BC29: =SUMIF('SM ute Sö'!$A$503:$A$1000,$AC29,'SM ute Sö'!$AA$503:$AA$1000) -> 1 | BD29: =SUMIF('Roslagen Open'!$A$502:$A$1000,$AC29,'Roslagen Open'!$AA$502:$AA$1000) -> 1 | BE29: =SUMIF('Roslagen Open 2'!$A$502:$A$1000,$AC29,'Roslagen Open 2'!$AA$502:$AA$1000) -> 1 | BF29: =SUMIF('Dynapac Open'!$A$502:$A$1000,$AC29,'Dynapac Open'!$AA$502:$AA$1000) -> 1 | BG29: =SUMIF('SmålandsDM ute'!$A$502:$A$1000,$AC29,'SmålandsDM ute'!$AA$502:$AA$1000) -> 1 | BH29: =SUMIF('BlekingeDM ute'!$A$502:$A$1000,$AC29,'BlekingeDM ute'!$AA$502:$AA$1000) -> 1 | BI29: =SUMIF('SvealandsDM ute'!$A$502:$A$1000,$AC29,'SvealandsDM ute'!$AA$502:$AA$1000) -> 1 | BJ29: =SUMIF('Ljungby Open'!$A$502:$A$1000,$AC29,'Ljungby Open'!$AA$502:$AA$1000) -> 1 | BK29: =SUMIF(Höstskon!$A$502:$A$1000,$AC29,Höstskon!$AA$502:$AA$1000) -> 1 | BL29: =SUMIF('Carlskrona Cup'!$A$502:$A$1000,$AC29,'Carlskrona Cup'!$AA$502:$AA$1000) -> 1 | BM29: =SUMIF('Sibbamåla Open'!$A$502:$A$1000,$AC29,'Sibbamåla Open'!$AA$502:$AA$1000) -> 1 | BN29: =SUMIF('Vaxholm Indoor'!$A$502:$A$1000,$AC29,'Vaxholm Indoor'!$AA$502:$AA$1000) -> 1 | BO29: =SUMIF('SM inne'!$A$502:$A$1000,$AC29,'SM inne'!$AA$502:$AA$1000) -> 1 | BP29: =SUMIF('Växjö Open'!$A$502:$A$1000,$AC29,'Växjö Open'!$AA$502:$AA$1000) -> 1 | BQ29: =SUMIF('BlekingeDM inne'!$A$502:$A$1000,$AC29,'BlekingeDM inne'!$AA$502:$AA$1000) -> 1 | BR29: =SUMIF('Svealands-DM inne'!$A$502:$A$1000,$AC29,'Svealands-DM inne'!$AA$502:$AA$1000) -> 1 | BS29: =SUMIF(Värendspokalen!$A$502:$A$1000,$AC29,Värendspokalen!$AA$502:$AA$1000) -> 1 | BT29: =SUMIF('Tingsryd Open'!$A$502:$A$1000,$AC29,'Tingsryd Open'!$AA$502:$AA$1000) -> 3
A30: 27 | B30: Ingvar Eriksson | C30: Carlskrona Hsc | D30: 0 | G30: =IF(BT30=1,"x",SUMIF('Tingsryd Open'!$X$4:$X$400,$AC30,'Tingsryd Open'!$S$4:$S$400)) -> 0 | H30: =IF(AY30=1,"x",SUMIF('Jämjö Open'!$X$4:$X$400,$AC30,'Jämjö Open'!$S$4:$S$400)) -> x | I30: =IF(BA30=1,"x",SUMIF('Björkenäs Open'!$X$4:$X$400,$AC30,'Björkenäs Open'!$S$4:$S$400)) -> x | J30: =IF(BB30=1,"x",SUMIF('SM ute Lö'!$X$4:$X$400,$AC30,'SM ute Lö'!$S$4:$S$400)) -> x | K30: =IF(BC30=1,"x",SUMIF('SM ute Sö'!$X$4:$X$401,$AC30,'SM ute Sö'!$S$4:$S$401)) -> x | L30: =IF(BD30=1,"x",SUMIF('Roslagen Open'!$X$4:$X$400,$AC30,'Roslagen Open'!$S$4:$S$400)) -> x | M30: =IF(BE30=1,"x",SUMIF('Roslagen Open 2'!$X$4:$X$400,$AC30,'Roslagen Open 2'!$S$4:$S$400)) -> x | N30: =IF(BF30=1,"x",SUMIF('Dynapac Open'!$X$4:$X$400,$AC30,'Dynapac Open'!$S$4:$S$400)) -> x | O30: =IF(BG30=1,"x",SUMIF('SmålandsDM ute'!$X$4:$X$400,$AC30,'SmålandsDM ute'!$S$4:$S$400)) -> x | P30: =IF(BH30=1,"x",SUMIF('BlekingeDM ute'!$X$4:$X$400,$AC30,'BlekingeDM ute'!$S$4:$S$400)) -> x | Q30: =IF(BI30=1,"x",SUMIF('SvealandsDM ute'!$X$4:$X$400,$AC30,'SvealandsDM ute'!$S$4:$S$400)) -> x | R30: =IF(BJ30=1,"x",SUMIF('Ljungby Open'!$X$4:$X$406,$AC30,'Ljungby Open'!$S$4:$S$406)) -> x | S30: =IF(AZ30=1,"x",SUMIF('Viby Open'!$X$4:$X$400,$AC30,'Viby Open'!$S$4:$S$400)) -> x | T30: =IF(BP30=1,"x",SUMIF('Växjö Open'!$X$4:$X$400,$AC30,'Växjö Open'!$S$4:$S$400)) -> x | U30: =IF(BK30=1,"x",SUMIF(Höstskon!$X$4:$X$400,$AC30,Höstskon!$S$4:$S$400)) -> x | V30: =IF(BL30=1,"x",SUMIF('Carlskrona Cup'!$X$4:$X$400,$AC30,'Carlskrona Cup'!$S$4:$S$400)) -> x | W30: =IF(BM30=1,"x",SUMIF('Sibbamåla Open'!$X$4:$X$400,$AC30,'Sibbamåla Open'!$S$4:$S$400)) -> x | X30: =IF(BN30=1,"x",SUMIF('Vaxholm Indoor'!$X$4:$X$400,$AC30,'Vaxholm Indoor'!$S$4:$S$400)) -> x | Y30: =IF(BQ30=1,"x",SUMIF('BlekingeDM inne'!$X$4:$X$400,$AC30,'BlekingeDM inne'!$S$4:$S$400)) -> x | Z30: =IF(BR30=1,"x",SUMIF('Svealands-DM inne'!$X$4:$X$400,$AC30,'Svealands-DM inne'!$S$4:$S$400)) -> x | AA30: =IF(BS30=1,"x",SUMIF(Värendspokalen!$X$4:$X$400,$AC30,Värendspokalen!$S$4:$S$400)) -> x | AB30: =IF(BO30=1,"x",SUMIF('SM inne'!$X$4:$X$400,$AC30,'SM inne'!$S$4:$S$400)) -> x | AC30: =IF(B30="","",SUMIF(Kastare!B$2:B$2999,B30,Kastare!A$2:A$2999)) -> 1005 | AE30: 1 | AK30: 0 | AL30: 0 | AM30: 0 | AN30: 0 | AO30: 0 | AP30: 0 | AQ30: 0 | AR30: 0 | AS30: 0 | AT30: 0 | AU30: 1 | AV30: 1 | AW30: 0 | AY30: =SUMIF('Jämjö Open'!$A$502:$A$1000,$AC30,'Jämjö Open'!$AA$502:$AA$1000) -> 1 | AZ30: =SUMIF('Viby Open'!$A$502:$A$1000,$AC30,'Viby Open'!$AA$502:$AA$1000) -> 1 | BA30: =SUMIF('Björkenäs Open'!$A$502:$A$1000,$AC30,'Björkenäs Open'!$AA$502:$AA$1000) -> 1 | BB30: =SUMIF('SM ute Lö'!$A$502:$A$1000,$AC30,'SM ute Lö'!$AA$502:$AA$1000) -> 1 | BC30: =SUMIF('SM ute Sö'!$A$503:$A$1000,$AC30,'SM ute Sö'!$AA$503:$AA$1000) -> 1 | BD30: =SUMIF('Roslagen Open'!$A$502:$A$1000,$AC30,'Roslagen Open'!$AA$502:$AA$1000) -> 1 | BE30: =SUMIF('Roslagen Open 2'!$A$502:$A$1000,$AC30,'Roslagen Open 2'!$AA$502:$AA$1000) -> 1 | BF30: =SUMIF('Dynapac Open'!$A$502:$A$1000,$AC30,'Dynapac Open'!$AA$502:$AA$1000) -> 1 | BG30: =SUMIF('SmålandsDM ute'!$A$502:$A$1000,$AC30,'SmålandsDM ute'!$AA$502:$AA$1000) -> 1 | BH30: =SUMIF('BlekingeDM ute'!$A$502:$A$1000,$AC30,'BlekingeDM ute'!$AA$502:$AA$1000) -> 1 | BI30: =SUMIF('SvealandsDM ute'!$A$502:$A$1000,$AC30,'SvealandsDM ute'!$AA$502:$AA$1000) -> 1 | BJ30: =SUMIF('Ljungby Open'!$A$502:$A$1000,$AC30,'Ljungby Open'!$AA$502:$AA$1000) -> 1 | BK30: =SUMIF(Höstskon!$A$502:$A$1000,$AC30,Höstskon!$AA$502:$AA$1000) -> 1 | BL30: =SUMIF('Carlskrona Cup'!$A$502:$A$1000,$AC30,'Carlskrona Cup'!$AA$502:$AA$1000) -> 1 | BM30: =SUMIF('Sibbamåla Open'!$A$502:$A$1000,$AC30,'Sibbamåla Open'!$AA$502:$AA$1000) -> 1 | BN30: =SUMIF('Vaxholm Indoor'!$A$502:$A$1000,$AC30,'Vaxholm Indoor'!$AA$502:$AA$1000) -> 1 | BO30: =SUMIF('SM inne'!$A$502:$A$1000,$AC30,'SM inne'!$AA$502:$AA$1000) -> 1 | BP30: =SUMIF('Växjö Open'!$A$502:$A$1000,$AC30,'Växjö Open'!$AA$502:$AA$1000) -> 1 | BQ30: =SUMIF('BlekingeDM inne'!$A$502:$A$1000,$AC30,'BlekingeDM inne'!$AA$502:$AA$1000) -> 1 | BR30: =SUMIF('Svealands-DM inne'!$A$502:$A$1000,$AC30,'Svealands-DM inne'!$AA$502:$AA$1000) -> 1 | BS30: =SUMIF(Värendspokalen!$A$502:$A$1000,$AC30,Värendspokalen!$AA$502:$AA$1000) -> 1 | BT30: =SUMIF('Tingsryd Open'!$A$502:$A$1000,$AC30,'Tingsryd Open'!$AA$502:$AA$1000) -> 3
A31: 27 | B31: Tommy Karlsson | C31: Sibbamåla | D31: 0 | G31: =IF(BT31=1,"x",SUMIF('Tingsryd Open'!$X$4:$X$400,$AC31,'Tingsryd Open'!$S$4:$S$400)) -> 0 | H31: =IF(AY31=1,"x",SUMIF('Jämjö Open'!$X$4:$X$400,$AC31,'Jämjö Open'!$S$4:$S$400)) -> x | I31: =IF(BA31=1,"x",SUMIF('Björkenäs Open'!$X$4:$X$400,$AC31,'Björkenäs Open'!$S$4:$S$400)) -> x | J31: =IF(BB31=1,"x",SUMIF('SM ute Lö'!$X$4:$X$400,$AC31,'SM ute Lö'!$S$4:$S$400)) -> x | K31: =IF(BC31=1,"x",SUMIF('SM ute Sö'!$X$4:$X$401,$AC31,'SM ute Sö'!$S$4:$S$401)) -> x | L31: =IF(BD31=1,"x",SUMIF('Roslagen Open'!$X$4:$X$400,$AC31,'Roslagen Open'!$S$4:$S$400)) -> x | M31: =IF(BE31=1,"x",SUMIF('Roslagen Open 2'!$X$4:$X$400,$AC31,'Roslagen Open 2'!$S$4:$S$400)) -> x | N31: =IF(BF31=1,"x",SUMIF('Dynapac Open'!$X$4:$X$400,$AC31,'Dynapac Open'!$S$4:$S$400)) -> x | O31: =IF(BG31=1,"x",SUMIF('SmålandsDM ute'!$X$4:$X$400,$AC31,'SmålandsDM ute'!$S$4:$S$400)) -> x | P31: =IF(BH31=1,"x",SUMIF('BlekingeDM ute'!$X$4:$X$400,$AC31,'BlekingeDM ute'!$S$4:$S$400)) -> x | Q31: =IF(BI31=1,"x",SUMIF('SvealandsDM ute'!$X$4:$X$400,$AC31,'SvealandsDM ute'!$S$4:$S$400)) -> x | R31: =IF(BJ31=1,"x",SUMIF('Ljungby Open'!$X$4:$X$406,$AC31,'Ljungby Open'!$S$4:$S$406)) -> x | S31: =IF(AZ31=1,"x",SUMIF('Viby Open'!$X$4:$X$400,$AC31,'Viby Open'!$S$4:$S$400)) -> x | T31: =IF(BP31=1,"x",SUMIF('Växjö Open'!$X$4:$X$400,$AC31,'Växjö Open'!$S$4:$S$400)) -> x | U31: =IF(BK31=1,"x",SUMIF(Höstskon!$X$4:$X$400,$AC31,Höstskon!$S$4:$S$400)) -> x | V31: =IF(BL31=1,"x",SUMIF('Carlskrona Cup'!$X$4:$X$400,$AC31,'Carlskrona Cup'!$S$4:$S$400)) -> x | W31: =IF(BM31=1,"x",SUMIF('Sibbamåla Open'!$X$4:$X$400,$AC31,'Sibbamåla Open'!$S$4:$S$400)) -> x | X31: =IF(BN31=1,"x",SUMIF('Vaxholm Indoor'!$X$4:$X$400,$AC31,'Vaxholm Indoor'!$S$4:$S$400)) -> x | Y31: =IF(BQ31=1,"x",SUMIF('BlekingeDM inne'!$X$4:$X$400,$AC31,'BlekingeDM inne'!$S$4:$S$400)) -> x | Z31: =IF(BR31=1,"x",SUMIF('Svealands-DM inne'!$X$4:$X$400,$AC31,'Svealands-DM inne'!$S$4:$S$400)) -> x | AA31: =IF(BS31=1,"x",SUMIF(Värendspokalen!$X$4:$X$400,$AC31,Värendspokalen!$S$4:$S$400)) -> x | AB31: =IF(BO31=1,"x",SUMIF('SM inne'!$X$4:$X$400,$AC31,'SM inne'!$S$4:$S$400)) -> x | AC31: =IF(B31="","",SUMIF(Kastare!B$2:B$2999,B31,Kastare!A$2:A$2999)) -> 1354 | AE31: 1 | AK31: 0 | AL31: 0 | AM31: 0 | AN31: 0 | AO31: 0 | AP31: 0 | AQ31: 0 | AR31: 0 | AS31: 0 | AT31: 0 | AU31: 1 | AV31: 1 | AW31: 0 | AY31: =SUMIF('Jämjö Open'!$A$502:$A$1000,$AC31,'Jämjö Open'!$AA$502:$AA$1000) -> 1 | AZ31: =SUMIF('Viby Open'!$A$502:$A$1000,$AC31,'Viby Open'!$AA$502:$AA$1000) -> 1 | BA31: =SUMIF('Björkenäs Open'!$A$502:$A$1000,$AC31,'Björkenäs Open'!$AA$502:$AA$1000) -> 1 | BB31: =SUMIF('SM ute Lö'!$A$502:$A$1000,$AC31,'SM ute Lö'!$AA$502:$AA$1000) -> 1 | BC31: =SUMIF('SM ute Sö'!$A$503:$A$1000,$AC31,'SM ute Sö'!$AA$503:$AA$1000) -> 1 | BD31: =SUMIF('Roslagen Open'!$A$502:$A$1000,$AC31,'Roslagen Open'!$AA$502:$AA$1000) -> 1 | BE31: =SUMIF('Roslagen Open 2'!$A$502:$A$1000,$AC31,'Roslagen Open 2'!$AA$502:$AA$1000) -> 1 | BF31: =SUMIF('Dynapac Open'!$A$502:$A$1000,$AC31,'Dynapac Open'!$AA$502:$AA$1000) -> 1 | BG31: =SUMIF('SmålandsDM ute'!$A$502:$A$1000,$AC31,'SmålandsDM ute'!$AA$502:$AA$1000) -> 1 | BH31: =SUMIF('BlekingeDM ute'!$A$502:$A$1000,$AC31,'BlekingeDM ute'!$AA$502:$AA$1000) -> 1 | BI31: =SUMIF('SvealandsDM ute'!$A$502:$A$1000,$AC31,'SvealandsDM ute'!$AA$502:$AA$1000) -> 1 | BJ31: =SUMIF('Ljungby Open'!$A$502:$A$1000,$AC31,'Ljungby Open'!$AA$502:$AA$1000) -> 1 | BK31: =SUMIF(Höstskon!$A$502:$A$1000,$AC31,Höstskon!$AA$502:$AA$1000) -> 1 | BL31: =SUMIF('Carlskrona Cup'!$A$502:$A$1000,$AC31,'Carlskrona Cup'!$AA$502:$AA$1000) -> 1 | BM31: =SUMIF('Sibbamåla Open'!$A$502:$A$1000,$AC31,'Sibbamåla Open'!$AA$502:$AA$1000) -> 1 | BN31: =SUMIF('Vaxholm Indoor'!$A$502:$A$1000,$AC31,'Vaxholm Indoor'!$AA$502:$AA$1000) -> 1 | BO31: =SUMIF('SM inne'!$A$502:$A$1000,$AC31,'SM inne'!$AA$502:$AA$1000) -> 1 | BP31: =SUMIF('Växjö Open'!$A$502:$A$1000,$AC31,'Växjö Open'!$AA$502:$AA$1000) -> 1 | BQ31: =SUMIF('BlekingeDM inne'!$A$502:$A$1000,$AC31,'BlekingeDM inne'!$AA$502:$AA$1000) -> 1 | BR31: =SUMIF('Svealands-DM inne'!$A$502:$A$1000,$AC31,'Svealands-DM inne'!$AA$502:$AA$1000) -> 1 | BS31: =SUMIF(Värendspokalen!$A$502:$A$1000,$AC31,Värendspokalen!$AA$502:$AA$1000) -> 1 | BT31: =SUMIF('Tingsryd Open'!$A$502:$A$1000,$AC31,'Tingsryd Open'!$AA$502:$AA$1000) -> 3
A32: 27 | B32: Olle Ottosson | C32: Dynapac Hsc | D32: 0 | G32: =IF(BT32=1,"x",SUMIF('Tingsryd Open'!$X$4:$X$400,$AC32,'Tingsryd Open'!$S$4:$S$400)) -> 0 | H32: =IF(AY32=1,"x",SUMIF('Jämjö Open'!$X$4:$X$400,$AC32,'Jämjö Open'!$S$4:$S$400)) -> x | I32: =IF(BA32=1,"x",SUMIF('Björkenäs Open'!$X$4:$X$400,$AC32,'Björkenäs Open'!$S$4:$S$400)) -> x | J32: =IF(BB32=1,"x",SUMIF('SM ute Lö'!$X$4:$X$400,$AC32,'SM ute Lö'!$S$4:$S$400)) -> x | K32: =IF(BC32=1,"x",SUMIF('SM ute Sö'!$X$4:$X$401,$AC32,'SM ute Sö'!$S$4:$S$401)) -> x | L32: =IF(BD32=1,"x",SUMIF('Roslagen Open'!$X$4:$X$400,$AC32,'Roslagen Open'!$S$4:$S$400)) -> x | M32: =IF(BE32=1,"x",SUMIF('Roslagen Open 2'!$X$4:$X$400,$AC32,'Roslagen Open 2'!$S$4:$S$400)) -> x | N32: =IF(BF32=1,"x",SUMIF('Dynapac Open'!$X$4:$X$400,$AC32,'Dynapac Open'!$S$4:$S$400)) -> x | O32: =IF(BG32=1,"x",SUMIF('SmålandsDM ute'!$X$4:$X$400,$AC32,'SmålandsDM ute'!$S$4:$S$400)) -> x | P32: =IF(BH32=1,"x",SUMIF('BlekingeDM ute'!$X$4:$X$400,$AC32,'BlekingeDM ute'!$S$4:$S$400)) -> x | Q32: =IF(BI32=1,"x",SUMIF('SvealandsDM ute'!$X$4:$X$400,$AC32,'SvealandsDM ute'!$S$4:$S$400)) -> x | R32: =IF(BJ32=1,"x",SUMIF('Ljungby Open'!$X$4:$X$406,$AC32,'Ljungby Open'!$S$4:$S$406)) -> x | S32: =IF(AZ32=1,"x",SUMIF('Viby Open'!$X$4:$X$400,$AC32,'Viby Open'!$S$4:$S$400)) -> x | T32: =IF(BP32=1,"x",SUMIF('Växjö Open'!$X$4:$X$400,$AC32,'Växjö Open'!$S$4:$S$400)) -> x | U32: =IF(BK32=1,"x",SUMIF(Höstskon!$X$4:$X$400,$AC32,Höstskon!$S$4:$S$400)) -> x | V32: =IF(BL32=1,"x",SUMIF('Carlskrona Cup'!$X$4:$X$400,$AC32,'Carlskrona Cup'!$S$4:$S$400)) -> x | W32: =IF(BM32=1,"x",SUMIF('Sibbamåla Open'!$X$4:$X$400,$AC32,'Sibbamåla Open'!$S$4:$S$400)) -> x | X32: =IF(BN32=1,"x",SUMIF('Vaxholm Indoor'!$X$4:$X$400,$AC32,'Vaxholm Indoor'!$S$4:$S$400)) -> x | Y32: =IF(BQ32=1,"x",SUMIF('BlekingeDM inne'!$X$4:$X$400,$AC32,'BlekingeDM inne'!$S$4:$S$400)) -> x | Z32: =IF(BR32=1,"x",SUMIF('Svealands-DM inne'!$X$4:$X$400,$AC32,'Svealands-DM inne'!$S$4:$S$400)) -> x | AA32: =IF(BS32=1,"x",SUMIF(Värendspokalen!$X$4:$X$400,$AC32,Värendspokalen!$S$4:$S$400)) -> x | AB32: =IF(BO32=1,"x",SUMIF('SM inne'!$X$4:$X$400,$AC32,'SM inne'!$S$4:$S$400)) -> x | AC32: =IF(B32="","",SUMIF(Kastare!B$2:B$2999,B32,Kastare!A$2:A$2999)) -> 1021 | AE32: 1 | AK32: 0 | AL32: 0 | AM32: 0 | AN32: 0 | AO32: 0 | AP32: 0 | AQ32: 0 | AR32: 0 | AS32: 0 | AT32: 0 | AU32: 1 | AV32: 1 | AW32: 0 | AY32: =SUMIF('Jämjö Open'!$A$502:$A$1000,$AC32,'Jämjö Open'!$AA$502:$AA$1000) -> 1 | AZ32: =SUMIF('Viby Open'!$A$502:$A$1000,$AC32,'Viby Open'!$AA$502:$AA$1000) -> 1 | BA32: =SUMIF('Björkenäs Open'!$A$502:$A$1000,$AC32,'Björkenäs Open'!$AA$502:$AA$1000) -> 1 | BB32: =SUMIF('SM ute Lö'!$A$502:$A$1000,$AC32,'SM ute Lö'!$AA$502:$AA$1000) -> 1 | BC32: =SUMIF('SM ute Sö'!$A$503:$A$1000,$AC32,'SM ute Sö'!$AA$503:$AA$1000) -> 1 | BD32: =SUMIF('Roslagen Open'!$A$502:$A$1000,$AC32,'Roslagen Open'!$AA$502:$AA$1000) -> 1 | BE32: =SUMIF('Roslagen Open 2'!$A$502:$A$1000,$AC32,'Roslagen Open 2'!$AA$502:$AA$1000) -> 1 | BF32: =SUMIF('Dynapac Open'!$A$502:$A$1000,$AC32,'Dynapac Open'!$AA$502:$AA$1000) -> 1 | BG32: =SUMIF('SmålandsDM ute'!$A$502:$A$1000,$AC32,'SmålandsDM ute'!$AA$502:$AA$1000) -> 1 | BH32: =SUMIF('BlekingeDM ute'!$A$502:$A$1000,$AC32,'BlekingeDM ute'!$AA$502:$AA$1000) -> 1 | BI32: =SUMIF('SvealandsDM ute'!$A$502:$A$1000,$AC32,'SvealandsDM ute'!$AA$502:$AA$1000) -> 1 | BJ32: =SUMIF('Ljungby Open'!$A$502:$A$1000,$AC32,'Ljungby Open'!$AA$502:$AA$1000) -> 1 | BK32: =SUMIF(Höstskon!$A$502:$A$1000,$AC32,Höstskon!$AA$502:$AA$1000) -> 1 | BL32: =SUMIF('Carlskrona Cup'!$A$502:$A$1000,$AC32,'Carlskrona Cup'!$AA$502:$AA$1000) -> 1 | BM32: =SUMIF('Sibbamåla Open'!$A$502:$A$1000,$AC32,'Sibbamåla Open'!$AA$502:$AA$1000) -> 1 | BN32: =SUMIF('Vaxholm Indoor'!$A$502:$A$1000,$AC32,'Vaxholm Indoor'!$AA$502:$AA$1000) -> 1 | BO32: =SUMIF('SM inne'!$A$502:$A$1000,$AC32,'SM inne'!$AA$502:$AA$1000) -> 1 | BP32: =SUMIF('Växjö Open'!$A$502:$A$1000,$AC32,'Växjö Open'!$AA$502:$AA$1000) -> 1 | BQ32: =SUMIF('BlekingeDM inne'!$A$502:$A$1000,$AC32,'BlekingeDM inne'!$AA$502:$AA$1000) -> 1 | BR32: =SUMIF('Svealands-DM inne'!$A$502:$A$1000,$AC32,'Svealands-DM inne'!$AA$502:$AA$1000) -> 1 | BS32: =SUMIF(Värendspokalen!$A$502:$A$1000,$AC32,Värendspokalen!$AA$502:$AA$1000) -> 1 | BT32: =SUMIF('Tingsryd Open'!$A$502:$A$1000,$AC32,'Tingsryd Open'!$AA$502:$AA$1000) -> 3
A33: 27 | B33: Lars-Erik Ottosson | C33: Lanternan | D33: 0 | G33: =IF(BT33=1,"x",SUMIF('Tingsryd Open'!$X$4:$X$400,$AC33,'Tingsryd Open'!$S$4:$S$400)) -> 0 | H33: =IF(AY33=1,"x",SUMIF('Jämjö Open'!$X$4:$X$400,$AC33,'Jämjö Open'!$S$4:$S$400)) -> x | I33: =IF(BA33=1,"x",SUMIF('Björkenäs Open'!$X$4:$X$400,$AC33,'Björkenäs Open'!$S$4:$S$400)) -> x | J33: =IF(BB33=1,"x",SUMIF('SM ute Lö'!$X$4:$X$400,$AC33,'SM ute Lö'!$S$4:$S$400)) -> x | K33: =IF(BC33=1,"x",SUMIF('SM ute Sö'!$X$4:$X$401,$AC33,'SM ute Sö'!$S$4:$S$401)) -> x | L33: =IF(BD33=1,"x",SUMIF('Roslagen Open'!$X$4:$X$400,$AC33,'Roslagen Open'!$S$4:$S$400)) -> x | M33: =IF(BE33=1,"x",SUMIF('Roslagen Open 2'!$X$4:$X$400,$AC33,'Roslagen Open 2'!$S$4:$S$400)) -> x | N33: =IF(BF33=1,"x",SUMIF('Dynapac Open'!$X$4:$X$400,$AC33,'Dynapac Open'!$S$4:$S$400)) -> x | O33: =IF(BG33=1,"x",SUMIF('SmålandsDM ute'!$X$4:$X$400,$AC33,'SmålandsDM ute'!$S$4:$S$400)) -> x | P33: =IF(BH33=1,"x",SUMIF('BlekingeDM ute'!$X$4:$X$400,$AC33,'BlekingeDM ute'!$S$4:$S$400)) -> x | Q33: =IF(BI33=1,"x",SUMIF('SvealandsDM ute'!$X$4:$X$400,$AC33,'SvealandsDM ute'!$S$4:$S$400)) -> x | R33: =IF(BJ33=1,"x",SUMIF('Ljungby Open'!$X$4:$X$406,$AC33,'Ljungby Open'!$S$4:$S$406)) -> x | S33: =IF(AZ33=1,"x",SUMIF('Viby Open'!$X$4:$X$400,$AC33,'Viby Open'!$S$4:$S$400)) -> x | T33: =IF(BP33=1,"x",SUMIF('Växjö Open'!$X$4:$X$400,$AC33,'Växjö Open'!$S$4:$S$400)) -> x | U33: =IF(BK33=1,"x",SUMIF(Höstskon!$X$4:$X$400,$AC33,Höstskon!$S$4:$S$400)) -> x | V33: =IF(BL33=1,"x",SUMIF('Carlskrona Cup'!$X$4:$X$400,$AC33,'Carlskrona Cup'!$S$4:$S$400)) -> x | W33: =IF(BM33=1,"x",SUMIF('Sibbamåla Open'!$X$4:$X$400,$AC33,'Sibbamåla Open'!$S$4:$S$400)) -> x | X33: =IF(BN33=1,"x",SUMIF('Vaxholm Indoor'!$X$4:$X$400,$AC33,'Vaxholm Indoor'!$S$4:$S$400)) -> x | Y33: =IF(BQ33=1,"x",SUMIF('BlekingeDM inne'!$X$4:$X$400,$AC33,'BlekingeDM inne'!$S$4:$S$400)) -> x | Z33: =IF(BR33=1,"x",SUMIF('Svealands-DM inne'!$X$4:$X$400,$AC33,'Svealands-DM inne'!$S$4:$S$400)) -> x | AA33: =IF(BS33=1,"x",SUMIF(Värendspokalen!$X$4:$X$400,$AC33,Värendspokalen!$S$4:$S$400)) -> x | AB33: =IF(BO33=1,"x",SUMIF('SM inne'!$X$4:$X$400,$AC33,'SM inne'!$S$4:$S$400)) -> x | AC33: =IF(B33="","",SUMIF(Kastare!B$2:B$2999,B33,Kastare!A$2:A$2999)) -> 1031 | AE33: 1 | AK33: 0 | AL33: 0 | AM33: 0 | AN33: 0 | AO33: 0 | AP33: 0 | AQ33: 0 | AR33: 0 | AS33: 0 | AT33: 0 | AU33: 1 | AV33: 1 | AW33: 0 | AY33: =SUMIF('Jämjö Open'!$A$502:$A$1000,$AC33,'Jämjö Open'!$AA$502:$AA$1000) -> 1 | AZ33: =SUMIF('Viby Open'!$A$502:$A$1000,$AC33,'Viby Open'!$AA$502:$AA$1000) -> 1 | BA33: =SUMIF('Björkenäs Open'!$A$502:$A$1000,$AC33,'Björkenäs Open'!$AA$502:$AA$1000) -> 1 | BB33: =SUMIF('SM ute Lö'!$A$502:$A$1000,$AC33,'SM ute Lö'!$AA$502:$AA$1000) -> 1 | BC33: =SUMIF('SM ute Sö'!$A$503:$A$1000,$AC33,'SM ute Sö'!$AA$503:$AA$1000) -> 1 | BD33: =SUMIF('Roslagen Open'!$A$502:$A$1000,$AC33,'Roslagen Open'!$AA$502:$AA$1000) -> 1 | BE33: =SUMIF('Roslagen Open 2'!$A$502:$A$1000,$AC33,'Roslagen Open 2'!$AA$502:$AA$1000) -> 1 | BF33: =SUMIF('Dynapac Open'!$A$502:$A$1000,$AC33,'Dynapac Open'!$AA$502:$AA$1000) -> 1 | BG33: =SUMIF('SmålandsDM ute'!$A$502:$A$1000,$AC33,'SmålandsDM ute'!$AA$502:$AA$1000) -> 1 | BH33: =SUMIF('BlekingeDM ute'!$A$502:$A$1000,$AC33,'BlekingeDM ute'!$AA$502:$AA$1000) -> 1 | BI33: =SUMIF('SvealandsDM ute'!$A$502:$A$1000,$AC33,'SvealandsDM ute'!$AA$502:$AA$1000) -> 1 | BJ33: =SUMIF('Ljungby Open'!$A$502:$A$1000,$AC33,'Ljungby Open'!$AA$502:$AA$1000) -> 1 | BK33: =SUMIF(Höstskon!$A$502:$A$1000,$AC33,Höstskon!$AA$502:$AA$1000) -> 1 | BL33: =SUMIF('Carlskrona Cup'!$A$502:$A$1000,$AC33,'Carlskrona Cup'!$AA$502:$AA$1000) -> 1 | BM33: =SUMIF('Sibbamåla Open'!$A$502:$A$1000,$AC33,'Sibbamåla Open'!$AA$502:$AA$1000) -> 1 | BN33: =SUMIF('Vaxholm Indoor'!$A$502:$A$1000,$AC33,'Vaxholm Indoor'!$AA$502:$AA$1000) -> 1 | BO33: =SUMIF('SM inne'!$A$502:$A$1000,$AC33,'SM inne'!$AA$502:$AA$1000) -> 1 | BP33: =SUMIF('Växjö Open'!$A$502:$A$1000,$AC33,'Växjö Open'!$AA$502:$AA$1000) -> 1 | BQ33: =SUMIF('BlekingeDM inne'!$A$502:$A$1000,$AC33,'BlekingeDM inne'!$AA$502:$AA$1000) -> 1 | BR33: =SUMIF('Svealands-DM inne'!$A$502:$A$1000,$AC33,'Svealands-DM inne'!$AA$502:$AA$1000) -> 1 | BS33: =SUMIF(Värendspokalen!$A$502:$A$1000,$AC33,Värendspokalen!$AA$502:$AA$1000) -> 1 | BT33: =SUMIF('Tingsryd Open'!$A$502:$A$1000,$AC33,'Tingsryd Open'!$AA$502:$AA$1000) -> 3
A34: 27 | B34: Anitha Fabbeke | C34: Dynapac Hsc | D34: 0 | G34: =IF(BT34=1,"x",SUMIF('Tingsryd Open'!$X$4:$X$400,$AC34,'Tingsryd Open'!$S$4:$S$400)) -> 0 | H34: =IF(AY34=1,"x",SUMIF('Jämjö Open'!$X$4:$X$400,$AC34,'Jämjö Open'!$S$4:$S$400)) -> x | I34: =IF(BA34=1,"x",SUMIF('Björkenäs Open'!$X$4:$X$400,$AC34,'Björkenäs Open'!$S$4:$S$400)) -> x | J34: =IF(BB34=1,"x",SUMIF('SM ute Lö'!$X$4:$X$400,$AC34,'SM ute Lö'!$S$4:$S$400)) -> x | K34: =IF(BC34=1,"x",SUMIF('SM ute Sö'!$X$4:$X$401,$AC34,'SM ute Sö'!$S$4:$S$401)) -> x | L34: =IF(BD34=1,"x",SUMIF('Roslagen Open'!$X$4:$X$400,$AC34,'Roslagen Open'!$S$4:$S$400)) -> x | M34: =IF(BE34=1,"x",SUMIF('Roslagen Open 2'!$X$4:$X$400,$AC34,'Roslagen Open 2'!$S$4:$S$400)) -> x | N34: =IF(BF34=1,"x",SUMIF('Dynapac Open'!$X$4:$X$400,$AC34,'Dynapac Open'!$S$4:$S$400)) -> x | O34: =IF(BG34=1,"x",SUMIF('SmålandsDM ute'!$X$4:$X$400,$AC34,'SmålandsDM ute'!$S$4:$S$400)) -> x | P34: =IF(BH34=1,"x",SUMIF('BlekingeDM ute'!$X$4:$X$400,$AC34,'BlekingeDM ute'!$S$4:$S$400)) -> x | Q34: =IF(BI34=1,"x",SUMIF('SvealandsDM ute'!$X$4:$X$400,$AC34,'SvealandsDM ute'!$S$4:$S$400)) -> x | R34: =IF(BJ34=1,"x",SUMIF('Ljungby Open'!$X$4:$X$406,$AC34,'Ljungby Open'!$S$4:$S$406)) -> x | S34: =IF(AZ34=1,"x",SUMIF('Viby Open'!$X$4:$X$400,$AC34,'Viby Open'!$S$4:$S$400)) -> x | T34: =IF(BP34=1,"x",SUMIF('Växjö Open'!$X$4:$X$400,$AC34,'Växjö Open'!$S$4:$S$400)) -> x | U34: =IF(BK34=1,"x",SUMIF(Höstskon!$X$4:$X$400,$AC34,Höstskon!$S$4:$S$400)) -> x | V34: =IF(BL34=1,"x",SUMIF('Carlskrona Cup'!$X$4:$X$400,$AC34,'Carlskrona Cup'!$S$4:$S$400)) -> x | W34: =IF(BM34=1,"x",SUMIF('Sibbamåla Open'!$X$4:$X$400,$AC34,'Sibbamåla Open'!$S$4:$S$400)) -> x | X34: =IF(BN34=1,"x",SUMIF('Vaxholm Indoor'!$X$4:$X$400,$AC34,'Vaxholm Indoor'!$S$4:$S$400)) -> x | Y34: =IF(BQ34=1,"x",SUMIF('BlekingeDM inne'!$X$4:$X$400,$AC34,'BlekingeDM inne'!$S$4:$S$400)) -> x | Z34: =IF(BR34=1,"x",SUMIF('Svealands-DM inne'!$X$4:$X$400,$AC34,'Svealands-DM inne'!$S$4:$S$400)) -> x | AA34: =IF(BS34=1,"x",SUMIF(Värendspokalen!$X$4:$X$400,$AC34,Värendspokalen!$S$4:$S$400)) -> x | AB34: =IF(BO34=1,"x",SUMIF('SM inne'!$X$4:$X$400,$AC34,'SM inne'!$S$4:$S$400)) -> x | AC34: =IF(B34="","",SUMIF(Kastare!B$2:B$2999,B34,Kastare!A$2:A$2999)) -> 1014 | AE34: 1 | AK34: 0 | AL34: 0 | AM34: 0 | AN34: 0 | AO34: 0 | AP34: 0 | AQ34: 0 | AR34: 0 | AS34: 0 | AT34: 0 | AU34: 1 | AV34: 1 | AW34: 0 | AY34: =SUMIF('Jämjö Open'!$A$502:$A$1000,$AC34,'Jämjö Open'!$AA$502:$AA$1000) -> 1 | AZ34: =SUMIF('Viby Open'!$A$502:$A$1000,$AC34,'Viby Open'!$AA$502:$AA$1000) -> 1 | BA34: =SUMIF('Björkenäs Open'!$A$502:$A$1000,$AC34,'Björkenäs Open'!$AA$502:$AA$1000) -> 1 | BB34: =SUMIF('SM ute Lö'!$A$502:$A$1000,$AC34,'SM ute Lö'!$AA$502:$AA$1000) -> 1 | BC34: =SUMIF('SM ute Sö'!$A$503:$A$1000,$AC34,'SM ute Sö'!$AA$503:$AA$1000) -> 1 | BD34: =SUMIF('Roslagen Open'!$A$502:$A$1000,$AC34,'Roslagen Open'!$AA$502:$AA$1000) -> 1 | BE34: =SUMIF('Roslagen Open 2'!$A$502:$A$1000,$AC34,'Roslagen Open 2'!$AA$502:$AA$1000) -> 1 | BF34: =SUMIF('Dynapac Open'!$A$502:$A$1000,$AC34,'Dynapac Open'!$AA$502:$AA$1000) -> 1 | BG34: =SUMIF('SmålandsDM ute'!$A$502:$A$1000,$AC34,'SmålandsDM ute'!$AA$502:$AA$1000) -> 1 | BH34: =SUMIF('BlekingeDM ute'!$A$502:$A$1000,$AC34,'BlekingeDM ute'!$AA$502:$AA$1000) -> 1 | BI34: =SUMIF('SvealandsDM ute'!$A$502:$A$1000,$AC34,'SvealandsDM ute'!$AA$502:$AA$1000) -> 1 | BJ34: =SUMIF('Ljungby Open'!$A$502:$A$1000,$AC34,'Ljungby Open'!$AA$502:$AA$1000) -> 1 | BK34: =SUMIF(Höstskon!$A$502:$A$1000,$AC34,Höstskon!$AA$502:$AA$1000) -> 1 | BL34: =SUMIF('Carlskrona Cup'!$A$502:$A$1000,$AC34,'Carlskrona Cup'!$AA$502:$AA$1000) -> 1 | BM34: =SUMIF('Sibbamåla Open'!$A$502:$A$1000,$AC34,'Sibbamåla Open'!$AA$502:$AA$1000) -> 1 | BN34: =SUMIF('Vaxholm Indoor'!$A$502:$A$1000,$AC34,'Vaxholm Indoor'!$AA$502:$AA$1000) -> 1 | BO34: =SUMIF('SM inne'!$A$502:$A$1000,$AC34,'SM inne'!$AA$502:$AA$1000) -> 1 | BP34: =SUMIF('Växjö Open'!$A$502:$A$1000,$AC34,'Växjö Open'!$AA$502:$AA$1000) -> 1 | BQ34: =SUMIF('BlekingeDM inne'!$A$502:$A$1000,$AC34,'BlekingeDM inne'!$AA$502:$AA$1000) -> 1 | BR34: =SUMIF('Svealands-DM inne'!$A$502:$A$1000,$AC34,'Svealands-DM inne'!$AA$502:$AA$1000) -> 1 | BS34: =SUMIF(Värendspokalen!$A$502:$A$1000,$AC34,Värendspokalen!$AA$502:$AA$1000) -> 1 | BT34: =SUMIF('Tingsryd Open'!$A$502:$A$1000,$AC34,'Tingsryd Open'!$AA$502:$AA$1000) -> 3
A35: 27 | B35: Natalie Sundahl | C35: Carlskrona Hsc | D35: 0 | G35: =IF(BT35=1,"x",SUMIF('Tingsryd Open'!$X$4:$X$400,$AC35,'Tingsryd Open'!$S$4:$S$400)) -> 0 | H35: =IF(AY35=1,"x",SUMIF('Jämjö Open'!$X$4:$X$400,$AC35,'Jämjö Open'!$S$4:$S$400)) -> x | I35: =IF(BA35=1,"x",SUMIF('Björkenäs Open'!$X$4:$X$400,$AC35,'Björkenäs Open'!$S$4:$S$400)) -> x | J35: =IF(BB35=1,"x",SUMIF('SM ute Lö'!$X$4:$X$400,$AC35,'SM ute Lö'!$S$4:$S$400)) -> x | K35: =IF(BC35=1,"x",SUMIF('SM ute Sö'!$X$4:$X$401,$AC35,'SM ute Sö'!$S$4:$S$401)) -> x | L35: =IF(BD35=1,"x",SUMIF('Roslagen Open'!$X$4:$X$400,$AC35,'Roslagen Open'!$S$4:$S$400)) -> x | M35: =IF(BE35=1,"x",SUMIF('Roslagen Open 2'!$X$4:$X$400,$AC35,'Roslagen Open 2'!$S$4:$S$400)) -> x | N35: =IF(BF35=1,"x",SUMIF('Dynapac Open'!$X$4:$X$400,$AC35,'Dynapac Open'!$S$4:$S$400)) -> x | O35: =IF(BG35=1,"x",SUMIF('SmålandsDM ute'!$X$4:$X$400,$AC35,'SmålandsDM ute'!$S$4:$S$400)) -> x | P35: =IF(BH35=1,"x",SUMIF('BlekingeDM ute'!$X$4:$X$400,$AC35,'BlekingeDM ute'!$S$4:$S$400)) -> x | Q35: =IF(BI35=1,"x",SUMIF('SvealandsDM ute'!$X$4:$X$400,$AC35,'SvealandsDM ute'!$S$4:$S$400)) -> x | R35: =IF(BJ35=1,"x",SUMIF('Ljungby Open'!$X$4:$X$406,$AC35,'Ljungby Open'!$S$4:$S$406)) -> x | S35: =IF(AZ35=1,"x",SUMIF('Viby Open'!$X$4:$X$400,$AC35,'Viby Open'!$S$4:$S$400)) -> x | T35: =IF(BP35=1,"x",SUMIF('Växjö Open'!$X$4:$X$400,$AC35,'Växjö Open'!$S$4:$S$400)) -> x | U35: =IF(BK35=1,"x",SUMIF(Höstskon!$X$4:$X$400,$AC35,Höstskon!$S$4:$S$400)) -> x | V35: =IF(BL35=1,"x",SUMIF('Carlskrona Cup'!$X$4:$X$400,$AC35,'Carlskrona Cup'!$S$4:$S$400)) -> x | W35: =IF(BM35=1,"x",SUMIF('Sibbamåla Open'!$X$4:$X$400,$AC35,'Sibbamåla Open'!$S$4:$S$400)) -> x | X35: =IF(BN35=1,"x",SUMIF('Vaxholm Indoor'!$X$4:$X$400,$AC35,'Vaxholm Indoor'!$S$4:$S$400)) -> x | Y35: =IF(BQ35=1,"x",SUMIF('BlekingeDM inne'!$X$4:$X$400,$AC35,'BlekingeDM inne'!$S$4:$S$400)) -> x | Z35: =IF(BR35=1,"x",SUMIF('Svealands-DM inne'!$X$4:$X$400,$AC35,'Svealands-DM inne'!$S$4:$S$400)) -> x | AA35: =IF(BS35=1,"x",SUMIF(Värendspokalen!$X$4:$X$400,$AC35,Värendspokalen!$S$4:$S$400)) -> x | AB35: =IF(BO35=1,"x",SUMIF('SM inne'!$X$4:$X$400,$AC35,'SM inne'!$S$4:$S$400)) -> x | AC35: =IF(B35="","",SUMIF(Kastare!B$2:B$2999,B35,Kastare!A$2:A$2999)) -> 1015 | AE35: 1 | AK35: 0 | AL35: 0 | AM35: 0 | AN35: 0 | AO35: 0 | AP35: 0 | AQ35: 0 | AR35: 0 | AS35: 0 | AT35: 0 | AU35: 1 | AV35: 1 | AW35: 0 | AY35: =SUMIF('Jämjö Open'!$A$502:$A$1000,$AC35,'Jämjö Open'!$AA$502:$AA$1000) -> 1 | AZ35: =SUMIF('Viby Open'!$A$502:$A$1000,$AC35,'Viby Open'!$AA$502:$AA$1000) -> 1 | BA35: =SUMIF('Björkenäs Open'!$A$502:$A$1000,$AC35,'Björkenäs Open'!$AA$502:$AA$1000) -> 1 | BB35: =SUMIF('SM ute Lö'!$A$502:$A$1000,$AC35,'SM ute Lö'!$AA$502:$AA$1000) -> 1 | BC35: =SUMIF('SM ute Sö'!$A$503:$A$1000,$AC35,'SM ute Sö'!$AA$503:$AA$1000) -> 1 | BD35: =SUMIF('Roslagen Open'!$A$502:$A$1000,$AC35,'Roslagen Open'!$AA$502:$AA$1000) -> 1 | BE35: =SUMIF('Roslagen Open 2'!$A$502:$A$1000,$AC35,'Roslagen Open 2'!$AA$502:$AA$1000) -> 1 | BF35: =SUMIF('Dynapac Open'!$A$502:$A$1000,$AC35,'Dynapac Open'!$AA$502:$AA$1000) -> 1 | BG35: =SUMIF('SmålandsDM ute'!$A$502:$A$1000,$AC35,'SmålandsDM ute'!$AA$502:$AA$1000) -> 1 | BH35: =SUMIF('BlekingeDM ute'!$A$502:$A$1000,$AC35,'BlekingeDM ute'!$AA$502:$AA$1000) -> 1 | BI35: =SUMIF('SvealandsDM ute'!$A$502:$A$1000,$AC35,'SvealandsDM ute'!$AA$502:$AA$1000) -> 1 | BJ35: =SUMIF('Ljungby Open'!$A$502:$A$1000,$AC35,'Ljungby Open'!$AA$502:$AA$1000) -> 1 | BK35: =SUMIF(Höstskon!$A$502:$A$1000,$AC35,Höstskon!$AA$502:$AA$1000) -> 1 | BL35: =SUMIF('Carlskrona Cup'!$A$502:$A$1000,$AC35,'Carlskrona Cup'!$AA$502:$AA$1000) -> 1 | BM35: =SUMIF('Sibbamåla Open'!$A$502:$A$1000,$AC35,'Sibbamåla Open'!$AA$502:$AA$1000) -> 1 | BN35: =SUMIF('Vaxholm Indoor'!$A$502:$A$1000,$AC35,'Vaxholm Indoor'!$AA$502:$AA$1000) -> 1 | BO35: =SUMIF('SM inne'!$A$502:$A$1000,$AC35,'SM inne'!$AA$502:$AA$1000) -> 1 | BP35: =SUMIF('Växjö Open'!$A$502:$A$1000,$AC35,'Växjö Open'!$AA$502:$AA$1000) -> 1 | BQ35: =SUMIF('BlekingeDM inne'!$A$502:$A$1000,$AC35,'BlekingeDM inne'!$AA$502:$AA$1000) -> 1 | BR35: =SUMIF('Svealands-DM inne'!$A$502:$A$1000,$AC35,'Svealands-DM inne'!$AA$502:$AA$1000) -> 1 | BS35: =SUMIF(Värendspokalen!$A$502:$A$1000,$AC35,Värendspokalen!$AA$502:$AA$1000) -> 1 | BT35: =SUMIF('Tingsryd Open'!$A$502:$A$1000,$AC35,'Tingsryd Open'!$AA$502:$AA$1000) -> 3
A36: 27 | B36: Bengt Fabbeke | C36: Dynapac Hsc | D36: 0 | G36: =IF(BT36=1,"x",SUMIF('Tingsryd Open'!$X$4:$X$400,$AC36,'Tingsryd Open'!$S$4:$S$400)) -> 0 | H36: =IF(AY36=1,"x",SUMIF('Jämjö Open'!$X$4:$X$400,$AC36,'Jämjö Open'!$S$4:$S$400)) -> x | I36: =IF(BA36=1,"x",SUMIF('Björkenäs Open'!$X$4:$X$400,$AC36,'Björkenäs Open'!$S$4:$S$400)) -> x | J36: =IF(BB36=1,"x",SUMIF('SM ute Lö'!$X$4:$X$400,$AC36,'SM ute Lö'!$S$4:$S$400)) -> x | K36: =IF(BC36=1,"x",SUMIF('SM ute Sö'!$X$4:$X$401,$AC36,'SM ute Sö'!$S$4:$S$401)) -> x | L36: =IF(BD36=1,"x",SUMIF('Roslagen Open'!$X$4:$X$400,$AC36,'Roslagen Open'!$S$4:$S$400)) -> x | M36: =IF(BE36=1,"x",SUMIF('Roslagen Open 2'!$X$4:$X$400,$AC36,'Roslagen Open 2'!$S$4:$S$400)) -> x | N36: =IF(BF36=1,"x",SUMIF('Dynapac Open'!$X$4:$X$400,$AC36,'Dynapac Open'!$S$4:$S$400)) -> x | O36: =IF(BG36=1,"x",SUMIF('SmålandsDM ute'!$X$4:$X$400,$AC36,'SmålandsDM ute'!$S$4:$S$400)) -> x | P36: =IF(BH36=1,"x",SUMIF('BlekingeDM ute'!$X$4:$X$400,$AC36,'BlekingeDM ute'!$S$4:$S$400)) -> x | Q36: =IF(BI36=1,"x",SUMIF('SvealandsDM ute'!$X$4:$X$400,$AC36,'SvealandsDM ute'!$S$4:$S$400)) -> x | R36: =IF(BJ36=1,"x",SUMIF('Ljungby Open'!$X$4:$X$406,$AC36,'Ljungby Open'!$S$4:$S$406)) -> x | S36: =IF(AZ36=1,"x",SUMIF('Viby Open'!$X$4:$X$400,$AC36,'Viby Open'!$S$4:$S$400)) -> x | T36: =IF(BP36=1,"x",SUMIF('Växjö Open'!$X$4:$X$400,$AC36,'Växjö Open'!$S$4:$S$400)) -> x | U36: =IF(BK36=1,"x",SUMIF(Höstskon!$X$4:$X$400,$AC36,Höstskon!$S$4:$S$400)) -> x | V36: =IF(BL36=1,"x",SUMIF('Carlskrona Cup'!$X$4:$X$400,$AC36,'Carlskrona Cup'!$S$4:$S$400)) -> x | W36: =IF(BM36=1,"x",SUMIF('Sibbamåla Open'!$X$4:$X$400,$AC36,'Sibbamåla Open'!$S$4:$S$400)) -> x | X36: =IF(BN36=1,"x",SUMIF('Vaxholm Indoor'!$X$4:$X$400,$AC36,'Vaxholm Indoor'!$S$4:$S$400)) -> x | Y36: =IF(BQ36=1,"x",SUMIF('BlekingeDM inne'!$X$4:$X$400,$AC36,'BlekingeDM inne'!$S$4:$S$400)) -> x | Z36: =IF(BR36=1,"x",SUMIF('Svealands-DM inne'!$X$4:$X$400,$AC36,'Svealands-DM inne'!$S$4:$S$400)) -> x | AA36: =IF(BS36=1,"x",SUMIF(Värendspokalen!$X$4:$X$400,$AC36,Värendspokalen!$S$4:$S$400)) -> x | AB36: =IF(BO36=1,"x",SUMIF('SM inne'!$X$4:$X$400,$AC36,'SM inne'!$S$4:$S$400)) -> x | AC36: =IF(B36="","",SUMIF(Kastare!B$2:B$2999,B36,Kastare!A$2:A$2999)) -> 1037 | AE36: 1 | AK36: 0 | AL36: 0 | AM36: 0 | AN36: 0 | AO36: 0 | AP36: 0 | AQ36: 0 | AR36: 0 | AS36: 0 | AT36: 0 | AU36: 1 | AV36: 1 | AW36: 0 | AY36: =SUMIF('Jämjö Open'!$A$502:$A$1000,$AC36,'Jämjö Open'!$AA$502:$AA$1000) -> 1 | AZ36: =SUMIF('Viby Open'!$A$502:$A$1000,$AC36,'Viby Open'!$AA$502:$AA$1000) -> 1 | BA36: =SUMIF('Björkenäs Open'!$A$502:$A$1000,$AC36,'Björkenäs Open'!$AA$502:$AA$1000) -> 1 | BB36: =SUMIF('SM ute Lö'!$A$502:$A$1000,$AC36,'SM ute Lö'!$AA$502:$AA$1000) -> 1 | BC36: =SUMIF('SM ute Sö'!$A$503:$A$1000,$AC36,'SM ute Sö'!$AA$503:$AA$1000) -> 1 | BD36: =SUMIF('Roslagen Open'!$A$502:$A$1000,$AC36,'Roslagen Open'!$AA$502:$AA$1000) -> 1 | BE36: =SUMIF('Roslagen Open 2'!$A$502:$A$1000,$AC36,'Roslagen Open 2'!$AA$502:$AA$1000) -> 1 | BF36: =SUMIF('Dynapac Open'!$A$502:$A$1000,$AC36,'Dynapac Open'!$AA$502:$AA$1000) -> 1 | BG36: =SUMIF('SmålandsDM ute'!$A$502:$A$1000,$AC36,'SmålandsDM ute'!$AA$502:$AA$1000) -> 1 | BH36: =SUMIF('BlekingeDM ute'!$A$502:$A$1000,$AC36,'BlekingeDM ute'!$AA$502:$AA$1000) -> 1 | BI36: =SUMIF('SvealandsDM ute'!$A$502:$A$1000,$AC36,'SvealandsDM ute'!$AA$502:$AA$1000) -> 1 | BJ36: =SUMIF('Ljungby Open'!$A$502:$A$1000,$AC36,'Ljungby Open'!$AA$502:$AA$1000) -> 1 | BK36: =SUMIF(Höstskon!$A$502:$A$1000,$AC36,Höstskon!$AA$502:$AA$1000) -> 1 | BL36: =SUMIF('Carlskrona Cup'!$A$502:$A$1000,$AC36,'Carlskrona Cup'!$AA$502:$AA$1000) -> 1 | BM36: =SUMIF('Sibbamåla Open'!$A$502:$A$1000,$AC36,'Sibbamåla Open'!$AA$502:$AA$1000) -> 1 | BN36: =SUMIF('Vaxholm Indoor'!$A$502:$A$1000,$AC36,'Vaxholm Indoor'!$AA$502:$AA$1000) -> 1 | BO36: =SUMIF('SM inne'!$A$502:$A$1000,$AC36,'SM inne'!$AA$502:$AA$1000) -> 1 | BP36: =SUMIF('Växjö Open'!$A$502:$A$1000,$AC36,'Växjö Open'!$AA$502:$AA$1000) -> 1 | BQ36: =SUMIF('BlekingeDM inne'!$A$502:$A$1000,$AC36,'BlekingeDM inne'!$AA$502:$AA$1000) -> 1 | BR36: =SUMIF('Svealands-DM inne'!$A$502:$A$1000,$AC36,'Svealands-DM inne'!$AA$502:$AA$1000) -> 1 | BS36: =SUMIF(Värendspokalen!$A$502:$A$1000,$AC36,Värendspokalen!$AA$502:$AA$1000) -> 1 | BT36: =SUMIF('Tingsryd Open'!$A$502:$A$1000,$AC36,'Tingsryd Open'!$AA$502:$AA$1000) -> 3
A37: 27 | B37: Stefan Olofsson | C37: Korpen Nybro | D37: 0 | G37: =IF(BT37=1,"x",SUMIF('Tingsryd Open'!$X$4:$X$400,$AC37,'Tingsryd Open'!$S$4:$S$400)) -> 0 | H37: =IF(AY37=1,"x",SUMIF('Jämjö Open'!$X$4:$X$400,$AC37,'Jämjö Open'!$S$4:$S$400)) -> x | I37: =IF(BA37=1,"x",SUMIF('Björkenäs Open'!$X$4:$X$400,$AC37,'Björkenäs Open'!$S$4:$S$400)) -> x | J37: =IF(BB37=1,"x",SUMIF('SM ute Lö'!$X$4:$X$400,$AC37,'SM ute Lö'!$S$4:$S$400)) -> x | K37: =IF(BC37=1,"x",SUMIF('SM ute Sö'!$X$4:$X$401,$AC37,'SM ute Sö'!$S$4:$S$401)) -> x | L37: =IF(BD37=1,"x",SUMIF('Roslagen Open'!$X$4:$X$400,$AC37,'Roslagen Open'!$S$4:$S$400)) -> x | M37: =IF(BE37=1,"x",SUMIF('Roslagen Open 2'!$X$4:$X$400,$AC37,'Roslagen Open 2'!$S$4:$S$400)) -> x | N37: =IF(BF37=1,"x",SUMIF('Dynapac Open'!$X$4:$X$400,$AC37,'Dynapac Open'!$S$4:$S$400)) -> x | O37: =IF(BG37=1,"x",SUMIF('SmålandsDM ute'!$X$4:$X$400,$AC37,'SmålandsDM ute'!$S$4:$S$400)) -> x | P37: =IF(BH37=1,"x",SUMIF('BlekingeDM ute'!$X$4:$X$400,$AC37,'BlekingeDM ute'!$S$4:$S$400)) -> x | Q37: =IF(BI37=1,"x",SUMIF('SvealandsDM ute'!$X$4:$X$400,$AC37,'SvealandsDM ute'!$S$4:$S$400)) -> x | R37: =IF(BJ37=1,"x",SUMIF('Ljungby Open'!$X$4:$X$406,$AC37,'Ljungby Open'!$S$4:$S$406)) -> x | S37: =IF(AZ37=1,"x",SUMIF('Viby Open'!$X$4:$X$400,$AC37,'Viby Open'!$S$4:$S$400)) -> x | T37: =IF(BP37=1,"x",SUMIF('Växjö Open'!$X$4:$X$400,$AC37,'Växjö Open'!$S$4:$S$400)) -> x | U37: =IF(BK37=1,"x",SUMIF(Höstskon!$X$4:$X$400,$AC37,Höstskon!$S$4:$S$400)) -> x | V37: =IF(BL37=1,"x",SUMIF('Carlskrona Cup'!$X$4:$X$400,$AC37,'Carlskrona Cup'!$S$4:$S$400)) -> x | W37: =IF(BM37=1,"x",SUMIF('Sibbamåla Open'!$X$4:$X$400,$AC37,'Sibbamåla Open'!$S$4:$S$400)) -> x | X37: =IF(BN37=1,"x",SUMIF('Vaxholm Indoor'!$X$4:$X$400,$AC37,'Vaxholm Indoor'!$S$4:$S$400)) -> x | Y37: =IF(BQ37=1,"x",SUMIF('BlekingeDM inne'!$X$4:$X$400,$AC37,'BlekingeDM inne'!$S$4:$S$400)) -> x | Z37: =IF(BR37=1,"x",SUMIF('Svealands-DM inne'!$X$4:$X$400,$AC37,'Svealands-DM inne'!$S$4:$S$400)) -> x | AA37: =IF(BS37=1,"x",SUMIF(Värendspokalen!$X$4:$X$400,$AC37,Värendspokalen!$S$4:$S$400)) -> x | AB37: =IF(BO37=1,"x",SUMIF('SM inne'!$X$4:$X$400,$AC37,'SM inne'!$S$4:$S$400)) -> x | AC37: =IF(B37="","",SUMIF(Kastare!B$2:B$2999,B37,Kastare!A$2:A$2999)) -> 1019 | AE37: 1 | AK37: 0 | AL37: 0 | AM37: 0 | AN37: 0 | AO37: 0 | AP37: 0 | AQ37: 0 | AR37: 0 | AS37: 0 | AT37: 0 | AU37: 1 | AV37: 1 | AW37: 0 | AY37: =SUMIF('Jämjö Open'!$A$502:$A$1000,$AC37,'Jämjö Open'!$AA$502:$AA$1000) -> 1 | AZ37: =SUMIF('Viby Open'!$A$502:$A$1000,$AC37,'Viby Open'!$AA$502:$AA$1000) -> 1 | BA37: =SUMIF('Björkenäs Open'!$A$502:$A$1000,$AC37,'Björkenäs Open'!$AA$502:$AA$1000) -> 1 | BB37: =SUMIF('SM ute Lö'!$A$502:$A$1000,$AC37,'SM ute Lö'!$AA$502:$AA$1000) -> 1 | BC37: =SUMIF('SM ute Sö'!$A$503:$A$1000,$AC37,'SM ute Sö'!$AA$503:$AA$1000) -> 1 | BD37: =SUMIF('Roslagen Open'!$A$502:$A$1000,$AC37,'Roslagen Open'!$AA$502:$AA$1000) -> 1 | BE37: =SUMIF('Roslagen Open 2'!$A$502:$A$1000,$AC37,'Roslagen Open 2'!$AA$502:$AA$1000) -> 1 | BF37: =SUMIF('Dynapac Open'!$A$502:$A$1000,$AC37,'Dynapac Open'!$AA$502:$AA$1000) -> 1 | BG37: =SUMIF('SmålandsDM ute'!$A$502:$A$1000,$AC37,'SmålandsDM ute'!$AA$502:$AA$1000) -> 1 | BH37: =SUMIF('BlekingeDM ute'!$A$502:$A$1000,$AC37,'BlekingeDM ute'!$AA$502:$AA$1000) -> 1 | BI37: =SUMIF('SvealandsDM ute'!$A$502:$A$1000,$AC37,'SvealandsDM ute'!$AA$502:$AA$1000) -> 1 | BJ37: =SUMIF('Ljungby Open'!$A$502:$A$1000,$AC37,'Ljungby Open'!$AA$502:$AA$1000) -> 1 | BK37: =SUMIF(Höstskon!$A$502:$A$1000,$AC37,Höstskon!$AA$502:$AA$1000) -> 1 | BL37: =SUMIF('Carlskrona Cup'!$A$502:$A$1000,$AC37,'Carlskrona Cup'!$AA$502:$AA$1000) -> 1 | BM37: =SUMIF('Sibbamåla Open'!$A$502:$A$1000,$AC37,'Sibbamåla Open'!$AA$502:$AA$1000) -> 1 | BN37: =SUMIF('Vaxholm Indoor'!$A$502:$A$1000,$AC37,'Vaxholm Indoor'!$AA$502:$AA$1000) -> 1 | BO37: =SUMIF('SM inne'!$A$502:$A$1000,$AC37,'SM inne'!$AA$502:$AA$1000) -> 1 | BP37: =SUMIF('Växjö Open'!$A$502:$A$1000,$AC37,'Växjö Open'!$AA$502:$AA$1000) -> 1 | BQ37: =SUMIF('BlekingeDM inne'!$A$502:$A$1000,$AC37,'BlekingeDM inne'!$AA$502:$AA$1000) -> 1 | BR37: =SUMIF('Svealands-DM inne'!$A$502:$A$1000,$AC37,'Svealands-DM inne'!$AA$502:$AA$1000) -> 1 | BS37: =SUMIF(Värendspokalen!$A$502:$A$1000,$AC37,Värendspokalen!$AA$502:$AA$1000) -> 1 | BT37: =SUMIF('Tingsryd Open'!$A$502:$A$1000,$AC37,'Tingsryd Open'!$AA$502:$AA$1000) -> 3
A38: 27 | B38: Bengt Andersson | C38: Växjö Hsk | D38: 0 | G38: =IF(BT38=1,"x",SUMIF('Tingsryd Open'!$X$4:$X$400,$AC38,'Tingsryd Open'!$S$4:$S$400)) -> 0 | H38: =IF(AY38=1,"x",SUMIF('Jämjö Open'!$X$4:$X$400,$AC38,'Jämjö Open'!$S$4:$S$400)) -> x | I38: =IF(BA38=1,"x",SUMIF('Björkenäs Open'!$X$4:$X$400,$AC38,'Björkenäs Open'!$S$4:$S$400)) -> x | J38: =IF(BB38=1,"x",SUMIF('SM ute Lö'!$X$4:$X$400,$AC38,'SM ute Lö'!$S$4:$S$400)) -> x | K38: =IF(BC38=1,"x",SUMIF('SM ute Sö'!$X$4:$X$401,$AC38,'SM ute Sö'!$S$4:$S$401)) -> x | L38: =IF(BD38=1,"x",SUMIF('Roslagen Open'!$X$4:$X$400,$AC38,'Roslagen Open'!$S$4:$S$400)) -> x | M38: =IF(BE38=1,"x",SUMIF('Roslagen Open 2'!$X$4:$X$400,$AC38,'Roslagen Open 2'!$S$4:$S$400)) -> x | N38: =IF(BF38=1,"x",SUMIF('Dynapac Open'!$X$4:$X$400,$AC38,'Dynapac Open'!$S$4:$S$400)) -> x | O38: =IF(BG38=1,"x",SUMIF('SmålandsDM ute'!$X$4:$X$400,$AC38,'SmålandsDM ute'!$S$4:$S$400)) -> x | P38: =IF(BH38=1,"x",SUMIF('BlekingeDM ute'!$X$4:$X$400,$AC38,'BlekingeDM ute'!$S$4:$S$400)) -> x | Q38: =IF(BI38=1,"x",SUMIF('SvealandsDM ute'!$X$4:$X$400,$AC38,'SvealandsDM ute'!$S$4:$S$400)) -> x | R38: =IF(BJ38=1,"x",SUMIF('Ljungby Open'!$X$4:$X$406,$AC38,'Ljungby Open'!$S$4:$S$406)) -> x | S38: =IF(AZ38=1,"x",SUMIF('Viby Open'!$X$4:$X$400,$AC38,'Viby Open'!$S$4:$S$400)) -> x | T38: =IF(BP38=1,"x",SUMIF('Växjö Open'!$X$4:$X$400,$AC38,'Växjö Open'!$S$4:$S$400)) -> x | U38: =IF(BK38=1,"x",SUMIF(Höstskon!$X$4:$X$400,$AC38,Höstskon!$S$4:$S$400)) -> x | V38: =IF(BL38=1,"x",SUMIF('Carlskrona Cup'!$X$4:$X$400,$AC38,'Carlskrona Cup'!$S$4:$S$400)) -> x | W38: =IF(BM38=1,"x",SUMIF('Sibbamåla Open'!$X$4:$X$400,$AC38,'Sibbamåla Open'!$S$4:$S$400)) -> x | X38: =IF(BN38=1,"x",SUMIF('Vaxholm Indoor'!$X$4:$X$400,$AC38,'Vaxholm Indoor'!$S$4:$S$400)) -> x | Y38: =IF(BQ38=1,"x",SUMIF('BlekingeDM inne'!$X$4:$X$400,$AC38,'BlekingeDM inne'!$S$4:$S$400)) -> x | Z38: =IF(BR38=1,"x",SUMIF('Svealands-DM inne'!$X$4:$X$400,$AC38,'Svealands-DM inne'!$S$4:$S$400)) -> x | AA38: =IF(BS38=1,"x",SUMIF(Värendspokalen!$X$4:$X$400,$AC38,Värendspokalen!$S$4:$S$400)) -> x | AB38: =IF(BO38=1,"x",SUMIF('SM inne'!$X$4:$X$400,$AC38,'SM inne'!$S$4:$S$400)) -> x | AC38: =IF(B38="","",SUMIF(Kastare!B$2:B$2999,B38,Kastare!A$2:A$2999)) -> 1026 | AE38: 1 | AK38: 0 | AL38: 0 | AM38: 0 | AN38: 0 | AO38: 0 | AP38: 0 | AQ38: 0 | AR38: 0 | AS38: 0 | AT38: 0 | AU38: 1 | AV38: 1 | AW38: 0 | AY38: =SUMIF('Jämjö Open'!$A$502:$A$1000,$AC38,'Jämjö Open'!$AA$502:$AA$1000) -> 1 | AZ38: =SUMIF('Viby Open'!$A$502:$A$1000,$AC38,'Viby Open'!$AA$502:$AA$1000) -> 1 | BA38: =SUMIF('Björkenäs Open'!$A$502:$A$1000,$AC38,'Björkenäs Open'!$AA$502:$AA$1000) -> 1 | BB38: =SUMIF('SM ute Lö'!$A$502:$A$1000,$AC38,'SM ute Lö'!$AA$502:$AA$1000) -> 1 | BC38: =SUMIF('SM ute Sö'!$A$503:$A$1000,$AC38,'SM ute Sö'!$AA$503:$AA$1000) -> 1 | BD38: =SUMIF('Roslagen Open'!$A$502:$A$1000,$AC38,'Roslagen Open'!$AA$502:$AA$1000) -> 1 | BE38: =SUMIF('Roslagen Open 2'!$A$502:$A$1000,$AC38,'Roslagen Open 2'!$AA$502:$AA$1000) -> 1 | BF38: =SUMIF('Dynapac Open'!$A$502:$A$1000,$AC38,'Dynapac Open'!$AA$502:$AA$1000) -> 1 | BG38: =SUMIF('SmålandsDM ute'!$A$502:$A$1000,$AC38,'SmålandsDM ute'!$AA$502:$AA$1000) -> 1 | BH38: =SUMIF('BlekingeDM ute'!$A$502:$A$1000,$AC38,'BlekingeDM ute'!$AA$502:$AA$1000) -> 1 | BI38: =SUMIF('SvealandsDM ute'!$A$502:$A$1000,$AC38,'SvealandsDM ute'!$AA$502:$AA$1000) -> 1 | BJ38: =SUMIF('Ljungby Open'!$A$502:$A$1000,$AC38,'Ljungby Open'!$AA$502:$AA$1000) -> 1 | BK38: =SUMIF(Höstskon!$A$502:$A$1000,$AC38,Höstskon!$AA$502:$AA$1000) -> 1 | BL38: =SUMIF('Carlskrona Cup'!$A$502:$A$1000,$AC38,'Carlskrona Cup'!$AA$502:$AA$1000) -> 1 | BM38: =SUMIF('Sibbamåla Open'!$A$502:$A$1000,$AC38,'Sibbamåla Open'!$AA$502:$AA$1000) -> 1 | BN38: =SUMIF('Vaxholm Indoor'!$A$502:$A$1000,$AC38,'Vaxholm Indoor'!$AA$502:$AA$1000) -> 1 | BO38: =SUMIF('SM inne'!$A$502:$A$1000,$AC38,'SM inne'!$AA$502:$AA$1000) -> 1 | BP38: =SUMIF('Växjö Open'!$A$502:$A$1000,$AC38,'Växjö Open'!$AA$502:$AA$1000) -> 1 | BQ38: =SUMIF('BlekingeDM inne'!$A$502:$A$1000,$AC38,'BlekingeDM inne'!$AA$502:$AA$1000) -> 1 | BR38: =SUMIF('Svealands-DM inne'!$A$502:$A$1000,$AC38,'Svealands-DM inne'!$AA$502:$AA$1000) -> 1 | BS38: =SUMIF(Värendspokalen!$A$502:$A$1000,$AC38,Värendspokalen!$AA$502:$AA$1000) -> 1 | BT38: =SUMIF('Tingsryd Open'!$A$502:$A$1000,$AC38,'Tingsryd Open'!$AA$502:$AA$1000) -> 3
A39: 27 | B39: Janne Pettersson | C39: Balders Hsk | D39: 0 | G39: =IF(BT39=1,"x",SUMIF('Tingsryd Open'!$X$4:$X$400,$AC39,'Tingsryd Open'!$S$4:$S$400)) -> 0 | H39: =IF(AY39=1,"x",SUMIF('Jämjö Open'!$X$4:$X$400,$AC39,'Jämjö Open'!$S$4:$S$400)) -> x | I39: =IF(BA39=1,"x",SUMIF('Björkenäs Open'!$X$4:$X$400,$AC39,'Björkenäs Open'!$S$4:$S$400)) -> x | J39: =IF(BB39=1,"x",SUMIF('SM ute Lö'!$X$4:$X$400,$AC39,'SM ute Lö'!$S$4:$S$400)) -> x | K39: =IF(BC39=1,"x",SUMIF('SM ute Sö'!$X$4:$X$401,$AC39,'SM ute Sö'!$S$4:$S$401)) -> x | L39: =IF(BD39=1,"x",SUMIF('Roslagen Open'!$X$4:$X$400,$AC39,'Roslagen Open'!$S$4:$S$400)) -> x | M39: =IF(BE39=1,"x",SUMIF('Roslagen Open 2'!$X$4:$X$400,$AC39,'Roslagen Open 2'!$S$4:$S$400)) -> x | N39: =IF(BF39=1,"x",SUMIF('Dynapac Open'!$X$4:$X$400,$AC39,'Dynapac Open'!$S$4:$S$400)) -> x | O39: =IF(BG39=1,"x",SUMIF('SmålandsDM ute'!$X$4:$X$400,$AC39,'SmålandsDM ute'!$S$4:$S$400)) -> x | P39: =IF(BH39=1,"x",SUMIF('BlekingeDM ute'!$X$4:$X$400,$AC39,'BlekingeDM ute'!$S$4:$S$400)) -> x | Q39: =IF(BI39=1,"x",SUMIF('SvealandsDM ute'!$X$4:$X$400,$AC39,'SvealandsDM ute'!$S$4:$S$400)) -> x | R39: =IF(BJ39=1,"x",SUMIF('Ljungby Open'!$X$4:$X$406,$AC39,'Ljungby Open'!$S$4:$S$406)) -> x | S39: =IF(AZ39=1,"x",SUMIF('Viby Open'!$X$4:$X$400,$AC39,'Viby Open'!$S$4:$S$400)) -> x | T39: =IF(BP39=1,"x",SUMIF('Växjö Open'!$X$4:$X$400,$AC39,'Växjö Open'!$S$4:$S$400)) -> x | U39: =IF(BK39=1,"x",SUMIF(Höstskon!$X$4:$X$400,$AC39,Höstskon!$S$4:$S$400)) -> x | V39: =IF(BL39=1,"x",SUMIF('Carlskrona Cup'!$X$4:$X$400,$AC39,'Carlskrona Cup'!$S$4:$S$400)) -> x | W39: =IF(BM39=1,"x",SUMIF('Sibbamåla Open'!$X$4:$X$400,$AC39,'Sibbamåla Open'!$S$4:$S$400)) -> x | X39: =IF(BN39=1,"x",SUMIF('Vaxholm Indoor'!$X$4:$X$400,$AC39,'Vaxholm Indoor'!$S$4:$S$400)) -> x | Y39: =IF(BQ39=1,"x",SUMIF('BlekingeDM inne'!$X$4:$X$400,$AC39,'BlekingeDM inne'!$S$4:$S$400)) -> x | Z39: =IF(BR39=1,"x",SUMIF('Svealands-DM inne'!$X$4:$X$400,$AC39,'Svealands-DM inne'!$S$4:$S$400)) -> x | AA39: =IF(BS39=1,"x",SUMIF(Värendspokalen!$X$4:$X$400,$AC39,Värendspokalen!$S$4:$S$400)) -> x | AB39: =IF(BO39=1,"x",SUMIF('SM inne'!$X$4:$X$400,$AC39,'SM inne'!$S$4:$S$400)) -> x | AC39: =IF(B39="","",SUMIF(Kastare!B$2:B$2999,B39,Kastare!A$2:A$2999)) -> 1098 | AE39: 1 | AK39: 0 | AL39: 0 | AM39: 0 | AN39: 0 | AO39: 0 | AP39: 0 | AQ39: 0 | AR39: 0 | AS39: 0 | AT39: 0 | AU39: 1 | AV39: 1 | AW39: 0 | AY39: =SUMIF('Jämjö Open'!$A$502:$A$1000,$AC39,'Jämjö Open'!$AA$502:$AA$1000) -> 1 | AZ39: =SUMIF('Viby Open'!$A$502:$A$1000,$AC39,'Viby Open'!$AA$502:$AA$1000) -> 1 | BA39: =SUMIF('Björkenäs Open'!$A$502:$A$1000,$AC39,'Björkenäs Open'!$AA$502:$AA$1000) -> 1 | BB39: =SUMIF('SM ute Lö'!$A$502:$A$1000,$AC39,'SM ute Lö'!$AA$502:$AA$1000) -> 1 | BC39: =SUMIF('SM ute Sö'!$A$503:$A$1000,$AC39,'SM ute Sö'!$AA$503:$AA$1000) -> 1 | BD39: =SUMIF('Roslagen Open'!$A$502:$A$1000,$AC39,'Roslagen Open'!$AA$502:$AA$1000) -> 1 | BE39: =SUMIF('Roslagen Open 2'!$A$502:$A$1000,$AC39,'Roslagen Open 2'!$AA$502:$AA$1000) -> 1 | BF39: =SUMIF('Dynapac Open'!$A$502:$A$1000,$AC39,'Dynapac Open'!$AA$502:$AA$1000) -> 1 | BG39: =SUMIF('SmålandsDM ute'!$A$502:$A$1000,$AC39,'SmålandsDM ute'!$AA$502:$AA$1000) -> 1 | BH39: =SUMIF('BlekingeDM ute'!$A$502:$A$1000,$AC39,'BlekingeDM ute'!$AA$502:$AA$1000) -> 1 | BI39: =SUMIF('SvealandsDM ute'!$A$502:$A$1000,$AC39,'SvealandsDM ute'!$AA$502:$AA$1000) -> 1 | BJ39: =SUMIF('Ljungby Open'!$A$502:$A$1000,$AC39,'Ljungby Open'!$AA$502:$AA$1000) -> 1 | BK39: =SUMIF(Höstskon!$A$502:$A$1000,$AC39,Höstskon!$AA$502:$AA$1000) -> 1 | BL39: =SUMIF('Carlskrona Cup'!$A$502:$A$1000,$AC39,'Carlskrona Cup'!$AA$502:$AA$1000) -> 1 | BM39: =SUMIF('Sibbamåla Open'!$A$502:$A$1000,$AC39,'Sibbamåla Open'!$AA$502:$AA$1000) -> 1 | BN39: =SUMIF('Vaxholm Indoor'!$A$502:$A$1000,$AC39,'Vaxholm Indoor'!$AA$502:$AA$1000) -> 1 | BO39: =SUMIF('SM inne'!$A$502:$A$1000,$AC39,'SM inne'!$AA$502:$AA$1000) -> 1 | BP39: =SUMIF('Växjö Open'!$A$502:$A$1000,$AC39,'Växjö Open'!$AA$502:$AA$1000) -> 1 | BQ39: =SUMIF('BlekingeDM inne'!$A$502:$A$1000,$AC39,'BlekingeDM inne'!$AA$502:$AA$1000) -> 1 | BR39: =SUMIF('Svealands-DM inne'!$A$502:$A$1000,$AC39,'Svealands-DM inne'!$AA$502:$AA$1000) -> 1 | BS39: =SUMIF(Värendspokalen!$A$502:$A$1000,$AC39,Värendspokalen!$AA$502:$AA$1000) -> 1 | BT39: =SUMIF('Tingsryd Open'!$A$502:$A$1000,$AC39,'Tingsryd Open'!$AA$502:$AA$1000) -> 3
A40: 27 | B40: Martin Anjou | C40: Balders HSK | D40: 0 | G40: =IF(BT40=1,"x",SUMIF('Tingsryd Open'!$X$4:$X$400,$AC40,'Tingsryd Open'!$S$4:$S$400)) -> 0 | H40: =IF(AY40=1,"x",SUMIF('Jämjö Open'!$X$4:$X$400,$AC40,'Jämjö Open'!$S$4:$S$400)) -> x | I40: =IF(BA40=1,"x",SUMIF('Björkenäs Open'!$X$4:$X$400,$AC40,'Björkenäs Open'!$S$4:$S$400)) -> x | J40: =IF(BB40=1,"x",SUMIF('SM ute Lö'!$X$4:$X$400,$AC40,'SM ute Lö'!$S$4:$S$400)) -> x | K40: =IF(BC40=1,"x",SUMIF('SM ute Sö'!$X$4:$X$401,$AC40,'SM ute Sö'!$S$4:$S$401)) -> x | L40: =IF(BD40=1,"x",SUMIF('Roslagen Open'!$X$4:$X$400,$AC40,'Roslagen Open'!$S$4:$S$400)) -> x | M40: =IF(BE40=1,"x",SUMIF('Roslagen Open 2'!$X$4:$X$400,$AC40,'Roslagen Open 2'!$S$4:$S$400)) -> x | N40: =IF(BF40=1,"x",SUMIF('Dynapac Open'!$X$4:$X$400,$AC40,'Dynapac Open'!$S$4:$S$400)) -> x | O40: =IF(BG40=1,"x",SUMIF('SmålandsDM ute'!$X$4:$X$400,$AC40,'SmålandsDM ute'!$S$4:$S$400)) -> x | P40: =IF(BH40=1,"x",SUMIF('BlekingeDM ute'!$X$4:$X$400,$AC40,'BlekingeDM ute'!$S$4:$S$400)) -> x | Q40: =IF(BI40=1,"x",SUMIF('SvealandsDM ute'!$X$4:$X$400,$AC40,'SvealandsDM ute'!$S$4:$S$400)) -> x | R40: =IF(BJ40=1,"x",SUMIF('Ljungby Open'!$X$4:$X$406,$AC40,'Ljungby Open'!$S$4:$S$406)) -> x | S40: =IF(AZ40=1,"x",SUMIF('Viby Open'!$X$4:$X$400,$AC40,'Viby Open'!$S$4:$S$400)) -> x | T40: =IF(BP40=1,"x",SUMIF('Växjö Open'!$X$4:$X$400,$AC40,'Växjö Open'!$S$4:$S$400)) -> x | U40: =IF(BK40=1,"x",SUMIF(Höstskon!$X$4:$X$400,$AC40,Höstskon!$S$4:$S$400)) -> x | V40: =IF(BL40=1,"x",SUMIF('Carlskrona Cup'!$X$4:$X$400,$AC40,'Carlskrona Cup'!$S$4:$S$400)) -> x | W40: =IF(BM40=1,"x",SUMIF('Sibbamåla Open'!$X$4:$X$400,$AC40,'Sibbamåla Open'!$S$4:$S$400)) -> x | X40: =IF(BN40=1,"x",SUMIF('Vaxholm Indoor'!$X$4:$X$400,$AC40,'Vaxholm Indoor'!$S$4:$S$400)) -> x | Y40: =IF(BQ40=1,"x",SUMIF('BlekingeDM inne'!$X$4:$X$400,$AC40,'BlekingeDM inne'!$S$4:$S$400)) -> x | Z40: =IF(BR40=1,"x",SUMIF('Svealands-DM inne'!$X$4:$X$400,$AC40,'Svealands-DM inne'!$S$4:$S$400)) -> x | AA40: =IF(BS40=1,"x",SUMIF(Värendspokalen!$X$4:$X$400,$AC40,Värendspokalen!$S$4:$S$400)) -> x | AB40: =IF(BO40=1,"x",SUMIF('SM inne'!$X$4:$X$400,$AC40,'SM inne'!$S$4:$S$400)) -> x | AC40: =IF(B40="","",SUMIF(Kastare!B$2:B$2999,B40,Kastare!A$2:A$2999)) -> 1066 | AE40: 1 | AK40: 0 | AL40: 0 | AM40: 0 | AN40: 0 | AO40: 0 | AP40: 0 | AQ40: 0 | AR40: 0 | AS40: 0 | AT40: 0 | AU40: 1 | AV40: 1 | AW40: 0 | AY40: =SUMIF('Jämjö Open'!$A$502:$A$1000,$AC40,'Jämjö Open'!$AA$502:$AA$1000) -> 1 | AZ40: =SUMIF('Viby Open'!$A$502:$A$1000,$AC40,'Viby Open'!$AA$502:$AA$1000) -> 1 | BA40: =SUMIF('Björkenäs Open'!$A$502:$A$1000,$AC40,'Björkenäs Open'!$AA$502:$AA$1000) -> 1 | BB40: =SUMIF('SM ute Lö'!$A$502:$A$1000,$AC40,'SM ute Lö'!$AA$502:$AA$1000) -> 1 | BC40: =SUMIF('SM ute Sö'!$A$503:$A$1000,$AC40,'SM ute Sö'!$AA$503:$AA$1000) -> 1 | BD40: =SUMIF('Roslagen Open'!$A$502:$A$1000,$AC40,'Roslagen Open'!$AA$502:$AA$1000) -> 1 | BE40: =SUMIF('Roslagen Open 2'!$A$502:$A$1000,$AC40,'Roslagen Open 2'!$AA$502:$AA$1000) -> 1 | BF40: =SUMIF('Dynapac Open'!$A$502:$A$1000,$AC40,'Dynapac Open'!$AA$502:$AA$1000) -> 1 | BG40: =SUMIF('SmålandsDM ute'!$A$502:$A$1000,$AC40,'SmålandsDM ute'!$AA$502:$AA$1000) -> 1 | BH40: =SUMIF('BlekingeDM ute'!$A$502:$A$1000,$AC40,'BlekingeDM ute'!$AA$502:$AA$1000) -> 1 | BI40: =SUMIF('SvealandsDM ute'!$A$502:$A$1000,$AC40,'SvealandsDM ute'!$AA$502:$AA$1000) -> 1 | BJ40: =SUMIF('Ljungby Open'!$A$502:$A$1000,$AC40,'Ljungby Open'!$AA$502:$AA$1000) -> 1 | BK40: =SUMIF(Höstskon!$A$502:$A$1000,$AC40,Höstskon!$AA$502:$AA$1000) -> 1 | BL40: =SUMIF('Carlskrona Cup'!$A$502:$A$1000,$AC40,'Carlskrona Cup'!$AA$502:$AA$1000) -> 1 | BM40: =SUMIF('Sibbamåla Open'!$A$502:$A$1000,$AC40,'Sibbamåla Open'!$AA$502:$AA$1000) -> 1 | BN40: =SUMIF('Vaxholm Indoor'!$A$502:$A$1000,$AC40,'Vaxholm Indoor'!$AA$502:$AA$1000) -> 1 | BO40: =SUMIF('SM inne'!$A$502:$A$1000,$AC40,'SM inne'!$AA$502:$AA$1000) -> 1 | BP40: =SUMIF('Växjö Open'!$A$502:$A$1000,$AC40,'Växjö Open'!$AA$502:$AA$1000) -> 1 | BQ40: =SUMIF('BlekingeDM inne'!$A$502:$A$1000,$AC40,'BlekingeDM inne'!$AA$502:$AA$1000) -> 1 | BR40: =SUMIF('Svealands-DM inne'!$A$502:$A$1000,$AC40,'Svealands-DM inne'!$AA$502:$AA$1000) -> 1 | BS40: =SUMIF(Värendspokalen!$A$502:$A$1000,$AC40,Värendspokalen!$AA$502:$AA$1000) -> 1 | BT40: =SUMIF('Tingsryd Open'!$A$502:$A$1000,$AC40,'Tingsryd Open'!$AA$502:$AA$1000) -> 3
A41: 27 | B41: Göran Olofsson | C41: Korpen Nybro | D41: 0 | G41: =IF(BT41=1,"x",SUMIF('Tingsryd Open'!$X$4:$X$400,$AC41,'Tingsryd Open'!$S$4:$S$400)) -> 0 | H41: =IF(AY41=1,"x",SUMIF('Jämjö Open'!$X$4:$X$400,$AC41,'Jämjö Open'!$S$4:$S$400)) -> x | I41: =IF(BA41=1,"x",SUMIF('Björkenäs Open'!$X$4:$X$400,$AC41,'Björkenäs Open'!$S$4:$S$400)) -> x | J41: =IF(BB41=1,"x",SUMIF('SM ute Lö'!$X$4:$X$400,$AC41,'SM ute Lö'!$S$4:$S$400)) -> x | K41: =IF(BC41=1,"x",SUMIF('SM ute Sö'!$X$4:$X$401,$AC41,'SM ute Sö'!$S$4:$S$401)) -> x | L41: =IF(BD41=1,"x",SUMIF('Roslagen Open'!$X$4:$X$400,$AC41,'Roslagen Open'!$S$4:$S$400)) -> x | M41: =IF(BE41=1,"x",SUMIF('Roslagen Open 2'!$X$4:$X$400,$AC41,'Roslagen Open 2'!$S$4:$S$400)) -> x | N41: =IF(BF41=1,"x",SUMIF('Dynapac Open'!$X$4:$X$400,$AC41,'Dynapac Open'!$S$4:$S$400)) -> x | O41: =IF(BG41=1,"x",SUMIF('SmålandsDM ute'!$X$4:$X$400,$AC41,'SmålandsDM ute'!$S$4:$S$400)) -> x | P41: =IF(BH41=1,"x",SUMIF('BlekingeDM ute'!$X$4:$X$400,$AC41,'BlekingeDM ute'!$S$4:$S$400)) -> x | Q41: =IF(BI41=1,"x",SUMIF('SvealandsDM ute'!$X$4:$X$400,$AC41,'SvealandsDM ute'!$S$4:$S$400)) -> x | R41: =IF(BJ41=1,"x",SUMIF('Ljungby Open'!$X$4:$X$406,$AC41,'Ljungby Open'!$S$4:$S$406)) -> x | S41: =IF(AZ41=1,"x",SUMIF('Viby Open'!$X$4:$X$400,$AC41,'Viby Open'!$S$4:$S$400)) -> x | T41: =IF(BP41=1,"x",SUMIF('Växjö Open'!$X$4:$X$400,$AC41,'Växjö Open'!$S$4:$S$400)) -> x | U41: =IF(BK41=1,"x",SUMIF(Höstskon!$X$4:$X$400,$AC41,Höstskon!$S$4:$S$400)) -> x | V41: =IF(BL41=1,"x",SUMIF('Carlskrona Cup'!$X$4:$X$400,$AC41,'Carlskrona Cup'!$S$4:$S$400)) -> x | W41: =IF(BM41=1,"x",SUMIF('Sibbamåla Open'!$X$4:$X$400,$AC41,'Sibbamåla Open'!$S$4:$S$400)) -> x | X41: =IF(BN41=1,"x",SUMIF('Vaxholm Indoor'!$X$4:$X$400,$AC41,'Vaxholm Indoor'!$S$4:$S$400)) -> x | Y41: =IF(BQ41=1,"x",SUMIF('BlekingeDM inne'!$X$4:$X$400,$AC41,'BlekingeDM inne'!$S$4:$S$400)) -> x | Z41: =IF(BR41=1,"x",SUMIF('Svealands-DM inne'!$X$4:$X$400,$AC41,'Svealands-DM inne'!$S$4:$S$400)) -> x | AA41: =IF(BS41=1,"x",SUMIF(Värendspokalen!$X$4:$X$400,$AC41,Värendspokalen!$S$4:$S$400)) -> x | AB41: =IF(BO41=1,"x",SUMIF('SM inne'!$X$4:$X$400,$AC41,'SM inne'!$S$4:$S$400)) -> x | AC41: =IF(B41="","",SUMIF(Kastare!B$2:B$2999,B41,Kastare!A$2:A$2999)) -> 1028 | AE41: 1 | AK41: 0 | AL41: 0 | AM41: 0 | AN41: 0 | AO41: 0 | AP41: 0 | AQ41: 0 | AR41: 0 | AS41: 0 | AT41: 0 | AU41: 1 | AV41: 1 | AW41: 0 | AY41: =SUMIF('Jämjö Open'!$A$502:$A$1000,$AC41,'Jämjö Open'!$AA$502:$AA$1000) -> 1 | AZ41: =SUMIF('Viby Open'!$A$502:$A$1000,$AC41,'Viby Open'!$AA$502:$AA$1000) -> 1 | BA41: =SUMIF('Björkenäs Open'!$A$502:$A$1000,$AC41,'Björkenäs Open'!$AA$502:$AA$1000) -> 1 | BB41: =SUMIF('SM ute Lö'!$A$502:$A$1000,$AC41,'SM ute Lö'!$AA$502:$AA$1000) -> 1 | BC41: =SUMIF('SM ute Sö'!$A$503:$A$1000,$AC41,'SM ute Sö'!$AA$503:$AA$1000) -> 1 | BD41: =SUMIF('Roslagen Open'!$A$502:$A$1000,$AC41,'Roslagen Open'!$AA$502:$AA$1000) -> 1 | BE41: =SUMIF('Roslagen Open 2'!$A$502:$A$1000,$AC41,'Roslagen Open 2'!$AA$502:$AA$1000) -> 1 | BF41: =SUMIF('Dynapac Open'!$A$502:$A$1000,$AC41,'Dynapac Open'!$AA$502:$AA$1000) -> 1 | BG41: =SUMIF('SmålandsDM ute'!$A$502:$A$1000,$AC41,'SmålandsDM ute'!$AA$502:$AA$1000) -> 1 | BH41: =SUMIF('BlekingeDM ute'!$A$502:$A$1000,$AC41,'BlekingeDM ute'!$AA$502:$AA$1000) -> 1 | BI41: =SUMIF('SvealandsDM ute'!$A$502:$A$1000,$AC41,'SvealandsDM ute'!$AA$502:$AA$1000) -> 1 | BJ41: =SUMIF('Ljungby Open'!$A$502:$A$1000,$AC41,'Ljungby Open'!$AA$502:$AA$1000) -> 1 | BK41: =SUMIF(Höstskon!$A$502:$A$1000,$AC41,Höstskon!$AA$502:$AA$1000) -> 1 | BL41: =SUMIF('Carlskrona Cup'!$A$502:$A$1000,$AC41,'Carlskrona Cup'!$AA$502:$AA$1000) -> 1 | BM41: =SUMIF('Sibbamåla Open'!$A$502:$A$1000,$AC41,'Sibbamåla Open'!$AA$502:$AA$1000) -> 1 | BN41: =SUMIF('Vaxholm Indoor'!$A$502:$A$1000,$AC41,'Vaxholm Indoor'!$AA$502:$AA$1000) -> 1 | BO41: =SUMIF('SM inne'!$A$502:$A$1000,$AC41,'SM inne'!$AA$502:$AA$1000) -> 1 | BP41: =SUMIF('Växjö Open'!$A$502:$A$1000,$AC41,'Växjö Open'!$AA$502:$AA$1000) -> 1 | BQ41: =SUMIF('BlekingeDM inne'!$A$502:$A$1000,$AC41,'BlekingeDM inne'!$AA$502:$AA$1000) -> 1 | BR41: =SUMIF('Svealands-DM inne'!$A$502:$A$1000,$AC41,'Svealands-DM inne'!$AA$502:$AA$1000) -> 1 | BS41: =SUMIF(Värendspokalen!$A$502:$A$1000,$AC41,Värendspokalen!$AA$502:$AA$1000) -> 1 | BT41: =SUMIF('Tingsryd Open'!$A$502:$A$1000,$AC41,'Tingsryd Open'!$AA$502:$AA$1000) -> 3
A42: 27 | B42: Torgny Rågfeldt | C42: Viby HSK | D42: 0 | G42: =IF(BT42=1,"x",SUMIF('Tingsryd Open'!$X$4:$X$400,$AC42,'Tingsryd Open'!$S$4:$S$400)) -> 0 | H42: =IF(AY42=1,"x",SUMIF('Jämjö Open'!$X$4:$X$400,$AC42,'Jämjö Open'!$S$4:$S$400)) -> x | I42: =IF(BA42=1,"x",SUMIF('Björkenäs Open'!$X$4:$X$400,$AC42,'Björkenäs Open'!$S$4:$S$400)) -> x | J42: =IF(BB42=1,"x",SUMIF('SM ute Lö'!$X$4:$X$400,$AC42,'SM ute Lö'!$S$4:$S$400)) -> x | K42: =IF(BC42=1,"x",SUMIF('SM ute Sö'!$X$4:$X$401,$AC42,'SM ute Sö'!$S$4:$S$401)) -> x | L42: =IF(BD42=1,"x",SUMIF('Roslagen Open'!$X$4:$X$400,$AC42,'Roslagen Open'!$S$4:$S$400)) -> x | M42: =IF(BE42=1,"x",SUMIF('Roslagen Open 2'!$X$4:$X$400,$AC42,'Roslagen Open 2'!$S$4:$S$400)) -> x | N42: =IF(BF42=1,"x",SUMIF('Dynapac Open'!$X$4:$X$400,$AC42,'Dynapac Open'!$S$4:$S$400)) -> x | O42: =IF(BG42=1,"x",SUMIF('SmålandsDM ute'!$X$4:$X$400,$AC42,'SmålandsDM ute'!$S$4:$S$400)) -> x | P42: =IF(BH42=1,"x",SUMIF('BlekingeDM ute'!$X$4:$X$400,$AC42,'BlekingeDM ute'!$S$4:$S$400)) -> x | Q42: =IF(BI42=1,"x",SUMIF('SvealandsDM ute'!$X$4:$X$400,$AC42,'SvealandsDM ute'!$S$4:$S$400)) -> x | R42: =IF(BJ42=1,"x",SUMIF('Ljungby Open'!$X$4:$X$406,$AC42,'Ljungby Open'!$S$4:$S$406)) -> x | S42: =IF(AZ42=1,"x",SUMIF('Viby Open'!$X$4:$X$400,$AC42,'Viby Open'!$S$4:$S$400)) -> x | T42: =IF(BP42=1,"x",SUMIF('Växjö Open'!$X$4:$X$400,$AC42,'Växjö Open'!$S$4:$S$400)) -> x | U42: =IF(BK42=1,"x",SUMIF(Höstskon!$X$4:$X$400,$AC42,Höstskon!$S$4:$S$400)) -> x | V42: =IF(BL42=1,"x",SUMIF('Carlskrona Cup'!$X$4:$X$400,$AC42,'Carlskrona Cup'!$S$4:$S$400)) -> x | W42: =IF(BM42=1,"x",SUMIF('Sibbamåla Open'!$X$4:$X$400,$AC42,'Sibbamåla Open'!$S$4:$S$400)) -> x | X42: =IF(BN42=1,"x",SUMIF('Vaxholm Indoor'!$X$4:$X$400,$AC42,'Vaxholm Indoor'!$S$4:$S$400)) -> x | Y42: =IF(BQ42=1,"x",SUMIF('BlekingeDM inne'!$X$4:$X$400,$AC42,'BlekingeDM inne'!$S$4:$S$400)) -> x | Z42: =IF(BR42=1,"x",SUMIF('Svealands-DM inne'!$X$4:$X$400,$AC42,'Svealands-DM inne'!$S$4:$S$400)) -> x | AA42: =IF(BS42=1,"x",SUMIF(Värendspokalen!$X$4:$X$400,$AC42,Värendspokalen!$S$4:$S$400)) -> x | AB42: =IF(BO42=1,"x",SUMIF('SM inne'!$X$4:$X$400,$AC42,'SM inne'!$S$4:$S$400)) -> x | AC42: =IF(B42="","",SUMIF(Kastare!B$2:B$2999,B42,Kastare!A$2:A$2999)) -> 1210 | AE42: 1 | AK42: 0 | AL42: 0 | AM42: 0 | AN42: 0 | AO42: 0 | AP42: 0 | AQ42: 0 | AR42: 0 | AS42: 0 | AT42: 0 | AU42: 1 | AV42: 1 | AW42: 0 | AY42: =SUMIF('Jämjö Open'!$A$502:$A$1000,$AC42,'Jämjö Open'!$AA$502:$AA$1000) -> 1 | AZ42: =SUMIF('Viby Open'!$A$502:$A$1000,$AC42,'Viby Open'!$AA$502:$AA$1000) -> 1 | BA42: =SUMIF('Björkenäs Open'!$A$502:$A$1000,$AC42,'Björkenäs Open'!$AA$502:$AA$1000) -> 1 | BB42: =SUMIF('SM ute Lö'!$A$502:$A$1000,$AC42,'SM ute Lö'!$AA$502:$AA$1000) -> 1 | BC42: =SUMIF('SM ute Sö'!$A$503:$A$1000,$AC42,'SM ute Sö'!$AA$503:$AA$1000) -> 1 | BD42: =SUMIF('Roslagen Open'!$A$502:$A$1000,$AC42,'Roslagen Open'!$AA$502:$AA$1000) -> 1 | BE42: =SUMIF('Roslagen Open 2'!$A$502:$A$1000,$AC42,'Roslagen Open 2'!$AA$502:$AA$1000) -> 1 | BF42: =SUMIF('Dynapac Open'!$A$502:$A$1000,$AC42,'Dynapac Open'!$AA$502:$AA$1000) -> 1 | BG42: =SUMIF('SmålandsDM ute'!$A$502:$A$1000,$AC42,'SmålandsDM ute'!$AA$502:$AA$1000) -> 1 | BH42: =SUMIF('BlekingeDM ute'!$A$502:$A$1000,$AC42,'BlekingeDM ute'!$AA$502:$AA$1000) -> 1 | BI42: =SUMIF('SvealandsDM ute'!$A$502:$A$1000,$AC42,'SvealandsDM ute'!$AA$502:$AA$1000) -> 1 | BJ42: =SUMIF('Ljungby Open'!$A$502:$A$1000,$AC42,'Ljungby Open'!$AA$502:$AA$1000) -> 1 | BK42: =SUMIF(Höstskon!$A$502:$A$1000,$AC42,Höstskon!$AA$502:$AA$1000) -> 1 | BL42: =SUMIF('Carlskrona Cup'!$A$502:$A$1000,$AC42,'Carlskrona Cup'!$AA$502:$AA$1000) -> 1 | BM42: =SUMIF('Sibbamåla Open'!$A$502:$A$1000,$AC42,'Sibbamåla Open'!$AA$502:$AA$1000) -> 1 | BN42: =SUMIF('Vaxholm Indoor'!$A$502:$A$1000,$AC42,'Vaxholm Indoor'!$AA$502:$AA$1000) -> 1 | BO42: =SUMIF('SM inne'!$A$502:$A$1000,$AC42,'SM inne'!$AA$502:$AA$1000) -> 1 | BP42: =SUMIF('Växjö Open'!$A$502:$A$1000,$AC42,'Växjö Open'!$AA$502:$AA$1000) -> 1 | BQ42: =SUMIF('BlekingeDM inne'!$A$502:$A$1000,$AC42,'BlekingeDM inne'!$AA$502:$AA$1000) -> 1 | BR42: =SUMIF('Svealands-DM inne'!$A$502:$A$1000,$AC42,'Svealands-DM inne'!$AA$502:$AA$1000) -> 1 | BS42: =SUMIF(Värendspokalen!$A$502:$A$1000,$AC42,Värendspokalen!$AA$502:$AA$1000) -> 1 | BT42: =SUMIF('Tingsryd Open'!$A$502:$A$1000,$AC42,'Tingsryd Open'!$AA$502:$AA$1000) -> 3
A43: 27 | B43: Peter Olofsson | C43: Korpen Nybro | D43: 0 | G43: =IF(BT43=1,"x",SUMIF('Tingsryd Open'!$X$4:$X$400,$AC43,'Tingsryd Open'!$S$4:$S$400)) -> 0 | H43: =IF(AY43=1,"x",SUMIF('Jämjö Open'!$X$4:$X$400,$AC43,'Jämjö Open'!$S$4:$S$400)) -> x | I43: =IF(BA43=1,"x",SUMIF('Björkenäs Open'!$X$4:$X$400,$AC43,'Björkenäs Open'!$S$4:$S$400)) -> x | J43: =IF(BB43=1,"x",SUMIF('SM ute Lö'!$X$4:$X$400,$AC43,'SM ute Lö'!$S$4:$S$400)) -> x | K43: =IF(BC43=1,"x",SUMIF('SM ute Sö'!$X$4:$X$401,$AC43,'SM ute Sö'!$S$4:$S$401)) -> x | L43: =IF(BD43=1,"x",SUMIF('Roslagen Open'!$X$4:$X$400,$AC43,'Roslagen Open'!$S$4:$S$400)) -> x | M43: =IF(BE43=1,"x",SUMIF('Roslagen Open 2'!$X$4:$X$400,$AC43,'Roslagen Open 2'!$S$4:$S$400)) -> x | N43: =IF(BF43=1,"x",SUMIF('Dynapac Open'!$X$4:$X$400,$AC43,'Dynapac Open'!$S$4:$S$400)) -> x | O43: =IF(BG43=1,"x",SUMIF('SmålandsDM ute'!$X$4:$X$400,$AC43,'SmålandsDM ute'!$S$4:$S$400)) -> x | P43: =IF(BH43=1,"x",SUMIF('BlekingeDM ute'!$X$4:$X$400,$AC43,'BlekingeDM ute'!$S$4:$S$400)) -> x | Q43: =IF(BI43=1,"x",SUMIF('SvealandsDM ute'!$X$4:$X$400,$AC43,'SvealandsDM ute'!$S$4:$S$400)) -> x | R43: =IF(BJ43=1,"x",SUMIF('Ljungby Open'!$X$4:$X$406,$AC43,'Ljungby Open'!$S$4:$S$406)) -> x | S43: =IF(AZ43=1,"x",SUMIF('Viby Open'!$X$4:$X$400,$AC43,'Viby Open'!$S$4:$S$400)) -> x | T43: =IF(BP43=1,"x",SUMIF('Växjö Open'!$X$4:$X$400,$AC43,'Växjö Open'!$S$4:$S$400)) -> x | U43: =IF(BK43=1,"x",SUMIF(Höstskon!$X$4:$X$400,$AC43,Höstskon!$S$4:$S$400)) -> x | V43: =IF(BL43=1,"x",SUMIF('Carlskrona Cup'!$X$4:$X$400,$AC43,'Carlskrona Cup'!$S$4:$S$400)) -> x | W43: =IF(BM43=1,"x",SUMIF('Sibbamåla Open'!$X$4:$X$400,$AC43,'Sibbamåla Open'!$S$4:$S$400)) -> x | X43: =IF(BN43=1,"x",SUMIF('Vaxholm Indoor'!$X$4:$X$400,$AC43,'Vaxholm Indoor'!$S$4:$S$400)) -> x | Y43: =IF(BQ43=1,"x",SUMIF('BlekingeDM inne'!$X$4:$X$400,$AC43,'BlekingeDM inne'!$S$4:$S$400)) -> x | Z43: =IF(BR43=1,"x",SUMIF('Svealands-DM inne'!$X$4:$X$400,$AC43,'Svealands-DM inne'!$S$4:$S$400)) -> x | AA43: =IF(BS43=1,"x",SUMIF(Värendspokalen!$X$4:$X$400,$AC43,Värendspokalen!$S$4:$S$400)) -> x | AB43: =IF(BO43=1,"x",SUMIF('SM inne'!$X$4:$X$400,$AC43,'SM inne'!$S$4:$S$400)) -> x | AC43: =IF(B43="","",SUMIF(Kastare!B$2:B$2999,B43,Kastare!A$2:A$2999)) -> 1304 | AE43: 1 | AK43: 0 | AL43: 0 | AM43: 0 | AN43: 0 | AO43: 0 | AP43: 0 | AQ43: 0 | AR43: 0 | AS43: 0 | AT43: 0 | AU43: 1 | AV43: 1 | AW43: 0 | AY43: =SUMIF('Jämjö Open'!$A$502:$A$1000,$AC43,'Jämjö Open'!$AA$502:$AA$1000) -> 1 | AZ43: =SUMIF('Viby Open'!$A$502:$A$1000,$AC43,'Viby Open'!$AA$502:$AA$1000) -> 1 | BA43: =SUMIF('Björkenäs Open'!$A$502:$A$1000,$AC43,'Björkenäs Open'!$AA$502:$AA$1000) -> 1 | BB43: =SUMIF('SM ute Lö'!$A$502:$A$1000,$AC43,'SM ute Lö'!$AA$502:$AA$1000) -> 1 | BC43: =SUMIF('SM ute Sö'!$A$503:$A$1000,$AC43,'SM ute Sö'!$AA$503:$AA$1000) -> 1 | BD43: =SUMIF('Roslagen Open'!$A$502:$A$1000,$AC43,'Roslagen Open'!$AA$502:$AA$1000) -> 1 | BE43: =SUMIF('Roslagen Open 2'!$A$502:$A$1000,$AC43,'Roslagen Open 2'!$AA$502:$AA$1000) -> 1 | BF43: =SUMIF('Dynapac Open'!$A$502:$A$1000,$AC43,'Dynapac Open'!$AA$502:$AA$1000) -> 1 | BG43: =SUMIF('SmålandsDM ute'!$A$502:$A$1000,$AC43,'SmålandsDM ute'!$AA$502:$AA$1000) -> 1 | BH43: =SUMIF('BlekingeDM ute'!$A$502:$A$1000,$AC43,'BlekingeDM ute'!$AA$502:$AA$1000) -> 1 | BI43: =SUMIF('SvealandsDM ute'!$A$502:$A$1000,$AC43,'SvealandsDM ute'!$AA$502:$AA$1000) -> 1 | BJ43: =SUMIF('Ljungby Open'!$A$502:$A$1000,$AC43,'Ljungby Open'!$AA$502:$AA$1000) -> 1 | BK43: =SUMIF(Höstskon!$A$502:$A$1000,$AC43,Höstskon!$AA$502:$AA$1000) -> 1 | BL43: =SUMIF('Carlskrona Cup'!$A$502:$A$1000,$AC43,'Carlskrona Cup'!$AA$502:$AA$1000) -> 1 | BM43: =SUMIF('Sibbamåla Open'!$A$502:$A$1000,$AC43,'Sibbamåla Open'!$AA$502:$AA$1000) -> 1 | BN43: =SUMIF('Vaxholm Indoor'!$A$502:$A$1000,$AC43,'Vaxholm Indoor'!$AA$502:$AA$1000) -> 1 | BO43: =SUMIF('SM inne'!$A$502:$A$1000,$AC43,'SM inne'!$AA$502:$AA$1000) -> 1 | BP43: =SUMIF('Växjö Open'!$A$502:$A$1000,$AC43,'Växjö Open'!$AA$502:$AA$1000) -> 1 | BQ43: =SUMIF('BlekingeDM inne'!$A$502:$A$1000,$AC43,'BlekingeDM inne'!$AA$502:$AA$1000) -> 1 | BR43: =SUMIF('Svealands-DM inne'!$A$502:$A$1000,$AC43,'Svealands-DM inne'!$AA$502:$AA$1000) -> 1 | BS43: =SUMIF(Värendspokalen!$A$502:$A$1000,$AC43,Värendspokalen!$AA$502:$AA$1000) -> 1 | BT43: =SUMIF('Tingsryd Open'!$A$502:$A$1000,$AC43,'Tingsryd Open'!$AA$502:$AA$1000) -> 3
A44: 27 | B44: Kerstin Svensson | C44: Växjö Hsk | D44: 0 | G44: =IF(BT44=1,"x",SUMIF('Tingsryd Open'!$X$4:$X$400,$AC44,'Tingsryd Open'!$S$4:$S$400)) -> 0 | H44: =IF(AY44=1,"x",SUMIF('Jämjö Open'!$X$4:$X$400,$AC44,'Jämjö Open'!$S$4:$S$400)) -> x | I44: =IF(BA44=1,"x",SUMIF('Björkenäs Open'!$X$4:$X$400,$AC44,'Björkenäs Open'!$S$4:$S$400)) -> x | J44: =IF(BB44=1,"x",SUMIF('SM ute Lö'!$X$4:$X$400,$AC44,'SM ute Lö'!$S$4:$S$400)) -> x | K44: =IF(BC44=1,"x",SUMIF('SM ute Sö'!$X$4:$X$401,$AC44,'SM ute Sö'!$S$4:$S$401)) -> x | L44: =IF(BD44=1,"x",SUMIF('Roslagen Open'!$X$4:$X$400,$AC44,'Roslagen Open'!$S$4:$S$400)) -> x | M44: =IF(BE44=1,"x",SUMIF('Roslagen Open 2'!$X$4:$X$400,$AC44,'Roslagen Open 2'!$S$4:$S$400)) -> x | N44: =IF(BF44=1,"x",SUMIF('Dynapac Open'!$X$4:$X$400,$AC44,'Dynapac Open'!$S$4:$S$400)) -> x | O44: =IF(BG44=1,"x",SUMIF('SmålandsDM ute'!$X$4:$X$400,$AC44,'SmålandsDM ute'!$S$4:$S$400)) -> x | P44: =IF(BH44=1,"x",SUMIF('BlekingeDM ute'!$X$4:$X$400,$AC44,'BlekingeDM ute'!$S$4:$S$400)) -> x | Q44: =IF(BI44=1,"x",SUMIF('SvealandsDM ute'!$X$4:$X$400,$AC44,'SvealandsDM ute'!$S$4:$S$400)) -> x | R44: =IF(BJ44=1,"x",SUMIF('Ljungby Open'!$X$4:$X$406,$AC44,'Ljungby Open'!$S$4:$S$406)) -> x | S44: =IF(AZ44=1,"x",SUMIF('Viby Open'!$X$4:$X$400,$AC44,'Viby Open'!$S$4:$S$400)) -> x | T44: =IF(BP44=1,"x",SUMIF('Växjö Open'!$X$4:$X$400,$AC44,'Växjö Open'!$S$4:$S$400)) -> x | U44: =IF(BK44=1,"x",SUMIF(Höstskon!$X$4:$X$400,$AC44,Höstskon!$S$4:$S$400)) -> x | V44: =IF(BL44=1,"x",SUMIF('Carlskrona Cup'!$X$4:$X$400,$AC44,'Carlskrona Cup'!$S$4:$S$400)) -> x | W44: =IF(BM44=1,"x",SUMIF('Sibbamåla Open'!$X$4:$X$400,$AC44,'Sibbamåla Open'!$S$4:$S$400)) -> x | X44: =IF(BN44=1,"x",SUMIF('Vaxholm Indoor'!$X$4:$X$400,$AC44,'Vaxholm Indoor'!$S$4:$S$400)) -> x | Y44: =IF(BQ44=1,"x",SUMIF('BlekingeDM inne'!$X$4:$X$400,$AC44,'BlekingeDM inne'!$S$4:$S$400)) -> x | Z44: =IF(BR44=1,"x",SUMIF('Svealands-DM inne'!$X$4:$X$400,$AC44,'Svealands-DM inne'!$S$4:$S$400)) -> x | AA44: =IF(BS44=1,"x",SUMIF(Värendspokalen!$X$4:$X$400,$AC44,Värendspokalen!$S$4:$S$400)) -> x | AB44: =IF(BO44=1,"x",SUMIF('SM inne'!$X$4:$X$400,$AC44,'SM inne'!$S$4:$S$400)) -> x | AC44: =IF(B44="","",SUMIF(Kastare!B$2:B$2999,B44,Kastare!A$2:A$2999)) -> 1022 | AE44: 1 | AK44: 0 | AL44: 0 | AM44: 0 | AN44: 0 | AO44: 0 | AP44: 0 | AQ44: 0 | AR44: 0 | AS44: 0 | AT44: 0 | AU44: 1 | AV44: 1 | AW44: 0 | AY44: =SUMIF('Jämjö Open'!$A$502:$A$1000,$AC44,'Jämjö Open'!$AA$502:$AA$1000) -> 1 | AZ44: =SUMIF('Viby Open'!$A$502:$A$1000,$AC44,'Viby Open'!$AA$502:$AA$1000) -> 1 | BA44: =SUMIF('Björkenäs Open'!$A$502:$A$1000,$AC44,'Björkenäs Open'!$AA$502:$AA$1000) -> 1 | BB44: =SUMIF('SM ute Lö'!$A$502:$A$1000,$AC44,'SM ute Lö'!$AA$502:$AA$1000) -> 1 | BC44: =SUMIF('SM ute Sö'!$A$503:$A$1000,$AC44,'SM ute Sö'!$AA$503:$AA$1000) -> 1 | BD44: =SUMIF('Roslagen Open'!$A$502:$A$1000,$AC44,'Roslagen Open'!$AA$502:$AA$1000) -> 1 | BE44: =SUMIF('Roslagen Open 2'!$A$502:$A$1000,$AC44,'Roslagen Open 2'!$AA$502:$AA$1000) -> 1 | BF44: =SUMIF('Dynapac Open'!$A$502:$A$1000,$AC44,'Dynapac Open'!$AA$502:$AA$1000) -> 1 | BG44: =SUMIF('SmålandsDM ute'!$A$502:$A$1000,$AC44,'SmålandsDM ute'!$AA$502:$AA$1000) -> 1 | BH44: =SUMIF('BlekingeDM ute'!$A$502:$A$1000,$AC44,'BlekingeDM ute'!$AA$502:$AA$1000) -> 1 | BI44: =SUMIF('SvealandsDM ute'!$A$502:$A$1000,$AC44,'SvealandsDM ute'!$AA$502:$AA$1000) -> 1 | BJ44: =SUMIF('Ljungby Open'!$A$502:$A$1000,$AC44,'Ljungby Open'!$AA$502:$AA$1000) -> 1 | BK44: =SUMIF(Höstskon!$A$502:$A$1000,$AC44,Höstskon!$AA$502:$AA$1000) -> 1 | BL44: =SUMIF('Carlskrona Cup'!$A$502:$A$1000,$AC44,'Carlskrona Cup'!$AA$502:$AA$1000) -> 1 | BM44: =SUMIF('Sibbamåla Open'!$A$502:$A$1000,$AC44,'Sibbamåla Open'!$AA$502:$AA$1000) -> 1 | BN44: =SUMIF('Vaxholm Indoor'!$A$502:$A$1000,$AC44,'Vaxholm Indoor'!$AA$502:$AA$1000) -> 1 | BO44: =SUMIF('SM inne'!$A$502:$A$1000,$AC44,'SM inne'!$AA$502:$AA$1000) -> 1 | BP44: =SUMIF('Växjö Open'!$A$502:$A$1000,$AC44,'Växjö Open'!$AA$502:$AA$1000) -> 1 | BQ44: =SUMIF('BlekingeDM inne'!$A$502:$A$1000,$AC44,'BlekingeDM inne'!$AA$502:$AA$1000) -> 1 | BR44: =SUMIF('Svealands-DM inne'!$A$502:$A$1000,$AC44,'Svealands-DM inne'!$AA$502:$AA$1000) -> 1 | BS44: =SUMIF(Värendspokalen!$A$502:$A$1000,$AC44,Värendspokalen!$AA$502:$AA$1000) -> 1 | BT44: =SUMIF('Tingsryd Open'!$A$502:$A$1000,$AC44,'Tingsryd Open'!$AA$502:$AA$1000) -> 3
A45: 27 | B45: Ingegerd Pettersson | C45: Lanternan | D45: 0 | G45: =IF(BT45=1,"x",SUMIF('Tingsryd Open'!$X$4:$X$400,$AC45,'Tingsryd Open'!$S$4:$S$400)) -> 0 | H45: =IF(AY45=1,"x",SUMIF('Jämjö Open'!$X$4:$X$400,$AC45,'Jämjö Open'!$S$4:$S$400)) -> x | I45: =IF(BA45=1,"x",SUMIF('Björkenäs Open'!$X$4:$X$400,$AC45,'Björkenäs Open'!$S$4:$S$400)) -> x | J45: =IF(BB45=1,"x",SUMIF('SM ute Lö'!$X$4:$X$400,$AC45,'SM ute Lö'!$S$4:$S$400)) -> x | K45: =IF(BC45=1,"x",SUMIF('SM ute Sö'!$X$4:$X$401,$AC45,'SM ute Sö'!$S$4:$S$401)) -> x | L45: =IF(BD45=1,"x",SUMIF('Roslagen Open'!$X$4:$X$400,$AC45,'Roslagen Open'!$S$4:$S$400)) -> x | M45: =IF(BE45=1,"x",SUMIF('Roslagen Open 2'!$X$4:$X$400,$AC45,'Roslagen Open 2'!$S$4:$S$400)) -> x | N45: =IF(BF45=1,"x",SUMIF('Dynapac Open'!$X$4:$X$400,$AC45,'Dynapac Open'!$S$4:$S$400)) -> x | O45: =IF(BG45=1,"x",SUMIF('SmålandsDM ute'!$X$4:$X$400,$AC45,'SmålandsDM ute'!$S$4:$S$400)) -> x | P45: =IF(BH45=1,"x",SUMIF('BlekingeDM ute'!$X$4:$X$400,$AC45,'BlekingeDM ute'!$S$4:$S$400)) -> x | Q45: =IF(BI45=1,"x",SUMIF('SvealandsDM ute'!$X$4:$X$400,$AC45,'SvealandsDM ute'!$S$4:$S$400)) -> x | R45: =IF(BJ45=1,"x",SUMIF('Ljungby Open'!$X$4:$X$406,$AC45,'Ljungby Open'!$S$4:$S$406)) -> x | S45: =IF(AZ45=1,"x",SUMIF('Viby Open'!$X$4:$X$400,$AC45,'Viby Open'!$S$4:$S$400)) -> x | T45: =IF(BP45=1,"x",SUMIF('Växjö Open'!$X$4:$X$400,$AC45,'Växjö Open'!$S$4:$S$400)) -> x | U45: =IF(BK45=1,"x",SUMIF(Höstskon!$X$4:$X$400,$AC45,Höstskon!$S$4:$S$400)) -> x | V45: =IF(BL45=1,"x",SUMIF('Carlskrona Cup'!$X$4:$X$400,$AC45,'Carlskrona Cup'!$S$4:$S$400)) -> x | W45: =IF(BM45=1,"x",SUMIF('Sibbamåla Open'!$X$4:$X$400,$AC45,'Sibbamåla Open'!$S$4:$S$400)) -> x | X45: =IF(BN45=1,"x",SUMIF('Vaxholm Indoor'!$X$4:$X$400,$AC45,'Vaxholm Indoor'!$S$4:$S$400)) -> x | Y45: =IF(BQ45=1,"x",SUMIF('BlekingeDM inne'!$X$4:$X$400,$AC45,'BlekingeDM inne'!$S$4:$S$400)) -> x | Z45: =IF(BR45=1,"x",SUMIF('Svealands-DM inne'!$X$4:$X$400,$AC45,'Svealands-DM inne'!$S$4:$S$400)) -> x | AA45: =IF(BS45=1,"x",SUMIF(Värendspokalen!$X$4:$X$400,$AC45,Värendspokalen!$S$4:$S$400)) -> x | AB45: =IF(BO45=1,"x",SUMIF('SM inne'!$X$4:$X$400,$AC45,'SM inne'!$S$4:$S$400)) -> x | AC45: =IF(B45="","",SUMIF(Kastare!B$2:B$2999,B45,Kastare!A$2:A$2999)) -> 1034 | AE45: 1 | AK45: 0 | AL45: 0 | AM45: 0 | AN45: 0 | AO45: 0 | AP45: 0 | AQ45: 0 | AR45: 0 | AS45: 0 | AT45: 0 | AU45: 1 | AV45: 1 | AW45: 0 | AY45: =SUMIF('Jämjö Open'!$A$502:$A$1000,$AC45,'Jämjö Open'!$AA$502:$AA$1000) -> 1 | AZ45: =SUMIF('Viby Open'!$A$502:$A$1000,$AC45,'Viby Open'!$AA$502:$AA$1000) -> 1 | BA45: =SUMIF('Björkenäs Open'!$A$502:$A$1000,$AC45,'Björkenäs Open'!$AA$502:$AA$1000) -> 1 | BB45: =SUMIF('SM ute Lö'!$A$502:$A$1000,$AC45,'SM ute Lö'!$AA$502:$AA$1000) -> 1 | BC45: =SUMIF('SM ute Sö'!$A$503:$A$1000,$AC45,'SM ute Sö'!$AA$503:$AA$1000) -> 1 | BD45: =SUMIF('Roslagen Open'!$A$502:$A$1000,$AC45,'Roslagen Open'!$AA$502:$AA$1000) -> 1 | BE45: =SUMIF('Roslagen Open 2'!$A$502:$A$1000,$AC45,'Roslagen Open 2'!$AA$502:$AA$1000) -> 1 | BF45: =SUMIF('Dynapac Open'!$A$502:$A$1000,$AC45,'Dynapac Open'!$AA$502:$AA$1000) -> 1 | BG45: =SUMIF('SmålandsDM ute'!$A$502:$A$1000,$AC45,'SmålandsDM ute'!$AA$502:$AA$1000) -> 1 | BH45: =SUMIF('BlekingeDM ute'!$A$502:$A$1000,$AC45,'BlekingeDM ute'!$AA$502:$AA$1000) -> 1 | BI45: =SUMIF('SvealandsDM ute'!$A$502:$A$1000,$AC45,'SvealandsDM ute'!$AA$502:$AA$1000) -> 1 | BJ45: =SUMIF('Ljungby Open'!$A$502:$A$1000,$AC45,'Ljungby Open'!$AA$502:$AA$1000) -> 1 | BK45: =SUMIF(Höstskon!$A$502:$A$1000,$AC45,Höstskon!$AA$502:$AA$1000) -> 1 | BL45: =SUMIF('Carlskrona Cup'!$A$502:$A$1000,$AC45,'Carlskrona Cup'!$AA$502:$AA$1000) -> 1 | BM45: =SUMIF('Sibbamåla Open'!$A$502:$A$1000,$AC45,'Sibbamåla Open'!$AA$502:$AA$1000) -> 1 | BN45: =SUMIF('Vaxholm Indoor'!$A$502:$A$1000,$AC45,'Vaxholm Indoor'!$AA$502:$AA$1000) -> 1 | BO45: =SUMIF('SM inne'!$A$502:$A$1000,$AC45,'SM inne'!$AA$502:$AA$1000) -> 1 | BP45: =SUMIF('Växjö Open'!$A$502:$A$1000,$AC45,'Växjö Open'!$AA$502:$AA$1000) -> 1 | BQ45: =SUMIF('BlekingeDM inne'!$A$502:$A$1000,$AC45,'BlekingeDM inne'!$AA$502:$AA$1000) -> 1 | BR45: =SUMIF('Svealands-DM inne'!$A$502:$A$1000,$AC45,'Svealands-DM inne'!$AA$502:$AA$1000) -> 1 | BS45: =SUMIF(Värendspokalen!$A$502:$A$1000,$AC45,Värendspokalen!$AA$502:$AA$1000) -> 1 | BT45: =SUMIF('Tingsryd Open'!$A$502:$A$1000,$AC45,'Tingsryd Open'!$AA$502:$AA$1000) -> 3
A46: 27 | B46: Jarita Fredriksson Väre | C46: Balders Hsk | D46: 0 | G46: =IF(BT46=1,"x",SUMIF('Tingsryd Open'!$X$4:$X$400,$AC46,'Tingsryd Open'!$S$4:$S$400)) -> 0 | H46: =IF(AY46=1,"x",SUMIF('Jämjö Open'!$X$4:$X$400,$AC46,'Jämjö Open'!$S$4:$S$400)) -> x | I46: =IF(BA46=1,"x",SUMIF('Björkenäs Open'!$X$4:$X$400,$AC46,'Björkenäs Open'!$S$4:$S$400)) -> x | J46: =IF(BB46=1,"x",SUMIF('SM ute Lö'!$X$4:$X$400,$AC46,'SM ute Lö'!$S$4:$S$400)) -> x | K46: =IF(BC46=1,"x",SUMIF('SM ute Sö'!$X$4:$X$401,$AC46,'SM ute Sö'!$S$4:$S$401)) -> x | L46: =IF(BD46=1,"x",SUMIF('Roslagen Open'!$X$4:$X$400,$AC46,'Roslagen Open'!$S$4:$S$400)) -> x | M46: =IF(BE46=1,"x",SUMIF('Roslagen Open 2'!$X$4:$X$400,$AC46,'Roslagen Open 2'!$S$4:$S$400)) -> x | N46: =IF(BF46=1,"x",SUMIF('Dynapac Open'!$X$4:$X$400,$AC46,'Dynapac Open'!$S$4:$S$400)) -> x | O46: =IF(BG46=1,"x",SUMIF('SmålandsDM ute'!$X$4:$X$400,$AC46,'SmålandsDM ute'!$S$4:$S$400)) -> x | P46: =IF(BH46=1,"x",SUMIF('BlekingeDM ute'!$X$4:$X$400,$AC46,'BlekingeDM ute'!$S$4:$S$400)) -> x | Q46: =IF(BI46=1,"x",SUMIF('SvealandsDM ute'!$X$4:$X$400,$AC46,'SvealandsDM ute'!$S$4:$S$400)) -> x | R46: =IF(BJ46=1,"x",SUMIF('Ljungby Open'!$X$4:$X$406,$AC46,'Ljungby Open'!$S$4:$S$406)) -> x | S46: =IF(AZ46=1,"x",SUMIF('Viby Open'!$X$4:$X$400,$AC46,'Viby Open'!$S$4:$S$400)) -> x | T46: =IF(BP46=1,"x",SUMIF('Växjö Open'!$X$4:$X$400,$AC46,'Växjö Open'!$S$4:$S$400)) -> x | U46: =IF(BK46=1,"x",SUMIF(Höstskon!$X$4:$X$400,$AC46,Höstskon!$S$4:$S$400)) -> x | V46: =IF(BL46=1,"x",SUMIF('Carlskrona Cup'!$X$4:$X$400,$AC46,'Carlskrona Cup'!$S$4:$S$400)) -> x | W46: =IF(BM46=1,"x",SUMIF('Sibbamåla Open'!$X$4:$X$400,$AC46,'Sibbamåla Open'!$S$4:$S$400)) -> x | X46: =IF(BN46=1,"x",SUMIF('Vaxholm Indoor'!$X$4:$X$400,$AC46,'Vaxholm Indoor'!$S$4:$S$400)) -> x | Y46: =IF(BQ46=1,"x",SUMIF('BlekingeDM inne'!$X$4:$X$400,$AC46,'BlekingeDM inne'!$S$4:$S$400)) -> x | Z46: =IF(BR46=1,"x",SUMIF('Svealands-DM inne'!$X$4:$X$400,$AC46,'Svealands-DM inne'!$S$4:$S$400)) -> x | AA46: =IF(BS46=1,"x",SUMIF(Värendspokalen!$X$4:$X$400,$AC46,Värendspokalen!$S$4:$S$400)) -> x | AB46: =IF(BO46=1,"x",SUMIF('SM inne'!$X$4:$X$400,$AC46,'SM inne'!$S$4:$S$400)) -> x | AC46: =IF(B46="","",SUMIF(Kastare!B$2:B$2999,B46,Kastare!A$2:A$2999)) -> 1165 | AE46: 1 | AK46: 0 | AL46: 0 | AM46: 0 | AN46: 0 | AO46: 0 | AP46: 0 | AQ46: 0 | AR46: 0 | AS46: 0 | AT46: 0 | AU46: 1 | AV46: 1 | AW46: 0 | AY46: =SUMIF('Jämjö Open'!$A$502:$A$1000,$AC46,'Jämjö Open'!$AA$502:$AA$1000) -> 1 | AZ46: =SUMIF('Viby Open'!$A$502:$A$1000,$AC46,'Viby Open'!$AA$502:$AA$1000) -> 1 | BA46: =SUMIF('Björkenäs Open'!$A$502:$A$1000,$AC46,'Björkenäs Open'!$AA$502:$AA$1000) -> 1 | BB46: =SUMIF('SM ute Lö'!$A$502:$A$1000,$AC46,'SM ute Lö'!$AA$502:$AA$1000) -> 1 | BC46: =SUMIF('SM ute Sö'!$A$503:$A$1000,$AC46,'SM ute Sö'!$AA$503:$AA$1000) -> 1 | BD46: =SUMIF('Roslagen Open'!$A$502:$A$1000,$AC46,'Roslagen Open'!$AA$502:$AA$1000) -> 1 | BE46: =SUMIF('Roslagen Open 2'!$A$502:$A$1000,$AC46,'Roslagen Open 2'!$AA$502:$AA$1000) -> 1 | BF46: =SUMIF('Dynapac Open'!$A$502:$A$1000,$AC46,'Dynapac Open'!$AA$502:$AA$1000) -> 1 | BG46: =SUMIF('SmålandsDM ute'!$A$502:$A$1000,$AC46,'SmålandsDM ute'!$AA$502:$AA$1000) -> 1 | BH46: =SUMIF('BlekingeDM ute'!$A$502:$A$1000,$AC46,'BlekingeDM ute'!$AA$502:$AA$1000) -> 1 | BI46: =SUMIF('SvealandsDM ute'!$A$502:$A$1000,$AC46,'SvealandsDM ute'!$AA$502:$AA$1000) -> 1 | BJ46: =SUMIF('Ljungby Open'!$A$502:$A$1000,$AC46,'Ljungby Open'!$AA$502:$AA$1000) -> 1 | BK46: =SUMIF(Höstskon!$A$502:$A$1000,$AC46,Höstskon!$AA$502:$AA$1000) -> 1 | BL46: =SUMIF('Carlskrona Cup'!$A$502:$A$1000,$AC46,'Carlskrona Cup'!$AA$502:$AA$1000) -> 1 | BM46: =SUMIF('Sibbamåla Open'!$A$502:$A$1000,$AC46,'Sibbamåla Open'!$AA$502:$AA$1000) -> 1 | BN46: =SUMIF('Vaxholm Indoor'!$A$502:$A$1000,$AC46,'Vaxholm Indoor'!$AA$502:$AA$1000) -> 1 | BO46: =SUMIF('SM inne'!$A$502:$A$1000,$AC46,'SM inne'!$AA$502:$AA$1000) -> 1 | BP46: =SUMIF('Växjö Open'!$A$502:$A$1000,$AC46,'Växjö Open'!$AA$502:$AA$1000) -> 1 | BQ46: =SUMIF('BlekingeDM inne'!$A$502:$A$1000,$AC46,'BlekingeDM inne'!$AA$502:$AA$1000) -> 1 | BR46: =SUMIF('Svealands-DM inne'!$A$502:$A$1000,$AC46,'Svealands-DM inne'!$AA$502:$AA$1000) -> 1 | BS46: =SUMIF(Värendspokalen!$A$502:$A$1000,$AC46,Värendspokalen!$AA$502:$AA$1000) -> 1 | BT46: =SUMIF('Tingsryd Open'!$A$502:$A$1000,$AC46,'Tingsryd Open'!$AA$502:$AA$1000) -> 3
A47: 27 | B47: Åke Bergqvist | C47: Tingsryd Hsc | D47: 0 | G47: =IF(BT47=1,"x",SUMIF('Tingsryd Open'!$X$4:$X$400,$AC47,'Tingsryd Open'!$S$4:$S$400)) -> 0 | H47: =IF(AY47=1,"x",SUMIF('Jämjö Open'!$X$4:$X$400,$AC47,'Jämjö Open'!$S$4:$S$400)) -> x | I47: =IF(BA47=1,"x",SUMIF('Björkenäs Open'!$X$4:$X$400,$AC47,'Björkenäs Open'!$S$4:$S$400)) -> x | J47: =IF(BB47=1,"x",SUMIF('SM ute Lö'!$X$4:$X$400,$AC47,'SM ute Lö'!$S$4:$S$400)) -> x | K47: =IF(BC47=1,"x",SUMIF('SM ute Sö'!$X$4:$X$401,$AC47,'SM ute Sö'!$S$4:$S$401)) -> x | L47: =IF(BD47=1,"x",SUMIF('Roslagen Open'!$X$4:$X$400,$AC47,'Roslagen Open'!$S$4:$S$400)) -> x | M47: =IF(BE47=1,"x",SUMIF('Roslagen Open 2'!$X$4:$X$400,$AC47,'Roslagen Open 2'!$S$4:$S$400)) -> x | N47: =IF(BF47=1,"x",SUMIF('Dynapac Open'!$X$4:$X$400,$AC47,'Dynapac Open'!$S$4:$S$400)) -> x | O47: =IF(BG47=1,"x",SUMIF('SmålandsDM ute'!$X$4:$X$400,$AC47,'SmålandsDM ute'!$S$4:$S$400)) -> x | P47: =IF(BH47=1,"x",SUMIF('BlekingeDM ute'!$X$4:$X$400,$AC47,'BlekingeDM ute'!$S$4:$S$400)) -> x | Q47: =IF(BI47=1,"x",SUMIF('SvealandsDM ute'!$X$4:$X$400,$AC47,'SvealandsDM ute'!$S$4:$S$400)) -> x | R47: =IF(BJ47=1,"x",SUMIF('Ljungby Open'!$X$4:$X$406,$AC47,'Ljungby Open'!$S$4:$S$406)) -> x | S47: =IF(AZ47=1,"x",SUMIF('Viby Open'!$X$4:$X$400,$AC47,'Viby Open'!$S$4:$S$400)) -> x | T47: =IF(BP47=1,"x",SUMIF('Växjö Open'!$X$4:$X$400,$AC47,'Växjö Open'!$S$4:$S$400)) -> x | U47: =IF(BK47=1,"x",SUMIF(Höstskon!$X$4:$X$400,$AC47,Höstskon!$S$4:$S$400)) -> x | V47: =IF(BL47=1,"x",SUMIF('Carlskrona Cup'!$X$4:$X$400,$AC47,'Carlskrona Cup'!$S$4:$S$400)) -> x | W47: =IF(BM47=1,"x",SUMIF('Sibbamåla Open'!$X$4:$X$400,$AC47,'Sibbamåla Open'!$S$4:$S$400)) -> x | X47: =IF(BN47=1,"x",SUMIF('Vaxholm Indoor'!$X$4:$X$400,$AC47,'Vaxholm Indoor'!$S$4:$S$400)) -> x | Y47: =IF(BQ47=1,"x",SUMIF('BlekingeDM inne'!$X$4:$X$400,$AC47,'BlekingeDM inne'!$S$4:$S$400)) -> x | Z47: =IF(BR47=1,"x",SUMIF('Svealands-DM inne'!$X$4:$X$400,$AC47,'Svealands-DM inne'!$S$4:$S$400)) -> x | AA47: =IF(BS47=1,"x",SUMIF(Värendspokalen!$X$4:$X$400,$AC47,Värendspokalen!$S$4:$S$400)) -> x | AB47: =IF(BO47=1,"x",SUMIF('SM inne'!$X$4:$X$400,$AC47,'SM inne'!$S$4:$S$400)) -> x | AC47: =IF(B47="","",SUMIF(Kastare!B$2:B$2999,B47,Kastare!A$2:A$2999)) -> 1064 | AE47: 1 | AK47: 0 | AL47: 0 | AM47: 0 | AN47: 0 | AO47: 0 | AP47: 0 | AQ47: 0 | AR47: 0 | AS47: 0 | AT47: 0 | AU47: 1 | AV47: 1 | AW47: 0 | AY47: =SUMIF('Jämjö Open'!$A$502:$A$1000,$AC47,'Jämjö Open'!$AA$502:$AA$1000) -> 1 | AZ47: =SUMIF('Viby Open'!$A$502:$A$1000,$AC47,'Viby Open'!$AA$502:$AA$1000) -> 1 | BA47: =SUMIF('Björkenäs Open'!$A$502:$A$1000,$AC47,'Björkenäs Open'!$AA$502:$AA$1000) -> 1 | BB47: =SUMIF('SM ute Lö'!$A$502:$A$1000,$AC47,'SM ute Lö'!$AA$502:$AA$1000) -> 1 | BC47: =SUMIF('SM ute Sö'!$A$503:$A$1000,$AC47,'SM ute Sö'!$AA$503:$AA$1000) -> 1 | BD47: =SUMIF('Roslagen Open'!$A$502:$A$1000,$AC47,'Roslagen Open'!$AA$502:$AA$1000) -> 1 | BE47: =SUMIF('Roslagen Open 2'!$A$502:$A$1000,$AC47,'Roslagen Open 2'!$AA$502:$AA$1000) -> 1 | BF47: =SUMIF('Dynapac Open'!$A$502:$A$1000,$AC47,'Dynapac Open'!$AA$502:$AA$1000) -> 1 | BG47: =SUMIF('SmålandsDM ute'!$A$502:$A$1000,$AC47,'SmålandsDM ute'!$AA$502:$AA$1000) -> 1 | BH47: =SUMIF('BlekingeDM ute'!$A$502:$A$1000,$AC47,'BlekingeDM ute'!$AA$502:$AA$1000) -> 1 | BI47: =SUMIF('SvealandsDM ute'!$A$502:$A$1000,$AC47,'SvealandsDM ute'!$AA$502:$AA$1000) -> 1 | BJ47: =SUMIF('Ljungby Open'!$A$502:$A$1000,$AC47,'Ljungby Open'!$AA$502:$AA$1000) -> 1 | BK47: =SUMIF(Höstskon!$A$502:$A$1000,$AC47,Höstskon!$AA$502:$AA$1000) -> 1 | BL47: =SUMIF('Carlskrona Cup'!$A$502:$A$1000,$AC47,'Carlskrona Cup'!$AA$502:$AA$1000) -> 1 | BM47: =SUMIF('Sibbamåla Open'!$A$502:$A$1000,$AC47,'Sibbamåla Open'!$AA$502:$AA$1000) -> 1 | BN47: =SUMIF('Vaxholm Indoor'!$A$502:$A$1000,$AC47,'Vaxholm Indoor'!$AA$502:$AA$1000) -> 1 | BO47: =SUMIF('SM inne'!$A$502:$A$1000,$AC47,'SM inne'!$AA$502:$AA$1000) -> 1 | BP47: =SUMIF('Växjö Open'!$A$502:$A$1000,$AC47,'Växjö Open'!$AA$502:$AA$1000) -> 1 | BQ47: =SUMIF('BlekingeDM inne'!$A$502:$A$1000,$AC47,'BlekingeDM inne'!$AA$502:$AA$1000) -> 1 | BR47: =SUMIF('Svealands-DM inne'!$A$502:$A$1000,$AC47,'Svealands-DM inne'!$AA$502:$AA$1000) -> 1 | BS47: =SUMIF(Värendspokalen!$A$502:$A$1000,$AC47,Värendspokalen!$AA$502:$AA$1000) -> 1 | BT47: =SUMIF('Tingsryd Open'!$A$502:$A$1000,$AC47,'Tingsryd Open'!$AA$502:$AA$1000) -> 3
A48: 27 | B48: Thomas Dahl | C48: Växjö Hsk | D48: 0 | G48: =IF(BT48=1,"x",SUMIF('Tingsryd Open'!$X$4:$X$400,$AC48,'Tingsryd Open'!$S$4:$S$400)) -> 0 | H48: =IF(AY48=1,"x",SUMIF('Jämjö Open'!$X$4:$X$400,$AC48,'Jämjö Open'!$S$4:$S$400)) -> x | I48: =IF(BA48=1,"x",SUMIF('Björkenäs Open'!$X$4:$X$400,$AC48,'Björkenäs Open'!$S$4:$S$400)) -> x | J48: =IF(BB48=1,"x",SUMIF('SM ute Lö'!$X$4:$X$400,$AC48,'SM ute Lö'!$S$4:$S$400)) -> x | K48: =IF(BC48=1,"x",SUMIF('SM ute Sö'!$X$4:$X$401,$AC48,'SM ute Sö'!$S$4:$S$401)) -> x | L48: =IF(BD48=1,"x",SUMIF('Roslagen Open'!$X$4:$X$400,$AC48,'Roslagen Open'!$S$4:$S$400)) -> x | M48: =IF(BE48=1,"x",SUMIF('Roslagen Open 2'!$X$4:$X$400,$AC48,'Roslagen Open 2'!$S$4:$S$400)) -> x | N48: =IF(BF48=1,"x",SUMIF('Dynapac Open'!$X$4:$X$400,$AC48,'Dynapac Open'!$S$4:$S$400)) -> x | O48: =IF(BG48=1,"x",SUMIF('SmålandsDM ute'!$X$4:$X$400,$AC48,'SmålandsDM ute'!$S$4:$S$400)) -> x | P48: =IF(BH48=1,"x",SUMIF('BlekingeDM ute'!$X$4:$X$400,$AC48,'BlekingeDM ute'!$S$4:$S$400)) -> x | Q48: =IF(BI48=1,"x",SUMIF('SvealandsDM ute'!$X$4:$X$400,$AC48,'SvealandsDM ute'!$S$4:$S$400)) -> x | R48: =IF(BJ48=1,"x",SUMIF('Ljungby Open'!$X$4:$X$406,$AC48,'Ljungby Open'!$S$4:$S$406)) -> x | S48: =IF(AZ48=1,"x",SUMIF('Viby Open'!$X$4:$X$400,$AC48,'Viby Open'!$S$4:$S$400)) -> x | T48: =IF(BP48=1,"x",SUMIF('Växjö Open'!$X$4:$X$400,$AC48,'Växjö Open'!$S$4:$S$400)) -> x | U48: =IF(BK48=1,"x",SUMIF(Höstskon!$X$4:$X$400,$AC48,Höstskon!$S$4:$S$400)) -> x | V48: =IF(BL48=1,"x",SUMIF('Carlskrona Cup'!$X$4:$X$400,$AC48,'Carlskrona Cup'!$S$4:$S$400)) -> x | W48: =IF(BM48=1,"x",SUMIF('Sibbamåla Open'!$X$4:$X$400,$AC48,'Sibbamåla Open'!$S$4:$S$400)) -> x | X48: =IF(BN48=1,"x",SUMIF('Vaxholm Indoor'!$X$4:$X$400,$AC48,'Vaxholm Indoor'!$S$4:$S$400)) -> x | Y48: =IF(BQ48=1,"x",SUMIF('BlekingeDM inne'!$X$4:$X$400,$AC48,'BlekingeDM inne'!$S$4:$S$400)) -> x | Z48: =IF(BR48=1,"x",SUMIF('Svealands-DM inne'!$X$4:$X$400,$AC48,'Svealands-DM inne'!$S$4:$S$400)) -> x | AA48: =IF(BS48=1,"x",SUMIF(Värendspokalen!$X$4:$X$400,$AC48,Värendspokalen!$S$4:$S$400)) -> x | AB48: =IF(BO48=1,"x",SUMIF('SM inne'!$X$4:$X$400,$AC48,'SM inne'!$S$4:$S$400)) -> x | AC48: =IF(B48="","",SUMIF(Kastare!B$2:B$2999,B48,Kastare!A$2:A$2999)) -> 1051 | AE48: 1 | AK48: 0 | AL48: 0 | AM48: 0 | AN48: 0 | AO48: 0 | AP48: 0 | AQ48: 0 | AR48: 0 | AS48: 0 | AT48: 0 | AU48: 1 | AV48: 1 | AW48: 0 | AY48: =SUMIF('Jämjö Open'!$A$502:$A$1000,$AC48,'Jämjö Open'!$AA$502:$AA$1000) -> 1 | AZ48: =SUMIF('Viby Open'!$A$502:$A$1000,$AC48,'Viby Open'!$AA$502:$AA$1000) -> 1 | BA48: =SUMIF('Björkenäs Open'!$A$502:$A$1000,$AC48,'Björkenäs Open'!$AA$502:$AA$1000) -> 1 | BB48: =SUMIF('SM ute Lö'!$A$502:$A$1000,$AC48,'SM ute Lö'!$AA$502:$AA$1000) -> 1 | BC48: =SUMIF('SM ute Sö'!$A$503:$A$1000,$AC48,'SM ute Sö'!$AA$503:$AA$1000) -> 1 | BD48: =SUMIF('Roslagen Open'!$A$502:$A$1000,$AC48,'Roslagen Open'!$AA$502:$AA$1000) -> 1 | BE48: =SUMIF('Roslagen Open 2'!$A$502:$A$1000,$AC48,'Roslagen Open 2'!$AA$502:$AA$1000) -> 1 | BF48: =SUMIF('Dynapac Open'!$A$502:$A$1000,$AC48,'Dynapac Open'!$AA$502:$AA$1000) -> 1 | BG48: =SUMIF('SmålandsDM ute'!$A$502:$A$1000,$AC48,'SmålandsDM ute'!$AA$502:$AA$1000) -> 1 | BH48: =SUMIF('BlekingeDM ute'!$A$502:$A$1000,$AC48,'BlekingeDM ute'!$AA$502:$AA$1000) -> 1 | BI48: =SUMIF('SvealandsDM ute'!$A$502:$A$1000,$AC48,'SvealandsDM ute'!$AA$502:$AA$1000) -> 1 | BJ48: =SUMIF('Ljungby Open'!$A$502:$A$1000,$AC48,'Ljungby Open'!$AA$502:$AA$1000) -> 1 | BK48: =SUMIF(Höstskon!$A$502:$A$1000,$AC48,Höstskon!$AA$502:$AA$1000) -> 1 | BL48: =SUMIF('Carlskrona Cup'!$A$502:$A$1000,$AC48,'Carlskrona Cup'!$AA$502:$AA$1000) -> 1 | BM48: =SUMIF('Sibbamåla Open'!$A$502:$A$1000,$AC48,'Sibbamåla Open'!$AA$502:$AA$1000) -> 1 | BN48: =SUMIF('Vaxholm Indoor'!$A$502:$A$1000,$AC48,'Vaxholm Indoor'!$AA$502:$AA$1000) -> 1 | BO48: =SUMIF('SM inne'!$A$502:$A$1000,$AC48,'SM inne'!$AA$502:$AA$1000) -> 1 | BP48: =SUMIF('Växjö Open'!$A$502:$A$1000,$AC48,'Växjö Open'!$AA$502:$AA$1000) -> 1 | BQ48: =SUMIF('BlekingeDM inne'!$A$502:$A$1000,$AC48,'BlekingeDM inne'!$AA$502:$AA$1000) -> 1 | BR48: =SUMIF('Svealands-DM inne'!$A$502:$A$1000,$AC48,'Svealands-DM inne'!$AA$502:$AA$1000) -> 1 | BS48: =SUMIF(Värendspokalen!$A$502:$A$1000,$AC48,Värendspokalen!$AA$502:$AA$1000) -> 1 | BT48: =SUMIF('Tingsryd Open'!$A$502:$A$1000,$AC48,'Tingsryd Open'!$AA$502:$AA$1000) -> 3
A49: 27 | B49: Yvonne Karlsson | C49: Sibbamåla | D49: 0 | G49: =IF(BT49=1,"x",SUMIF('Tingsryd Open'!$X$4:$X$400,$AC49,'Tingsryd Open'!$S$4:$S$400)) -> 0 | H49: =IF(AY49=1,"x",SUMIF('Jämjö Open'!$X$4:$X$400,$AC49,'Jämjö Open'!$S$4:$S$400)) -> x | I49: =IF(BA49=1,"x",SUMIF('Björkenäs Open'!$X$4:$X$400,$AC49,'Björkenäs Open'!$S$4:$S$400)) -> x | J49: =IF(BB49=1,"x",SUMIF('SM ute Lö'!$X$4:$X$400,$AC49,'SM ute Lö'!$S$4:$S$400)) -> x | K49: =IF(BC49=1,"x",SUMIF('SM ute Sö'!$X$4:$X$401,$AC49,'SM ute Sö'!$S$4:$S$401)) -> x | L49: =IF(BD49=1,"x",SUMIF('Roslagen Open'!$X$4:$X$400,$AC49,'Roslagen Open'!$S$4:$S$400)) -> x | M49: =IF(BE49=1,"x",SUMIF('Roslagen Open 2'!$X$4:$X$400,$AC49,'Roslagen Open 2'!$S$4:$S$400)) -> x | N49: =IF(BF49=1,"x",SUMIF('Dynapac Open'!$X$4:$X$400,$AC49,'Dynapac Open'!$S$4:$S$400)) -> x | O49: =IF(BG49=1,"x",SUMIF('SmålandsDM ute'!$X$4:$X$400,$AC49,'SmålandsDM ute'!$S$4:$S$400)) -> x | P49: =IF(BH49=1,"x",SUMIF('BlekingeDM ute'!$X$4:$X$400,$AC49,'BlekingeDM ute'!$S$4:$S$400)) -> x | Q49: =IF(BI49=1,"x",SUMIF('SvealandsDM ute'!$X$4:$X$400,$AC49,'SvealandsDM ute'!$S$4:$S$400)) -> x | R49: =IF(BJ49=1,"x",SUMIF('Ljungby Open'!$X$4:$X$406,$AC49,'Ljungby Open'!$S$4:$S$406)) -> x | S49: =IF(AZ49=1,"x",SUMIF('Viby Open'!$X$4:$X$400,$AC49,'Viby Open'!$S$4:$S$400)) -> x | T49: =IF(BP49=1,"x",SUMIF('Växjö Open'!$X$4:$X$400,$AC49,'Växjö Open'!$S$4:$S$400)) -> x | U49: =IF(BK49=1,"x",SUMIF(Höstskon!$X$4:$X$400,$AC49,Höstskon!$S$4:$S$400)) -> x | V49: =IF(BL49=1,"x",SUMIF('Carlskrona Cup'!$X$4:$X$400,$AC49,'Carlskrona Cup'!$S$4:$S$400)) -> x | W49: =IF(BM49=1,"x",SUMIF('Sibbamåla Open'!$X$4:$X$400,$AC49,'Sibbamåla Open'!$S$4:$S$400)) -> x | X49: =IF(BN49=1,"x",SUMIF('Vaxholm Indoor'!$X$4:$X$400,$AC49,'Vaxholm Indoor'!$S$4:$S$400)) -> x | Y49: =IF(BQ49=1,"x",SUMIF('BlekingeDM inne'!$X$4:$X$400,$AC49,'BlekingeDM inne'!$S$4:$S$400)) -> x | Z49: =IF(BR49=1,"x",SUMIF('Svealands-DM inne'!$X$4:$X$400,$AC49,'Svealands-DM inne'!$S$4:$S$400)) -> x | AA49: =IF(BS49=1,"x",SUMIF(Värendspokalen!$X$4:$X$400,$AC49,Värendspokalen!$S$4:$S$400)) -> x | AB49: =IF(BO49=1,"x",SUMIF('SM inne'!$X$4:$X$400,$AC49,'SM inne'!$S$4:$S$400)) -> x | AC49: =IF(B49="","",SUMIF(Kastare!B$2:B$2999,B49,Kastare!A$2:A$2999)) -> 1362 | AE49: 1 | AK49: 0 | AL49: 0 | AM49: 0 | AN49: 0 | AO49: 0 | AP49: 0 | AQ49: 0 | AR49: 0 | AS49: 0 | AT49: 0 | AU49: 1 | AV49: 1 | AW49: 0 | AY49: =SUMIF('Jämjö Open'!$A$502:$A$1000,$AC49,'Jämjö Open'!$AA$502:$AA$1000) -> 1 | AZ49: =SUMIF('Viby Open'!$A$502:$A$1000,$AC49,'Viby Open'!$AA$502:$AA$1000) -> 1 | BA49: =SUMIF('Björkenäs Open'!$A$502:$A$1000,$AC49,'Björkenäs Open'!$AA$502:$AA$1000) -> 1 | BB49: =SUMIF('SM ute Lö'!$A$502:$A$1000,$AC49,'SM ute Lö'!$AA$502:$AA$1000) -> 1 | BC49: =SUMIF('SM ute Sö'!$A$503:$A$1000,$AC49,'SM ute Sö'!$AA$503:$AA$1000) -> 1 | BD49: =SUMIF('Roslagen Open'!$A$502:$A$1000,$AC49,'Roslagen Open'!$AA$502:$AA$1000) -> 1 | BE49: =SUMIF('Roslagen Open 2'!$A$502:$A$1000,$AC49,'Roslagen Open 2'!$AA$502:$AA$1000) -> 1 | BF49: =SUMIF('Dynapac Open'!$A$502:$A$1000,$AC49,'Dynapac Open'!$AA$502:$AA$1000) -> 1 | BG49: =SUMIF('SmålandsDM ute'!$A$502:$A$1000,$AC49,'SmålandsDM ute'!$AA$502:$AA$1000) -> 1 | BH49: =SUMIF('BlekingeDM ute'!$A$502:$A$1000,$AC49,'BlekingeDM ute'!$AA$502:$AA$1000) -> 1 | BI49: =SUMIF('SvealandsDM ute'!$A$502:$A$1000,$AC49,'SvealandsDM ute'!$AA$502:$AA$1000) -> 1 | BJ49: =SUMIF('Ljungby Open'!$A$502:$A$1000,$AC49,'Ljungby Open'!$AA$502:$AA$1000) -> 1 | BK49: =SUMIF(Höstskon!$A$502:$A$1000,$AC49,Höstskon!$AA$502:$AA$1000) -> 1 | BL49: =SUMIF('Carlskrona Cup'!$A$502:$A$1000,$AC49,'Carlskrona Cup'!$AA$502:$AA$1000) -> 1 | BM49: =SUMIF('Sibbamåla Open'!$A$502:$A$1000,$AC49,'Sibbamåla Open'!$AA$502:$AA$1000) -> 1 | BN49: =SUMIF('Vaxholm Indoor'!$A$502:$A$1000,$AC49,'Vaxholm Indoor'!$AA$502:$AA$1000) -> 1 | BO49: =SUMIF('SM inne'!$A$502:$A$1000,$AC49,'SM inne'!$AA$502:$AA$1000) -> 1 | BP49: =SUMIF('Växjö Open'!$A$502:$A$1000,$AC49,'Växjö Open'!$AA$502:$AA$1000) -> 1 | BQ49: =SUMIF('BlekingeDM inne'!$A$502:$A$1000,$AC49,'BlekingeDM inne'!$AA$502:$AA$1000) -> 1 | BR49: =SUMIF('Svealands-DM inne'!$A$502:$A$1000,$AC49,'Svealands-DM inne'!$AA$502:$AA$1000) -> 1 | BS49: =SUMIF(Värendspokalen!$A$502:$A$1000,$AC49,Värendspokalen!$AA$502:$AA$1000) -> 1 | BT49: =SUMIF('Tingsryd Open'!$A$502:$A$1000,$AC49,'Tingsryd Open'!$AA$502:$AA$1000) -> 3
A50: 27 | B50: Leif Sundahl | C50: Carlskrona Hsc | D50: 0 | G50: =IF(BT50=1,"x",SUMIF('Tingsryd Open'!$X$4:$X$400,$AC50,'Tingsryd Open'!$S$4:$S$400)) -> 0 | H50: =IF(AY50=1,"x",SUMIF('Jämjö Open'!$X$4:$X$400,$AC50,'Jämjö Open'!$S$4:$S$400)) -> x | I50: =IF(BA50=1,"x",SUMIF('Björkenäs Open'!$X$4:$X$400,$AC50,'Björkenäs Open'!$S$4:$S$400)) -> x | J50: =IF(BB50=1,"x",SUMIF('SM ute Lö'!$X$4:$X$400,$AC50,'SM ute Lö'!$S$4:$S$400)) -> x | K50: =IF(BC50=1,"x",SUMIF('SM ute Sö'!$X$4:$X$401,$AC50,'SM ute Sö'!$S$4:$S$401)) -> x | L50: =IF(BD50=1,"x",SUMIF('Roslagen Open'!$X$4:$X$400,$AC50,'Roslagen Open'!$S$4:$S$400)) -> x | M50: =IF(BE50=1,"x",SUMIF('Roslagen Open 2'!$X$4:$X$400,$AC50,'Roslagen Open 2'!$S$4:$S$400)) -> x | N50: =IF(BF50=1,"x",SUMIF('Dynapac Open'!$X$4:$X$400,$AC50,'Dynapac Open'!$S$4:$S$400)) -> x | O50: =IF(BG50=1,"x",SUMIF('SmålandsDM ute'!$X$4:$X$400,$AC50,'SmålandsDM ute'!$S$4:$S$400)) -> x | P50: =IF(BH50=1,"x",SUMIF('BlekingeDM ute'!$X$4:$X$400,$AC50,'BlekingeDM ute'!$S$4:$S$400)) -> x | Q50: =IF(BI50=1,"x",SUMIF('SvealandsDM ute'!$X$4:$X$400,$AC50,'SvealandsDM ute'!$S$4:$S$400)) -> x | R50: =IF(BJ50=1,"x",SUMIF('Ljungby Open'!$X$4:$X$406,$AC50,'Ljungby Open'!$S$4:$S$406)) -> x | S50: =IF(AZ50=1,"x",SUMIF('Viby Open'!$X$4:$X$400,$AC50,'Viby Open'!$S$4:$S$400)) -> x | T50: =IF(BP50=1,"x",SUMIF('Växjö Open'!$X$4:$X$400,$AC50,'Växjö Open'!$S$4:$S$400)) -> x | U50: =IF(BK50=1,"x",SUMIF(Höstskon!$X$4:$X$400,$AC50,Höstskon!$S$4:$S$400)) -> x | V50: =IF(BL50=1,"x",SUMIF('Carlskrona Cup'!$X$4:$X$400,$AC50,'Carlskrona Cup'!$S$4:$S$400)) -> x | W50: =IF(BM50=1,"x",SUMIF('Sibbamåla Open'!$X$4:$X$400,$AC50,'Sibbamåla Open'!$S$4:$S$400)) -> x | X50: =IF(BN50=1,"x",SUMIF('Vaxholm Indoor'!$X$4:$X$400,$AC50,'Vaxholm Indoor'!$S$4:$S$400)) -> x | Y50: =IF(BQ50=1,"x",SUMIF('BlekingeDM inne'!$X$4:$X$400,$AC50,'BlekingeDM inne'!$S$4:$S$400)) -> x | Z50: =IF(BR50=1,"x",SUMIF('Svealands-DM inne'!$X$4:$X$400,$AC50,'Svealands-DM inne'!$S$4:$S$400)) -> x | AA50: =IF(BS50=1,"x",SUMIF(Värendspokalen!$X$4:$X$400,$AC50,Värendspokalen!$S$4:$S$400)) -> x | AB50: =IF(BO50=1,"x",SUMIF('SM inne'!$X$4:$X$400,$AC50,'SM inne'!$S$4:$S$400)) -> x | AC50: =IF(B50="","",SUMIF(Kastare!B$2:B$2999,B50,Kastare!A$2:A$2999)) -> 1071 | AE50: 1 | AK50: 0 | AL50: 0 | AM50: 0 | AN50: 0 | AO50: 0 | AP50: 0 | AQ50: 0 | AR50: 0 | AS50: 0 | AT50: 0 | AU50: 1 | AV50: 1 | AW50: 0 | AY50: =SUMIF('Jämjö Open'!$A$502:$A$1000,$AC50,'Jämjö Open'!$AA$502:$AA$1000) -> 1 | AZ50: =SUMIF('Viby Open'!$A$502:$A$1000,$AC50,'Viby Open'!$AA$502:$AA$1000) -> 1 | BA50: =SUMIF('Björkenäs Open'!$A$502:$A$1000,$AC50,'Björkenäs Open'!$AA$502:$AA$1000) -> 1 | BB50: =SUMIF('SM ute Lö'!$A$502:$A$1000,$AC50,'SM ute Lö'!$AA$502:$AA$1000) -> 1 | BC50: =SUMIF('SM ute Sö'!$A$503:$A$1000,$AC50,'SM ute Sö'!$AA$503:$AA$1000) -> 1 | BD50: =SUMIF('Roslagen Open'!$A$502:$A$1000,$AC50,'Roslagen Open'!$AA$502:$AA$1000) -> 1 | BE50: =SUMIF('Roslagen Open 2'!$A$502:$A$1000,$AC50,'Roslagen Open 2'!$AA$502:$AA$1000) -> 1 | BF50: =SUMIF('Dynapac Open'!$A$502:$A$1000,$AC50,'Dynapac Open'!$AA$502:$AA$1000) -> 1 | BG50: =SUMIF('SmålandsDM ute'!$A$502:$A$1000,$AC50,'SmålandsDM ute'!$AA$502:$AA$1000) -> 1 | BH50: =SUMIF('BlekingeDM ute'!$A$502:$A$1000,$AC50,'BlekingeDM ute'!$AA$502:$AA$1000) -> 1 | BI50: =SUMIF('SvealandsDM ute'!$A$502:$A$1000,$AC50,'SvealandsDM ute'!$AA$502:$AA$1000) -> 1 | BJ50: =SUMIF('Ljungby Open'!$A$502:$A$1000,$AC50,'Ljungby Open'!$AA$502:$AA$1000) -> 1 | BK50: =SUMIF(Höstskon!$A$502:$A$1000,$AC50,Höstskon!$AA$502:$AA$1000) -> 1 | BL50: =SUMIF('Carlskrona Cup'!$A$502:$A$1000,$AC50,'Carlskrona Cup'!$AA$502:$AA$1000) -> 1 | BM50: =SUMIF('Sibbamåla Open'!$A$502:$A$1000,$AC50,'Sibbamåla Open'!$AA$502:$AA$1000) -> 1 | BN50: =SUMIF('Vaxholm Indoor'!$A$502:$A$1000,$AC50,'Vaxholm Indoor'!$AA$502:$AA$1000) -> 1 | BO50: =SUMIF('SM inne'!$A$502:$A$1000,$AC50,'SM inne'!$AA$502:$AA$1000) -> 1 | BP50: =SUMIF('Växjö Open'!$A$502:$A$1000,$AC50,'Växjö Open'!$AA$502:$AA$1000) -> 1 | BQ50: =SUMIF('BlekingeDM inne'!$A$502:$A$1000,$AC50,'BlekingeDM inne'!$AA$502:$AA$1000) -> 1 | BR50: =SUMIF('Svealands-DM inne'!$A$502:$A$1000,$AC50,'Svealands-DM inne'!$AA$502:$AA$1000) -> 1 | BS50: =SUMIF(Värendspokalen!$A$502:$A$1000,$AC50,Värendspokalen!$AA$502:$AA$1000) -> 1 | BT50: =SUMIF('Tingsryd Open'!$A$502:$A$1000,$AC50,'Tingsryd Open'!$AA$502:$AA$1000) -> 3
A51: 27 | B51: Mikael Athle | C51: Köping Hsk | D51: 0 | G51: =IF(BT51=1,"x",SUMIF('Tingsryd Open'!$X$4:$X$400,$AC51,'Tingsryd Open'!$S$4:$S$400)) -> 0 | H51: =IF(AY51=1,"x",SUMIF('Jämjö Open'!$X$4:$X$400,$AC51,'Jämjö Open'!$S$4:$S$400)) -> x | I51: =IF(BA51=1,"x",SUMIF('Björkenäs Open'!$X$4:$X$400,$AC51,'Björkenäs Open'!$S$4:$S$400)) -> x | J51: =IF(BB51=1,"x",SUMIF('SM ute Lö'!$X$4:$X$400,$AC51,'SM ute Lö'!$S$4:$S$400)) -> x | K51: =IF(BC51=1,"x",SUMIF('SM ute Sö'!$X$4:$X$401,$AC51,'SM ute Sö'!$S$4:$S$401)) -> x | L51: =IF(BD51=1,"x",SUMIF('Roslagen Open'!$X$4:$X$400,$AC51,'Roslagen Open'!$S$4:$S$400)) -> x | M51: =IF(BE51=1,"x",SUMIF('Roslagen Open 2'!$X$4:$X$400,$AC51,'Roslagen Open 2'!$S$4:$S$400)) -> x | N51: =IF(BF51=1,"x",SUMIF('Dynapac Open'!$X$4:$X$400,$AC51,'Dynapac Open'!$S$4:$S$400)) -> x | O51: =IF(BG51=1,"x",SUMIF('SmålandsDM ute'!$X$4:$X$400,$AC51,'SmålandsDM ute'!$S$4:$S$400)) -> x | P51: =IF(BH51=1,"x",SUMIF('BlekingeDM ute'!$X$4:$X$400,$AC51,'BlekingeDM ute'!$S$4:$S$400)) -> x | Q51: =IF(BI51=1,"x",SUMIF('SvealandsDM ute'!$X$4:$X$400,$AC51,'SvealandsDM ute'!$S$4:$S$400)) -> x | R51: =IF(BJ51=1,"x",SUMIF('Ljungby Open'!$X$4:$X$406,$AC51,'Ljungby Open'!$S$4:$S$406)) -> x | S51: =IF(AZ51=1,"x",SUMIF('Viby Open'!$X$4:$X$400,$AC51,'Viby Open'!$S$4:$S$400)) -> x | T51: =IF(BP51=1,"x",SUMIF('Växjö Open'!$X$4:$X$400,$AC51,'Växjö Open'!$S$4:$S$400)) -> x | U51: =IF(BK51=1,"x",SUMIF(Höstskon!$X$4:$X$400,$AC51,Höstskon!$S$4:$S$400)) -> x | V51: =IF(BL51=1,"x",SUMIF('Carlskrona Cup'!$X$4:$X$400,$AC51,'Carlskrona Cup'!$S$4:$S$400)) -> x | W51: =IF(BM51=1,"x",SUMIF('Sibbamåla Open'!$X$4:$X$400,$AC51,'Sibbamåla Open'!$S$4:$S$400)) -> x | X51: =IF(BN51=1,"x",SUMIF('Vaxholm Indoor'!$X$4:$X$400,$AC51,'Vaxholm Indoor'!$S$4:$S$400)) -> x | Y51: =IF(BQ51=1,"x",SUMIF('BlekingeDM inne'!$X$4:$X$400,$AC51,'BlekingeDM inne'!$S$4:$S$400)) -> x | Z51: =IF(BR51=1,"x",SUMIF('Svealands-DM inne'!$X$4:$X$400,$AC51,'Svealands-DM inne'!$S$4:$S$400)) -> x | AA51: =IF(BS51=1,"x",SUMIF(Värendspokalen!$X$4:$X$400,$AC51,Värendspokalen!$S$4:$S$400)) -> x | AB51: =IF(BO51=1,"x",SUMIF('SM inne'!$X$4:$X$400,$AC51,'SM inne'!$S$4:$S$400)) -> x | AC51: =IF(B51="","",SUMIF(Kastare!B$2:B$2999,B51,Kastare!A$2:A$2999)) -> 1402 | AE51: 1 | AK51: 0 | AL51: 0 | AM51: 0 | AN51: 0 | AO51: 0 | AP51: 0 | AQ51: 0 | AR51: 0 | AS51: 0 | AT51: 0 | AU51: 1 | AV51: 1 | AW51: 0 | AY51: =SUMIF('Jämjö Open'!$A$502:$A$1000,$AC51,'Jämjö Open'!$AA$502:$AA$1000) -> 1 | AZ51: =SUMIF('Viby Open'!$A$502:$A$1000,$AC51,'Viby Open'!$AA$502:$AA$1000) -> 1 | BA51: =SUMIF('Björkenäs Open'!$A$502:$A$1000,$AC51,'Björkenäs Open'!$AA$502:$AA$1000) -> 1 | BB51: =SUMIF('SM ute Lö'!$A$502:$A$1000,$AC51,'SM ute Lö'!$AA$502:$AA$1000) -> 1 | BC51: =SUMIF('SM ute Sö'!$A$503:$A$1000,$AC51,'SM ute Sö'!$AA$503:$AA$1000) -> 1 | BD51: =SUMIF('Roslagen Open'!$A$502:$A$1000,$AC51,'Roslagen Open'!$AA$502:$AA$1000) -> 1 | BE51: =SUMIF('Roslagen Open 2'!$A$502:$A$1000,$AC51,'Roslagen Open 2'!$AA$502:$AA$1000) -> 1 | BF51: =SUMIF('Dynapac Open'!$A$502:$A$1000,$AC51,'Dynapac Open'!$AA$502:$AA$1000) -> 1 | BG51: =SUMIF('SmålandsDM ute'!$A$502:$A$1000,$AC51,'SmålandsDM ute'!$AA$502:$AA$1000) -> 1 | BH51: =SUMIF('BlekingeDM ute'!$A$502:$A$1000,$AC51,'BlekingeDM ute'!$AA$502:$AA$1000) -> 1 | BI51: =SUMIF('SvealandsDM ute'!$A$502:$A$1000,$AC51,'SvealandsDM ute'!$AA$502:$AA$1000) -> 1 | BJ51: =SUMIF('Ljungby Open'!$A$502:$A$1000,$AC51,'Ljungby Open'!$AA$502:$AA$1000) -> 1 | BK51: =SUMIF(Höstskon!$A$502:$A$1000,$AC51,Höstskon!$AA$502:$AA$1000) -> 1 | BL51: =SUMIF('Carlskrona Cup'!$A$502:$A$1000,$AC51,'Carlskrona Cup'!$AA$502:$AA$1000) -> 1 | BM51: =SUMIF('Sibbamåla Open'!$A$502:$A$1000,$AC51,'Sibbamåla Open'!$AA$502:$AA$1000) -> 1 | BN51: =SUMIF('Vaxholm Indoor'!$A$502:$A$1000,$AC51,'Vaxholm Indoor'!$AA$502:$AA$1000) -> 1 | BO51: =SUMIF('SM inne'!$A$502:$A$1000,$AC51,'SM inne'!$AA$502:$AA$1000) -> 1 | BP51: =SUMIF('Växjö Open'!$A$502:$A$1000,$AC51,'Växjö Open'!$AA$502:$AA$1000) -> 1 | BQ51: =SUMIF('BlekingeDM inne'!$A$502:$A$1000,$AC51,'BlekingeDM inne'!$AA$502:$AA$1000) -> 1 | BR51: =SUMIF('Svealands-DM inne'!$A$502:$A$1000,$AC51,'Svealands-DM inne'!$AA$502:$AA$1000) -> 1 | BS51: =SUMIF(Värendspokalen!$A$502:$A$1000,$AC51,Värendspokalen!$AA$502:$AA$1000) -> 1 | BT51: =SUMIF('Tingsryd Open'!$A$502:$A$1000,$AC51,'Tingsryd Open'!$AA$502:$AA$1000) -> 3
A52: 27 | B52: Jimmy Athle | C52: Köping | D52: 0 | G52: =IF(BT52=1,"x",SUMIF('Tingsryd Open'!$X$4:$X$400,$AC52,'Tingsryd Open'!$S$4:$S$400)) -> 0 | H52: =IF(AY52=1,"x",SUMIF('Jämjö Open'!$X$4:$X$400,$AC52,'Jämjö Open'!$S$4:$S$400)) -> x | I52: =IF(BA52=1,"x",SUMIF('Björkenäs Open'!$X$4:$X$400,$AC52,'Björkenäs Open'!$S$4:$S$400)) -> x | J52: =IF(BB52=1,"x",SUMIF('SM ute Lö'!$X$4:$X$400,$AC52,'SM ute Lö'!$S$4:$S$400)) -> x | K52: =IF(BC52=1,"x",SUMIF('SM ute Sö'!$X$4:$X$401,$AC52,'SM ute Sö'!$S$4:$S$401)) -> x | L52: =IF(BD52=1,"x",SUMIF('Roslagen Open'!$X$4:$X$400,$AC52,'Roslagen Open'!$S$4:$S$400)) -> x | M52: =IF(BE52=1,"x",SUMIF('Roslagen Open 2'!$X$4:$X$400,$AC52,'Roslagen Open 2'!$S$4:$S$400)) -> x | N52: =IF(BF52=1,"x",SUMIF('Dynapac Open'!$X$4:$X$400,$AC52,'Dynapac Open'!$S$4:$S$400)) -> x | O52: =IF(BG52=1,"x",SUMIF('SmålandsDM ute'!$X$4:$X$400,$AC52,'SmålandsDM ute'!$S$4:$S$400)) -> x | P52: =IF(BH52=1,"x",SUMIF('BlekingeDM ute'!$X$4:$X$400,$AC52,'BlekingeDM ute'!$S$4:$S$400)) -> x | Q52: =IF(BI52=1,"x",SUMIF('SvealandsDM ute'!$X$4:$X$400,$AC52,'SvealandsDM ute'!$S$4:$S$400)) -> x | R52: =IF(BJ52=1,"x",SUMIF('Ljungby Open'!$X$4:$X$406,$AC52,'Ljungby Open'!$S$4:$S$406)) -> x | S52: =IF(AZ52=1,"x",SUMIF('Viby Open'!$X$4:$X$400,$AC52,'Viby Open'!$S$4:$S$400)) -> x | T52: =IF(BP52=1,"x",SUMIF('Växjö Open'!$X$4:$X$400,$AC52,'Växjö Open'!$S$4:$S$400)) -> x | U52: =IF(BK52=1,"x",SUMIF(Höstskon!$X$4:$X$400,$AC52,Höstskon!$S$4:$S$400)) -> x | V52: =IF(BL52=1,"x",SUMIF('Carlskrona Cup'!$X$4:$X$400,$AC52,'Carlskrona Cup'!$S$4:$S$400)) -> x | W52: =IF(BM52=1,"x",SUMIF('Sibbamåla Open'!$X$4:$X$400,$AC52,'Sibbamåla Open'!$S$4:$S$400)) -> x | X52: =IF(BN52=1,"x",SUMIF('Vaxholm Indoor'!$X$4:$X$400,$AC52,'Vaxholm Indoor'!$S$4:$S$400)) -> x | Y52: =IF(BQ52=1,"x",SUMIF('BlekingeDM inne'!$X$4:$X$400,$AC52,'BlekingeDM inne'!$S$4:$S$400)) -> x | Z52: =IF(BR52=1,"x",SUMIF('Svealands-DM inne'!$X$4:$X$400,$AC52,'Svealands-DM inne'!$S$4:$S$400)) -> x | AA52: =IF(BS52=1,"x",SUMIF(Värendspokalen!$X$4:$X$400,$AC52,Värendspokalen!$S$4:$S$400)) -> x | AB52: =IF(BO52=1,"x",SUMIF('SM inne'!$X$4:$X$400,$AC52,'SM inne'!$S$4:$S$400)) -> x | AC52: =IF(B52="","",SUMIF(Kastare!B$2:B$2999,B52,Kastare!A$2:A$2999)) -> 1200 | AE52: 1 | AK52: 0 | AL52: 0 | AM52: 0 | AN52: 0 | AO52: 0 | AP52: 0 | AQ52: 0 | AR52: 0 | AS52: 0 | AT52: 0 | AU52: 1 | AV52: 1 | AW52: 0 | AY52: =SUMIF('Jämjö Open'!$A$502:$A$1000,$AC52,'Jämjö Open'!$AA$502:$AA$1000) -> 1 | AZ52: =SUMIF('Viby Open'!$A$502:$A$1000,$AC52,'Viby Open'!$AA$502:$AA$1000) -> 1 | BA52: =SUMIF('Björkenäs Open'!$A$502:$A$1000,$AC52,'Björkenäs Open'!$AA$502:$AA$1000) -> 1 | BB52: =SUMIF('SM ute Lö'!$A$502:$A$1000,$AC52,'SM ute Lö'!$AA$502:$AA$1000) -> 1 | BC52: =SUMIF('SM ute Sö'!$A$503:$A$1000,$AC52,'SM ute Sö'!$AA$503:$AA$1000) -> 1 | BD52: =SUMIF('Roslagen Open'!$A$502:$A$1000,$AC52,'Roslagen Open'!$AA$502:$AA$1000) -> 1 | BE52: =SUMIF('Roslagen Open 2'!$A$502:$A$1000,$AC52,'Roslagen Open 2'!$AA$502:$AA$1000) -> 1 | BF52: =SUMIF('Dynapac Open'!$A$502:$A$1000,$AC52,'Dynapac Open'!$AA$502:$AA$1000) -> 1 | BG52: =SUMIF('SmålandsDM ute'!$A$502:$A$1000,$AC52,'SmålandsDM ute'!$AA$502:$AA$1000) -> 1 | BH52: =SUMIF('BlekingeDM ute'!$A$502:$A$1000,$AC52,'BlekingeDM ute'!$AA$502:$AA$1000) -> 1 | BI52: =SUMIF('SvealandsDM ute'!$A$502:$A$1000,$AC52,'SvealandsDM ute'!$AA$502:$AA$1000) -> 1 | BJ52: =SUMIF('Ljungby Open'!$A$502:$A$1000,$AC52,'Ljungby Open'!$AA$502:$AA$1000) -> 1 | BK52: =SUMIF(Höstskon!$A$502:$A$1000,$AC52,Höstskon!$AA$502:$AA$1000) -> 1 | BL52: =SUMIF('Carlskrona Cup'!$A$502:$A$1000,$AC52,'Carlskrona Cup'!$AA$502:$AA$1000) -> 1 | BM52: =SUMIF('Sibbamåla Open'!$A$502:$A$1000,$AC52,'Sibbamåla Open'!$AA$502:$AA$1000) -> 1 | BN52: =SUMIF('Vaxholm Indoor'!$A$502:$A$1000,$AC52,'Vaxholm Indoor'!$AA$502:$AA$1000) -> 1 | BO52: =SUMIF('SM inne'!$A$502:$A$1000,$AC52,'SM inne'!$AA$502:$AA$1000) -> 1 | BP52: =SUMIF('Växjö Open'!$A$502:$A$1000,$AC52,'Växjö Open'!$AA$502:$AA$1000) -> 1 | BQ52: =SUMIF('BlekingeDM inne'!$A$502:$A$1000,$AC52,'BlekingeDM inne'!$AA$502:$AA$1000) -> 1 | BR52: =SUMIF('Svealands-DM inne'!$A$502:$A$1000,$AC52,'Svealands-DM inne'!$AA$502:$AA$1000) -> 1 | BS52: =SUMIF(Värendspokalen!$A$502:$A$1000,$AC52,Värendspokalen!$AA$502:$AA$1000) -> 1 | BT52: =SUMIF('Tingsryd Open'!$A$502:$A$1000,$AC52,'Tingsryd Open'!$AA$502:$AA$1000) -> 3
A53: 27 | B53: Christer Blomgren | C53: Lanternan | D53: 0 | G53: =IF(BT53=1,"x",SUMIF('Tingsryd Open'!$X$4:$X$400,$AC53,'Tingsryd Open'!$S$4:$S$400)) -> 0 | H53: =IF(AY53=1,"x",SUMIF('Jämjö Open'!$X$4:$X$400,$AC53,'Jämjö Open'!$S$4:$S$400)) -> x | I53: =IF(BA53=1,"x",SUMIF('Björkenäs Open'!$X$4:$X$400,$AC53,'Björkenäs Open'!$S$4:$S$400)) -> x | J53: =IF(BB53=1,"x",SUMIF('SM ute Lö'!$X$4:$X$400,$AC53,'SM ute Lö'!$S$4:$S$400)) -> x | K53: =IF(BC53=1,"x",SUMIF('SM ute Sö'!$X$4:$X$401,$AC53,'SM ute Sö'!$S$4:$S$401)) -> x | L53: =IF(BD53=1,"x",SUMIF('Roslagen Open'!$X$4:$X$400,$AC53,'Roslagen Open'!$S$4:$S$400)) -> x | M53: =IF(BE53=1,"x",SUMIF('Roslagen Open 2'!$X$4:$X$400,$AC53,'Roslagen Open 2'!$S$4:$S$400)) -> x | N53: =IF(BF53=1,"x",SUMIF('Dynapac Open'!$X$4:$X$400,$AC53,'Dynapac Open'!$S$4:$S$400)) -> x | O53: =IF(BG53=1,"x",SUMIF('SmålandsDM ute'!$X$4:$X$400,$AC53,'SmålandsDM ute'!$S$4:$S$400)) -> x | P53: =IF(BH53=1,"x",SUMIF('BlekingeDM ute'!$X$4:$X$400,$AC53,'BlekingeDM ute'!$S$4:$S$400)) -> x | Q53: =IF(BI53=1,"x",SUMIF('SvealandsDM ute'!$X$4:$X$400,$AC53,'SvealandsDM ute'!$S$4:$S$400)) -> x | R53: =IF(BJ53=1,"x",SUMIF('Ljungby Open'!$X$4:$X$406,$AC53,'Ljungby Open'!$S$4:$S$406)) -> x | S53: =IF(AZ53=1,"x",SUMIF('Viby Open'!$X$4:$X$400,$AC53,'Viby Open'!$S$4:$S$400)) -> x | T53: =IF(BP53=1,"x",SUMIF('Växjö Open'!$X$4:$X$400,$AC53,'Växjö Open'!$S$4:$S$400)) -> x | U53: =IF(BK53=1,"x",SUMIF(Höstskon!$X$4:$X$400,$AC53,Höstskon!$S$4:$S$400)) -> x | V53: =IF(BL53=1,"x",SUMIF('Carlskrona Cup'!$X$4:$X$400,$AC53,'Carlskrona Cup'!$S$4:$S$400)) -> x | W53: =IF(BM53=1,"x",SUMIF('Sibbamåla Open'!$X$4:$X$400,$AC53,'Sibbamåla Open'!$S$4:$S$400)) -> x | X53: =IF(BN53=1,"x",SUMIF('Vaxholm Indoor'!$X$4:$X$400,$AC53,'Vaxholm Indoor'!$S$4:$S$400)) -> x | Y53: =IF(BQ53=1,"x",SUMIF('BlekingeDM inne'!$X$4:$X$400,$AC53,'BlekingeDM inne'!$S$4:$S$400)) -> x | Z53: =IF(BR53=1,"x",SUMIF('Svealands-DM inne'!$X$4:$X$400,$AC53,'Svealands-DM inne'!$S$4:$S$400)) -> x | AA53: =IF(BS53=1,"x",SUMIF(Värendspokalen!$X$4:$X$400,$AC53,Värendspokalen!$S$4:$S$400)) -> x | AB53: =IF(BO53=1,"x",SUMIF('SM inne'!$X$4:$X$400,$AC53,'SM inne'!$S$4:$S$400)) -> x | AC53: =IF(B53="","",SUMIF(Kastare!B$2:B$2999,B53,Kastare!A$2:A$2999)) -> 1173 | AE53: 1 | AK53: 0 | AL53: 0 | AM53: 0 | AN53: 0 | AO53: 0 | AP53: 0 | AQ53: 0 | AR53: 0 | AS53: 0 | AT53: 0 | AU53: 1 | AV53: 1 | AW53: 0 | AY53: =SUMIF('Jämjö Open'!$A$502:$A$1000,$AC53,'Jämjö Open'!$AA$502:$AA$1000) -> 1 | AZ53: =SUMIF('Viby Open'!$A$502:$A$1000,$AC53,'Viby Open'!$AA$502:$AA$1000) -> 1 | BA53: =SUMIF('Björkenäs Open'!$A$502:$A$1000,$AC53,'Björkenäs Open'!$AA$502:$AA$1000) -> 1 | BB53: =SUMIF('SM ute Lö'!$A$502:$A$1000,$AC53,'SM ute Lö'!$AA$502:$AA$1000) -> 1 | BC53: =SUMIF('SM ute Sö'!$A$503:$A$1000,$AC53,'SM ute Sö'!$AA$503:$AA$1000) -> 1 | BD53: =SUMIF('Roslagen Open'!$A$502:$A$1000,$AC53,'Roslagen Open'!$AA$502:$AA$1000) -> 1 | BE53: =SUMIF('Roslagen Open 2'!$A$502:$A$1000,$AC53,'Roslagen Open 2'!$AA$502:$AA$1000) -> 1 | BF53: =SUMIF('Dynapac Open'!$A$502:$A$1000,$AC53,'Dynapac Open'!$AA$502:$AA$1000) -> 1 | BG53: =SUMIF('SmålandsDM ute'!$A$502:$A$1000,$AC53,'SmålandsDM ute'!$AA$502:$AA$1000) -> 1 | BH53: =SUMIF('BlekingeDM ute'!$A$502:$A$1000,$AC53,'BlekingeDM ute'!$AA$502:$AA$1000) -> 1 | BI53: =SUMIF('SvealandsDM ute'!$A$502:$A$1000,$AC53,'SvealandsDM ute'!$AA$502:$AA$1000) -> 1 | BJ53: =SUMIF('Ljungby Open'!$A$502:$A$1000,$AC53,'Ljungby Open'!$AA$502:$AA$1000) -> 1 | BK53: =SUMIF(Höstskon!$A$502:$A$1000,$AC53,Höstskon!$AA$502:$AA$1000) -> 1 | BL53: =SUMIF('Carlskrona Cup'!$A$502:$A$1000,$AC53,'Carlskrona Cup'!$AA$502:$AA$1000) -> 1 | BM53: =SUMIF('Sibbamåla Open'!$A$502:$A$1000,$AC53,'Sibbamåla Open'!$AA$502:$AA$1000) -> 1 | BN53: =SUMIF('Vaxholm Indoor'!$A$502:$A$1000,$AC53,'Vaxholm Indoor'!$AA$502:$AA$1000) -> 1 | BO53: =SUMIF('SM inne'!$A$502:$A$1000,$AC53,'SM inne'!$AA$502:$AA$1000) -> 1 | BP53: =SUMIF('Växjö Open'!$A$502:$A$1000,$AC53,'Växjö Open'!$AA$502:$AA$1000) -> 1 | BQ53: =SUMIF('BlekingeDM inne'!$A$502:$A$1000,$AC53,'BlekingeDM inne'!$AA$502:$AA$1000) -> 1 | BR53: =SUMIF('Svealands-DM inne'!$A$502:$A$1000,$AC53,'Svealands-DM inne'!$AA$502:$AA$1000) -> 1 | BS53: =SUMIF(Värendspokalen!$A$502:$A$1000,$AC53,Värendspokalen!$AA$502:$AA$1000) -> 1 | BT53: =SUMIF('Tingsryd Open'!$A$502:$A$1000,$AC53,'Tingsryd Open'!$AA$502:$AA$1000) -> 3
A54: 27 | B54: Jonas Klarström | C54: Team Småland | D54: 0 | G54: =IF(BT54=1,"x",SUMIF('Tingsryd Open'!$X$4:$X$400,$AC54,'Tingsryd Open'!$S$4:$S$400)) -> 0 | H54: =IF(AY54=1,"x",SUMIF('Jämjö Open'!$X$4:$X$400,$AC54,'Jämjö Open'!$S$4:$S$400)) -> x | I54: =IF(BA54=1,"x",SUMIF('Björkenäs Open'!$X$4:$X$400,$AC54,'Björkenäs Open'!$S$4:$S$400)) -> x | J54: =IF(BB54=1,"x",SUMIF('SM ute Lö'!$X$4:$X$400,$AC54,'SM ute Lö'!$S$4:$S$400)) -> x | K54: =IF(BC54=1,"x",SUMIF('SM ute Sö'!$X$4:$X$401,$AC54,'SM ute Sö'!$S$4:$S$401)) -> x | L54: =IF(BD54=1,"x",SUMIF('Roslagen Open'!$X$4:$X$400,$AC54,'Roslagen Open'!$S$4:$S$400)) -> x | M54: =IF(BE54=1,"x",SUMIF('Roslagen Open 2'!$X$4:$X$400,$AC54,'Roslagen Open 2'!$S$4:$S$400)) -> x | N54: =IF(BF54=1,"x",SUMIF('Dynapac Open'!$X$4:$X$400,$AC54,'Dynapac Open'!$S$4:$S$400)) -> x | O54: =IF(BG54=1,"x",SUMIF('SmålandsDM ute'!$X$4:$X$400,$AC54,'SmålandsDM ute'!$S$4:$S$400)) -> x | P54: =IF(BH54=1,"x",SUMIF('BlekingeDM ute'!$X$4:$X$400,$AC54,'BlekingeDM ute'!$S$4:$S$400)) -> x | Q54: =IF(BI54=1,"x",SUMIF('SvealandsDM ute'!$X$4:$X$400,$AC54,'SvealandsDM ute'!$S$4:$S$400)) -> x | R54: =IF(BJ54=1,"x",SUMIF('Ljungby Open'!$X$4:$X$406,$AC54,'Ljungby Open'!$S$4:$S$406)) -> x | S54: =IF(AZ54=1,"x",SUMIF('Viby Open'!$X$4:$X$400,$AC54,'Viby Open'!$S$4:$S$400)) -> x | T54: =IF(BP54=1,"x",SUMIF('Växjö Open'!$X$4:$X$400,$AC54,'Växjö Open'!$S$4:$S$400)) -> x | U54: =IF(BK54=1,"x",SUMIF(Höstskon!$X$4:$X$400,$AC54,Höstskon!$S$4:$S$400)) -> x | V54: =IF(BL54=1,"x",SUMIF('Carlskrona Cup'!$X$4:$X$400,$AC54,'Carlskrona Cup'!$S$4:$S$400)) -> x | W54: =IF(BM54=1,"x",SUMIF('Sibbamåla Open'!$X$4:$X$400,$AC54,'Sibbamåla Open'!$S$4:$S$400)) -> x | X54: =IF(BN54=1,"x",SUMIF('Vaxholm Indoor'!$X$4:$X$400,$AC54,'Vaxholm Indoor'!$S$4:$S$400)) -> x | Y54: =IF(BQ54=1,"x",SUMIF('BlekingeDM inne'!$X$4:$X$400,$AC54,'BlekingeDM inne'!$S$4:$S$400)) -> x | Z54: =IF(BR54=1,"x",SUMIF('Svealands-DM inne'!$X$4:$X$400,$AC54,'Svealands-DM inne'!$S$4:$S$400)) -> x | AA54: =IF(BS54=1,"x",SUMIF(Värendspokalen!$X$4:$X$400,$AC54,Värendspokalen!$S$4:$S$400)) -> x | AB54: =IF(BO54=1,"x",SUMIF('SM inne'!$X$4:$X$400,$AC54,'SM inne'!$S$4:$S$400)) -> x | AC54: =IF(B54="","",SUMIF(Kastare!B$2:B$2999,B54,Kastare!A$2:A$2999)) -> 1053 | AE54: 1 | AK54: 0 | AL54: 0 | AM54: 0 | AN54: 0 | AO54: 0 | AP54: 0 | AQ54: 0 | AR54: 0 | AS54: 0 | AT54: 0 | AU54: 1 | AV54: 1 | AW54: 0 | AY54: =SUMIF('Jämjö Open'!$A$502:$A$1000,$AC54,'Jämjö Open'!$AA$502:$AA$1000) -> 1 | AZ54: =SUMIF('Viby Open'!$A$502:$A$1000,$AC54,'Viby Open'!$AA$502:$AA$1000) -> 1 | BA54: =SUMIF('Björkenäs Open'!$A$502:$A$1000,$AC54,'Björkenäs Open'!$AA$502:$AA$1000) -> 1 | BB54: =SUMIF('SM ute Lö'!$A$502:$A$1000,$AC54,'SM ute Lö'!$AA$502:$AA$1000) -> 1 | BC54: =SUMIF('SM ute Sö'!$A$503:$A$1000,$AC54,'SM ute Sö'!$AA$503:$AA$1000) -> 1 | BD54: =SUMIF('Roslagen Open'!$A$502:$A$1000,$AC54,'Roslagen Open'!$AA$502:$AA$1000) -> 1 | BE54: =SUMIF('Roslagen Open 2'!$A$502:$A$1000,$AC54,'Roslagen Open 2'!$AA$502:$AA$1000) -> 1 | BF54: =SUMIF('Dynapac Open'!$A$502:$A$1000,$AC54,'Dynapac Open'!$AA$502:$AA$1000) -> 1 | BG54: =SUMIF('SmålandsDM ute'!$A$502:$A$1000,$AC54,'SmålandsDM ute'!$AA$502:$AA$1000) -> 1 | BH54: =SUMIF('BlekingeDM ute'!$A$502:$A$1000,$AC54,'BlekingeDM ute'!$AA$502:$AA$1000) -> 1 | BI54: =SUMIF('SvealandsDM ute'!$A$502:$A$1000,$AC54,'SvealandsDM ute'!$AA$502:$AA$1000) -> 1 | BJ54: =SUMIF('Ljungby Open'!$A$502:$A$1000,$AC54,'Ljungby Open'!$AA$502:$AA$1000) -> 1 | BK54: =SUMIF(Höstskon!$A$502:$A$1000,$AC54,Höstskon!$AA$502:$AA$1000) -> 1 | BL54: =SUMIF('Carlskrona Cup'!$A$502:$A$1000,$AC54,'Carlskrona Cup'!$AA$502:$AA$1000) -> 1 | BM54: =SUMIF('Sibbamåla Open'!$A$502:$A$1000,$AC54,'Sibbamåla Open'!$AA$502:$AA$1000) -> 1 | BN54: =SUMIF('Vaxholm Indoor'!$A$502:$A$1000,$AC54,'Vaxholm Indoor'!$AA$502:$AA$1000) -> 1 | BO54: =SUMIF('SM inne'!$A$502:$A$1000,$AC54,'SM inne'!$AA$502:$AA$1000) -> 1 | BP54: =SUMIF('Växjö Open'!$A$502:$A$1000,$AC54,'Växjö Open'!$AA$502:$AA$1000) -> 1 | BQ54: =SUMIF('BlekingeDM inne'!$A$502:$A$1000,$AC54,'BlekingeDM inne'!$AA$502:$AA$1000) -> 1 | BR54: =SUMIF('Svealands-DM inne'!$A$502:$A$1000,$AC54,'Svealands-DM inne'!$AA$502:$AA$1000) -> 1 | BS54: =SUMIF(Värendspokalen!$A$502:$A$1000,$AC54,Värendspokalen!$AA$502:$AA$1000) -> 1 | BT54: =SUMIF('Tingsryd Open'!$A$502:$A$1000,$AC54,'Tingsryd Open'!$AA$502:$AA$1000) -> 3
A55: 27 | B55: Solveig Axelsson | C55: Växjö Hsk | D55: 0 | G55: =IF(BT55=1,"x",SUMIF('Tingsryd Open'!$X$4:$X$400,$AC55,'Tingsryd Open'!$S$4:$S$400)) -> 0 | H55: =IF(AY55=1,"x",SUMIF('Jämjö Open'!$X$4:$X$400,$AC55,'Jämjö Open'!$S$4:$S$400)) -> x | I55: =IF(BA55=1,"x",SUMIF('Björkenäs Open'!$X$4:$X$400,$AC55,'Björkenäs Open'!$S$4:$S$400)) -> x | J55: =IF(BB55=1,"x",SUMIF('SM ute Lö'!$X$4:$X$400,$AC55,'SM ute Lö'!$S$4:$S$400)) -> x | K55: =IF(BC55=1,"x",SUMIF('SM ute Sö'!$X$4:$X$401,$AC55,'SM ute Sö'!$S$4:$S$401)) -> x | L55: =IF(BD55=1,"x",SUMIF('Roslagen Open'!$X$4:$X$400,$AC55,'Roslagen Open'!$S$4:$S$400)) -> x | M55: =IF(BE55=1,"x",SUMIF('Roslagen Open 2'!$X$4:$X$400,$AC55,'Roslagen Open 2'!$S$4:$S$400)) -> x | N55: =IF(BF55=1,"x",SUMIF('Dynapac Open'!$X$4:$X$400,$AC55,'Dynapac Open'!$S$4:$S$400)) -> x | O55: =IF(BG55=1,"x",SUMIF('SmålandsDM ute'!$X$4:$X$400,$AC55,'SmålandsDM ute'!$S$4:$S$400)) -> x | P55: =IF(BH55=1,"x",SUMIF('BlekingeDM ute'!$X$4:$X$400,$AC55,'BlekingeDM ute'!$S$4:$S$400)) -> x | Q55: =IF(BI55=1,"x",SUMIF('SvealandsDM ute'!$X$4:$X$400,$AC55,'SvealandsDM ute'!$S$4:$S$400)) -> x | R55: =IF(BJ55=1,"x",SUMIF('Ljungby Open'!$X$4:$X$406,$AC55,'Ljungby Open'!$S$4:$S$406)) -> x | S55: =IF(AZ55=1,"x",SUMIF('Viby Open'!$X$4:$X$400,$AC55,'Viby Open'!$S$4:$S$400)) -> x | T55: =IF(BP55=1,"x",SUMIF('Växjö Open'!$X$4:$X$400,$AC55,'Växjö Open'!$S$4:$S$400)) -> x | U55: =IF(BK55=1,"x",SUMIF(Höstskon!$X$4:$X$400,$AC55,Höstskon!$S$4:$S$400)) -> x | V55: =IF(BL55=1,"x",SUMIF('Carlskrona Cup'!$X$4:$X$400,$AC55,'Carlskrona Cup'!$S$4:$S$400)) -> x | W55: =IF(BM55=1,"x",SUMIF('Sibbamåla Open'!$X$4:$X$400,$AC55,'Sibbamåla Open'!$S$4:$S$400)) -> x | X55: =IF(BN55=1,"x",SUMIF('Vaxholm Indoor'!$X$4:$X$400,$AC55,'Vaxholm Indoor'!$S$4:$S$400)) -> x | Y55: =IF(BQ55=1,"x",SUMIF('BlekingeDM inne'!$X$4:$X$400,$AC55,'BlekingeDM inne'!$S$4:$S$400)) -> x | Z55: =IF(BR55=1,"x",SUMIF('Svealands-DM inne'!$X$4:$X$400,$AC55,'Svealands-DM inne'!$S$4:$S$400)) -> x | AA55: =IF(BS55=1,"x",SUMIF(Värendspokalen!$X$4:$X$400,$AC55,Värendspokalen!$S$4:$S$400)) -> x | AB55: =IF(BO55=1,"x",SUMIF('SM inne'!$X$4:$X$400,$AC55,'SM inne'!$S$4:$S$400)) -> x | AC55: =IF(B55="","",SUMIF(Kastare!B$2:B$2999,B55,Kastare!A$2:A$2999)) -> 1058 | AE55: 1 | AK55: 0 | AL55: 0 | AM55: 0 | AN55: 0 | AO55: 0 | AP55: 0 | AQ55: 0 | AR55: 0 | AS55: 0 | AT55: 0 | AU55: 1 | AV55: 1 | AW55: 0 | AY55: =SUMIF('Jämjö Open'!$A$502:$A$1000,$AC55,'Jämjö Open'!$AA$502:$AA$1000) -> 1 | AZ55: =SUMIF('Viby Open'!$A$502:$A$1000,$AC55,'Viby Open'!$AA$502:$AA$1000) -> 1 | BA55: =SUMIF('Björkenäs Open'!$A$502:$A$1000,$AC55,'Björkenäs Open'!$AA$502:$AA$1000) -> 1 | BB55: =SUMIF('SM ute Lö'!$A$502:$A$1000,$AC55,'SM ute Lö'!$AA$502:$AA$1000) -> 1 | BC55: =SUMIF('SM ute Sö'!$A$503:$A$1000,$AC55,'SM ute Sö'!$AA$503:$AA$1000) -> 1 | BD55: =SUMIF('Roslagen Open'!$A$502:$A$1000,$AC55,'Roslagen Open'!$AA$502:$AA$1000) -> 1 | BE55: =SUMIF('Roslagen Open 2'!$A$502:$A$1000,$AC55,'Roslagen Open 2'!$AA$502:$AA$1000) -> 1 | BF55: =SUMIF('Dynapac Open'!$A$502:$A$1000,$AC55,'Dynapac Open'!$AA$502:$AA$1000) -> 1 | BG55: =SUMIF('SmålandsDM ute'!$A$502:$A$1000,$AC55,'SmålandsDM ute'!$AA$502:$AA$1000) -> 1 | BH55: =SUMIF('BlekingeDM ute'!$A$502:$A$1000,$AC55,'BlekingeDM ute'!$AA$502:$AA$1000) -> 1 | BI55: =SUMIF('SvealandsDM ute'!$A$502:$A$1000,$AC55,'SvealandsDM ute'!$AA$502:$AA$1000) -> 1 | BJ55: =SUMIF('Ljungby Open'!$A$502:$A$1000,$AC55,'Ljungby Open'!$AA$502:$AA$1000) -> 1 | BK55: =SUMIF(Höstskon!$A$502:$A$1000,$AC55,Höstskon!$AA$502:$AA$1000) -> 1 | BL55: =SUMIF('Carlskrona Cup'!$A$502:$A$1000,$AC55,'Carlskrona Cup'!$AA$502:$AA$1000) -> 1 | BM55: =SUMIF('Sibbamåla Open'!$A$502:$A$1000,$AC55,'Sibbamåla Open'!$AA$502:$AA$1000) -> 1 | BN55: =SUMIF('Vaxholm Indoor'!$A$502:$A$1000,$AC55,'Vaxholm Indoor'!$AA$502:$AA$1000) -> 1 | BO55: =SUMIF('SM inne'!$A$502:$A$1000,$AC55,'SM inne'!$AA$502:$AA$1000) -> 1 | BP55: =SUMIF('Växjö Open'!$A$502:$A$1000,$AC55,'Växjö Open'!$AA$502:$AA$1000) -> 1 | BQ55: =SUMIF('BlekingeDM inne'!$A$502:$A$1000,$AC55,'BlekingeDM inne'!$AA$502:$AA$1000) -> 1 | BR55: =SUMIF('Svealands-DM inne'!$A$502:$A$1000,$AC55,'Svealands-DM inne'!$AA$502:$AA$1000) -> 1 | BS55: =SUMIF(Värendspokalen!$A$502:$A$1000,$AC55,Värendspokalen!$AA$502:$AA$1000) -> 1 | BT55: =SUMIF('Tingsryd Open'!$A$502:$A$1000,$AC55,'Tingsryd Open'!$AA$502:$AA$1000) -> 3
A56: 27 | B56: Annette Persson | C56: Växjö Hsk | D56: 0 | G56: =IF(BT56=1,"x",SUMIF('Tingsryd Open'!$X$4:$X$400,$AC56,'Tingsryd Open'!$S$4:$S$400)) -> 0 | H56: =IF(AY56=1,"x",SUMIF('Jämjö Open'!$X$4:$X$400,$AC56,'Jämjö Open'!$S$4:$S$400)) -> x | I56: =IF(BA56=1,"x",SUMIF('Björkenäs Open'!$X$4:$X$400,$AC56,'Björkenäs Open'!$S$4:$S$400)) -> x | J56: =IF(BB56=1,"x",SUMIF('SM ute Lö'!$X$4:$X$400,$AC56,'SM ute Lö'!$S$4:$S$400)) -> x | K56: =IF(BC56=1,"x",SUMIF('SM ute Sö'!$X$4:$X$401,$AC56,'SM ute Sö'!$S$4:$S$401)) -> x | L56: =IF(BD56=1,"x",SUMIF('Roslagen Open'!$X$4:$X$400,$AC56,'Roslagen Open'!$S$4:$S$400)) -> x | M56: =IF(BE56=1,"x",SUMIF('Roslagen Open 2'!$X$4:$X$400,$AC56,'Roslagen Open 2'!$S$4:$S$400)) -> x | N56: =IF(BF56=1,"x",SUMIF('Dynapac Open'!$X$4:$X$400,$AC56,'Dynapac Open'!$S$4:$S$400)) -> x | O56: =IF(BG56=1,"x",SUMIF('SmålandsDM ute'!$X$4:$X$400,$AC56,'SmålandsDM ute'!$S$4:$S$400)) -> x | P56: =IF(BH56=1,"x",SUMIF('BlekingeDM ute'!$X$4:$X$400,$AC56,'BlekingeDM ute'!$S$4:$S$400)) -> x | Q56: =IF(BI56=1,"x",SUMIF('SvealandsDM ute'!$X$4:$X$400,$AC56,'SvealandsDM ute'!$S$4:$S$400)) -> x | R56: =IF(BJ56=1,"x",SUMIF('Ljungby Open'!$X$4:$X$406,$AC56,'Ljungby Open'!$S$4:$S$406)) -> x | S56: =IF(AZ56=1,"x",SUMIF('Viby Open'!$X$4:$X$400,$AC56,'Viby Open'!$S$4:$S$400)) -> x | T56: =IF(BP56=1,"x",SUMIF('Växjö Open'!$X$4:$X$400,$AC56,'Växjö Open'!$S$4:$S$400)) -> x | U56: =IF(BK56=1,"x",SUMIF(Höstskon!$X$4:$X$400,$AC56,Höstskon!$S$4:$S$400)) -> x | V56: =IF(BL56=1,"x",SUMIF('Carlskrona Cup'!$X$4:$X$400,$AC56,'Carlskrona Cup'!$S$4:$S$400)) -> x | W56: =IF(BM56=1,"x",SUMIF('Sibbamåla Open'!$X$4:$X$400,$AC56,'Sibbamåla Open'!$S$4:$S$400)) -> x | X56: =IF(BN56=1,"x",SUMIF('Vaxholm Indoor'!$X$4:$X$400,$AC56,'Vaxholm Indoor'!$S$4:$S$400)) -> x | Y56: =IF(BQ56=1,"x",SUMIF('BlekingeDM inne'!$X$4:$X$400,$AC56,'BlekingeDM inne'!$S$4:$S$400)) -> x | Z56: =IF(BR56=1,"x",SUMIF('Svealands-DM inne'!$X$4:$X$400,$AC56,'Svealands-DM inne'!$S$4:$S$400)) -> x | AA56: =IF(BS56=1,"x",SUMIF(Värendspokalen!$X$4:$X$400,$AC56,Värendspokalen!$S$4:$S$400)) -> x | AB56: =IF(BO56=1,"x",SUMIF('SM inne'!$X$4:$X$400,$AC56,'SM inne'!$S$4:$S$400)) -> x | AC56: =IF(B56="","",SUMIF(Kastare!B$2:B$2999,B56,Kastare!A$2:A$2999)) -> 1398 | AE56: 1 | AK56: 0 | AL56: 0 | AM56: 0 | AN56: 0 | AO56: 0 | AP56: 0 | AQ56: 0 | AR56: 0 | AS56: 0 | AT56: 0 | AU56: 1 | AV56: 1 | AW56: 0 | AY56: =SUMIF('Jämjö Open'!$A$502:$A$1000,$AC56,'Jämjö Open'!$AA$502:$AA$1000) -> 1 | AZ56: =SUMIF('Viby Open'!$A$502:$A$1000,$AC56,'Viby Open'!$AA$502:$AA$1000) -> 1 | BA56: =SUMIF('Björkenäs Open'!$A$502:$A$1000,$AC56,'Björkenäs Open'!$AA$502:$AA$1000) -> 1 | BB56: =SUMIF('SM ute Lö'!$A$502:$A$1000,$AC56,'SM ute Lö'!$AA$502:$AA$1000) -> 1 | BC56: =SUMIF('SM ute Sö'!$A$503:$A$1000,$AC56,'SM ute Sö'!$AA$503:$AA$1000) -> 1 | BD56: =SUMIF('Roslagen Open'!$A$502:$A$1000,$AC56,'Roslagen Open'!$AA$502:$AA$1000) -> 1 | BE56: =SUMIF('Roslagen Open 2'!$A$502:$A$1000,$AC56,'Roslagen Open 2'!$AA$502:$AA$1000) -> 1 | BF56: =SUMIF('Dynapac Open'!$A$502:$A$1000,$AC56,'Dynapac Open'!$AA$502:$AA$1000) -> 1 | BG56: =SUMIF('SmålandsDM ute'!$A$502:$A$1000,$AC56,'SmålandsDM ute'!$AA$502:$AA$1000) -> 1 | BH56: =SUMIF('BlekingeDM ute'!$A$502:$A$1000,$AC56,'BlekingeDM ute'!$AA$502:$AA$1000) -> 1 | BI56: =SUMIF('SvealandsDM ute'!$A$502:$A$1000,$AC56,'SvealandsDM ute'!$AA$502:$AA$1000) -> 1 | BJ56: =SUMIF('Ljungby Open'!$A$502:$A$1000,$AC56,'Ljungby Open'!$AA$502:$AA$1000) -> 1 | BK56: =SUMIF(Höstskon!$A$502:$A$1000,$AC56,Höstskon!$AA$502:$AA$1000) -> 1 | BL56: =SUMIF('Carlskrona Cup'!$A$502:$A$1000,$AC56,'Carlskrona Cup'!$AA$502:$AA$1000) -> 1 | BM56: =SUMIF('Sibbamåla Open'!$A$502:$A$1000,$AC56,'Sibbamåla Open'!$AA$502:$AA$1000) -> 1 | BN56: =SUMIF('Vaxholm Indoor'!$A$502:$A$1000,$AC56,'Vaxholm Indoor'!$AA$502:$AA$1000) -> 1 | BO56: =SUMIF('SM inne'!$A$502:$A$1000,$AC56,'SM inne'!$AA$502:$AA$1000) -> 1 | BP56: =SUMIF('Växjö Open'!$A$502:$A$1000,$AC56,'Växjö Open'!$AA$502:$AA$1000) -> 1 | BQ56: =SUMIF('BlekingeDM inne'!$A$502:$A$1000,$AC56,'BlekingeDM inne'!$AA$502:$AA$1000) -> 1 | BR56: =SUMIF('Svealands-DM inne'!$A$502:$A$1000,$AC56,'Svealands-DM inne'!$AA$502:$AA$1000) -> 1 | BS56: =SUMIF(Värendspokalen!$A$502:$A$1000,$AC56,Värendspokalen!$AA$502:$AA$1000) -> 1 | BT56: =SUMIF('Tingsryd Open'!$A$502:$A$1000,$AC56,'Tingsryd Open'!$AA$502:$AA$1000) -> 3
A57: 27 | B57: Malin Löwberg | C57: Balders Hsk | D57: 0 | G57: =IF(BT57=1,"x",SUMIF('Tingsryd Open'!$X$4:$X$400,$AC57,'Tingsryd Open'!$S$4:$S$400)) -> 0 | H57: =IF(AY57=1,"x",SUMIF('Jämjö Open'!$X$4:$X$400,$AC57,'Jämjö Open'!$S$4:$S$400)) -> x | I57: =IF(BA57=1,"x",SUMIF('Björkenäs Open'!$X$4:$X$400,$AC57,'Björkenäs Open'!$S$4:$S$400)) -> x | J57: =IF(BB57=1,"x",SUMIF('SM ute Lö'!$X$4:$X$400,$AC57,'SM ute Lö'!$S$4:$S$400)) -> x | K57: =IF(BC57=1,"x",SUMIF('SM ute Sö'!$X$4:$X$401,$AC57,'SM ute Sö'!$S$4:$S$401)) -> x | L57: =IF(BD57=1,"x",SUMIF('Roslagen Open'!$X$4:$X$400,$AC57,'Roslagen Open'!$S$4:$S$400)) -> x | M57: =IF(BE57=1,"x",SUMIF('Roslagen Open 2'!$X$4:$X$400,$AC57,'Roslagen Open 2'!$S$4:$S$400)) -> x | N57: =IF(BF57=1,"x",SUMIF('Dynapac Open'!$X$4:$X$400,$AC57,'Dynapac Open'!$S$4:$S$400)) -> x | O57: =IF(BG57=1,"x",SUMIF('SmålandsDM ute'!$X$4:$X$400,$AC57,'SmålandsDM ute'!$S$4:$S$400)) -> x | P57: =IF(BH57=1,"x",SUMIF('BlekingeDM ute'!$X$4:$X$400,$AC57,'BlekingeDM ute'!$S$4:$S$400)) -> x | Q57: =IF(BI57=1,"x",SUMIF('SvealandsDM ute'!$X$4:$X$400,$AC57,'SvealandsDM ute'!$S$4:$S$400)) -> x | R57: =IF(BJ57=1,"x",SUMIF('Ljungby Open'!$X$4:$X$406,$AC57,'Ljungby Open'!$S$4:$S$406)) -> x | S57: =IF(AZ57=1,"x",SUMIF('Viby Open'!$X$4:$X$400,$AC57,'Viby Open'!$S$4:$S$400)) -> x | T57: =IF(BP57=1,"x",SUMIF('Växjö Open'!$X$4:$X$400,$AC57,'Växjö Open'!$S$4:$S$400)) -> x | U57: =IF(BK57=1,"x",SUMIF(Höstskon!$X$4:$X$400,$AC57,Höstskon!$S$4:$S$400)) -> x | V57: =IF(BL57=1,"x",SUMIF('Carlskrona Cup'!$X$4:$X$400,$AC57,'Carlskrona Cup'!$S$4:$S$400)) -> x | W57: =IF(BM57=1,"x",SUMIF('Sibbamåla Open'!$X$4:$X$400,$AC57,'Sibbamåla Open'!$S$4:$S$400)) -> x | X57: =IF(BN57=1,"x",SUMIF('Vaxholm Indoor'!$X$4:$X$400,$AC57,'Vaxholm Indoor'!$S$4:$S$400)) -> x | Y57: =IF(BQ57=1,"x",SUMIF('BlekingeDM inne'!$X$4:$X$400,$AC57,'BlekingeDM inne'!$S$4:$S$400)) -> x | Z57: =IF(BR57=1,"x",SUMIF('Svealands-DM inne'!$X$4:$X$400,$AC57,'Svealands-DM inne'!$S$4:$S$400)) -> x | AA57: =IF(BS57=1,"x",SUMIF(Värendspokalen!$X$4:$X$400,$AC57,Värendspokalen!$S$4:$S$400)) -> x | AB57: =IF(BO57=1,"x",SUMIF('SM inne'!$X$4:$X$400,$AC57,'SM inne'!$S$4:$S$400)) -> x | AC57: =IF(B57="","",SUMIF(Kastare!B$2:B$2999,B57,Kastare!A$2:A$2999)) -> 1143 | AE57: 1 | AK57: 0 | AL57: 0 | AM57: 0 | AN57: 0 | AO57: 0 | AP57: 0 | AQ57: 0 | AR57: 0 | AS57: 0 | AT57: 0 | AU57: 1 | AV57: 1 | AW57: 0 | AY57: =SUMIF('Jämjö Open'!$A$502:$A$1000,$AC57,'Jämjö Open'!$AA$502:$AA$1000) -> 1 | AZ57: =SUMIF('Viby Open'!$A$502:$A$1000,$AC57,'Viby Open'!$AA$502:$AA$1000) -> 1 | BA57: =SUMIF('Björkenäs Open'!$A$502:$A$1000,$AC57,'Björkenäs Open'!$AA$502:$AA$1000) -> 1 | BB57: =SUMIF('SM ute Lö'!$A$502:$A$1000,$AC57,'SM ute Lö'!$AA$502:$AA$1000) -> 1 | BC57: =SUMIF('SM ute Sö'!$A$503:$A$1000,$AC57,'SM ute Sö'!$AA$503:$AA$1000) -> 1 | BD57: =SUMIF('Roslagen Open'!$A$502:$A$1000,$AC57,'Roslagen Open'!$AA$502:$AA$1000) -> 1 | BE57: =SUMIF('Roslagen Open 2'!$A$502:$A$1000,$AC57,'Roslagen Open 2'!$AA$502:$AA$1000) -> 1 | BF57: =SUMIF('Dynapac Open'!$A$502:$A$1000,$AC57,'Dynapac Open'!$AA$502:$AA$1000) -> 1 | BG57: =SUMIF('SmålandsDM ute'!$A$502:$A$1000,$AC57,'SmålandsDM ute'!$AA$502:$AA$1000) -> 1 | BH57: =SUMIF('BlekingeDM ute'!$A$502:$A$1000,$AC57,'BlekingeDM ute'!$AA$502:$AA$1000) -> 1 | BI57: =SUMIF('SvealandsDM ute'!$A$502:$A$1000,$AC57,'SvealandsDM ute'!$AA$502:$AA$1000) -> 1 | BJ57: =SUMIF('Ljungby Open'!$A$502:$A$1000,$AC57,'Ljungby Open'!$AA$502:$AA$1000) -> 1 | BK57: =SUMIF(Höstskon!$A$502:$A$1000,$AC57,Höstskon!$AA$502:$AA$1000) -> 1 | BL57: =SUMIF('Carlskrona Cup'!$A$502:$A$1000,$AC57,'Carlskrona Cup'!$AA$502:$AA$1000) -> 1 | BM57: =SUMIF('Sibbamåla Open'!$A$502:$A$1000,$AC57,'Sibbamåla Open'!$AA$502:$AA$1000) -> 1 | BN57: =SUMIF('Vaxholm Indoor'!$A$502:$A$1000,$AC57,'Vaxholm Indoor'!$AA$502:$AA$1000) -> 1 | BO57: =SUMIF('SM inne'!$A$502:$A$1000,$AC57,'SM inne'!$AA$502:$AA$1000) -> 1 | BP57: =SUMIF('Växjö Open'!$A$502:$A$1000,$AC57,'Växjö Open'!$AA$502:$AA$1000) -> 1 | BQ57: =SUMIF('BlekingeDM inne'!$A$502:$A$1000,$AC57,'BlekingeDM inne'!$AA$502:$AA$1000) -> 1 | BR57: =SUMIF('Svealands-DM inne'!$A$502:$A$1000,$AC57,'Svealands-DM inne'!$AA$502:$AA$1000) -> 1 | BS57: =SUMIF(Värendspokalen!$A$502:$A$1000,$AC57,Värendspokalen!$AA$502:$AA$1000) -> 1 | BT57: =SUMIF('Tingsryd Open'!$A$502:$A$1000,$AC57,'Tingsryd Open'!$AA$502:$AA$1000) -> 3
A58: 27 | B58: Torbjörn Svennberg | C58: Balders HSK | D58: 0 | G58: =IF(BT58=1,"x",SUMIF('Tingsryd Open'!$X$4:$X$400,$AC58,'Tingsryd Open'!$S$4:$S$400)) -> 0 | H58: =IF(AY58=1,"x",SUMIF('Jämjö Open'!$X$4:$X$400,$AC58,'Jämjö Open'!$S$4:$S$400)) -> x | I58: =IF(BA58=1,"x",SUMIF('Björkenäs Open'!$X$4:$X$400,$AC58,'Björkenäs Open'!$S$4:$S$400)) -> x | J58: =IF(BB58=1,"x",SUMIF('SM ute Lö'!$X$4:$X$400,$AC58,'SM ute Lö'!$S$4:$S$400)) -> x | K58: =IF(BC58=1,"x",SUMIF('SM ute Sö'!$X$4:$X$401,$AC58,'SM ute Sö'!$S$4:$S$401)) -> x | L58: =IF(BD58=1,"x",SUMIF('Roslagen Open'!$X$4:$X$400,$AC58,'Roslagen Open'!$S$4:$S$400)) -> x | M58: =IF(BE58=1,"x",SUMIF('Roslagen Open 2'!$X$4:$X$400,$AC58,'Roslagen Open 2'!$S$4:$S$400)) -> x | N58: =IF(BF58=1,"x",SUMIF('Dynapac Open'!$X$4:$X$400,$AC58,'Dynapac Open'!$S$4:$S$400)) -> x | O58: =IF(BG58=1,"x",SUMIF('SmålandsDM ute'!$X$4:$X$400,$AC58,'SmålandsDM ute'!$S$4:$S$400)) -> x | P58: =IF(BH58=1,"x",SUMIF('BlekingeDM ute'!$X$4:$X$400,$AC58,'BlekingeDM ute'!$S$4:$S$400)) -> x | Q58: =IF(BI58=1,"x",SUMIF('SvealandsDM ute'!$X$4:$X$400,$AC58,'SvealandsDM ute'!$S$4:$S$400)) -> x | R58: =IF(BJ58=1,"x",SUMIF('Ljungby Open'!$X$4:$X$406,$AC58,'Ljungby Open'!$S$4:$S$406)) -> x | S58: =IF(AZ58=1,"x",SUMIF('Viby Open'!$X$4:$X$400,$AC58,'Viby Open'!$S$4:$S$400)) -> x | T58: =IF(BP58=1,"x",SUMIF('Växjö Open'!$X$4:$X$400,$AC58,'Växjö Open'!$S$4:$S$400)) -> x | U58: =IF(BK58=1,"x",SUMIF(Höstskon!$X$4:$X$400,$AC58,Höstskon!$S$4:$S$400)) -> x | V58: =IF(BL58=1,"x",SUMIF('Carlskrona Cup'!$X$4:$X$400,$AC58,'Carlskrona Cup'!$S$4:$S$400)) -> x | W58: =IF(BM58=1,"x",SUMIF('Sibbamåla Open'!$X$4:$X$400,$AC58,'Sibbamåla Open'!$S$4:$S$400)) -> x | X58: =IF(BN58=1,"x",SUMIF('Vaxholm Indoor'!$X$4:$X$400,$AC58,'Vaxholm Indoor'!$S$4:$S$400)) -> x | Y58: =IF(BQ58=1,"x",SUMIF('BlekingeDM inne'!$X$4:$X$400,$AC58,'BlekingeDM inne'!$S$4:$S$400)) -> x | Z58: =IF(BR58=1,"x",SUMIF('Svealands-DM inne'!$X$4:$X$400,$AC58,'Svealands-DM inne'!$S$4:$S$400)) -> x | AA58: =IF(BS58=1,"x",SUMIF(Värendspokalen!$X$4:$X$400,$AC58,Värendspokalen!$S$4:$S$400)) -> x | AB58: =IF(BO58=1,"x",SUMIF('SM inne'!$X$4:$X$400,$AC58,'SM inne'!$S$4:$S$400)) -> x | AC58: =IF(B58="","",SUMIF(Kastare!B$2:B$2999,B58,Kastare!A$2:A$2999)) -> 1188 | AE58: 1 | AK58: 0 | AL58: 0 | AM58: 0 | AN58: 0 | AO58: 0 | AP58: 0 | AQ58: 0 | AR58: 0 | AS58: 0 | AT58: 0 | AU58: 1 | AV58: 1 | AW58: 0 | AY58: =SUMIF('Jämjö Open'!$A$502:$A$1000,$AC58,'Jämjö Open'!$AA$502:$AA$1000) -> 1 | AZ58: =SUMIF('Viby Open'!$A$502:$A$1000,$AC58,'Viby Open'!$AA$502:$AA$1000) -> 1 | BA58: =SUMIF('Björkenäs Open'!$A$502:$A$1000,$AC58,'Björkenäs Open'!$AA$502:$AA$1000) -> 1 | BB58: =SUMIF('SM ute Lö'!$A$502:$A$1000,$AC58,'SM ute Lö'!$AA$502:$AA$1000) -> 1 | BC58: =SUMIF('SM ute Sö'!$A$503:$A$1000,$AC58,'SM ute Sö'!$AA$503:$AA$1000) -> 1 | BD58: =SUMIF('Roslagen Open'!$A$502:$A$1000,$AC58,'Roslagen Open'!$AA$502:$AA$1000) -> 1 | BE58: =SUMIF('Roslagen Open 2'!$A$502:$A$1000,$AC58,'Roslagen Open 2'!$AA$502:$AA$1000) -> 1 | BF58: =SUMIF('Dynapac Open'!$A$502:$A$1000,$AC58,'Dynapac Open'!$AA$502:$AA$1000) -> 1 | BG58: =SUMIF('SmålandsDM ute'!$A$502:$A$1000,$AC58,'SmålandsDM ute'!$AA$502:$AA$1000) -> 1 | BH58: =SUMIF('BlekingeDM ute'!$A$502:$A$1000,$AC58,'BlekingeDM ute'!$AA$502:$AA$1000) -> 1 | BI58: =SUMIF('SvealandsDM ute'!$A$502:$A$1000,$AC58,'SvealandsDM ute'!$AA$502:$AA$1000) -> 1 | BJ58: =SUMIF('Ljungby Open'!$A$502:$A$1000,$AC58,'Ljungby Open'!$AA$502:$AA$1000) -> 1 | BK58: =SUMIF(Höstskon!$A$502:$A$1000,$AC58,Höstskon!$AA$502:$AA$1000) -> 1 | BL58: =SUMIF('Carlskrona Cup'!$A$502:$A$1000,$AC58,'Carlskrona Cup'!$AA$502:$AA$1000) -> 1 | BM58: =SUMIF('Sibbamåla Open'!$A$502:$A$1000,$AC58,'Sibbamåla Open'!$AA$502:$AA$1000) -> 1 | BN58: =SUMIF('Vaxholm Indoor'!$A$502:$A$1000,$AC58,'Vaxholm Indoor'!$AA$502:$AA$1000) -> 1 | BO58: =SUMIF('SM inne'!$A$502:$A$1000,$AC58,'SM inne'!$AA$502:$AA$1000) -> 1 | BP58: =SUMIF('Växjö Open'!$A$502:$A$1000,$AC58,'Växjö Open'!$AA$502:$AA$1000) -> 1 | BQ58: =SUMIF('BlekingeDM inne'!$A$502:$A$1000,$AC58,'BlekingeDM inne'!$AA$502:$AA$1000) -> 1 | BR58: =SUMIF('Svealands-DM inne'!$A$502:$A$1000,$AC58,'Svealands-DM inne'!$AA$502:$AA$1000) -> 1 | BS58: =SUMIF(Värendspokalen!$A$502:$A$1000,$AC58,Värendspokalen!$AA$502:$AA$1000) -> 1 | BT58: =SUMIF('Tingsryd Open'!$A$502:$A$1000,$AC58,'Tingsryd Open'!$AA$502:$AA$1000) -> 3
A59: 27 | B59: Maria Andersson | C59: Team Småland | D59: 0 | G59: =IF(BT59=1,"x",SUMIF('Tingsryd Open'!$X$4:$X$400,$AC59,'Tingsryd Open'!$S$4:$S$400)) -> 0 | H59: =IF(AY59=1,"x",SUMIF('Jämjö Open'!$X$4:$X$400,$AC59,'Jämjö Open'!$S$4:$S$400)) -> x | I59: =IF(BA59=1,"x",SUMIF('Björkenäs Open'!$X$4:$X$400,$AC59,'Björkenäs Open'!$S$4:$S$400)) -> x | J59: =IF(BB59=1,"x",SUMIF('SM ute Lö'!$X$4:$X$400,$AC59,'SM ute Lö'!$S$4:$S$400)) -> x | K59: =IF(BC59=1,"x",SUMIF('SM ute Sö'!$X$4:$X$401,$AC59,'SM ute Sö'!$S$4:$S$401)) -> x | L59: =IF(BD59=1,"x",SUMIF('Roslagen Open'!$X$4:$X$400,$AC59,'Roslagen Open'!$S$4:$S$400)) -> x | M59: =IF(BE59=1,"x",SUMIF('Roslagen Open 2'!$X$4:$X$400,$AC59,'Roslagen Open 2'!$S$4:$S$400)) -> x | N59: =IF(BF59=1,"x",SUMIF('Dynapac Open'!$X$4:$X$400,$AC59,'Dynapac Open'!$S$4:$S$400)) -> x | O59: =IF(BG59=1,"x",SUMIF('SmålandsDM ute'!$X$4:$X$400,$AC59,'SmålandsDM ute'!$S$4:$S$400)) -> x | P59: =IF(BH59=1,"x",SUMIF('BlekingeDM ute'!$X$4:$X$400,$AC59,'BlekingeDM ute'!$S$4:$S$400)) -> x | Q59: =IF(BI59=1,"x",SUMIF('SvealandsDM ute'!$X$4:$X$400,$AC59,'SvealandsDM ute'!$S$4:$S$400)) -> x | R59: =IF(BJ59=1,"x",SUMIF('Ljungby Open'!$X$4:$X$406,$AC59,'Ljungby Open'!$S$4:$S$406)) -> x | S59: =IF(AZ59=1,"x",SUMIF('Viby Open'!$X$4:$X$400,$AC59,'Viby Open'!$S$4:$S$400)) -> x | T59: =IF(BP59=1,"x",SUMIF('Växjö Open'!$X$4:$X$400,$AC59,'Växjö Open'!$S$4:$S$400)) -> x | U59: =IF(BK59=1,"x",SUMIF(Höstskon!$X$4:$X$400,$AC59,Höstskon!$S$4:$S$400)) -> x | V59: =IF(BL59=1,"x",SUMIF('Carlskrona Cup'!$X$4:$X$400,$AC59,'Carlskrona Cup'!$S$4:$S$400)) -> x | W59: =IF(BM59=1,"x",SUMIF('Sibbamåla Open'!$X$4:$X$400,$AC59,'Sibbamåla Open'!$S$4:$S$400)) -> x | X59: =IF(BN59=1,"x",SUMIF('Vaxholm Indoor'!$X$4:$X$400,$AC59,'Vaxholm Indoor'!$S$4:$S$400)) -> x | Y59: =IF(BQ59=1,"x",SUMIF('BlekingeDM inne'!$X$4:$X$400,$AC59,'BlekingeDM inne'!$S$4:$S$400)) -> x | Z59: =IF(BR59=1,"x",SUMIF('Svealands-DM inne'!$X$4:$X$400,$AC59,'Svealands-DM inne'!$S$4:$S$400)) -> x | AA59: =IF(BS59=1,"x",SUMIF(Värendspokalen!$X$4:$X$400,$AC59,Värendspokalen!$S$4:$S$400)) -> x | AB59: =IF(BO59=1,"x",SUMIF('SM inne'!$X$4:$X$400,$AC59,'SM inne'!$S$4:$S$400)) -> x | AC59: =IF(B59="","",SUMIF(Kastare!B$2:B$2999,B59,Kastare!A$2:A$2999)) -> 1038 | AE59: 1 | AK59: 0 | AL59: 0 | AM59: 0 | AN59: 0 | AO59: 0 | AP59: 0 | AQ59: 0 | AR59: 0 | AS59: 0 | AT59: 0 | AU59: 1 | AV59: 1 | AW59: 0 | AY59: =SUMIF('Jämjö Open'!$A$502:$A$1000,$AC59,'Jämjö Open'!$AA$502:$AA$1000) -> 1 | AZ59: =SUMIF('Viby Open'!$A$502:$A$1000,$AC59,'Viby Open'!$AA$502:$AA$1000) -> 1 | BA59: =SUMIF('Björkenäs Open'!$A$502:$A$1000,$AC59,'Björkenäs Open'!$AA$502:$AA$1000) -> 1 | BB59: =SUMIF('SM ute Lö'!$A$502:$A$1000,$AC59,'SM ute Lö'!$AA$502:$AA$1000) -> 1 | BC59: =SUMIF('SM ute Sö'!$A$503:$A$1000,$AC59,'SM ute Sö'!$AA$503:$AA$1000) -> 1 | BD59: =SUMIF('Roslagen Open'!$A$502:$A$1000,$AC59,'Roslagen Open'!$AA$502:$AA$1000) -> 1 | BE59: =SUMIF('Roslagen Open 2'!$A$502:$A$1000,$AC59,'Roslagen Open 2'!$AA$502:$AA$1000) -> 1 | BF59: =SUMIF('Dynapac Open'!$A$502:$A$1000,$AC59,'Dynapac Open'!$AA$502:$AA$1000) -> 1 | BG59: =SUMIF('SmålandsDM ute'!$A$502:$A$1000,$AC59,'SmålandsDM ute'!$AA$502:$AA$1000) -> 1 | BH59: =SUMIF('BlekingeDM ute'!$A$502:$A$1000,$AC59,'BlekingeDM ute'!$AA$502:$AA$1000) -> 1 | BI59: =SUMIF('SvealandsDM ute'!$A$502:$A$1000,$AC59,'SvealandsDM ute'!$AA$502:$AA$1000) -> 1 | BJ59: =SUMIF('Ljungby Open'!$A$502:$A$1000,$AC59,'Ljungby Open'!$AA$502:$AA$1000) -> 1 | BK59: =SUMIF(Höstskon!$A$502:$A$1000,$AC59,Höstskon!$AA$502:$AA$1000) -> 1 | BL59: =SUMIF('Carlskrona Cup'!$A$502:$A$1000,$AC59,'Carlskrona Cup'!$AA$502:$AA$1000) -> 1 | BM59: =SUMIF('Sibbamåla Open'!$A$502:$A$1000,$AC59,'Sibbamåla Open'!$AA$502:$AA$1000) -> 1 | BN59: =SUMIF('Vaxholm Indoor'!$A$502:$A$1000,$AC59,'Vaxholm Indoor'!$AA$502:$AA$1000) -> 1 | BO59: =SUMIF('SM inne'!$A$502:$A$1000,$AC59,'SM inne'!$AA$502:$AA$1000) -> 1 | BP59: =SUMIF('Växjö Open'!$A$502:$A$1000,$AC59,'Växjö Open'!$AA$502:$AA$1000) -> 1 | BQ59: =SUMIF('BlekingeDM inne'!$A$502:$A$1000,$AC59,'BlekingeDM inne'!$AA$502:$AA$1000) -> 1 | BR59: =SUMIF('Svealands-DM inne'!$A$502:$A$1000,$AC59,'Svealands-DM inne'!$AA$502:$AA$1000) -> 1 | BS59: =SUMIF(Värendspokalen!$A$502:$A$1000,$AC59,Värendspokalen!$AA$502:$AA$1000) -> 1 | BT59: =SUMIF('Tingsryd Open'!$A$502:$A$1000,$AC59,'Tingsryd Open'!$AA$502:$AA$1000) -> 3
A60: 27 | B60: Hugo Eriksson | C60: Balders HSK | D60: 0 | G60: =IF(BT60=1,"x",SUMIF('Tingsryd Open'!$X$4:$X$400,$AC60,'Tingsryd Open'!$S$4:$S$400)) -> 0 | H60: =IF(AY60=1,"x",SUMIF('Jämjö Open'!$X$4:$X$400,$AC60,'Jämjö Open'!$S$4:$S$400)) -> x | I60: =IF(BA60=1,"x",SUMIF('Björkenäs Open'!$X$4:$X$400,$AC60,'Björkenäs Open'!$S$4:$S$400)) -> x | J60: =IF(BB60=1,"x",SUMIF('SM ute Lö'!$X$4:$X$400,$AC60,'SM ute Lö'!$S$4:$S$400)) -> x | K60: =IF(BC60=1,"x",SUMIF('SM ute Sö'!$X$4:$X$401,$AC60,'SM ute Sö'!$S$4:$S$401)) -> x | L60: =IF(BD60=1,"x",SUMIF('Roslagen Open'!$X$4:$X$400,$AC60,'Roslagen Open'!$S$4:$S$400)) -> x | M60: =IF(BE60=1,"x",SUMIF('Roslagen Open 2'!$X$4:$X$400,$AC60,'Roslagen Open 2'!$S$4:$S$400)) -> x | N60: =IF(BF60=1,"x",SUMIF('Dynapac Open'!$X$4:$X$400,$AC60,'Dynapac Open'!$S$4:$S$400)) -> x | O60: =IF(BG60=1,"x",SUMIF('SmålandsDM ute'!$X$4:$X$400,$AC60,'SmålandsDM ute'!$S$4:$S$400)) -> x | P60: =IF(BH60=1,"x",SUMIF('BlekingeDM ute'!$X$4:$X$400,$AC60,'BlekingeDM ute'!$S$4:$S$400)) -> x | Q60: =IF(BI60=1,"x",SUMIF('SvealandsDM ute'!$X$4:$X$400,$AC60,'SvealandsDM ute'!$S$4:$S$400)) -> x | R60: =IF(BJ60=1,"x",SUMIF('Ljungby Open'!$X$4:$X$406,$AC60,'Ljungby Open'!$S$4:$S$406)) -> x | S60: =IF(AZ60=1,"x",SUMIF('Viby Open'!$X$4:$X$400,$AC60,'Viby Open'!$S$4:$S$400)) -> x | T60: =IF(BP60=1,"x",SUMIF('Växjö Open'!$X$4:$X$400,$AC60,'Växjö Open'!$S$4:$S$400)) -> x | U60: =IF(BK60=1,"x",SUMIF(Höstskon!$X$4:$X$400,$AC60,Höstskon!$S$4:$S$400)) -> x | V60: =IF(BL60=1,"x",SUMIF('Carlskrona Cup'!$X$4:$X$400,$AC60,'Carlskrona Cup'!$S$4:$S$400)) -> x | W60: =IF(BM60=1,"x",SUMIF('Sibbamåla Open'!$X$4:$X$400,$AC60,'Sibbamåla Open'!$S$4:$S$400)) -> x | X60: =IF(BN60=1,"x",SUMIF('Vaxholm Indoor'!$X$4:$X$400,$AC60,'Vaxholm Indoor'!$S$4:$S$400)) -> x | Y60: =IF(BQ60=1,"x",SUMIF('BlekingeDM inne'!$X$4:$X$400,$AC60,'BlekingeDM inne'!$S$4:$S$400)) -> x | Z60: =IF(BR60=1,"x",SUMIF('Svealands-DM inne'!$X$4:$X$400,$AC60,'Svealands-DM inne'!$S$4:$S$400)) -> x | AA60: =IF(BS60=1,"x",SUMIF(Värendspokalen!$X$4:$X$400,$AC60,Värendspokalen!$S$4:$S$400)) -> x | AB60: =IF(BO60=1,"x",SUMIF('SM inne'!$X$4:$X$400,$AC60,'SM inne'!$S$4:$S$400)) -> x | AC60: =IF(B60="","",SUMIF(Kastare!B$2:B$2999,B60,Kastare!A$2:A$2999)) -> 1284 | AE60: 1 | AK60: 0 | AL60: 0 | AM60: 0 | AN60: 0 | AO60: 0 | AP60: 0 | AQ60: 0 | AR60: 0 | AS60: 0 | AT60: 0 | AU60: 1 | AV60: 1 | AW60: 0 | AY60: =SUMIF('Jämjö Open'!$A$502:$A$1000,$AC60,'Jämjö Open'!$AA$502:$AA$1000) -> 1 | AZ60: =SUMIF('Viby Open'!$A$502:$A$1000,$AC60,'Viby Open'!$AA$502:$AA$1000) -> 1 | BA60: =SUMIF('Björkenäs Open'!$A$502:$A$1000,$AC60,'Björkenäs Open'!$AA$502:$AA$1000) -> 1 | BB60: =SUMIF('SM ute Lö'!$A$502:$A$1000,$AC60,'SM ute Lö'!$AA$502:$AA$1000) -> 1 | BC60: =SUMIF('SM ute Sö'!$A$503:$A$1000,$AC60,'SM ute Sö'!$AA$503:$AA$1000) -> 1 | BD60: =SUMIF('Roslagen Open'!$A$502:$A$1000,$AC60,'Roslagen Open'!$AA$502:$AA$1000) -> 1 | BE60: =SUMIF('Roslagen Open 2'!$A$502:$A$1000,$AC60,'Roslagen Open 2'!$AA$502:$AA$1000) -> 1 | BF60: =SUMIF('Dynapac Open'!$A$502:$A$1000,$AC60,'Dynapac Open'!$AA$502:$AA$1000) -> 1 | BG60: =SUMIF('SmålandsDM ute'!$A$502:$A$1000,$AC60,'SmålandsDM ute'!$AA$502:$AA$1000) -> 1 | BH60: =SUMIF('BlekingeDM ute'!$A$502:$A$1000,$AC60,'BlekingeDM ute'!$AA$502:$AA$1000) -> 1 | BI60: =SUMIF('SvealandsDM ute'!$A$502:$A$1000,$AC60,'SvealandsDM ute'!$AA$502:$AA$1000) -> 1 | BJ60: =SUMIF('Ljungby Open'!$A$502:$A$1000,$AC60,'Ljungby Open'!$AA$502:$AA$1000) -> 1 | BK60: =SUMIF(Höstskon!$A$502:$A$1000,$AC60,Höstskon!$AA$502:$AA$1000) -> 1 | BL60: =SUMIF('Carlskrona Cup'!$A$502:$A$1000,$AC60,'Carlskrona Cup'!$AA$502:$AA$1000) -> 1 | BM60: =SUMIF('Sibbamåla Open'!$A$502:$A$1000,$AC60,'Sibbamåla Open'!$AA$502:$AA$1000) -> 1 | BN60: =SUMIF('Vaxholm Indoor'!$A$502:$A$1000,$AC60,'Vaxholm Indoor'!$AA$502:$AA$1000) -> 1 | BO60: =SUMIF('SM inne'!$A$502:$A$1000,$AC60,'SM inne'!$AA$502:$AA$1000) -> 1 | BP60: =SUMIF('Växjö Open'!$A$502:$A$1000,$AC60,'Växjö Open'!$AA$502:$AA$1000) -> 1 | BQ60: =SUMIF('BlekingeDM inne'!$A$502:$A$1000,$AC60,'BlekingeDM inne'!$AA$502:$AA$1000) -> 1 | BR60: =SUMIF('Svealands-DM inne'!$A$502:$A$1000,$AC60,'Svealands-DM inne'!$AA$502:$AA$1000) -> 1 | BS60: =SUMIF(Värendspokalen!$A$502:$A$1000,$AC60,Värendspokalen!$AA$502:$AA$1000) -> 1 | BT60: =SUMIF('Tingsryd Open'!$A$502:$A$1000,$AC60,'Tingsryd Open'!$AA$502:$AA$1000) -> 3
A61: 27 | B61: Moje Liljegren | C61: Tingsryd Hsc | D61: 0 | G61: =IF(BT61=1,"x",SUMIF('Tingsryd Open'!$X$4:$X$400,$AC61,'Tingsryd Open'!$S$4:$S$400)) -> 0 | H61: =IF(AY61=1,"x",SUMIF('Jämjö Open'!$X$4:$X$400,$AC61,'Jämjö Open'!$S$4:$S$400)) -> x | I61: =IF(BA61=1,"x",SUMIF('Björkenäs Open'!$X$4:$X$400,$AC61,'Björkenäs Open'!$S$4:$S$400)) -> x | J61: =IF(BB61=1,"x",SUMIF('SM ute Lö'!$X$4:$X$400,$AC61,'SM ute Lö'!$S$4:$S$400)) -> x | K61: =IF(BC61=1,"x",SUMIF('SM ute Sö'!$X$4:$X$401,$AC61,'SM ute Sö'!$S$4:$S$401)) -> x | L61: =IF(BD61=1,"x",SUMIF('Roslagen Open'!$X$4:$X$400,$AC61,'Roslagen Open'!$S$4:$S$400)) -> x | M61: =IF(BE61=1,"x",SUMIF('Roslagen Open 2'!$X$4:$X$400,$AC61,'Roslagen Open 2'!$S$4:$S$400)) -> x | N61: =IF(BF61=1,"x",SUMIF('Dynapac Open'!$X$4:$X$400,$AC61,'Dynapac Open'!$S$4:$S$400)) -> x | O61: =IF(BG61=1,"x",SUMIF('SmålandsDM ute'!$X$4:$X$400,$AC61,'SmålandsDM ute'!$S$4:$S$400)) -> x | P61: =IF(BH61=1,"x",SUMIF('BlekingeDM ute'!$X$4:$X$400,$AC61,'BlekingeDM ute'!$S$4:$S$400)) -> x | Q61: =IF(BI61=1,"x",SUMIF('SvealandsDM ute'!$X$4:$X$400,$AC61,'SvealandsDM ute'!$S$4:$S$400)) -> x | R61: =IF(BJ61=1,"x",SUMIF('Ljungby Open'!$X$4:$X$406,$AC61,'Ljungby Open'!$S$4:$S$406)) -> x | S61: =IF(AZ61=1,"x",SUMIF('Viby Open'!$X$4:$X$400,$AC61,'Viby Open'!$S$4:$S$400)) -> x | T61: =IF(BP61=1,"x",SUMIF('Växjö Open'!$X$4:$X$400,$AC61,'Växjö Open'!$S$4:$S$400)) -> x | U61: =IF(BK61=1,"x",SUMIF(Höstskon!$X$4:$X$400,$AC61,Höstskon!$S$4:$S$400)) -> x | V61: =IF(BL61=1,"x",SUMIF('Carlskrona Cup'!$X$4:$X$400,$AC61,'Carlskrona Cup'!$S$4:$S$400)) -> x | W61: =IF(BM61=1,"x",SUMIF('Sibbamåla Open'!$X$4:$X$400,$AC61,'Sibbamåla Open'!$S$4:$S$400)) -> x | X61: =IF(BN61=1,"x",SUMIF('Vaxholm Indoor'!$X$4:$X$400,$AC61,'Vaxholm Indoor'!$S$4:$S$400)) -> x | Y61: =IF(BQ61=1,"x",SUMIF('BlekingeDM inne'!$X$4:$X$400,$AC61,'BlekingeDM inne'!$S$4:$S$400)) -> x | Z61: =IF(BR61=1,"x",SUMIF('Svealands-DM inne'!$X$4:$X$400,$AC61,'Svealands-DM inne'!$S$4:$S$400)) -> x | AA61: =IF(BS61=1,"x",SUMIF(Värendspokalen!$X$4:$X$400,$AC61,Värendspokalen!$S$4:$S$400)) -> x | AB61: =IF(BO61=1,"x",SUMIF('SM inne'!$X$4:$X$400,$AC61,'SM inne'!$S$4:$S$400)) -> x | AC61: =IF(B61="","",SUMIF(Kastare!B$2:B$2999,B61,Kastare!A$2:A$2999)) -> 1262 | AE61: 1 | AK61: 0 | AL61: 0 | AM61: 0 | AN61: 0 | AO61: 0 | AP61: 0 | AQ61: 0 | AR61: 0 | AS61: 0 | AT61: 0 | AU61: 1 | AV61: 1 | AW61: 0 | AY61: =SUMIF('Jämjö Open'!$A$502:$A$1000,$AC61,'Jämjö Open'!$AA$502:$AA$1000) -> 1 | AZ61: =SUMIF('Viby Open'!$A$502:$A$1000,$AC61,'Viby Open'!$AA$502:$AA$1000) -> 1 | BA61: =SUMIF('Björkenäs Open'!$A$502:$A$1000,$AC61,'Björkenäs Open'!$AA$502:$AA$1000) -> 1 | BB61: =SUMIF('SM ute Lö'!$A$502:$A$1000,$AC61,'SM ute Lö'!$AA$502:$AA$1000) -> 1 | BC61: =SUMIF('SM ute Sö'!$A$503:$A$1000,$AC61,'SM ute Sö'!$AA$503:$AA$1000) -> 1 | BD61: =SUMIF('Roslagen Open'!$A$502:$A$1000,$AC61,'Roslagen Open'!$AA$502:$AA$1000) -> 1 | BE61: =SUMIF('Roslagen Open 2'!$A$502:$A$1000,$AC61,'Roslagen Open 2'!$AA$502:$AA$1000) -> 1 | BF61: =SUMIF('Dynapac Open'!$A$502:$A$1000,$AC61,'Dynapac Open'!$AA$502:$AA$1000) -> 1 | BG61: =SUMIF('SmålandsDM ute'!$A$502:$A$1000,$AC61,'SmålandsDM ute'!$AA$502:$AA$1000) -> 1 | BH61: =SUMIF('BlekingeDM ute'!$A$502:$A$1000,$AC61,'BlekingeDM ute'!$AA$502:$AA$1000) -> 1 | BI61: =SUMIF('SvealandsDM ute'!$A$502:$A$1000,$AC61,'SvealandsDM ute'!$AA$502:$AA$1000) -> 1 | BJ61: =SUMIF('Ljungby Open'!$A$502:$A$1000,$AC61,'Ljungby Open'!$AA$502:$AA$1000) -> 1 | BK61: =SUMIF(Höstskon!$A$502:$A$1000,$AC61,Höstskon!$AA$502:$AA$1000) -> 1 | BL61: =SUMIF('Carlskrona Cup'!$A$502:$A$1000,$AC61,'Carlskrona Cup'!$AA$502:$AA$1000) -> 1 | BM61: =SUMIF('Sibbamåla Open'!$A$502:$A$1000,$AC61,'Sibbamåla Open'!$AA$502:$AA$1000) -> 1 | BN61: =SUMIF('Vaxholm Indoor'!$A$502:$A$1000,$AC61,'Vaxholm Indoor'!$AA$502:$AA$1000) -> 1 | BO61: =SUMIF('SM inne'!$A$502:$A$1000,$AC61,'SM inne'!$AA$502:$AA$1000) -> 1 | BP61: =SUMIF('Växjö Open'!$A$502:$A$1000,$AC61,'Växjö Open'!$AA$502:$AA$1000) -> 1 | BQ61: =SUMIF('BlekingeDM inne'!$A$502:$A$1000,$AC61,'BlekingeDM inne'!$AA$502:$AA$1000) -> 1 | BR61: =SUMIF('Svealands-DM inne'!$A$502:$A$1000,$AC61,'Svealands-DM inne'!$AA$502:$AA$1000) -> 1 | BS61: =SUMIF(Värendspokalen!$A$502:$A$1000,$AC61,Värendspokalen!$AA$502:$AA$1000) -> 1 | BT61: =SUMIF('Tingsryd Open'!$A$502:$A$1000,$AC61,'Tingsryd Open'!$AA$502:$AA$1000) -> 3
A62: 27 | B62: Carina Axelsson | C62: Köping Hsk | D62: 0 | G62: =IF(BT62=1,"x",SUMIF('Tingsryd Open'!$X$4:$X$400,$AC62,'Tingsryd Open'!$S$4:$S$400)) -> 0 | H62: =IF(AY62=1,"x",SUMIF('Jämjö Open'!$X$4:$X$400,$AC62,'Jämjö Open'!$S$4:$S$400)) -> x | I62: =IF(BA62=1,"x",SUMIF('Björkenäs Open'!$X$4:$X$400,$AC62,'Björkenäs Open'!$S$4:$S$400)) -> x | J62: =IF(BB62=1,"x",SUMIF('SM ute Lö'!$X$4:$X$400,$AC62,'SM ute Lö'!$S$4:$S$400)) -> x | K62: =IF(BC62=1,"x",SUMIF('SM ute Sö'!$X$4:$X$401,$AC62,'SM ute Sö'!$S$4:$S$401)) -> x | L62: =IF(BD62=1,"x",SUMIF('Roslagen Open'!$X$4:$X$400,$AC62,'Roslagen Open'!$S$4:$S$400)) -> x | M62: =IF(BE62=1,"x",SUMIF('Roslagen Open 2'!$X$4:$X$400,$AC62,'Roslagen Open 2'!$S$4:$S$400)) -> x | N62: =IF(BF62=1,"x",SUMIF('Dynapac Open'!$X$4:$X$400,$AC62,'Dynapac Open'!$S$4:$S$400)) -> x | O62: =IF(BG62=1,"x",SUMIF('SmålandsDM ute'!$X$4:$X$400,$AC62,'SmålandsDM ute'!$S$4:$S$400)) -> x | P62: =IF(BH62=1,"x",SUMIF('BlekingeDM ute'!$X$4:$X$400,$AC62,'BlekingeDM ute'!$S$4:$S$400)) -> x | Q62: =IF(BI62=1,"x",SUMIF('SvealandsDM ute'!$X$4:$X$400,$AC62,'SvealandsDM ute'!$S$4:$S$400)) -> x | R62: =IF(BJ62=1,"x",SUMIF('Ljungby Open'!$X$4:$X$406,$AC62,'Ljungby Open'!$S$4:$S$406)) -> x | S62: =IF(AZ62=1,"x",SUMIF('Viby Open'!$X$4:$X$400,$AC62,'Viby Open'!$S$4:$S$400)) -> x | T62: =IF(BP62=1,"x",SUMIF('Växjö Open'!$X$4:$X$400,$AC62,'Växjö Open'!$S$4:$S$400)) -> x | U62: =IF(BK62=1,"x",SUMIF(Höstskon!$X$4:$X$400,$AC62,Höstskon!$S$4:$S$400)) -> x | V62: =IF(BL62=1,"x",SUMIF('Carlskrona Cup'!$X$4:$X$400,$AC62,'Carlskrona Cup'!$S$4:$S$400)) -> x | W62: =IF(BM62=1,"x",SUMIF('Sibbamåla Open'!$X$4:$X$400,$AC62,'Sibbamåla Open'!$S$4:$S$400)) -> x | X62: =IF(BN62=1,"x",SUMIF('Vaxholm Indoor'!$X$4:$X$400,$AC62,'Vaxholm Indoor'!$S$4:$S$400)) -> x | Y62: =IF(BQ62=1,"x",SUMIF('BlekingeDM inne'!$X$4:$X$400,$AC62,'BlekingeDM inne'!$S$4:$S$400)) -> x | Z62: =IF(BR62=1,"x",SUMIF('Svealands-DM inne'!$X$4:$X$400,$AC62,'Svealands-DM inne'!$S$4:$S$400)) -> x | AA62: =IF(BS62=1,"x",SUMIF(Värendspokalen!$X$4:$X$400,$AC62,Värendspokalen!$S$4:$S$400)) -> x | AB62: =IF(BO62=1,"x",SUMIF('SM inne'!$X$4:$X$400,$AC62,'SM inne'!$S$4:$S$400)) -> x | AC62: =IF(B62="","",SUMIF(Kastare!B$2:B$2999,B62,Kastare!A$2:A$2999)) -> 1403 | AE62: 1 | AK62: 0 | AL62: 0 | AM62: 0 | AN62: 0 | AO62: 0 | AP62: 0 | AQ62: 0 | AR62: 0 | AS62: 0 | AT62: 0 | AU62: 1 | AV62: 1 | AW62: 0 | AY62: =SUMIF('Jämjö Open'!$A$502:$A$1000,$AC62,'Jämjö Open'!$AA$502:$AA$1000) -> 1 | AZ62: =SUMIF('Viby Open'!$A$502:$A$1000,$AC62,'Viby Open'!$AA$502:$AA$1000) -> 1 | BA62: =SUMIF('Björkenäs Open'!$A$502:$A$1000,$AC62,'Björkenäs Open'!$AA$502:$AA$1000) -> 1 | BB62: =SUMIF('SM ute Lö'!$A$502:$A$1000,$AC62,'SM ute Lö'!$AA$502:$AA$1000) -> 1 | BC62: =SUMIF('SM ute Sö'!$A$503:$A$1000,$AC62,'SM ute Sö'!$AA$503:$AA$1000) -> 1 | BD62: =SUMIF('Roslagen Open'!$A$502:$A$1000,$AC62,'Roslagen Open'!$AA$502:$AA$1000) -> 1 | BE62: =SUMIF('Roslagen Open 2'!$A$502:$A$1000,$AC62,'Roslagen Open 2'!$AA$502:$AA$1000) -> 1 | BF62: =SUMIF('Dynapac Open'!$A$502:$A$1000,$AC62,'Dynapac Open'!$AA$502:$AA$1000) -> 1 | BG62: =SUMIF('SmålandsDM ute'!$A$502:$A$1000,$AC62,'SmålandsDM ute'!$AA$502:$AA$1000) -> 1 | BH62: =SUMIF('BlekingeDM ute'!$A$502:$A$1000,$AC62,'BlekingeDM ute'!$AA$502:$AA$1000) -> 1 | BI62: =SUMIF('SvealandsDM ute'!$A$502:$A$1000,$AC62,'SvealandsDM ute'!$AA$502:$AA$1000) -> 1 | BJ62: =SUMIF('Ljungby Open'!$A$502:$A$1000,$AC62,'Ljungby Open'!$AA$502:$AA$1000) -> 1 | BK62: =SUMIF(Höstskon!$A$502:$A$1000,$AC62,Höstskon!$AA$502:$AA$1000) -> 1 | BL62: =SUMIF('Carlskrona Cup'!$A$502:$A$1000,$AC62,'Carlskrona Cup'!$AA$502:$AA$1000) -> 1 | BM62: =SUMIF('Sibbamåla Open'!$A$502:$A$1000,$AC62,'Sibbamåla Open'!$AA$502:$AA$1000) -> 1 | BN62: =SUMIF('Vaxholm Indoor'!$A$502:$A$1000,$AC62,'Vaxholm Indoor'!$AA$502:$AA$1000) -> 1 | BO62: =SUMIF('SM inne'!$A$502:$A$1000,$AC62,'SM inne'!$AA$502:$AA$1000) -> 1 | BP62: =SUMIF('Växjö Open'!$A$502:$A$1000,$AC62,'Växjö Open'!$AA$502:$AA$1000) -> 1 | BQ62: =SUMIF('BlekingeDM inne'!$A$502:$A$1000,$AC62,'BlekingeDM inne'!$AA$502:$AA$1000) -> 1 | BR62: =SUMIF('Svealands-DM inne'!$A$502:$A$1000,$AC62,'Svealands-DM inne'!$AA$502:$AA$1000) -> 1 | BS62: =SUMIF(Värendspokalen!$A$502:$A$1000,$AC62,Värendspokalen!$AA$502:$AA$1000) -> 1 | BT62: =SUMIF('Tingsryd Open'!$A$502:$A$1000,$AC62,'Tingsryd Open'!$AA$502:$AA$1000) -> 3
A63: 27 | B63: Bertil Carlsson | C63: Tingsryd Hsc | D63: 0 | G63: =IF(BT63=1,"x",SUMIF('Tingsryd Open'!$X$4:$X$400,$AC63,'Tingsryd Open'!$S$4:$S$400)) -> 0 | H63: =IF(AY63=1,"x",SUMIF('Jämjö Open'!$X$4:$X$400,$AC63,'Jämjö Open'!$S$4:$S$400)) -> x | I63: =IF(BA63=1,"x",SUMIF('Björkenäs Open'!$X$4:$X$400,$AC63,'Björkenäs Open'!$S$4:$S$400)) -> x | J63: =IF(BB63=1,"x",SUMIF('SM ute Lö'!$X$4:$X$400,$AC63,'SM ute Lö'!$S$4:$S$400)) -> x | K63: =IF(BC63=1,"x",SUMIF('SM ute Sö'!$X$4:$X$401,$AC63,'SM ute Sö'!$S$4:$S$401)) -> x | L63: =IF(BD63=1,"x",SUMIF('Roslagen Open'!$X$4:$X$400,$AC63,'Roslagen Open'!$S$4:$S$400)) -> x | M63: =IF(BE63=1,"x",SUMIF('Roslagen Open 2'!$X$4:$X$400,$AC63,'Roslagen Open 2'!$S$4:$S$400)) -> x | N63: =IF(BF63=1,"x",SUMIF('Dynapac Open'!$X$4:$X$400,$AC63,'Dynapac Open'!$S$4:$S$400)) -> x | O63: =IF(BG63=1,"x",SUMIF('SmålandsDM ute'!$X$4:$X$400,$AC63,'SmålandsDM ute'!$S$4:$S$400)) -> x | P63: =IF(BH63=1,"x",SUMIF('BlekingeDM ute'!$X$4:$X$400,$AC63,'BlekingeDM ute'!$S$4:$S$400)) -> x | Q63: =IF(BI63=1,"x",SUMIF('SvealandsDM ute'!$X$4:$X$400,$AC63,'SvealandsDM ute'!$S$4:$S$400)) -> x | R63: =IF(BJ63=1,"x",SUMIF('Ljungby Open'!$X$4:$X$406,$AC63,'Ljungby Open'!$S$4:$S$406)) -> x | S63: =IF(AZ63=1,"x",SUMIF('Viby Open'!$X$4:$X$400,$AC63,'Viby Open'!$S$4:$S$400)) -> x | T63: =IF(BP63=1,"x",SUMIF('Växjö Open'!$X$4:$X$400,$AC63,'Växjö Open'!$S$4:$S$400)) -> x | U63: =IF(BK63=1,"x",SUMIF(Höstskon!$X$4:$X$400,$AC63,Höstskon!$S$4:$S$400)) -> x | V63: =IF(BL63=1,"x",SUMIF('Carlskrona Cup'!$X$4:$X$400,$AC63,'Carlskrona Cup'!$S$4:$S$400)) -> x | W63: =IF(BM63=1,"x",SUMIF('Sibbamåla Open'!$X$4:$X$400,$AC63,'Sibbamåla Open'!$S$4:$S$400)) -> x | X63: =IF(BN63=1,"x",SUMIF('Vaxholm Indoor'!$X$4:$X$400,$AC63,'Vaxholm Indoor'!$S$4:$S$400)) -> x | Y63: =IF(BQ63=1,"x",SUMIF('BlekingeDM inne'!$X$4:$X$400,$AC63,'BlekingeDM inne'!$S$4:$S$400)) -> x | Z63: =IF(BR63=1,"x",SUMIF('Svealands-DM inne'!$X$4:$X$400,$AC63,'Svealands-DM inne'!$S$4:$S$400)) -> x | AA63: =IF(BS63=1,"x",SUMIF(Värendspokalen!$X$4:$X$400,$AC63,Värendspokalen!$S$4:$S$400)) -> x | AB63: =IF(BO63=1,"x",SUMIF('SM inne'!$X$4:$X$400,$AC63,'SM inne'!$S$4:$S$400)) -> x | AC63: =IF(B63="","",SUMIF(Kastare!B$2:B$2999,B63,Kastare!A$2:A$2999)) -> 1313 | AE63: 1 | AK63: 0 | AL63: 0 | AM63: 0 | AN63: 0 | AO63: 0 | AP63: 0 | AQ63: 0 | AR63: 0 | AS63: 0 | AT63: 0 | AU63: 1 | AV63: 1 | AW63: 0 | AY63: =SUMIF('Jämjö Open'!$A$502:$A$1000,$AC63,'Jämjö Open'!$AA$502:$AA$1000) -> 1 | AZ63: =SUMIF('Viby Open'!$A$502:$A$1000,$AC63,'Viby Open'!$AA$502:$AA$1000) -> 1 | BA63: =SUMIF('Björkenäs Open'!$A$502:$A$1000,$AC63,'Björkenäs Open'!$AA$502:$AA$1000) -> 1 | BB63: =SUMIF('SM ute Lö'!$A$502:$A$1000,$AC63,'SM ute Lö'!$AA$502:$AA$1000) -> 1 | BC63: =SUMIF('SM ute Sö'!$A$503:$A$1000,$AC63,'SM ute Sö'!$AA$503:$AA$1000) -> 1 | BD63: =SUMIF('Roslagen Open'!$A$502:$A$1000,$AC63,'Roslagen Open'!$AA$502:$AA$1000) -> 1 | BE63: =SUMIF('Roslagen Open 2'!$A$502:$A$1000,$AC63,'Roslagen Open 2'!$AA$502:$AA$1000) -> 1 | BF63: =SUMIF('Dynapac Open'!$A$502:$A$1000,$AC63,'Dynapac Open'!$AA$502:$AA$1000) -> 1 | BG63: =SUMIF('SmålandsDM ute'!$A$502:$A$1000,$AC63,'SmålandsDM ute'!$AA$502:$AA$1000) -> 1 | BH63: =SUMIF('BlekingeDM ute'!$A$502:$A$1000,$AC63,'BlekingeDM ute'!$AA$502:$AA$1000) -> 1 | BI63: =SUMIF('SvealandsDM ute'!$A$502:$A$1000,$AC63,'SvealandsDM ute'!$AA$502:$AA$1000) -> 1 | BJ63: =SUMIF('Ljungby Open'!$A$502:$A$1000,$AC63,'Ljungby Open'!$AA$502:$AA$1000) -> 1 | BK63: =SUMIF(Höstskon!$A$502:$A$1000,$AC63,Höstskon!$AA$502:$AA$1000) -> 1 | BL63: =SUMIF('Carlskrona Cup'!$A$502:$A$1000,$AC63,'Carlskrona Cup'!$AA$502:$AA$1000) -> 1 | BM63: =SUMIF('Sibbamåla Open'!$A$502:$A$1000,$AC63,'Sibbamåla Open'!$AA$502:$AA$1000) -> 1 | BN63: =SUMIF('Vaxholm Indoor'!$A$502:$A$1000,$AC63,'Vaxholm Indoor'!$AA$502:$AA$1000) -> 1 | BO63: =SUMIF('SM inne'!$A$502:$A$1000,$AC63,'SM inne'!$AA$502:$AA$1000) -> 1 | BP63: =SUMIF('Växjö Open'!$A$502:$A$1000,$AC63,'Växjö Open'!$AA$502:$AA$1000) -> 1 | BQ63: =SUMIF('BlekingeDM inne'!$A$502:$A$1000,$AC63,'BlekingeDM inne'!$AA$502:$AA$1000) -> 1 | BR63: =SUMIF('Svealands-DM inne'!$A$502:$A$1000,$AC63,'Svealands-DM inne'!$AA$502:$AA$1000) -> 1 | BS63: =SUMIF(Värendspokalen!$A$502:$A$1000,$AC63,Värendspokalen!$AA$502:$AA$1000) -> 1 | BT63: =SUMIF('Tingsryd Open'!$A$502:$A$1000,$AC63,'Tingsryd Open'!$AA$502:$AA$1000) -> 3
A64: 27 | B64: Neo Bonell | C64: Balders HSK | D64: 0 | G64: =IF(BT64=1,"x",SUMIF('Tingsryd Open'!$X$4:$X$400,$AC64,'Tingsryd Open'!$S$4:$S$400)) -> 0 | H64: =IF(AY64=1,"x",SUMIF('Jämjö Open'!$X$4:$X$400,$AC64,'Jämjö Open'!$S$4:$S$400)) -> x | I64: =IF(BA64=1,"x",SUMIF('Björkenäs Open'!$X$4:$X$400,$AC64,'Björkenäs Open'!$S$4:$S$400)) -> x | J64: =IF(BB64=1,"x",SUMIF('SM ute Lö'!$X$4:$X$400,$AC64,'SM ute Lö'!$S$4:$S$400)) -> x | K64: =IF(BC64=1,"x",SUMIF('SM ute Sö'!$X$4:$X$401,$AC64,'SM ute Sö'!$S$4:$S$401)) -> x | L64: =IF(BD64=1,"x",SUMIF('Roslagen Open'!$X$4:$X$400,$AC64,'Roslagen Open'!$S$4:$S$400)) -> x | M64: =IF(BE64=1,"x",SUMIF('Roslagen Open 2'!$X$4:$X$400,$AC64,'Roslagen Open 2'!$S$4:$S$400)) -> x | N64: =IF(BF64=1,"x",SUMIF('Dynapac Open'!$X$4:$X$400,$AC64,'Dynapac Open'!$S$4:$S$400)) -> x | O64: =IF(BG64=1,"x",SUMIF('SmålandsDM ute'!$X$4:$X$400,$AC64,'SmålandsDM ute'!$S$4:$S$400)) -> x | P64: =IF(BH64=1,"x",SUMIF('BlekingeDM ute'!$X$4:$X$400,$AC64,'BlekingeDM ute'!$S$4:$S$400)) -> x | Q64: =IF(BI64=1,"x",SUMIF('SvealandsDM ute'!$X$4:$X$400,$AC64,'SvealandsDM ute'!$S$4:$S$400)) -> x | R64: =IF(BJ64=1,"x",SUMIF('Ljungby Open'!$X$4:$X$406,$AC64,'Ljungby Open'!$S$4:$S$406)) -> x | S64: =IF(AZ64=1,"x",SUMIF('Viby Open'!$X$4:$X$400,$AC64,'Viby Open'!$S$4:$S$400)) -> x | T64: =IF(BP64=1,"x",SUMIF('Växjö Open'!$X$4:$X$400,$AC64,'Växjö Open'!$S$4:$S$400)) -> x | U64: =IF(BK64=1,"x",SUMIF(Höstskon!$X$4:$X$400,$AC64,Höstskon!$S$4:$S$400)) -> x | V64: =IF(BL64=1,"x",SUMIF('Carlskrona Cup'!$X$4:$X$400,$AC64,'Carlskrona Cup'!$S$4:$S$400)) -> x | W64: =IF(BM64=1,"x",SUMIF('Sibbamåla Open'!$X$4:$X$400,$AC64,'Sibbamåla Open'!$S$4:$S$400)) -> x | X64: =IF(BN64=1,"x",SUMIF('Vaxholm Indoor'!$X$4:$X$400,$AC64,'Vaxholm Indoor'!$S$4:$S$400)) -> x | Y64: =IF(BQ64=1,"x",SUMIF('BlekingeDM inne'!$X$4:$X$400,$AC64,'BlekingeDM inne'!$S$4:$S$400)) -> x | Z64: =IF(BR64=1,"x",SUMIF('Svealands-DM inne'!$X$4:$X$400,$AC64,'Svealands-DM inne'!$S$4:$S$400)) -> x | AA64: =IF(BS64=1,"x",SUMIF(Värendspokalen!$X$4:$X$400,$AC64,Värendspokalen!$S$4:$S$400)) -> x | AB64: =IF(BO64=1,"x",SUMIF('SM inne'!$X$4:$X$400,$AC64,'SM inne'!$S$4:$S$400)) -> x | AC64: =IF(B64="","",SUMIF(Kastare!B$2:B$2999,B64,Kastare!A$2:A$2999)) -> 1404 | AE64: 1 | AK64: 0 | AL64: 0 | AM64: 0 | AN64: 0 | AO64: 0 | AP64: 0 | AQ64: 0 | AR64: 0 | AS64: 0 | AT64: 0 | AU64: 1 | AV64: 1 | AW64: 0 | AY64: =SUMIF('Jämjö Open'!$A$502:$A$1000,$AC64,'Jämjö Open'!$AA$502:$AA$1000) -> 1 | AZ64: =SUMIF('Viby Open'!$A$502:$A$1000,$AC64,'Viby Open'!$AA$502:$AA$1000) -> 1 | BA64: =SUMIF('Björkenäs Open'!$A$502:$A$1000,$AC64,'Björkenäs Open'!$AA$502:$AA$1000) -> 1 | BB64: =SUMIF('SM ute Lö'!$A$502:$A$1000,$AC64,'SM ute Lö'!$AA$502:$AA$1000) -> 1 | BC64: =SUMIF('SM ute Sö'!$A$503:$A$1000,$AC64,'SM ute Sö'!$AA$503:$AA$1000) -> 1 | BD64: =SUMIF('Roslagen Open'!$A$502:$A$1000,$AC64,'Roslagen Open'!$AA$502:$AA$1000) -> 1 | BE64: =SUMIF('Roslagen Open 2'!$A$502:$A$1000,$AC64,'Roslagen Open 2'!$AA$502:$AA$1000) -> 1 | BF64: =SUMIF('Dynapac Open'!$A$502:$A$1000,$AC64,'Dynapac Open'!$AA$502:$AA$1000) -> 1 | BG64: =SUMIF('SmålandsDM ute'!$A$502:$A$1000,$AC64,'SmålandsDM ute'!$AA$502:$AA$1000) -> 1 | BH64: =SUMIF('BlekingeDM ute'!$A$502:$A$1000,$AC64,'BlekingeDM ute'!$AA$502:$AA$1000) -> 1 | BI64: =SUMIF('SvealandsDM ute'!$A$502:$A$1000,$AC64,'SvealandsDM ute'!$AA$502:$AA$1000) -> 1 | BJ64: =SUMIF('Ljungby Open'!$A$502:$A$1000,$AC64,'Ljungby Open'!$AA$502:$AA$1000) -> 1 | BK64: =SUMIF(Höstskon!$A$502:$A$1000,$AC64,Höstskon!$AA$502:$AA$1000) -> 1 | BL64: =SUMIF('Carlskrona Cup'!$A$502:$A$1000,$AC64,'Carlskrona Cup'!$AA$502:$AA$1000) -> 1 | BM64: =SUMIF('Sibbamåla Open'!$A$502:$A$1000,$AC64,'Sibbamåla Open'!$AA$502:$AA$1000) -> 1 | BN64: =SUMIF('Vaxholm Indoor'!$A$502:$A$1000,$AC64,'Vaxholm Indoor'!$AA$502:$AA$1000) -> 1 | BO64: =SUMIF('SM inne'!$A$502:$A$1000,$AC64,'SM inne'!$AA$502:$AA$1000) -> 1 | BP64: =SUMIF('Växjö Open'!$A$502:$A$1000,$AC64,'Växjö Open'!$AA$502:$AA$1000) -> 1 | BQ64: =SUMIF('BlekingeDM inne'!$A$502:$A$1000,$AC64,'BlekingeDM inne'!$AA$502:$AA$1000) -> 1 | BR64: =SUMIF('Svealands-DM inne'!$A$502:$A$1000,$AC64,'Svealands-DM inne'!$AA$502:$AA$1000) -> 1 | BS64: =SUMIF(Värendspokalen!$A$502:$A$1000,$AC64,Värendspokalen!$AA$502:$AA$1000) -> 1 | BT64: =SUMIF('Tingsryd Open'!$A$502:$A$1000,$AC64,'Tingsryd Open'!$AA$502:$AA$1000) -> 3
A65: 27 | B65: Billy Klarström | C65: Team Småland | D65: 0 | G65: =IF(BT65=1,"x",SUMIF('Tingsryd Open'!$X$4:$X$400,$AC65,'Tingsryd Open'!$S$4:$S$400)) -> 0 | H65: =IF(AY65=1,"x",SUMIF('Jämjö Open'!$X$4:$X$400,$AC65,'Jämjö Open'!$S$4:$S$400)) -> x | I65: =IF(BA65=1,"x",SUMIF('Björkenäs Open'!$X$4:$X$400,$AC65,'Björkenäs Open'!$S$4:$S$400)) -> x | J65: =IF(BB65=1,"x",SUMIF('SM ute Lö'!$X$4:$X$400,$AC65,'SM ute Lö'!$S$4:$S$400)) -> x | K65: =IF(BC65=1,"x",SUMIF('SM ute Sö'!$X$4:$X$401,$AC65,'SM ute Sö'!$S$4:$S$401)) -> x | L65: =IF(BD65=1,"x",SUMIF('Roslagen Open'!$X$4:$X$400,$AC65,'Roslagen Open'!$S$4:$S$400)) -> x | M65: =IF(BE65=1,"x",SUMIF('Roslagen Open 2'!$X$4:$X$400,$AC65,'Roslagen Open 2'!$S$4:$S$400)) -> x | N65: =IF(BF65=1,"x",SUMIF('Dynapac Open'!$X$4:$X$400,$AC65,'Dynapac Open'!$S$4:$S$400)) -> x | O65: =IF(BG65=1,"x",SUMIF('SmålandsDM ute'!$X$4:$X$400,$AC65,'SmålandsDM ute'!$S$4:$S$400)) -> x | P65: =IF(BH65=1,"x",SUMIF('BlekingeDM ute'!$X$4:$X$400,$AC65,'BlekingeDM ute'!$S$4:$S$400)) -> x | Q65: =IF(BI65=1,"x",SUMIF('SvealandsDM ute'!$X$4:$X$400,$AC65,'SvealandsDM ute'!$S$4:$S$400)) -> x | R65: =IF(BJ65=1,"x",SUMIF('Ljungby Open'!$X$4:$X$406,$AC65,'Ljungby Open'!$S$4:$S$406)) -> x | S65: =IF(AZ65=1,"x",SUMIF('Viby Open'!$X$4:$X$400,$AC65,'Viby Open'!$S$4:$S$400)) -> x | T65: =IF(BP65=1,"x",SUMIF('Växjö Open'!$X$4:$X$400,$AC65,'Växjö Open'!$S$4:$S$400)) -> x | U65: =IF(BK65=1,"x",SUMIF(Höstskon!$X$4:$X$400,$AC65,Höstskon!$S$4:$S$400)) -> x | V65: =IF(BL65=1,"x",SUMIF('Carlskrona Cup'!$X$4:$X$400,$AC65,'Carlskrona Cup'!$S$4:$S$400)) -> x | W65: =IF(BM65=1,"x",SUMIF('Sibbamåla Open'!$X$4:$X$400,$AC65,'Sibbamåla Open'!$S$4:$S$400)) -> x | X65: =IF(BN65=1,"x",SUMIF('Vaxholm Indoor'!$X$4:$X$400,$AC65,'Vaxholm Indoor'!$S$4:$S$400)) -> x | Y65: =IF(BQ65=1,"x",SUMIF('BlekingeDM inne'!$X$4:$X$400,$AC65,'BlekingeDM inne'!$S$4:$S$400)) -> x | Z65: =IF(BR65=1,"x",SUMIF('Svealands-DM inne'!$X$4:$X$400,$AC65,'Svealands-DM inne'!$S$4:$S$400)) -> x | AA65: =IF(BS65=1,"x",SUMIF(Värendspokalen!$X$4:$X$400,$AC65,Värendspokalen!$S$4:$S$400)) -> x | AB65: =IF(BO65=1,"x",SUMIF('SM inne'!$X$4:$X$400,$AC65,'SM inne'!$S$4:$S$400)) -> x | AC65: =IF(B65="","",SUMIF(Kastare!B$2:B$2999,B65,Kastare!A$2:A$2999)) -> 1078 | AE65: 1 | AK65: 0 | AL65: 0 | AM65: 0 | AN65: 0 | AO65: 0 | AP65: 0 | AQ65: 0 | AR65: 0 | AS65: 0 | AT65: 0 | AU65: 1 | AV65: 1 | AW65: 0 | AY65: =SUMIF('Jämjö Open'!$A$502:$A$1000,$AC65,'Jämjö Open'!$AA$502:$AA$1000) -> 1 | AZ65: =SUMIF('Viby Open'!$A$502:$A$1000,$AC65,'Viby Open'!$AA$502:$AA$1000) -> 1 | BA65: =SUMIF('Björkenäs Open'!$A$502:$A$1000,$AC65,'Björkenäs Open'!$AA$502:$AA$1000) -> 1 | BB65: =SUMIF('SM ute Lö'!$A$502:$A$1000,$AC65,'SM ute Lö'!$AA$502:$AA$1000) -> 1 | BC65: =SUMIF('SM ute Sö'!$A$503:$A$1000,$AC65,'SM ute Sö'!$AA$503:$AA$1000) -> 1 | BD65: =SUMIF('Roslagen Open'!$A$502:$A$1000,$AC65,'Roslagen Open'!$AA$502:$AA$1000) -> 1 | BE65: =SUMIF('Roslagen Open 2'!$A$502:$A$1000,$AC65,'Roslagen Open 2'!$AA$502:$AA$1000) -> 1 | BF65: =SUMIF('Dynapac Open'!$A$502:$A$1000,$AC65,'Dynapac Open'!$AA$502:$AA$1000) -> 1 | BG65: =SUMIF('SmålandsDM ute'!$A$502:$A$1000,$AC65,'SmålandsDM ute'!$AA$502:$AA$1000) -> 1 | BH65: =SUMIF('BlekingeDM ute'!$A$502:$A$1000,$AC65,'BlekingeDM ute'!$AA$502:$AA$1000) -> 1 | BI65: =SUMIF('SvealandsDM ute'!$A$502:$A$1000,$AC65,'SvealandsDM ute'!$AA$502:$AA$1000) -> 1 | BJ65: =SUMIF('Ljungby Open'!$A$502:$A$1000,$AC65,'Ljungby Open'!$AA$502:$AA$1000) -> 1 | BK65: =SUMIF(Höstskon!$A$502:$A$1000,$AC65,Höstskon!$AA$502:$AA$1000) -> 1 | BL65: =SUMIF('Carlskrona Cup'!$A$502:$A$1000,$AC65,'Carlskrona Cup'!$AA$502:$AA$1000) -> 1 | BM65: =SUMIF('Sibbamåla Open'!$A$502:$A$1000,$AC65,'Sibbamåla Open'!$AA$502:$AA$1000) -> 1 | BN65: =SUMIF('Vaxholm Indoor'!$A$502:$A$1000,$AC65,'Vaxholm Indoor'!$AA$502:$AA$1000) -> 1 | BO65: =SUMIF('SM inne'!$A$502:$A$1000,$AC65,'SM inne'!$AA$502:$AA$1000) -> 1 | BP65: =SUMIF('Växjö Open'!$A$502:$A$1000,$AC65,'Växjö Open'!$AA$502:$AA$1000) -> 1 | BQ65: =SUMIF('BlekingeDM inne'!$A$502:$A$1000,$AC65,'BlekingeDM inne'!$AA$502:$AA$1000) -> 1 | BR65: =SUMIF('Svealands-DM inne'!$A$502:$A$1000,$AC65,'Svealands-DM inne'!$AA$502:$AA$1000) -> 1 | BS65: =SUMIF(Värendspokalen!$A$502:$A$1000,$AC65,Värendspokalen!$AA$502:$AA$1000) -> 1 | BT65: =SUMIF('Tingsryd Open'!$A$502:$A$1000,$AC65,'Tingsryd Open'!$AA$502:$AA$1000) -> 3
A66: 27 | B66: Patrik Axelsson | C66: Wezet Hsk | D66: 0 | G66: =IF(BT66=1,"x",SUMIF('Tingsryd Open'!$X$4:$X$400,$AC66,'Tingsryd Open'!$S$4:$S$400)) -> 0 | H66: =IF(AY66=1,"x",SUMIF('Jämjö Open'!$X$4:$X$400,$AC66,'Jämjö Open'!$S$4:$S$400)) -> x | I66: =IF(BA66=1,"x",SUMIF('Björkenäs Open'!$X$4:$X$400,$AC66,'Björkenäs Open'!$S$4:$S$400)) -> x | J66: =IF(BB66=1,"x",SUMIF('SM ute Lö'!$X$4:$X$400,$AC66,'SM ute Lö'!$S$4:$S$400)) -> x | K66: =IF(BC66=1,"x",SUMIF('SM ute Sö'!$X$4:$X$401,$AC66,'SM ute Sö'!$S$4:$S$401)) -> x | L66: =IF(BD66=1,"x",SUMIF('Roslagen Open'!$X$4:$X$400,$AC66,'Roslagen Open'!$S$4:$S$400)) -> x | M66: =IF(BE66=1,"x",SUMIF('Roslagen Open 2'!$X$4:$X$400,$AC66,'Roslagen Open 2'!$S$4:$S$400)) -> x | N66: =IF(BF66=1,"x",SUMIF('Dynapac Open'!$X$4:$X$400,$AC66,'Dynapac Open'!$S$4:$S$400)) -> x | O66: =IF(BG66=1,"x",SUMIF('SmålandsDM ute'!$X$4:$X$400,$AC66,'SmålandsDM ute'!$S$4:$S$400)) -> x | P66: =IF(BH66=1,"x",SUMIF('BlekingeDM ute'!$X$4:$X$400,$AC66,'BlekingeDM ute'!$S$4:$S$400)) -> x | Q66: =IF(BI66=1,"x",SUMIF('SvealandsDM ute'!$X$4:$X$400,$AC66,'SvealandsDM ute'!$S$4:$S$400)) -> x | R66: =IF(BJ66=1,"x",SUMIF('Ljungby Open'!$X$4:$X$406,$AC66,'Ljungby Open'!$S$4:$S$406)) -> x | S66: =IF(AZ66=1,"x",SUMIF('Viby Open'!$X$4:$X$400,$AC66,'Viby Open'!$S$4:$S$400)) -> x | T66: =IF(BP66=1,"x",SUMIF('Växjö Open'!$X$4:$X$400,$AC66,'Växjö Open'!$S$4:$S$400)) -> x | U66: =IF(BK66=1,"x",SUMIF(Höstskon!$X$4:$X$400,$AC66,Höstskon!$S$4:$S$400)) -> x | V66: =IF(BL66=1,"x",SUMIF('Carlskrona Cup'!$X$4:$X$400,$AC66,'Carlskrona Cup'!$S$4:$S$400)) -> x | W66: =IF(BM66=1,"x",SUMIF('Sibbamåla Open'!$X$4:$X$400,$AC66,'Sibbamåla Open'!$S$4:$S$400)) -> x | X66: =IF(BN66=1,"x",SUMIF('Vaxholm Indoor'!$X$4:$X$400,$AC66,'Vaxholm Indoor'!$S$4:$S$400)) -> x | Y66: =IF(BQ66=1,"x",SUMIF('BlekingeDM inne'!$X$4:$X$400,$AC66,'BlekingeDM inne'!$S$4:$S$400)) -> x | Z66: =IF(BR66=1,"x",SUMIF('Svealands-DM inne'!$X$4:$X$400,$AC66,'Svealands-DM inne'!$S$4:$S$400)) -> x | AA66: =IF(BS66=1,"x",SUMIF(Värendspokalen!$X$4:$X$400,$AC66,Värendspokalen!$S$4:$S$400)) -> x | AB66: =IF(BO66=1,"x",SUMIF('SM inne'!$X$4:$X$400,$AC66,'SM inne'!$S$4:$S$400)) -> x | AC66: =IF(B66="","",SUMIF(Kastare!B$2:B$2999,B66,Kastare!A$2:A$2999)) -> 1407 | AE66: 1 | AK66: 0 | AL66: 0 | AM66: 0 | AN66: 0 | AO66: 0 | AP66: 0 | AQ66: 0 | AR66: 0 | AS66: 0 | AT66: 0 | AU66: 1 | AV66: 1 | AW66: 0 | AY66: =SUMIF('Jämjö Open'!$A$502:$A$1000,$AC66,'Jämjö Open'!$AA$502:$AA$1000) -> 1 | AZ66: =SUMIF('Viby Open'!$A$502:$A$1000,$AC66,'Viby Open'!$AA$502:$AA$1000) -> 1 | BA66: =SUMIF('Björkenäs Open'!$A$502:$A$1000,$AC66,'Björkenäs Open'!$AA$502:$AA$1000) -> 1 | BB66: =SUMIF('SM ute Lö'!$A$502:$A$1000,$AC66,'SM ute Lö'!$AA$502:$AA$1000) -> 1 | BC66: =SUMIF('SM ute Sö'!$A$503:$A$1000,$AC66,'SM ute Sö'!$AA$503:$AA$1000) -> 1 | BD66: =SUMIF('Roslagen Open'!$A$502:$A$1000,$AC66,'Roslagen Open'!$AA$502:$AA$1000) -> 1 | BE66: =SUMIF('Roslagen Open 2'!$A$502:$A$1000,$AC66,'Roslagen Open 2'!$AA$502:$AA$1000) -> 1 | BF66: =SUMIF('Dynapac Open'!$A$502:$A$1000,$AC66,'Dynapac Open'!$AA$502:$AA$1000) -> 1 | BG66: =SUMIF('SmålandsDM ute'!$A$502:$A$1000,$AC66,'SmålandsDM ute'!$AA$502:$AA$1000) -> 1 | BH66: =SUMIF('BlekingeDM ute'!$A$502:$A$1000,$AC66,'BlekingeDM ute'!$AA$502:$AA$1000) -> 1 | BI66: =SUMIF('SvealandsDM ute'!$A$502:$A$1000,$AC66,'SvealandsDM ute'!$AA$502:$AA$1000) -> 1 | BJ66: =SUMIF('Ljungby Open'!$A$502:$A$1000,$AC66,'Ljungby Open'!$AA$502:$AA$1000) -> 1 | BK66: =SUMIF(Höstskon!$A$502:$A$1000,$AC66,Höstskon!$AA$502:$AA$1000) -> 1 | BL66: =SUMIF('Carlskrona Cup'!$A$502:$A$1000,$AC66,'Carlskrona Cup'!$AA$502:$AA$1000) -> 1 | BM66: =SUMIF('Sibbamåla Open'!$A$502:$A$1000,$AC66,'Sibbamåla Open'!$AA$502:$AA$1000) -> 1 | BN66: =SUMIF('Vaxholm Indoor'!$A$502:$A$1000,$AC66,'Vaxholm Indoor'!$AA$502:$AA$1000) -> 1 | BO66: =SUMIF('SM inne'!$A$502:$A$1000,$AC66,'SM inne'!$AA$502:$AA$1000) -> 1 | BP66: =SUMIF('Växjö Open'!$A$502:$A$1000,$AC66,'Växjö Open'!$AA$502:$AA$1000) -> 1 | BQ66: =SUMIF('BlekingeDM inne'!$A$502:$A$1000,$AC66,'BlekingeDM inne'!$AA$502:$AA$1000) -> 1 | BR66: =SUMIF('Svealands-DM inne'!$A$502:$A$1000,$AC66,'Svealands-DM inne'!$AA$502:$AA$1000) -> 1 | BS66: =SUMIF(Värendspokalen!$A$502:$A$1000,$AC66,Värendspokalen!$AA$502:$AA$1000) -> 1 | BT66: =SUMIF('Tingsryd Open'!$A$502:$A$1000,$AC66,'Tingsryd Open'!$AA$502:$AA$1000) -> 3
A67: 27 | B67: Janne Branting | C67: Köping | D67: 0 | G67: =IF(BT67=1,"x",SUMIF('Tingsryd Open'!$X$4:$X$400,$AC67,'Tingsryd Open'!$S$4:$S$400)) -> 0 | H67: =IF(AY67=1,"x",SUMIF('Jämjö Open'!$X$4:$X$400,$AC67,'Jämjö Open'!$S$4:$S$400)) -> x | I67: =IF(BA67=1,"x",SUMIF('Björkenäs Open'!$X$4:$X$400,$AC67,'Björkenäs Open'!$S$4:$S$400)) -> x | J67: =IF(BB67=1,"x",SUMIF('SM ute Lö'!$X$4:$X$400,$AC67,'SM ute Lö'!$S$4:$S$400)) -> x | K67: =IF(BC67=1,"x",SUMIF('SM ute Sö'!$X$4:$X$401,$AC67,'SM ute Sö'!$S$4:$S$401)) -> x | L67: =IF(BD67=1,"x",SUMIF('Roslagen Open'!$X$4:$X$400,$AC67,'Roslagen Open'!$S$4:$S$400)) -> x | M67: =IF(BE67=1,"x",SUMIF('Roslagen Open 2'!$X$4:$X$400,$AC67,'Roslagen Open 2'!$S$4:$S$400)) -> x | N67: =IF(BF67=1,"x",SUMIF('Dynapac Open'!$X$4:$X$400,$AC67,'Dynapac Open'!$S$4:$S$400)) -> x | O67: =IF(BG67=1,"x",SUMIF('SmålandsDM ute'!$X$4:$X$400,$AC67,'SmålandsDM ute'!$S$4:$S$400)) -> x | P67: =IF(BH67=1,"x",SUMIF('BlekingeDM ute'!$X$4:$X$400,$AC67,'BlekingeDM ute'!$S$4:$S$400)) -> x | Q67: =IF(BI67=1,"x",SUMIF('SvealandsDM ute'!$X$4:$X$400,$AC67,'SvealandsDM ute'!$S$4:$S$400)) -> x | R67: =IF(BJ67=1,"x",SUMIF('Ljungby Open'!$X$4:$X$406,$AC67,'Ljungby Open'!$S$4:$S$406)) -> x | S67: =IF(AZ67=1,"x",SUMIF('Viby Open'!$X$4:$X$400,$AC67,'Viby Open'!$S$4:$S$400)) -> x | T67: =IF(BP67=1,"x",SUMIF('Växjö Open'!$X$4:$X$400,$AC67,'Växjö Open'!$S$4:$S$400)) -> x | U67: =IF(BK67=1,"x",SUMIF(Höstskon!$X$4:$X$400,$AC67,Höstskon!$S$4:$S$400)) -> x | V67: =IF(BL67=1,"x",SUMIF('Carlskrona Cup'!$X$4:$X$400,$AC67,'Carlskrona Cup'!$S$4:$S$400)) -> x | W67: =IF(BM67=1,"x",SUMIF('Sibbamåla Open'!$X$4:$X$400,$AC67,'Sibbamåla Open'!$S$4:$S$400)) -> x | X67: =IF(BN67=1,"x",SUMIF('Vaxholm Indoor'!$X$4:$X$400,$AC67,'Vaxholm Indoor'!$S$4:$S$400)) -> x | Y67: =IF(BQ67=1,"x",SUMIF('BlekingeDM inne'!$X$4:$X$400,$AC67,'BlekingeDM inne'!$S$4:$S$400)) -> x | Z67: =IF(BR67=1,"x",SUMIF('Svealands-DM inne'!$X$4:$X$400,$AC67,'Svealands-DM inne'!$S$4:$S$400)) -> x | AA67: =IF(BS67=1,"x",SUMIF(Värendspokalen!$X$4:$X$400,$AC67,Värendspokalen!$S$4:$S$400)) -> x | AB67: =IF(BO67=1,"x",SUMIF('SM inne'!$X$4:$X$400,$AC67,'SM inne'!$S$4:$S$400)) -> x | AC67: =IF(B67="","",SUMIF(Kastare!B$2:B$2999,B67,Kastare!A$2:A$2999)) -> 1389 | AE67: 1 | AK67: 0 | AL67: 0 | AM67: 0 | AN67: 0 | AO67: 0 | AP67: 0 | AQ67: 0 | AR67: 0 | AS67: 0 | AT67: 0 | AU67: 1 | AV67: 1 | AW67: 0 | AY67: =SUMIF('Jämjö Open'!$A$502:$A$1000,$AC67,'Jämjö Open'!$AA$502:$AA$1000) -> 1 | AZ67: =SUMIF('Viby Open'!$A$502:$A$1000,$AC67,'Viby Open'!$AA$502:$AA$1000) -> 1 | BA67: =SUMIF('Björkenäs Open'!$A$502:$A$1000,$AC67,'Björkenäs Open'!$AA$502:$AA$1000) -> 1 | BB67: =SUMIF('SM ute Lö'!$A$502:$A$1000,$AC67,'SM ute Lö'!$AA$502:$AA$1000) -> 1 | BC67: =SUMIF('SM ute Sö'!$A$503:$A$1000,$AC67,'SM ute Sö'!$AA$503:$AA$1000) -> 1 | BD67: =SUMIF('Roslagen Open'!$A$502:$A$1000,$AC67,'Roslagen Open'!$AA$502:$AA$1000) -> 1 | BE67: =SUMIF('Roslagen Open 2'!$A$502:$A$1000,$AC67,'Roslagen Open 2'!$AA$502:$AA$1000) -> 1 | BF67: =SUMIF('Dynapac Open'!$A$502:$A$1000,$AC67,'Dynapac Open'!$AA$502:$AA$1000) -> 1 | BG67: =SUMIF('SmålandsDM ute'!$A$502:$A$1000,$AC67,'SmålandsDM ute'!$AA$502:$AA$1000) -> 1 | BH67: =SUMIF('BlekingeDM ute'!$A$502:$A$1000,$AC67,'BlekingeDM ute'!$AA$502:$AA$1000) -> 1 | BI67: =SUMIF('SvealandsDM ute'!$A$502:$A$1000,$AC67,'SvealandsDM ute'!$AA$502:$AA$1000) -> 1 | BJ67: =SUMIF('Ljungby Open'!$A$502:$A$1000,$AC67,'Ljungby Open'!$AA$502:$AA$1000) -> 1 | BK67: =SUMIF(Höstskon!$A$502:$A$1000,$AC67,Höstskon!$AA$502:$AA$1000) -> 1 | BL67: =SUMIF('Carlskrona Cup'!$A$502:$A$1000,$AC67,'Carlskrona Cup'!$AA$502:$AA$1000) -> 1 | BM67: =SUMIF('Sibbamåla Open'!$A$502:$A$1000,$AC67,'Sibbamåla Open'!$AA$502:$AA$1000) -> 1 | BN67: =SUMIF('Vaxholm Indoor'!$A$502:$A$1000,$AC67,'Vaxholm Indoor'!$AA$502:$AA$1000) -> 1 | BO67: =SUMIF('SM inne'!$A$502:$A$1000,$AC67,'SM inne'!$AA$502:$AA$1000) -> 1 | BP67: =SUMIF('Växjö Open'!$A$502:$A$1000,$AC67,'Växjö Open'!$AA$502:$AA$1000) -> 1 | BQ67: =SUMIF('BlekingeDM inne'!$A$502:$A$1000,$AC67,'BlekingeDM inne'!$AA$502:$AA$1000) -> 1 | BR67: =SUMIF('Svealands-DM inne'!$A$502:$A$1000,$AC67,'Svealands-DM inne'!$AA$502:$AA$1000) -> 1 | BS67: =SUMIF(Värendspokalen!$A$502:$A$1000,$AC67,Värendspokalen!$AA$502:$AA$1000) -> 1 | BT67: =SUMIF('Tingsryd Open'!$A$502:$A$1000,$AC67,'Tingsryd Open'!$AA$502:$AA$1000) -> 3
A68: 27 | B68: Mikael Grönskog | C68: Sibbamåla | D68: =IF(AX68="",SUM(G68:AA68),SUM(G68:AA68)-AX68) -> 0 | G68: =IF(BT68=1,"x",SUMIF('Tingsryd Open'!$X$4:$X$400,$AC68,'Tingsryd Open'!$S$4:$S$400)) -> 0 | H68: =IF(AY68=1,"x",SUMIF('Jämjö Open'!$X$4:$X$400,$AC68,'Jämjö Open'!$S$4:$S$400)) -> x | I68: =IF(BA68=1,"x",SUMIF('Björkenäs Open'!$X$4:$X$400,$AC68,'Björkenäs Open'!$S$4:$S$400)) -> x | J68: =IF(BB68=1,"x",SUMIF('SM ute Lö'!$X$4:$X$400,$AC68,'SM ute Lö'!$S$4:$S$400)) -> x | K68: =IF(BC68=1,"x",SUMIF('SM ute Sö'!$X$4:$X$401,$AC68,'SM ute Sö'!$S$4:$S$401)) -> x | L68: =IF(BD68=1,"x",SUMIF('Roslagen Open'!$X$4:$X$400,$AC68,'Roslagen Open'!$S$4:$S$400)) -> x | M68: =IF(BE68=1,"x",SUMIF('Roslagen Open 2'!$X$4:$X$400,$AC68,'Roslagen Open 2'!$S$4:$S$400)) -> x | N68: =IF(BF68=1,"x",SUMIF('Dynapac Open'!$X$4:$X$400,$AC68,'Dynapac Open'!$S$4:$S$400)) -> x | O68: =IF(BG68=1,"x",SUMIF('SmålandsDM ute'!$X$4:$X$400,$AC68,'SmålandsDM ute'!$S$4:$S$400)) -> x | P68: =IF(BH68=1,"x",SUMIF('BlekingeDM ute'!$X$4:$X$400,$AC68,'BlekingeDM ute'!$S$4:$S$400)) -> x | Q68: =IF(BI68=1,"x",SUMIF('SvealandsDM ute'!$X$4:$X$400,$AC68,'SvealandsDM ute'!$S$4:$S$400)) -> x | R68: =IF(BJ68=1,"x",SUMIF('Ljungby Open'!$X$4:$X$406,$AC68,'Ljungby Open'!$S$4:$S$406)) -> x | S68: =IF(AZ68=1,"x",SUMIF('Viby Open'!$X$4:$X$400,$AC68,'Viby Open'!$S$4:$S$400)) -> x | T68: =IF(BP68=1,"x",SUMIF('Växjö Open'!$X$4:$X$400,$AC68,'Växjö Open'!$S$4:$S$400)) -> x | U68: =IF(BK68=1,"x",SUMIF(Höstskon!$X$4:$X$400,$AC68,Höstskon!$S$4:$S$400)) -> x | V68: =IF(BL68=1,"x",SUMIF('Carlskrona Cup'!$X$4:$X$400,$AC68,'Carlskrona Cup'!$S$4:$S$400)) -> x | W68: =IF(BM68=1,"x",SUMIF('Sibbamåla Open'!$X$4:$X$400,$AC68,'Sibbamåla Open'!$S$4:$S$400)) -> x | X68: =IF(BN68=1,"x",SUMIF('Vaxholm Indoor'!$X$4:$X$400,$AC68,'Vaxholm Indoor'!$S$4:$S$400)) -> x | Y68: =IF(BQ68=1,"x",SUMIF('BlekingeDM inne'!$X$4:$X$400,$AC68,'BlekingeDM inne'!$S$4:$S$400)) -> x | Z68: =IF(BR68=1,"x",SUMIF('Svealands-DM inne'!$X$4:$X$400,$AC68,'Svealands-DM inne'!$S$4:$S$400)) -> x | AA68: =IF(BS68=1,"x",SUMIF(Värendspokalen!$X$4:$X$400,$AC68,Värendspokalen!$S$4:$S$400)) -> x | AB68: =IF(BO68=1,"x",SUMIF('SM inne'!$X$4:$X$400,$AC68,'SM inne'!$S$4:$S$400)) -> x | AC68: =IF(B68="","",SUMIF(Kastare!B$2:B$2999,B68,Kastare!A$2:A$2999)) -> 1112 | AE68: =IF(B68="",0,1) -> 1 | AK68: =COUNTIF($G68:$AA68,50) -> 0 | AL68: =COUNTIF($G68:$AA68,45) -> 0 | AM68: =COUNTIF($G68:$AA68,40) -> 0 | AN68: =COUNTIF($G68:$AA68,35) -> 0 | AO68: =COUNTIF($G68:$AA68,30) -> 0 | AP68: =COUNTIF($G68:$AA68,25) -> 0 | AQ68: =COUNTIF($G68:$AA68,20) -> 0 | AR68: =COUNTIF($G68:$AA68,15) -> 0 | AS68: =COUNTIF($G68:$AA68,10) -> 0 | AT68: =COUNTIF($G68:$AA68,5) -> 0 | AU68: =COUNTIF($G68:$AA68,0) -> 1 | AV68: =SUM(AK68:AU68) -> 1 | AW68: =SUM(AK68:AT68) -> 0 | AY68: =SUMIF('Jämjö Open'!$A$502:$A$1000,$AC68,'Jämjö Open'!$AA$502:$AA$1000) -> 1 | AZ68: =SUMIF('Viby Open'!$A$502:$A$1000,$AC68,'Viby Open'!$AA$502:$AA$1000) -> 1 | BA68: =SUMIF('Björkenäs Open'!$A$502:$A$1000,$AC68,'Björkenäs Open'!$AA$502:$AA$1000) -> 1 | BB68: =SUMIF('SM ute Lö'!$A$502:$A$1000,$AC68,'SM ute Lö'!$AA$502:$AA$1000) -> 1 | BC68: =SUMIF('SM ute Sö'!$A$503:$A$1000,$AC68,'SM ute Sö'!$AA$503:$AA$1000) -> 1 | BD68: =SUMIF('Roslagen Open'!$A$502:$A$1000,$AC68,'Roslagen Open'!$AA$502:$AA$1000) -> 1 | BE68: =SUMIF('Roslagen Open 2'!$A$502:$A$1000,$AC68,'Roslagen Open 2'!$AA$502:$AA$1000) -> 1 | BF68: =SUMIF('Dynapac Open'!$A$502:$A$1000,$AC68,'Dynapac Open'!$AA$502:$AA$1000) -> 1 | BG68: =SUMIF('SmålandsDM ute'!$A$502:$A$1000,$AC68,'SmålandsDM ute'!$AA$502:$AA$1000) -> 1 | BH68: =SUMIF('BlekingeDM ute'!$A$502:$A$1000,$AC68,'BlekingeDM ute'!$AA$502:$AA$1000) -> 1 | BI68: =SUMIF('SvealandsDM ute'!$A$502:$A$1000,$AC68,'SvealandsDM ute'!$AA$502:$AA$1000) -> 1 | BJ68: =SUMIF('Ljungby Open'!$A$502:$A$1000,$AC68,'Ljungby Open'!$AA$502:$AA$1000) -> 1 | BK68: =SUMIF(Höstskon!$A$502:$A$1000,$AC68,Höstskon!$AA$502:$AA$1000) -> 1 | BL68: =SUMIF('Carlskrona Cup'!$A$502:$A$1000,$AC68,'Carlskrona Cup'!$AA$502:$AA$1000) -> 1 | BM68: =SUMIF('Sibbamåla Open'!$A$502:$A$1000,$AC68,'Sibbamåla Open'!$AA$502:$AA$1000) -> 1 | BN68: =SUMIF('Vaxholm Indoor'!$A$502:$A$1000,$AC68,'Vaxholm Indoor'!$AA$502:$AA$1000) -> 1 | BO68: =SUMIF('SM inne'!$A$502:$A$1000,$AC68,'SM inne'!$AA$502:$AA$1000) -> 1 | BP68: =SUMIF('Växjö Open'!$A$502:$A$1000,$AC68,'Växjö Open'!$AA$502:$AA$1000) -> 1 | BQ68: =SUMIF('BlekingeDM inne'!$A$502:$A$1000,$AC68,'BlekingeDM inne'!$AA$502:$AA$1000) -> 1 | BR68: =SUMIF('Svealands-DM inne'!$A$502:$A$1000,$AC68,'Svealands-DM inne'!$AA$502:$AA$1000) -> 1 | BS68: =SUMIF(Värendspokalen!$A$502:$A$1000,$AC68,Värendspokalen!$AA$502:$AA$1000) -> 1 | BT68: =SUMIF('Tingsryd Open'!$A$502:$A$1000,$AC68,'Tingsryd Open'!$AA$502:$AA$1000) -> 3
